Workbook

Sheet Cover_sheet
A5: Title | B5: CLASS Cost Benefit Analysis tool
A6: Version | B6: v1 | J6: Legend
A7: Date | B7: 2016-05-31
J8: Input
J9: Calculated cell
J12: General description
J14: Sheet | K14: Description
J15: Control | K15: Allows the user to input the volume of CLASS in 2015 and 2027 and the pricing strategy
J16: Advanced control | K16: Allows the user to change other parameters in the tool including CLASS assumptions and market assumptions
A17: Copyright © Baringa Partners LLP 2016. All rights reserved. This document is subject to contract and contains confidential and proprietary information. No part of this document may be reproduced without the prior written permission of Baringa Partners LLP. | J17: Results>>
J18: CLASS_capability | K18: CLASS' capability as provided by ENWL
J19: Stack_viewer | K19: Allows the user to view the stack and supply curve for a given service and time period, showing the effect of CLASS
A20: While Baringa Partners considers that the information and opinions given in this work are sound, all parties must rely upon their own skill and judgement when interpreting or making use of it. In particular any forecasts, analysis or advice that Baringa Partners provides may, by necessity, be based on assumptions with respect to future market events and conditions. While Baringa Partners believes such assumptions to be reasonable for purposes of preparing its analysis, actual future outcomes may differ, perhaps materially, from those predicted or forecasted. Baringa Partners cannot, and does not, accept liability for losses suffered, whether direct or consequential, arising out of any reliance on its analysis. | J20: DCF_calculation | K20: Performs the multi-year Discounted Cash Flow analysis, showing the Net Present Value of the scheme and stakeholder sharing
J21: Secondary benefits>>
J22: Carbon | K22: Calculates the impact of CLASS on carbon emissions
J23: Reactive_Power | K23: Estimates the value of CLASS in providing reactive power services
J24: Stacks>>
J25: Stack collation | K25: Holds the baseline stacks for each service and season
J26: STOR_stacks | K26: Contains utilisation stacks from STOR season 8 for constructing merit orders and calculating utilisation intensities

Sheet Control
A1: Control tab
A2: This tab is designed for users to have the ability to change the number of CLASS substations installed in a "current" market (based in 2014-15) and a future market, based in 2027.
A3: If the Volume Strategy is set to Automatic, the available CLASS volume (accounting for derating) will be allocated first to the Frequency Response market, then Fast Reserve, then STOR.
A4: Users must select a pricing strategy for each product that CLASS capabilities are assumed to be participating in, or can manually determine the price.
B5: Volume assumptions
C6: 2015 | H6: 2027
B7: CLASS substations installed | C7: =354 -> 354 | H7: =5900 -> 5900
B8: Maximum capability per site (MW/site) | C8: =MAX(CLASS_capability!$D$46:$O$69)/354 -> 0.5058028721 | H8: =C8 -> 0.5058028721
B9: Maximum CLASS capability (MW) | C9: =C7*C8 -> 179.0542167 | H9: =H7*H8 -> 2984.236945
C10: 2015 | H10: 2027
C11: Winter Daytime | D11: Non-Winter Daytime | E11: Winter Overnight | F11: Non-Winter Overnight | H11: Winter Daytime | I11: Non-Winter Daytime | J11: Winter Overnight | K11: Non-Winter Overnight
B12: Total CLASS capability by period | C12: =MIN(OFFSET(CLASS_capability!$K$71,Day_start,0,Day_end-Day_start+1,4)) -> 105.1674087 | D12: =MIN(OFFSET(CLASS_capability!$D$71,Day_start,0,Day_end-Day_start+1,7),OFFSET(CLASS_capability!$O$71,Day_start,0,Day_end-Day_start+1,1)) -> 105.123777 | E12: =MIN(OFFSET(CLASS_capability!$K$71,Overnight_start,0,24-Overnight_start,4),OFFSET(CLASS_capability!$K$71,0,0,Overnight_end+1,4)) -> 90.1523953 | F12: =MIN(OFFSET(CLASS_capability!$D$71,Overnight_start,0,24-Overnight_start,7),OFFSET(CLASS_capability!$O$71,Overnight_start,0,24-Overnight_start,1),OFFSET(CLASS_capability!$D$71,0,0,Overnight_end+1,7),OFFSET(CLASS_capability!$O$71,0,0,Overnight_end+1,1)) -> 80.5418997 | H12: =MIN(OFFSET(CLASS_capability!$K$96,Day_start,0,Day_end-Day_start+1,4)) -> 1752.790144 | I12: =MIN(OFFSET(CLASS_capability!$D$96,Day_start,0,Day_end-Day_start+1,7),OFFSET(CLASS_capability!$O$96,Day_start,0,Day_end-Day_start+1,1)) -> 1752.06295 | J12: =MIN(OFFSET(CLASS_capability!$K$96,Overnight_start,0,24-Overnight_start,4),OFFSET(CLASS_capability!$K$96,0,0,Overnight_end+1,4)) -> 1502.539922 | K12: =MIN(OFFSET(CLASS_capability!$D$96,Overnight_start,0,24-Overnight_start,7),OFFSET(CLASS_capability!$O$96,Overnight_start,0,24-Overnight_start,1),OFFSET(CLASS_capability!$D$96,0,0,Overnight_end+1,7),OFFSET(CLASS_capability!$O$96,0,0,Overnight_end+1,1)) -> 1342.364995
B13: Volume strategy | C13: Automatic | H13: =C13 -> Automatic
B14: CLASS volume in each market (only used if manual strategy selected) (MW)
B15: Response
B16: Fast Reserve
B17: STOR
B18: CLASS volume in each market (MW)
B19: Response | C19: =IF($C$13="Manual",C15,MIN(C$12*Advanced_control!$C20,C29)) -> 105.1674087 | D19: =IF($C$13="Manual",D15,MIN(D$12*Advanced_control!$C20,D29)) -> 105.123777 | E19: =IF($C$13="Manual",E15,MIN(E$12*Advanced_control!$C20,E29)) -> 90.1523953 | F19: =IF($C$13="Manual",F15,MIN(F$12*Advanced_control!$C20,F29)) -> 80.5418997 | H19: =IF($H$13="Manual",H15,MIN(H$12*Advanced_control!$D20,H29)) -> 1157.211696 | I19: =IF($H$13="Manual",I15,MIN(I$12*Advanced_control!$D20,I29)) -> 1313.24024 | J19: =IF($H$13="Manual",J15,MIN(J$12*Advanced_control!$D20,J29)) -> 1272.7 | K19: =IF($H$13="Manual",K15,MIN(K$12*Advanced_control!$D20,K29)) -> 1272.7
B20: Fast Reserve | C20: =IF($C$13="Manual",C16,MIN((C$12-C$19/Advanced_control!$C20)*Advanced_control!$C21,C30)) -> 0 | D20: =IF($C$13="Manual",D16,MIN((D$12-D$19/Advanced_control!$C20)*Advanced_control!$C21,D30)) -> 0 | E20: =IF($C$13="Manual",E16,MIN((E$12-E$19/Advanced_control!$C20)*Advanced_control!$C21,E30)) -> 0 | F20: =IF($C$13="Manual",F16,MIN((F$12-F$19/Advanced_control!$C20)*Advanced_control!$C21,F30)) -> 0 | H20: =IF($H$13="Manual",H16,MIN((H$12-H$19/Advanced_control!$D20)*Advanced_control!$D21,H30)) -> 475 | I20: =IF($H$13="Manual",I16,MIN((I$12-I$19/Advanced_control!$D20)*Advanced_control!$D21,I30)) -> 425 | J20: =IF($H$13="Manual",J16,MIN((J$12-J$19/Advanced_control!$D20)*Advanced_control!$D21,J30)) -> 112.5 | K20: =IF($H$13="Manual",K16,MIN((K$12-K$19/Advanced_control!$D20)*Advanced_control!$D21,K30)) -> 69.66499494
B21: STOR | C21: =IF($C$13="Manual",C17,MIN((C$12-C$19/Advanced_control!$C20-C$20/Advanced_control!$C21)*Advanced_control!$C22,C31)) -> 0 | D21: =IF($C$13="Manual",D17,MIN((D$12-D$19/Advanced_control!$C20-D$20/Advanced_control!$C21)*Advanced_control!$C22,D31)) -> 0 | H21: =IF($H$13="Manual",H17,MIN((H$12-H$19/Advanced_control!$D20-H$20/Advanced_control!$D21)*Advanced_control!$D22,H31)) -> 60.28922408 | I21: =IF($H$13="Manual",I17,MIN((I$12-I$19/Advanced_control!$D20-I$20/Advanced_control!$D21)*Advanced_control!$D22,I31)) -> 6.911355012
B22: Use of CLASS capability (accounting for derating) (%)
B23: Response | C23: =IF(C19=0,0,C19/Advanced_control!$C20/C$12) -> 1 | D23: =IF(D19=0,0,D19/Advanced_control!$C20/D$12) -> 1 | E23: =IF(E19=0,0,E19/Advanced_control!$C20/E$12) -> 1 | F23: =IF(F19=0,0,F19/Advanced_control!$C20/F$12) -> 1 | G23: =(C23*WinDayHours+D23*NonWinDayHours+E23*WinNightHours+F23*NonWinNightHours)/8760 -> 1 | H23: =IF(H19=0,0,H19/Advanced_control!$D20/H$12) -> 0.6602112066 | I23: =IF(I19=0,0,I19/Advanced_control!$D20/I$12) -> 0.7495394157 | J23: =IF(J19=0,0,J19/Advanced_control!$D20/J$12) -> 0.8470324027 | K23: =IF(K19=0,0,K19/Advanced_control!$D20/K$12) -> 0.9481027923 | L23: =(H23*WinDayHours+I23*NonWinDayHours+J23*WinNightHours+K23*NonWinNightHours)/8760 -> 0.7850722153
B24: Fast Reserve | C24: =IF(C20=0,0,C20/Advanced_control!$C21/C$12) -> 0 | D24: =IF(D20=0,0,D20/Advanced_control!$C21/D$12) -> 0 | E24: =IF(E20=0,0,E20/Advanced_control!$C21/E$12) -> 0 | F24: =IF(F20=0,0,F20/Advanced_control!$C21/F$12) -> 0 | G24: =(C24*WinDayHours+D24*NonWinDayHours+E24*WinNightHours+F24*NonWinNightHours)/8760 -> 0 | H24: =IF(H20=0,0,H20/Advanced_control!$D21/H$12) -> 0.2709965032 | I24: =IF(I20=0,0,I20/Advanced_control!$D21/I$12) -> 0.2425711931 | J24: =IF(J20=0,0,J20/Advanced_control!$D21/J$12) -> 0.07487321859 | K24: =IF(K20=0,0,K20/Advanced_control!$D21/K$12) -> 0.05189720769 | L24: =(H24*WinDayHours+I24*NonWinDayHours+J24*WinNightHours+K24*NonWinNightHours)/8760 -> 0.1877613219
B25: STOR | C25: =IF(C21=0,0,C21/Advanced_control!$C22/C$12) -> 0 | D25: =IF(D21=0,0,D21/Advanced_control!$C22/D$12) -> 0 | E25: =IF(E21=0,0,E21/Advanced_control!$C22/E$12) -> 0 | F25: =IF(F21=0,0,F21/Advanced_control!$C22/F$12) -> 0 | G25: =(C25*WinDayHours+D25*NonWinDayHours+E25*WinNightHours+F25*NonWinNightHours)/(WinDayHours+NonWinDayHours) -> 0 | H25: =IF(H21=0,0,H21/Advanced_control!$D22/H$12) -> 0.06879229014 | I25: =IF(I21=0,0,I21/Advanced_control!$D22/I$12) -> 0.007889391205 | J25: =IF(J21=0,0,J21/Advanced_control!$D22/J$12) -> 0 | K25: =IF(K21=0,0,K21/Advanced_control!$D22/K$12) -> 0 | L25: =(H25*WinDayHours+I25*NonWinDayHours+J25*WinNightHours+K25*NonWinNightHours)/(WinDayHours+NonWinDayHours) -> 0.02791226209
B26: Total | C26: =SUM(C23:C25) -> 1 | D26: 1 | E26: 1 | F26: 1 | H26: 1 | I26: 1 | J26: 0.9219056213 | K26: 1
C27: 2015 | H27: 2027
B28: Service requirement that can be displaced by CLASS
B29: Response | C29: ='2015_Response_stack_WinDay'!$V$8 -> 1112.5 | D29: ='2015_Response_stack_NonWinDay'!$V$8 -> 1262.5 | E29: ='2015_Response_stack_WinNight'!$V$8 -> 1400 | F29: ='2015_Response_stack_NonWinNight'!$V$8 -> 1400 | H29: ='2027_Response_stack_WinDay'!$V$8 -> 1157.211696 | I29: ='2027_Response_stack_NonWinDay'!$V$8 -> 1313.24024 | J29: ='2027_Response_stack_WinNight'!$V$8 -> 1272.7 | K29: ='2027_Response_stack_NonWinNight'!$V$8 -> 1272.7
B30: Fast Reserve | C30: =Reserve_WinDay_req_2015 -> 475 | D30: =Reserve_NonWinDay_req_2015 -> 425 | E30: =Reserve_WinNight_req_2015 -> 112.5 | F30: =Reserve_NonWinNight_req_2015 -> 150 | H30: =Reserve_WinDay_req_2027 -> 475 | I30: =Reserve_NonWinDay_req_2027 -> 425 | J30: =Reserve_WinNight_req_2027 -> 112.5 | K30: =Reserve_NonWinNight_req_2027 -> 150
B31: STOR | C31: =STOR_WinDay_req_2015 -> 2340.59728 | D31: =STOR_NonWinDay_req_2015 -> 2160.28303 | H31: =STOR_WinDay_req_2027 -> 2650.072771 | I31: =STOR_NonWinDay_req_2027 -> 2445.917239
B32: Use of CLASS requirement (%)
B33: Response | C33: =IF(C29=0,"No requirement",IF(C19=0,0,C19*Advanced_control!$C20/C29)) -> 0.09453250217 | D33: =IF(D29=0,"No requirement",IF(D19=0,0,D19*Advanced_control!$C20/D29)) -> 0.083266358 | E33: =IF(E29=0,"No requirement",IF(E19=0,0,E19*Advanced_control!$C20/E29)) -> 0.06439456807 | F33: =IF(F29=0,"No requirement",IF(F19=0,0,F19*Advanced_control!$C20/F29)) -> 0.05752992835 | H33: =IF(H29=0,"No requirement",IF(H19=0,0,H19*Advanced_control!$D20/H29)) -> 1 | I33: =IF(I29=0,"No requirement",IF(I19=0,0,I19*Advanced_control!$D20/I29)) -> 1 | J33: =IF(J29=0,"No requirement",IF(J19=0,0,J19*Advanced_control!$D20/J29)) -> 1 | K33: =IF(K29=0,"No requirement",IF(K19=0,0,K19*Advanced_control!$D20/K29)) -> 1
B34: Fast Reserve | C34: =IF(C30=0,"No requirement",IF(C20=0,0,C20*Advanced_control!$C21/C30)) -> 0 | D34: =IF(D30=0,"No requirement",IF(D20=0,0,D20*Advanced_control!$C21/D30)) -> 0 | E34: =IF(E30=0,"No requirement",IF(E20=0,0,E20*Advanced_control!$C21/E30)) -> 0 | F34: =IF(F30=0,"No requirement",IF(F20=0,0,F20*Advanced_control!$C21/F30)) -> 0 | H34: =IF(H30=0,"No requirement",IF(H20=0,0,H20*Advanced_control!$D21/H30)) -> 1 | I34: =IF(I30=0,"No requirement",IF(I20=0,0,I20*Advanced_control!$D21/I30)) -> 1 | J34: =IF(J30=0,"No requirement",IF(J20=0,0,J20*Advanced_control!$D21/J30)) -> 1 | K34: =IF(K30=0,"No requirement",IF(K20=0,0,K20*Advanced_control!$D21/K30)) -> 0.4644332996
B35: STOR | C35: =IF(C31=0,"No requirement",IF(C21=0,0,C21*Advanced_control!$C22/C31)) -> 0 | D35: =IF(D31=0,"No requirement",IF(D21=0,0,D21*Advanced_control!$C22/D31)) -> 0 | E35: =IF(E31=0,"No requirement",IF(E21=0,0,E21*Advanced_control!$C22/E31)) -> No requirement | F35: =IF(F31=0,"No requirement",IF(F21=0,0,F21*Advanced_control!$C22/F31)) -> No requirement | H35: =IF(H31=0,"No requirement",IF(H21=0,0,H21*Advanced_control!$D22/H31)) -> 0.01137501293 | I35: =IF(I31=0,"No requirement",IF(I21=0,0,I21*Advanced_control!$D22/I31)) -> 0.00141283501 | J35: =IF(J31=0,"No requirement",IF(J21=0,0,J21*Advanced_control!$D22/J31)) -> No requirement | K35: =IF(K31=0,"No requirement",IF(K21=0,0,K21*Advanced_control!$D22/K31)) -> No requirement
B36: Price assumptions
C37: 2015 | H37: 2027
B38: Price strategy
B39: Response, Fast Reserve | C39: Shadow marginal | H39: =CLASS_response_price_strategy -> Shadow marginal
B40: STOR | C40: Shadow marginal | H40: =C40 -> Shadow marginal
B41: Reactive | C41: Zero cost | H41: =CLASS_Reactive_price_strategy -> Zero cost
B42: CLASS price (only used if manual strategy selected)
B43: Response (£/MWh/h)
B44: Fast Reserve (£/MW/h)
B45: STOR utilisation (£/MWh)
B46: STOR availability (£/MWh)
B47: Reactive (£/MVArh)
C48: 2015 | H48: 2027
C49: Winter Daytime | D49: Non-Winter Daytime | E49: Winter Overnight | F49: Non-Winter Overnight | H49: Winter Daytime | I49: Non-Winter Daytime | J49: Winter Overnight | K49: Non-Winter Overnight
B50: Selected CLASS price
B51: Response (£/MWh/h) | C51: =IF(C19>0,OFFSET(Price_strategies!$D$5,MATCH($C$39,OFFSET(Price_strategies!$D$5,1,MATCH($B51,Price_strategies!$E$5:$N$5,0),8,1),0)+INDEX(Price_strategies!$B$5:$B$31,MATCH(C$11,Price_strategies!$C$5:$C$31,0)),MATCH($B51,Price_strategies!$E$5:$N$5,0)+1),"") -> 31.16570481 | D51: =IF(D19>0,OFFSET(Price_strategies!$D$5,MATCH($C$39,OFFSET(Price_strategies!$D$5,1,MATCH($B51,Price_strategies!$E$5:$N$5,0),8,1),0)+INDEX(Price_strategies!$B$5:$B$31,MATCH(D$11,Price_strategies!$C$5:$C$31,0)),MATCH($B51,Price_strategies!$E$5:$N$5,0)+1),"") -> 34.27305266 | E51: =IF(E19>0,OFFSET(Price_strategies!$D$5,MATCH($C$39,OFFSET(Price_strategies!$D$5,1,MATCH($B51,Price_strategies!$E$5:$N$5,0),8,1),0)+INDEX(Price_strategies!$B$5:$B$31,MATCH(E$11,Price_strategies!$C$5:$C$31,0)),MATCH($B51,Price_strategies!$E$5:$N$5,0)+1),"") -> 33.87157895 | F51: =IF(F19>0,OFFSET(Price_strategies!$D$5,MATCH($C$39,OFFSET(Price_strategies!$D$5,1,MATCH($B51,Price_strategies!$E$5:$N$5,0),8,1),0)+INDEX(Price_strategies!$B$5:$B$31,MATCH(F$11,Price_strategies!$C$5:$C$31,0)),MATCH($B51,Price_strategies!$E$5:$N$5,0)+1),"") -> 41.48654691 | H51: =IF(H19>0,OFFSET(Price_strategies!$D$36,MATCH($H$39,OFFSET(Price_strategies!$D$36,1,MATCH($B51,Price_strategies!$E$36:$N$36,0),8,1),0)+INDEX(Price_strategies!$B$5:$B$31,MATCH(H$11,Price_strategies!$C$5:$C$31,0)),MATCH($B51,Price_strategies!$E$36:$N$36,0)+1),"") -> 4.362741092 | I51: =IF(I19>0,OFFSET(Price_strategies!$D$36,MATCH($H$39,OFFSET(Price_strategies!$D$36,1,MATCH($B51,Price_strategies!$E$36:$N$36,0),8,1),0)+INDEX(Price_strategies!$B$5:$B$31,MATCH(I$11,Price_strategies!$C$5:$C$31,0)),MATCH($B51,Price_strategies!$E$36:$N$36,0)+1),"") -> 4.721294184 | J51: =IF(J19>0,OFFSET(Price_strategies!$D$36,MATCH($H$39,OFFSET(Price_strategies!$D$36,1,MATCH($B51,Price_strategies!$E$36:$N$36,0),8,1),0)+INDEX(Price_strategies!$B$5:$B$31,MATCH(J$11,Price_strategies!$C$5:$C$31,0)),MATCH($B51,Price_strategies!$E$36:$N$36,0)+1),"") -> 7.865249464 | K51: =IF(K19>0,OFFSET(Price_strategies!$D$36,MATCH($H$39,OFFSET(Price_strategies!$D$36,1,MATCH($B51,Price_strategies!$E$36:$N$36,0),8,1),0)+INDEX(Price_strategies!$B$5:$B$31,MATCH(K$11,Price_strategies!$C$5:$C$31,0)),MATCH($B51,Price_strategies!$E$36:$N$36,0)+1),"") -> 7.865249464
B52: Fast Reserve (£/MW/h) | C52: =IF(C20>0,OFFSET(Price_strategies!$D$5,MATCH($C$39,OFFSET(Price_strategies!$D$5,1,MATCH($B52,Price_strategies!$E$5:$N$5,0),8,1),0)+INDEX(Price_strategies!$B$5:$B$31,MATCH(C$11,Price_strategies!$C$5:$C$31,0)),MATCH($B52,Price_strategies!$E$5:$N$5,0)+1),"") ->  | D52: =IF(D20>0,OFFSET(Price_strategies!$D$5,MATCH($C$39,OFFSET(Price_strategies!$D$5,1,MATCH($B52,Price_strategies!$E$5:$N$5,0),8,1),0)+INDEX(Price_strategies!$B$5:$B$31,MATCH(D$11,Price_strategies!$C$5:$C$31,0)),MATCH($B52,Price_strategies!$E$5:$N$5,0)+1),"") ->  | E52: =IF(E20>0,OFFSET(Price_strategies!$D$5,MATCH($C$39,OFFSET(Price_strategies!$D$5,1,MATCH($B52,Price_strategies!$E$5:$N$5,0),8,1),0)+INDEX(Price_strategies!$B$5:$B$31,MATCH(E$11,Price_strategies!$C$5:$C$31,0)),MATCH($B52,Price_strategies!$E$5:$N$5,0)+1),"") ->  | F52: =IF(F20>0,OFFSET(Price_strategies!$D$5,MATCH($C$39,OFFSET(Price_strategies!$D$5,1,MATCH($B52,Price_strategies!$E$5:$N$5,0),8,1),0)+INDEX(Price_strategies!$B$5:$B$31,MATCH(F$11,Price_strategies!$C$5:$C$31,0)),MATCH($B52,Price_strategies!$E$5:$N$5,0)+1),"") ->  | H52: =IF(H20>0,OFFSET(Price_strategies!$D$36,MATCH($H$39,OFFSET(Price_strategies!$D$36,1,MATCH($B52,Price_strategies!$E$36:$N$36,0),8,1),0)+INDEX(Price_strategies!$B$5:$B$31,MATCH(H$11,Price_strategies!$C$5:$C$31,0)),MATCH($B52,Price_strategies!$E$36:$N$36,0)+1),"") -> 3.015502557 | I52: =IF(I20>0,OFFSET(Price_strategies!$D$36,MATCH($H$39,OFFSET(Price_strategies!$D$36,1,MATCH($B52,Price_strategies!$E$36:$N$36,0),8,1),0)+INDEX(Price_strategies!$B$5:$B$31,MATCH(I$11,Price_strategies!$C$5:$C$31,0)),MATCH($B52,Price_strategies!$E$36:$N$36,0)+1),"") -> 3.015502557 | J52: =IF(J20>0,OFFSET(Price_strategies!$D$36,MATCH($H$39,OFFSET(Price_strategies!$D$36,1,MATCH($B52,Price_strategies!$E$36:$N$36,0),8,1),0)+INDEX(Price_strategies!$B$5:$B$31,MATCH(J$11,Price_strategies!$C$5:$C$31,0)),MATCH($B52,Price_strategies!$E$36:$N$36,0)+1),"") -> 13.87687841 | K52: =IF(K20>0,OFFSET(Price_strategies!$D$36,MATCH($H$39,OFFSET(Price_strategies!$D$36,1,MATCH($B52,Price_strategies!$E$36:$N$36,0),8,1),0)+INDEX(Price_strategies!$B$5:$B$31,MATCH(K$11,Price_strategies!$C$5:$C$31,0)),MATCH($B52,Price_strategies!$E$36:$N$36,0)+1),"") -> 13.87689841
B53: STOR utilisation (£/MWh) | C53: =IF(C21>0,OFFSET(Price_strategies!$D$5,MATCH($C$40,OFFSET(Price_strategies!$D$5,1,MATCH($B53,Price_strategies!$E$5:$N$5,0),8,1),0)+INDEX(Price_strategies!$B$5:$B$31,MATCH(C$11,Price_strategies!$C$5:$C$31,0)),MATCH($B53,Price_strategies!$E$5:$N$5,0)+1),"") ->  | D53: =IF(D21>0,OFFSET(Price_strategies!$D$5,MATCH($C$40,OFFSET(Price_strategies!$D$5,1,MATCH($B53,Price_strategies!$E$5:$N$5,0),8,1),0)+INDEX(Price_strategies!$B$5:$B$31,MATCH(D$11,Price_strategies!$C$5:$C$31,0)),MATCH($B53,Price_strategies!$E$5:$N$5,0)+1),"") ->  | E53: =IF(E21>0,OFFSET(Price_strategies!$D$5,MATCH($C$39,OFFSET(Price_strategies!$D$5,1,MATCH($B53,Price_strategies!#REF!,0),8,1),0)+INDEX(Price_strategies!$B$5:$B$31,MATCH(E$50,Price_strategies!$C$5:$C$31,0)),MATCH($B53,Price_strategies!#REF!,0)+1),"") ->  | F53: =IF(F21>0,OFFSET(Price_strategies!$D$5,MATCH($C$39,OFFSET(Price_strategies!$D$5,1,MATCH($B53,Price_strategies!#REF!,0),8,1),0)+INDEX(Price_strategies!$B$5:$B$31,MATCH(F$50,Price_strategies!$C$5:$C$31,0)),MATCH($B53,Price_strategies!#REF!,0)+1),"") ->  | H53: =IF(H21>0,OFFSET(Price_strategies!$D$36,MATCH($H$40,OFFSET(Price_strategies!$D$36,1,MATCH($B53,Price_strategies!$E$36:$N$36,0),8,1),0)+INDEX(Price_strategies!$B$5:$B$31,MATCH(H$11,Price_strategies!$C$5:$C$31,0)),MATCH($B53,Price_strategies!$E$36:$N$36,0)+1),"") -> 80.13277575 | I53: =IF(I21>0,OFFSET(Price_strategies!$D$36,MATCH($H$40,OFFSET(Price_strategies!$D$36,1,MATCH($B53,Price_strategies!$E$36:$N$36,0),8,1),0)+INDEX(Price_strategies!$B$5:$B$31,MATCH(I$11,Price_strategies!$C$5:$C$31,0)),MATCH($B53,Price_strategies!$E$36:$N$36,0)+1),"") -> 80.13277575 | J53: =IF(J21>0,OFFSET(Price_strategies!$D$36,MATCH($H$39,OFFSET(Price_strategies!$D$36,1,MATCH($B53,Price_strategies!#REF!,0),8,1),0)+INDEX(Price_strategies!$B$5:$B$31,MATCH(J$50,Price_strategies!$C$5:$C$31,0)),MATCH($B53,Price_strategies!#REF!,0)+1),"") ->  | K53: =IF(K21>0,OFFSET(Price_strategies!$D$36,MATCH($H$39,OFFSET(Price_strategies!$D$36,1,MATCH($B53,Price_strategies!#REF!,0),8,1),0)+INDEX(Price_strategies!$B$5:$B$31,MATCH(K$50,Price_strategies!$C$5:$C$31,0)),MATCH($B53,Price_strategies!#REF!,0)+1),"") -> 
B54: STOR availability (£/MW) | C54: =IF(C21>0,OFFSET(Price_strategies!$D$5,MATCH($C$40,OFFSET(Price_strategies!$D$5,1,MATCH($B54,Price_strategies!$E$5:$N$5,0),8,1),0)+INDEX(Price_strategies!$B$5:$B$31,MATCH(C$11,Price_strategies!$C$5:$C$31,0)),MATCH($B54,Price_strategies!$E$5:$N$5,0)+1),"") ->  | D54: =IF(D21>0,OFFSET(Price_strategies!$D$5,MATCH($C$40,OFFSET(Price_strategies!$D$5,1,MATCH($B54,Price_strategies!$E$5:$N$5,0),8,1),0)+INDEX(Price_strategies!$B$5:$B$31,MATCH(D$11,Price_strategies!$C$5:$C$31,0)),MATCH($B54,Price_strategies!$E$5:$N$5,0)+1),"") ->  | H54: =IF(H21>0,OFFSET(Price_strategies!$D$36,MATCH($H$40,OFFSET(Price_strategies!$D$36,1,MATCH($B54,Price_strategies!$E$36:$N$36,0),8,1),0)+INDEX(Price_strategies!$B$5:$B$31,MATCH(H$11,Price_strategies!$C$5:$C$31,0)),MATCH($B54,Price_strategies!$E$36:$N$36,0)+1),"") -> 1.871198058 | I54: =IF(I21>0,OFFSET(Price_strategies!$D$36,MATCH($H$40,OFFSET(Price_strategies!$D$36,1,MATCH($B54,Price_strategies!$E$36:$N$36,0),8,1),0)+INDEX(Price_strategies!$B$5:$B$31,MATCH(I$11,Price_strategies!$C$5:$C$31,0)),MATCH($B54,Price_strategies!$E$36:$N$36,0)+1),"") -> 1.871198058
H73: 1157.211696 | I73: 1313.24024 | J73: 1343.187518 | K73: 1200
H74: 409.6856686 | I74: 253.0070534

Sheet Advanced_control
A1: Advanced control tab
A2: This tab contains more detailed assumptions. Under CLASS volume and capability assumptions, the user can choose to derate the contribution from CLASS. This has been assumed for STOR, since it it not yet known whether CLASS can guaranteed the full duration required without cycling through multiple substations.
A3: The utilisation mode determines what units can be displaced from the Frequency Response service - unless CLASS is Pseudo-dynamic and capable of providing "High", it will only be able to displace other static non-High providers unless NGET has overprocured these services
B8: NGET service requirement
C9: 2015 | G9: 2027
C10: Winter Daytime | D10: Non-Winter Daytime | E10: Winter Overnight | F10: Non-Winter Overnight | G10: Winter Daytime | H10: Non-Winter Daytime | I10: Winter Overnight | J10: Non-Winter Overnight
B11: Frequency Response (MW) | C11: 1112.5 | D11: 1262.5 | E11: 1400 | F11: 1400 | G11: 1157.211696 | H11: 1313.24024 | I11: 1456.266404 | J11: 1456.266404
B12: Dynamic requirement | C12: 450 | D12: 450 | E12: 550 | F12: 550 | G12: =C12*G$11/C$11 -> 468.0856299 | H12: 468.0856299 | I12: 572.1046588 | J12: 572.1046588
B13: High Requirement | C13: 600 | D13: 712.5 | E13: 800 | F13: 800 | G13: 624.1141732 | H13: 741.1355807 | I13: 832.152231 | J13: 832.152231
B14: Fast reserve (MW) | C14: 475 | D14: 425 | E14: 112.5 | F14: 150 | G14: 475 | H14: 425 | I14: 112.5 | J14: 150
B15: STOR (MW) | C15: 2340.59728 | D15: 2160.28303 | E15: 0 | F15: 0 | G15: 2650.072771 | H15: 2445.917239 | I15: 0 | J15: 0
B17: Assumptions relating to CLASS | G17: Service hours and seasons
B18: CLASS volume and capability assumptions | E18: CLASS costs | G18: Hours of defined season
B19: Derating to account for required service duration | C19: 2015 | D19: 2027 | E19: Per-site capex (£/site) | F19: =60000 -> 60000 | H19: First hour | I19: Last hour (inclusive)
B20: Response | C20: 1 | D20: =Response_derating -> 1 | E20: Per-MW capex (£/MW) | F20: =F19/Control!C8 -> 118623.2885 | G20: Daytime | H20: 7 | I20: 22
B21: Fast Reserve | C21: 1 | D21: =Reserve_derating -> 1 | E21: Dashboard capex (one-off) (£) | F21: =1000000 -> 1000000 | G21: Overnight | H21: =I20+1 -> 23 | I21: =H20-1 -> 6
B22: STOR | C22: 0.5 | D22: =STOR_derating -> 0.5 | E22: # sites for smearing one-offs | F22: 350 | G22: Hours per season
B23: Service-specific CLASS assumptions | E23: Smeared one-off capex | F23: =F21/F22 -> 2857.142857 | G23: Winter Day | H23: =(Day_end-Day_start+1)*(Reactive_Power!$P$23-Reactive_Power!$L$23) -> 1920
B24: Frequency Response | E24: Capex (£/MW) | F24: =F20+F23 -> 121480.4313 | G24: Non-Win Day | H24: =(Day_end-Day_start+1)*(Reactive_Power!$L$23-Reactive_Power!$E$23+EDATE(Reactive_Power!$P$23,1)-Reactive_Power!$P$23) -> 3920
B25: Average % of substations in trip state to provide Frequency Response | C25: 0.05 | E25: Lifetime (for capex annuitisation) | F25: 15 | G25: Winter Night | H25: =(24-(Day_end-Day_start+1))*(Reactive_Power!$P$23-Reactive_Power!$L$23) -> 960
B26: Time for class to close tripped substation post-fault (mins) | C26: 3 | E26: Per-site opex (£/site) | F26: =500000/350 -> 1428.571429 | G26: Non-Win Night | H26: =(24-(Day_end-Day_start+1))*(Reactive_Power!$L$23-Reactive_Power!$E$23+EDATE(Reactive_Power!$P$23,1)-Reactive_Power!$P$23) -> 1960
B27: De-loading required per MW response (MW/MW) | C27: =1/0.55 -> 1.818181818 | E27: Opex (£/MW) | F27: =F26/Control!C8 -> 2824.364011 | G27: Service hours of availability
B28: Reactive | H28: Frequency Response | I28: Fast Reserve | J28: STOR
B29: Region for purposes of Reactive Power requirement | C29: NORTH | G29: Win hours | H29: =WinDayHours+WinNightHours -> 2880 | I29: =ROUND($I$31*H29/$H$31,0) -> 2200 | J29: 1440
B30: Max proportion of regional Reactive requirement that CLASS could meet (%) | C30: 0 | G30: Non-win hours | H30: =NonWinDayHours+NonWinNightHours -> 5880 | I30: =ROUND($I$31*H30/$H$31,0) -> 4492 | J30: 2695
G31: Annual hours | H31: =SUM(H29:H30) -> 8760 | I31: 6691.666667 | J31: =SUM(J29:J30) -> 4135
B33: Other DNO and service assumptions | G33: Carbon assumptions
B34: Financial parameters | D34: Incentive payments | H34: Unit | I34: 2015 | J34: 2027
B35: Cost of equity | C35: 0.06 | D35: Benefit retained by DNO | E35: =AVERAGE(58,55,53,54,56,70)/100 -> 0.5766666667 | G35: CO2 intensity of electricity | H35: tonnes/MWh | I35: 0.3407545329 | J35: 0.1862606559
B36: Cost of debt | C36: 0.0255 | D36: Benefit retained by National Grid | E36: 0.3 | G36: Value of CO2 reduction for Policy Appraisal (central) | H36: £/tonne (real 2015) | I36: 5.94 | J36: 56.89
B37: Notional gearing | C37: 0.65 | D37: NGET time limit on benefit retention (years) | E37: 2 | G37: Average carbon intensity of STOR utilisation | H37: tons/MWh | I37: 0.6147 | J37: 0
B38: Pre-tax WACC | C38: =C36*C37+C35*(1-C37) -> 0.037575 | G38: Average hourly utilisation per MWh of availability | H38: MWh | I38: 0.06897868658 | J38: 0.06897868658
B39: Discount Rate | C39: 0.035 | D39: Cost of faults
B40: Capitalisation rate | C40: =AVERAGE(58,70,72,68,80,64,70)/100 -> 0.6885714286 | D40: Fault rate per circuit per year [%] | E40: 0.035
B41: Depreciation period (years) | C41: 45 | D41: Value of Lost Load (VOLL) (£/MWh) | E41: 6000
B42: Corporation tax rate | C42: 0.2
B44: Technology efficiency and capability assumptions
B45: Generic assumptions | F45: Utilisation mode for Frequency Response
C46: Value | D46: Units | F46: Unit type | G46: Dynamic or static? | H46: Can provide High response?
B47: 1MWh = | C47: 3.6 | D47: GJ | F47: CLASS | G47: Pseudo-dynamic | H47: Yes
B48: CCGT part load | C48: 0.75 | D48: % | F48: Battery storage | G48: Dynamic | H48: Yes
B49: CCGT part load efficiency at 75% load | C49: 0.96 | D49: % relative to full load | F49: CCGT | G49: Dynamic | H49: Yes
B50: Natural gas carbon intensity | C50: 0.0511 | D50: t/GJ | F50: Coal | G50: Dynamic | H50: Yes
B51: Generation efficiencies | F51: Diesel Engines | G51: Static | H51: No
C52: Value | D52: Units | F52: DSR | G52: Dynamic | H52: No
B53: CCGT | C53: 0.5307577741 | D53: % HHV | F53: DSR (low and high) | G53: Dynamic | H53: Yes
B54: CCGT (lower efficiency) | C54: 0.5181206842 | D54: % HHV | F54: Interconnection | G54: Dynamic | H54: No
B55: Gas Engines | C55: 0.3574491131 | D55: % HHV | F55: Mandatory | G55: Dynamic | H55: Yes
B56: Pumped storage | C56: 0.75 | D56: % HHV | F56: Pump Storage | G56: Dynamic | H56: No
F57: Pumped storage response | G57: Dynamic | H57: No

Sheet Results>>

Sheet CLASS_capability
A1: CLASS capability tab
A2: This sheet summarises the CLASS capability by season and time of day based on the shape observed in the CLASS trials and the volume assumptions defined in the Control tab
P8: Capability | U8: Offering
O9: Hour | P9: 2015 Winter | Q9: 2015 Non-Winter | R9: 2027 Winter | S9: 2027 Non-Winter | U9: 2015 Winter | V9: 2015 Non-Winter | W9: 2027 Winter | X9: 2027 Non-Winter
O10: 0 | P10: =AVERAGE($K71:$N71) -> 97.6430591 | Q10: =AVERAGE($D71:$J71,$O71) -> 88.27109111 | R10: =AVERAGE($K96:$N96) -> 1627.384318 | S10: =AVERAGE($D96:$J96,$O96) -> 1471.184852 | U10: =IF(AND($O10>=Day_start,$O10<=Day_end),Control!$C$12,Control!$E$12) -> 90.1523953 | V10: =IF(AND($O10>=Day_start,$O10<=Day_end),Control!$D$12,Control!$F$12) -> 80.5418997 | W10: =IF(AND($O10>=Day_start,$O10<=Day_end),Control!$H$12,Control!$J$12) -> 1502.539922 | X10: =IF(AND($O10>=Day_start,$O10<=Day_end),Control!$I$12,Control!$K$12) -> 1342.364995
O11: 1 | P11: 99.19665081 | Q11: 88.05335846 | R11: 1653.277514 | S11: 1467.555974 | U11: =IF(AND($O11>=Day_start,$O11<=Day_end),Control!$C$12,Control!$E$12) -> 90.1523953 | V11: =IF(AND($O11>=Day_start,$O11<=Day_end),Control!$D$12,Control!$F$12) -> 80.5418997 | W11: =IF(AND($O11>=Day_start,$O11<=Day_end),Control!$H$12,Control!$J$12) -> 1502.539922 | X11: =IF(AND($O11>=Day_start,$O11<=Day_end),Control!$I$12,Control!$K$12) -> 1342.364995
O12: 2 | P12: 97.6657358 | Q12: 88.3378879 | R12: 1627.762263 | S12: 1472.298132 | U12: =IF(AND($O12>=Day_start,$O12<=Day_end),Control!$C$12,Control!$E$12) -> 90.1523953 | V12: =IF(AND($O12>=Day_start,$O12<=Day_end),Control!$D$12,Control!$F$12) -> 80.5418997 | W12: =IF(AND($O12>=Day_start,$O12<=Day_end),Control!$H$12,Control!$J$12) -> 1502.539922 | X12: =IF(AND($O12>=Day_start,$O12<=Day_end),Control!$I$12,Control!$K$12) -> 1342.364995
O13: 3 | P13: 100.6257024 | Q13: 87.49274818 | R13: 1677.09504 | S13: 1458.21247 | U13: =IF(AND($O13>=Day_start,$O13<=Day_end),Control!$C$12,Control!$E$12) -> 90.1523953 | V13: =IF(AND($O13>=Day_start,$O13<=Day_end),Control!$D$12,Control!$F$12) -> 80.5418997 | W13: =IF(AND($O13>=Day_start,$O13<=Day_end),Control!$H$12,Control!$J$12) -> 1502.539922 | X13: =IF(AND($O13>=Day_start,$O13<=Day_end),Control!$I$12,Control!$K$12) -> 1342.364995
O14: 4 | P14: 115.2424452 | Q14: 88.305211 | R14: 1920.70742 | S14: 1471.753517 | U14: =IF(AND($O14>=Day_start,$O14<=Day_end),Control!$C$12,Control!$E$12) -> 90.1523953 | V14: =IF(AND($O14>=Day_start,$O14<=Day_end),Control!$D$12,Control!$F$12) -> 80.5418997 | W14: =IF(AND($O14>=Day_start,$O14<=Day_end),Control!$H$12,Control!$J$12) -> 1502.539922 | X14: =IF(AND($O14>=Day_start,$O14<=Day_end),Control!$I$12,Control!$K$12) -> 1342.364995
O15: 5 | P15: 133.7950656 | Q15: 101.3403293 | R15: 2229.917759 | S15: 1689.005488 | U15: =IF(AND($O15>=Day_start,$O15<=Day_end),Control!$C$12,Control!$E$12) -> 90.1523953 | V15: =IF(AND($O15>=Day_start,$O15<=Day_end),Control!$D$12,Control!$F$12) -> 80.5418997 | W15: =IF(AND($O15>=Day_start,$O15<=Day_end),Control!$H$12,Control!$J$12) -> 1502.539922 | X15: =IF(AND($O15>=Day_start,$O15<=Day_end),Control!$I$12,Control!$K$12) -> 1342.364995
O16: 6 | P16: 146.2657091 | Q16: 122.4570766 | R16: 2437.761818 | S16: 2040.951276 | U16: =IF(AND($O16>=Day_start,$O16<=Day_end),Control!$C$12,Control!$E$12) -> 90.1523953 | V16: =IF(AND($O16>=Day_start,$O16<=Day_end),Control!$D$12,Control!$F$12) -> 80.5418997 | W16: =IF(AND($O16>=Day_start,$O16<=Day_end),Control!$H$12,Control!$J$12) -> 1502.539922 | X16: =IF(AND($O16>=Day_start,$O16<=Day_end),Control!$I$12,Control!$K$12) -> 1342.364995
O17: 7 | P17: 155.2376741 | Q17: 135.4337457 | R17: 2587.294569 | S17: 2257.229094 | U17: =IF(AND($O17>=Day_start,$O17<=Day_end),Control!$C$12,Control!$E$12) -> 105.1674087 | V17: =IF(AND($O17>=Day_start,$O17<=Day_end),Control!$D$12,Control!$F$12) -> 105.123777 | W17: =IF(AND($O17>=Day_start,$O17<=Day_end),Control!$H$12,Control!$J$12) -> 1752.790144 | X17: =IF(AND($O17>=Day_start,$O17<=Day_end),Control!$I$12,Control!$K$12) -> 1752.06295
O18: 8 | P18: 159.6553501 | Q18: 139.9184124 | R18: 2660.922502 | S18: 2331.973539 | U18: =IF(AND($O18>=Day_start,$O18<=Day_end),Control!$C$12,Control!$E$12) -> 105.1674087 | V18: =IF(AND($O18>=Day_start,$O18<=Day_end),Control!$D$12,Control!$F$12) -> 105.123777 | W18: =IF(AND($O18>=Day_start,$O18<=Day_end),Control!$H$12,Control!$J$12) -> 1752.790144 | X18: =IF(AND($O18>=Day_start,$O18<=Day_end),Control!$I$12,Control!$K$12) -> 1752.06295
O19: 9 | P19: 159.4789591 | Q19: 140.9396154 | R19: 2657.982652 | S19: 2348.99359 | U19: =IF(AND($O19>=Day_start,$O19<=Day_end),Control!$C$12,Control!$E$12) -> 105.1674087 | V19: =IF(AND($O19>=Day_start,$O19<=Day_end),Control!$D$12,Control!$F$12) -> 105.123777 | W19: =IF(AND($O19>=Day_start,$O19<=Day_end),Control!$H$12,Control!$J$12) -> 1752.790144 | X19: =IF(AND($O19>=Day_start,$O19<=Day_end),Control!$I$12,Control!$K$12) -> 1752.06295
O20: 10 | P20: 156.8801019 | Q20: 140.4322361 | R20: 2614.668366 | S20: 2340.537268 | U20: =IF(AND($O20>=Day_start,$O20<=Day_end),Control!$C$12,Control!$E$12) -> 105.1674087 | V20: =IF(AND($O20>=Day_start,$O20<=Day_end),Control!$D$12,Control!$F$12) -> 105.123777 | W20: =IF(AND($O20>=Day_start,$O20<=Day_end),Control!$H$12,Control!$J$12) -> 1752.790144 | X20: =IF(AND($O20>=Day_start,$O20<=Day_end),Control!$I$12,Control!$K$12) -> 1752.06295
O21: 11 | P21: 151.5371758 | Q21: 136.5933264 | R21: 2525.619596 | S21: 2276.55544 | U21: =IF(AND($O21>=Day_start,$O21<=Day_end),Control!$C$12,Control!$E$12) -> 105.1674087 | V21: =IF(AND($O21>=Day_start,$O21<=Day_end),Control!$D$12,Control!$F$12) -> 105.123777 | W21: =IF(AND($O21>=Day_start,$O21<=Day_end),Control!$H$12,Control!$J$12) -> 1752.790144 | X21: =IF(AND($O21>=Day_start,$O21<=Day_end),Control!$I$12,Control!$K$12) -> 1752.06295
O22: 12 | P22: 148.9675245 | Q22: 131.1530968 | R22: 2482.792076 | S22: 2185.884947 | U22: =IF(AND($O22>=Day_start,$O22<=Day_end),Control!$C$12,Control!$E$12) -> 105.1674087 | V22: =IF(AND($O22>=Day_start,$O22<=Day_end),Control!$D$12,Control!$F$12) -> 105.123777 | W22: =IF(AND($O22>=Day_start,$O22<=Day_end),Control!$H$12,Control!$J$12) -> 1752.790144 | X22: =IF(AND($O22>=Day_start,$O22<=Day_end),Control!$I$12,Control!$K$12) -> 1752.06295
O23: 13 | P23: 149.9994349 | Q23: 128.1995195 | R23: 2499.990581 | S23: 2136.658659 | U23: =IF(AND($O23>=Day_start,$O23<=Day_end),Control!$C$12,Control!$E$12) -> 105.1674087 | V23: =IF(AND($O23>=Day_start,$O23<=Day_end),Control!$D$12,Control!$F$12) -> 105.123777 | W23: =IF(AND($O23>=Day_start,$O23<=Day_end),Control!$H$12,Control!$J$12) -> 1752.790144 | X23: =IF(AND($O23>=Day_start,$O23<=Day_end),Control!$I$12,Control!$K$12) -> 1752.06295
O24: 14 | P24: 162.5461793 | Q24: 128.3507608 | R24: 2709.102988 | S24: 2139.179346 | U24: =IF(AND($O24>=Day_start,$O24<=Day_end),Control!$C$12,Control!$E$12) -> 105.1674087 | V24: =IF(AND($O24>=Day_start,$O24<=Day_end),Control!$D$12,Control!$F$12) -> 105.123777 | W24: =IF(AND($O24>=Day_start,$O24<=Day_end),Control!$H$12,Control!$J$12) -> 1752.790144 | X24: =IF(AND($O24>=Day_start,$O24<=Day_end),Control!$I$12,Control!$K$12) -> 1752.06295
O25: 15 | P25: 172.2210998 | Q25: 132.4637998 | R25: 2870.351663 | S25: 2207.729997 | U25: =IF(AND($O25>=Day_start,$O25<=Day_end),Control!$C$12,Control!$E$12) -> 105.1674087 | V25: =IF(AND($O25>=Day_start,$O25<=Day_end),Control!$D$12,Control!$F$12) -> 105.123777 | W25: =IF(AND($O25>=Day_start,$O25<=Day_end),Control!$H$12,Control!$J$12) -> 1752.790144 | X25: =IF(AND($O25>=Day_start,$O25<=Day_end),Control!$I$12,Control!$K$12) -> 1752.06295
O26: 16 | P26: 169.5778382 | Q26: 134.3205711 | R26: 2826.297303 | S26: 2238.676185 | U26: =IF(AND($O26>=Day_start,$O26<=Day_end),Control!$C$12,Control!$E$12) -> 105.1674087 | V26: =IF(AND($O26>=Day_start,$O26<=Day_end),Control!$D$12,Control!$F$12) -> 105.123777 | W26: =IF(AND($O26>=Day_start,$O26<=Day_end),Control!$H$12,Control!$J$12) -> 1752.790144 | X26: =IF(AND($O26>=Day_start,$O26<=Day_end),Control!$I$12,Control!$K$12) -> 1752.06295
O27: 17 | P27: 160.232409 | Q27: 132.1540709 | R27: 2670.54015 | S27: 2202.567848 | U27: =IF(AND($O27>=Day_start,$O27<=Day_end),Control!$C$12,Control!$E$12) -> 105.1674087 | V27: =IF(AND($O27>=Day_start,$O27<=Day_end),Control!$D$12,Control!$F$12) -> 105.123777 | W27: =IF(AND($O27>=Day_start,$O27<=Day_end),Control!$H$12,Control!$J$12) -> 1752.790144 | X27: =IF(AND($O27>=Day_start,$O27<=Day_end),Control!$I$12,Control!$K$12) -> 1752.06295
O28: 18 | P28: 150.3505508 | Q28: 130.0602131 | R28: 2505.842514 | S28: 2167.670219 | U28: =IF(AND($O28>=Day_start,$O28<=Day_end),Control!$C$12,Control!$E$12) -> 105.1674087 | V28: =IF(AND($O28>=Day_start,$O28<=Day_end),Control!$D$12,Control!$F$12) -> 105.123777 | W28: =IF(AND($O28>=Day_start,$O28<=Day_end),Control!$H$12,Control!$J$12) -> 1752.790144 | X28: =IF(AND($O28>=Day_start,$O28<=Day_end),Control!$I$12,Control!$K$12) -> 1752.06295
O29: 19 | P29: 139.7560206 | Q29: 128.002386 | R29: 2329.267011 | S29: 2133.373101 | U29: =IF(AND($O29>=Day_start,$O29<=Day_end),Control!$C$12,Control!$E$12) -> 105.1674087 | V29: =IF(AND($O29>=Day_start,$O29<=Day_end),Control!$D$12,Control!$F$12) -> 105.123777 | W29: =IF(AND($O29>=Day_start,$O29<=Day_end),Control!$H$12,Control!$J$12) -> 1752.790144 | X29: =IF(AND($O29>=Day_start,$O29<=Day_end),Control!$I$12,Control!$K$12) -> 1752.06295
O30: 20 | P30: 130.7467085 | Q30: 125.9752943 | R30: 2179.111809 | S30: 2099.588238 | U30: =IF(AND($O30>=Day_start,$O30<=Day_end),Control!$C$12,Control!$E$12) -> 105.1674087 | V30: =IF(AND($O30>=Day_start,$O30<=Day_end),Control!$D$12,Control!$F$12) -> 105.123777 | W30: =IF(AND($O30>=Day_start,$O30<=Day_end),Control!$H$12,Control!$J$12) -> 1752.790144 | X30: =IF(AND($O30>=Day_start,$O30<=Day_end),Control!$I$12,Control!$K$12) -> 1752.06295
O31: 21 | P31: 121.8441443 | Q31: 120.6748812 | R31: 2030.735738 | S31: 2011.248019 | U31: =IF(AND($O31>=Day_start,$O31<=Day_end),Control!$C$12,Control!$E$12) -> 105.1674087 | V31: =IF(AND($O31>=Day_start,$O31<=Day_end),Control!$D$12,Control!$F$12) -> 105.123777 | W31: =IF(AND($O31>=Day_start,$O31<=Day_end),Control!$H$12,Control!$J$12) -> 1752.790144 | X31: =IF(AND($O31>=Day_start,$O31<=Day_end),Control!$I$12,Control!$K$12) -> 1752.06295
O32: 22 | P32: 110.5181559 | Q32: 109.8383487 | R32: 1841.969266 | S32: 1830.639146 | U32: =IF(AND($O32>=Day_start,$O32<=Day_end),Control!$C$12,Control!$E$12) -> 105.1674087 | V32: =IF(AND($O32>=Day_start,$O32<=Day_end),Control!$D$12,Control!$F$12) -> 105.123777 | W32: =IF(AND($O32>=Day_start,$O32<=Day_end),Control!$H$12,Control!$J$12) -> 1752.790144 | X32: =IF(AND($O32>=Day_start,$O32<=Day_end),Control!$I$12,Control!$K$12) -> 1752.06295
O33: 23 | P33: 99.47676162 | Q33: 94.46720148 | R33: 1657.946027 | S33: 1574.453358 | U33: =IF(AND($O33>=Day_start,$O33<=Day_end),Control!$C$12,Control!$E$12) -> 90.1523953 | V33: =IF(AND($O33>=Day_start,$O33<=Day_end),Control!$D$12,Control!$F$12) -> 80.5418997 | W33: =IF(AND($O33>=Day_start,$O33<=Day_end),Control!$H$12,Control!$J$12) -> 1502.539922 | X33: =IF(AND($O33>=Day_start,$O33<=Day_end),Control!$I$12,Control!$K$12) -> 1342.364995
A41: CLASS - Guaranteed Level of Response (MW) by Month, Day Type and Settlement Period | R41: Observed capability profiles from CLASS trials
D42: 1 | E42: 2 | F42: 3 | G42: 4 | H42: 5 | I42: 6 | J42: 7 | K42: 8 | L42: 9 | M42: 10 | N42: 11 | O42: 12 | R42: 2015-01-01
C43: Start date | D43: 2014-04-01 | E43: =EDATE(D43,1) -> 2014-05-01 | F43: 2014-06-01 | G43: 2014-07-01 | H43: 2014-08-01 | I43: 2014-09-01 | J43: 2014-10-01 | K43: 2014-11-01 | L43: 2014-12-01 | M43: 2015-01-01 | N43: 2015-02-01 | O43: 2015-03-01 | R43: Month | S43: January
C44: End date | D44: =E43-1 -> 2014-04-30 | E44: 2014-05-31 | F44: 2014-06-30 | G44: 2014-07-31 | H44: 2014-08-31 | I44: 2014-09-30 | J44: 2014-10-31 | K44: 2014-11-30 | L44: 2014-12-31 | M44: 2015-01-31 | N44: 2015-02-28 | O44: =P44-1 -> 2015-03-31 | P44: =EDATE(O43,1) -> 2015-04-01 | R44: Settlement Period | S44: 1 | T44: 2 | U44: 3 | V44: 4 | W44: 5 | X44: 6 | Y44: 7 | Z44: 8 | AA44: 9 | AB44: 10 | AC44: 11 | AD44: 12 | AE44: 13 | AF44: 14 | AG44: 15 | AH44: 16 | AI44: 17 | AJ44: 18 | AK44: 19 | AL44: 20 | AM44: 21 | AN44: 22 | AO44: 23 | AP44: 24 | AQ44: 25 | AR44: 26 | AS44: 27 | AT44: 28 | AU44: 29 | AV44: 30 | AW44: 31 | AX44: 32 | AY44: 33 | AZ44: 34 | BA44: 35 | BB44: 36 | BC44: 37 | BD44: 38 | BE44: 39 | BF44: 40 | BG44: 41 | BH44: 42 | BI44: 43 | BJ44: 44 | BK44: 45 | BL44: 46 | BM44: 47 | BN44: 48
C45: Hour | R45: Saturday | S45: 107.8660095 | T45: 105.2103328 | U45: 101.7899489 | V45: 104.6419363 | W45: 105.0430347 | X45: 103.6359546 | Y45: 101.7266769 | Z45: 100.4427653 | AA45: 100.7974152 | AB45: 100.2282469 | AC45: 102.2946148 | AD45: 106.2512704 | AE45: 110.4722845 | AF45: 114.502543 | AG45: 120.3078395 | AH45: 126.4787966 | AI45: 133.8040946 | AJ45: 140.4561452 | AK45: 144.9709572 | AL45: 148.8585169 | AM45: 151.6355043 | AN45: 153.3771702 | AO45: 154.1530239 | AP45: 152.5418388 | AQ45: 148.6411802 | AR45: 145.9626232 | AS45: 143.5997247 | AT45: 142.1545623 | AU45: 141.9653624 | AV45: 146.3426119 | AW45: 150.9555223 | AX45: 157.9592195 | AY45: 171.5008727 | AZ45: 172.2451806 | BA45: 169.5966422 | BB45: 164.1840996 | BC45: 159.7203134 | BD45: 154.8964541 | BE45: 150.353594 | BF45: 146.6987109 | BG45: 143.2563103 | BH45: 137.895283 | BI45: 134.2087838 | BJ45: 134.1765416 | BK45: 130.9636198 | BL45: 125.0883856 | BM45: 119.9446621 | BN45: 113.1494332
B46: CLASS volume (average) (MW) | C46: 0 | D46: =AVERAGE(OFFSET($R$41,5+MATCH(D$43,$R$42:$R$113,0),IF($C46=23,1,IF($C46=0,3,$C46*2+2+1)),1,2)) -> 84.29807157 | E46: 85.42398327 | F46: 85.93665982 | G46: 87.80094488 | H46: 87.01539695 | I46: 88.49220112 | J46: 88.82014157 | K46: 90.1523953 | L46: 97.83083788 | M46: 95.78297875 | N46: 106.8060245 | O46: 98.38132966 | R46: Sunday/Bank Holiday | S46: 110.0768743 | T46: 106.4279945 | U46: 103.3243716 | V46: 104.5770177 | W46: 103.9772351 | X46: 101.0872066 | Y46: 99.04601518 | Z46: 98.69531193 | AA46: 97.19383329 | AB46: 95.60295867 | AC46: 95.62852115 | AD46: 96.85006668 | AE46: 99.54301811 | AF46: 99.5898981 | AG46: 99.5685783 | AH46: 101.5824053 | AI46: 104.4729896 | AJ46: 110.4766246 | AK46: 116.2381415 | AL46: 122.9271149 | AM46: 126.9791453 | AN46: 131.0071659 | AO46: 134.6197063 | AP46: 136.6790146 | AQ46: 136.0605031 | AR46: 135.3420112 | AS46: 135.6614737 | AT46: 137.5468076 | AU46: 139.2904251 | AV46: 143.045576 | AW46: 148.2300105 | AX46: 153.2252377 | AY46: 154.8824143 | AZ46: 153.3062028 | BA46: 149.2543488 | BB46: 145.2165713 | BC46: 140.6945589 | BD46: 138.0104449 | BE46: 134.7500636 | BF46: 132.2338801 | BG46: 129.3627591 | BH46: 124.6835535 | BI46: 120.6796348 | BJ46: 121.1525145 | BK46: 117.9081312 | BL46: 111.8470942 | BM46: 107.6100325 | BN46: 101.3218679
C47: 1 | D47: 85.70272179 | E47: 86.38626958 | F47: 84.49273972 | G47: 85.75346296 | H47: 85.91938349 | I47: 88.0079249 | J47: 89.57525448 | K47: 91.09535053 | L47: 98.77784366 | M47: 98.18190071 | N47: 108.7315084 | O47: 98.58911073 | R47: Weekday | S47: 98.67172603 | T47: 96.20422232 | U47: 94.07419433 | V47: 97.49176317 | W47: 98.50869204 | X47: 97.85510938 | Y47: 96.71261017 | Z47: 96.61991304 | AA47: 96.99671321 | AB47: 98.94772986 | AC47: 103.888416 | AD47: 110.8762072 | AE47: 119.021051 | AF47: 123.9845252 | AG47: 130.6111569 | AH47: 136.0413314 | AI47: 141.5856722 | AJ47: 147.1274913 | AK47: 151.813469 | AL47: 155.1231197 | AM47: 155.615768 | AN47: 155.4301654 | AO47: 155.5164208 | AP47: 154.5227372 | AQ47: 150.9130642 | AR47: 148.5602617 | AS47: 146.8345174 | AT47: 146.4160291 | AU47: 147.0503118 | AV47: 150.8213974 | AW47: 159.4133952 | AX47: 171.1158275 | AY47: 176.8405794 | AZ47: 176.5859663 | BA47: 173.6703394 | BB47: 169.2052306 | BC47: 163.8368408 | BD47: 158.647228 | BE47: 153.9123039 | BF47: 149.6341811 | BG47: 145.7246102 | BH47: 139.8083573 | BI47: 134.9053357 | BJ47: 134.4823213 | BK47: 130.1763846 | BL47: 122.1249818 | BM47: 117.5828343 | BN47: 111.9683257
C48: 2 | D48: 86.32324168 | E48: 86.81909803 | F48: 83.68565867 | G48: 84.20123751 | H48: 85.44252113 | I48: 88.82058212 | J48: 91.41783386 | K48: 90.9823925 | L48: 96.16507123 | M48: 96.66626161 | N48: 106.8492179 | O48: 99.9929302 | R48: 2015-02-01
C49: 3 | D49: 86.43644336 | E49: 86.19756675 | F49: 81.55619421 | G49: 81.90717198 | H49: 84.86877991 | I49: 89.05165974 | J49: 92.19806976 | K49: 95.63074698 | L49: 97.91863834 | M49: 97.97222154 | N49: 110.9812028 | O49: 97.7260997 | R49: Month | S49: February
C50: 4 | D50: 87.6713517 | E50: 85.19832549 | F50: 80.5418997 | G50: 80.85454543 | H50: 85.20131085 | I50: 92.39707931 | J50: 96.0323506 | K50: 115.147059 | L50: 109.2281013 | M50: 107.3823116 | N50: 129.2123089 | O50: 98.5448249 | R50: Settlement Period | S50: 1 | T50: 2 | U50: 3 | V50: 4 | W50: 5 | X50: 6 | Y50: 7 | Z50: 8 | AA50: 9 | AB50: 10 | AC50: 11 | AD50: 12 | AE50: 13 | AF50: 14 | AG50: 15 | AH50: 16 | AI50: 17 | AJ50: 18 | AK50: 19 | AL50: 20 | AM50: 21 | AN50: 22 | AO50: 23 | AP50: 24 | AQ50: 25 | AR50: 26 | AS50: 27 | AT50: 28 | AU50: 29 | AV50: 30 | AW50: 31 | AX50: 32 | AY50: 33 | AZ50: 34 | BA50: 35 | BB50: 36 | BC50: 37 | BD50: 38 | BE50: 39 | BF50: 40 | BG50: 41 | BH50: 42 | BI50: 43 | BJ50: 44 | BK50: 45 | BL50: 46 | BM50: 47 | BN50: 48
C51: 5 | D51: 99.73785763 | E51: 96.21829089 | F51: 93.21383811 | G51: 93.1193183 | H51: 93.65936446 | I51: 105.6149125 | J51: 114.1647982 | K51: 140.5450795 | L51: 122.0690694 | M51: 121.5027881 | N51: 151.0633253 | O51: 114.994254 | R51: Saturday | S51: 113.5255419 | T51: 109.5115802 | U51: 108.1825866 | V51: 110.7876248 | W51: 111.6602266 | X51: 110.7580206 | Y51: 108.6143082 | Z51: 108.4806504 | AA51: 108.478964 | AB51: 108.0544428 | AC51: 111.2890752 | AD51: 117.071569 | AE51: 121.5739267 | AF51: 125.4653943 | AG51: 133.5641986 | AH51: 142.301503 | AI51: 150.2312218 | AJ51: 153.9025189 | AK51: 156.5080697 | AL51: 157.9653068 | AM51: 158.0143806 | AN51: 156.985023 | AO51: 155.8527018 | AP51: 153.8848317 | AQ51: 149.2558402 | AR51: 145.8492208 | AS51: 143.4929959 | AT51: 142.0659632 | AU51: 140.8529081 | AV51: 142.445506 | AW51: 144.6174605 | AX51: 148.9684252 | AY51: 154.116642 | AZ51: 161.2131798 | BA51: 166.2249739 | BB51: 163.4732533 | BC51: 159.9787145 | BD51: 154.3295702 | BE51: 149.2404907 | BF51: 144.8836581 | BG51: 141.3402544 | BH51: 136.2921851 | BI51: 131.0252507 | BJ51: 131.7603988 | BK51: 128.212029 | BL51: 122.9164255 | BM51: 119.4638374 | BN51: 112.465357
C52: 6 | D52: 122.5878685 | E52: 115.0938817 | F52: 114.9549702 | G52: 111.4772304 | H52: 109.1439073 | I52: 126.9679965 | J52: 141.5477577 | K52: 151.0290717 | L52: 133.7451105 | M52: 133.3262442 | N52: 166.96241 | O52: 137.8830002 | R52: Sunday/Bank Holiday | S52: 109.8379856 | T52: 107.0617417 | U52: 104.7570218 | V52: 107.2402942 | W52: 108.2847911 | X52: 107.1680211 | Y52: 105.6478288 | Z52: 104.7404627 | AA52: 104.039383 | AB52: 104.0007745 | AC52: 105.3057511 | AD52: 108.0707615 | AE52: 109.943869 | AF52: 111.6771923 | AG52: 116.3421611 | AH52: 122.4070385 | AI52: 129.481739 | AJ52: 135.2553592 | AK52: 139.3945167 | AL52: 141.8858257 | AM52: 143.7080828 | AN52: 144.3508002 | AO52: 144.8230754 | AP52: 142.2334267 | AQ52: 138.7881373 | AR52: 135.1405061 | AS52: 133.3677146 | AT52: 133.3751304 | AU52: 134.3815571 | AV52: 138.4557779 | AW52: 144.6143684 | AX52: 150.8846736 | AY52: 158.8106846 | AZ52: 164.7898777 | BA52: 165.203593 | BB52: 162.3936056 | BC52: 158.3685262 | BD52: 154.8961129 | BE52: 150.7475783 | BF52: 146.6474397 | BG52: 142.0835615 | BH52: 136.9148569 | BI52: 131.9360892 | BJ52: 131.1069613 | BK52: 126.911544 | BL52: 120.0246506 | BM52: 115.6145922 | BN52: 110.9318941
C53: 7 | D53: 133.3532333 | E53: 130.0079519 | F53: 129.0609842 | G53: 126.7903052 | H53: 123.7489051 | I53: 143.1535117 | J53: 151.1397072 | K53: 155.2175224 | L53: 146.4577125 | M53: 144.3565817 | N53: 174.9188798 | O53: 146.2153668 | R53: Weekday | S53: 109.3638252 | T53: 106.8852849 | U53: 105.1463667 | V53: 108.4656822 | W53: 109.4787278 | X53: 107.984289 | Y53: 106.9433173 | Z53: 106.7551185 | AA53: 109.2128599 | AB53: 112.7495458 | AC53: 123.4698951 | AD53: 134.9547227 | AE53: 147.6554294 | AF53: 154.4712212 | AG53: 163.7262578 | AH53: 170.1985623 | AI53: 174.7237803 | AJ53: 175.1139793 | AK53: 175.6738429 | AL53: 177.1071765 | AM53: 175.279536 | AN53: 173.9126177 | AO53: 171.457643 | AP53: 168.3935005 | AQ53: 163.7486121 | AR53: 162.2315874 | AS53: 161.3866354 | AT53: 159.1146192 | AU53: 157.3129049 | AV53: 159.2474373 | AW53: 163.1067128 | AX53: 166.3286822 | AY53: 169.5484918 | AZ53: 172.8156083 | BA53: 178.5984596 | BB53: 177.3209036 | BC53: 172.8535337 | BD53: 166.7816192 | BE53: 162.9925908 | BF53: 156.8584973 | BG53: 151.5156895 | BH53: 145.1206007 | BI53: 139.7464691 | BJ53: 138.0717741 | BK53: 131.6501313 | BL53: 123.8451739 | BM53: 119.0808335 | BN53: 113.8496495
C54: 8 | D54: 136.8493412 | E54: 134.5750668 | F54: 133.3408887 | G54: 132.5752441 | H54: 129.9783289 | I54: 150.7426313 | J54: 153.1369651 | K54: 155.3912809 | L54: 153.3713155 | M54: 153.4682944 | N54: 176.3905097 | O54: 148.1488329 | R54: 2015-03-01
C55: 9 | D55: 137.2707949 | E55: 134.5890364 | F55: 135.0122307 | G55: 135.0874599 | H55: 132.1808494 | I55: 152.0187529 | J55: 153.717363 | K55: 154.4298913 | L55: 153.3669016 | M55: 155.5229667 | N55: 174.5960769 | O55: 147.6404361 | R55: Month | S55: March
C56: 10 | D56: =AVERAGE(OFFSET($R$41,5+MATCH(D$43,$R$42:$R$113,0),IF($C56=23,1,IF($C56=0,3,$C56*2+2+1)),1,2)) -> 135.4195667 | E56: 132.7610496 | F56: 135.5283281 | G56: 135.9829146 | H56: 132.8048651 | I56: 151.886114 | J56: 153.074096 | K56: 153.16024 | L56: 149.4150171 | M56: 155.019579 | N56: 169.9255717 | O56: 146.0009545 | R56: Settlement Period | S56: 1 | T56: 2 | U56: 3 | V56: 4 | W56: 5 | X56: 6 | Y56: 7 | Z56: 8 | AA56: 9 | AB56: 10 | AC56: 11 | AD56: 12 | AE56: 13 | AF56: 14 | AG56: 15 | AH56: 16 | AI56: 17 | AJ56: 18 | AK56: 19 | AL56: 20 | AM56: 21 | AN56: 22 | AO56: 23 | AP56: 24 | AQ56: 25 | AR56: 26 | AS56: 27 | AT56: 28 | AU56: 29 | AV56: 30 | AW56: 31 | AX56: 32 | AY56: 33 | AZ56: 34 | BA56: 35 | BB56: 36 | BC56: 37 | BD56: 38 | BE56: 39 | BF56: 40 | BG56: 41 | BH56: 42 | BI56: 43 | BJ56: 44 | BK56: 45 | BL56: 46 | BM56: 47 | BN56: 48
C57: 11 | D57: 131.8297839 | E57: 128.8393227 | F57: 132.1139452 | G57: 131.895049 | H57: 129.4198693 | I57: 148.7446712 | J57: 149.144129 | K57: 150.5982065 | L57: 142.8237338 | M57: 149.736663 | N57: 162.9900997 | O57: 140.7598408 | R57: Saturday | S57: 115.3133042 | T57: 108.4565959 | U57: 104.9147414 | V57: 102.0529844 | W57: 100.7726523 | X57: 102.6801506 | Y57: 103.1689613 | Z57: 101.7407676 | AA57: 99.43777228 | AB57: 99.10631754 | AC57: 98.03564657 | AD57: 97.74314276 | AE57: 98.1868845 | AF57: 101.4342409 | AG57: 107.6750367 | AH57: 111.9046074 | AI57: 118.819456 | AJ57: 125.4385673 | AK57: 131.1621544 | AL57: 133.2269638 | AM57: 134.5359772 | AN57: 135.5710433 | AO57: 136.1138909 | AP57: 135.8072067 | AQ57: 133.6496835 | AR57: 130.6827554 | AS57: 125.9981275 | AT57: 122.7949302 | AU57: 119.5320249 | AV57: 118.6323009 | AW57: 118.715917 | AX57: 120.0553583 | AY57: 123.0387481 | AZ57: 127.2207002 | BA57: 131.4783116 | BB57: 134.6565999 | BC57: 136.399626 | BD57: 141.5743554 | BE57: 145.3484437 | BF57: 143.1966971 | BG57: 139.5442078 | BH57: 135.5393777 | BI57: 132.3615517 | BJ57: 127.3746325 | BK57: 124.5868949 | BL57: 122.4895114 | BM57: 122.0987822 | BN57: 116.7641891
C58: 12 | D58: 127.9914835 | E58: 124.4652553 | F58: 124.9336356 | G58: 125.6101386 | H58: 124.3914187 | I58: 144.281129 | J58: 143.3865056 | K58: 149.4668214 | L58: 139.5273762 | M58: 146.6252732 | N58: 160.2506273 | O58: 134.1652083 | R58: Sunday/Bank Holiday | S58: 111.9582936 | T58: 105.016225 | U58: 101.3733668 | V58: 99.44156326 | W58: 97.93561404 | X58: 99.05272919 | Y58: 99.426254 | Z58: 96.55998126 | AA58: 94.49480393 | AB58: 92.86446639 | AC58: 91.81243854 | AD58: 91.46426272 | AE58: 91.30782384 | AF58: 91.47748708 | AG58: 94.62119226 | AH58: 96.82798567 | AI58: 102.7284196 | AJ58: 108.7331151 | AK58: 114.4418157 | AL58: 120.3708151 | AM58: 124.2352963 | AN58: 126.7031675 | AO58: 127.1890164 | AP58: 127.1394623 | AQ58: 123.7882159 | AR58: 121.0858176 | AS58: 116.4624957 | AT58: 114.9515739 | AU58: 114.166843 | AV58: 115.1222715 | AW58: 117.2587966 | AX58: 119.6430097 | AY58: 122.8372074 | AZ58: 125.2472076 | BA58: 125.7395971 | BB58: 126.229276 | BC58: 127.4681693 | BD58: 130.0857678 | BE58: 138.0183098 | BF58: 140.6271483 | BG58: 137.6159277 | BH58: 133.108564 | BI58: 128.7098495 | BJ58: 127.0776762 | BK58: 121.5425904 | BL58: 114.0312079 | BM58: 118.776962 | BN58: 111.7973154
C59: 13 | D59: 125.4004294 | E59: 123.1580937 | F59: 120.1734121 | G59: 121.8752971 | H59: 119.9586731 | I59: 142.0241391 | J59: 141.5970929 | K59: 150.9173291 | L59: 141.8643847 | M59: 148.9358546 | N59: 158.2801711 | O59: 131.4090188 | R59: Weekday | S59: 108.5219119 | T59: 101.2582104 | U59: 98.63922598 | V59: 98.12343334 | W59: 97.44925288 | X59: 99.72896858 | Y59: 100.6553274 | Z59: 99.33053296 | AA59: 98.37310148 | AB59: 97.07909792 | AC59: 96.74088106 | AD59: 100.3487687 | AE59: 108.7616953 | AF59: 121.2268127 | AG59: 133.5469028 | AH59: 142.2190976 | AI59: 146.0040983 | AJ59: 146.4266352 | AK59: 147.9717963 | AL59: 148.3258695 | AM59: 147.9944793 | AN59: 147.2863929 | AO59: 146.2818774 | AP59: 145.7200317 | AQ59: 142.4387861 | AR59: 139.0808955 | AS59: 134.9955254 | AT59: 133.3348912 | AU59: 131.4872025 | AV59: 131.3308352 | AW59: 131.653409 | AX59: 133.9970743 | AY59: 137.8456527 | AZ59: 141.2217017 | BA59: 144.8321711 | BB59: 145.2180631 | BC59: 149.5222734 | BD59: 151.6789447 | BE59: 151.5368957 | BF59: 154.3936929 | BG59: 150.7428492 | BH59: 146.942757 | BI59: 142.1552266 | BJ59: 137.086766 | BK59: 131.8027334 | BL59: 129.2878658 | BM59: 124.5482144 | BN59: 116.8939511
C60: 14 | D60: 125.7452615 | E60: 123.4168434 | F60: 120.0354566 | G60: 122.5936267 | H60: 119.9346126 | I60: 140.1208616 | J60: 142.1341821 | K60: 164.5769859 | L60: 155.6254225 | M60: 165.2646113 | N60: 164.7176975 | O60: 132.8252416 | R60: 2014-04-01
C61: 15 | D61: 131.0948496 | E61: 128.0475858 | F61: 124.297657 | G61: 126.352615 | H61: 123.6414724 | I61: 141.0343745 | J61: 145.7081668 | K61: 179.0542167 | L61: 161.9348595 | M61: 176.7132729 | N61: 171.1820501 | O61: 139.5336772 | R61: Month | S61: April
C62: 16 | D62: 132.9313577 | E62: 128.94428 | F62: 124.9065692 | G62: 125.5549182 | H62: 125.0578095 | I62: 142.7431903 | J62: 149.4013267 | K62: 173.1155665 | L62: 155.7983195 | M62: 171.437785 | N62: 177.9596816 | O62: 145.0251171 | R62: Settlement Period | S62: 1 | T62: 2 | U62: 3 | V62: 4 | W62: 5 | X62: 6 | Y62: 7 | Z62: 8 | AA62: 9 | AB62: 10 | AC62: 11 | AD62: 12 | AE62: 13 | AF62: 14 | AG62: 15 | AH62: 16 | AI62: 17 | AJ62: 18 | AK62: 19 | AL62: 20 | AM62: 21 | AN62: 22 | AO62: 23 | AP62: 24 | AQ62: 25 | AR62: 26 | AS62: 27 | AT62: 28 | AU62: 29 | AV62: 30 | AW62: 31 | AX62: 32 | AY62: 33 | AZ62: 34 | BA62: 35 | BB62: 36 | BC62: 37 | BD62: 38 | BE62: 39 | BF62: 40 | BG62: 41 | BH62: 42 | BI62: 43 | BJ62: 44 | BK62: 45 | BL62: 46 | BM62: 47 | BN62: 48
C63: 17 | D63: 129.4463142 | E63: 125.6413052 | F63: 120.8915695 | G63: 120.4260838 | H63: 122.8258425 | I63: 139.1208601 | J63: 148.2799827 | K63: 162.9346109 | L63: 146.9354143 | M63: 161.2420344 | N63: 169.8175765 | O63: 150.600609 | R63: Saturday | S63: 105.2018753 | T63: 98.05389169 | U63: 93.98984328 | V63: 93.19600787 | W63: 93.55125898 | X63: 93.93830344 | Y63: 93.8378511 | Z63: 93.13082321 | AA63: 92.06228866 | AB63: 91.06958185 | AC63: 89.97258572 | AD63: 88.01480336 | AE63: 87.99523036 | AF63: 90.38112101 | AG63: 95.18500338 | AH63: 101.0119298 | AI63: 107.6999013 | AJ63: 112.5498201 | AK63: 118.0067064 | AL63: 120.6109059 | AM63: 121.9696258 | AN63: 121.877069 | AO63: 121.5123829 | AP63: 120.5279732 | AQ63: 118.3253943 | AR63: 116.1963038 | AS63: 112.9069169 | AT63: 110.0289928 | AU63: 107.4105109 | AV63: 106.2923342 | AW63: 105.9800647 | AX63: 106.1843102 | AY63: 107.3811884 | AZ63: 110.1589854 | BA63: 113.8913646 | BB63: 115.5431958 | BC63: 115.0562388 | BD63: 113.71929 | BE63: 113.4246 | BF63: 113.0357307 | BG63: 112.7108228 | BH63: 115.1494423 | BI63: 118.2183665 | BJ63: 117.7238814 | BK63: 114.9390048 | BL63: 113.4460028 | BM63: 110.3046573 | BN63: 104.9519505
C64: 18 | D64: 127.3673972 | E64: 123.5394903 | F64: 118.3159946 | G64: 118.5810757 | H64: 120.8922253 | I64: 137.5757946 | J64: 141.244433 | K64: 152.5397459 | L64: 137.1636709 | M64: 151.7732425 | N64: 159.9255441 | O64: 152.9652943 | R64: Sunday/Bank Holiday | S64: 100.4375214 | T64: 93.4973985 | U64: 89.58216934 | V64: 87.73968827 | W64: 86.70237356 | X64: 86.6116686 | Y64: 86.44664508 | Z64: 86.37893398 | AA64: 85.37567561 | AB64: 84.57373419 | AC64: 83.67079959 | AD64: 81.20453541 | AE64: 79.62250404 | AF64: 81.00946126 | AG64: 83.54962253 | AH64: 87.18501547 | AI64: 92.35848783 | AJ64: 97.4762582 | AK64: 102.4790114 | AL64: 107.7514782 | AM64: 111.5574514 | AN64: 114.0802702 | AO64: 114.7065681 | AP64: 115.000249 | AQ64: 114.0989831 | AR64: 112.8379497 | AS64: 109.8602416 | AT64: 107.6350665 | AU64: 106.3023429 | AV64: 105.5312813 | AW64: 104.7617532 | AX64: 105.6604688 | AY64: 107.6427628 | AZ64: 110.3603612 | BA64: 113.9957057 | BB64: 114.2346328 | BC64: 113.5620362 | BD64: 112.9285087 | BE64: 113.7264444 | BF64: 113.9986643 | BG64: 115.5026893 | BH64: 119.5978656 | BI64: 121.5757259 | BJ64: 119.7890481 | BK64: 115.7149582 | BL64: 111.9728456 | BM64: 106.8914423 | BN64: 99.27073708
C65: 19 | D65: 130.4497228 | E65: 120.9126025 | F65: 115.27917 | G65: 116.133192 | H65: 120.3916959 | I65: 140.1316188 | J65: 131.8782834 | K65: 140.3654571 | L65: 127.5739966 | M65: 142.7664837 | N65: 148.3181451 | O65: 148.8428031 | R65: Weekday | S65: 94.37528407 | T65: 88.15315 | U65: 84.39687986 | V65: 84.19926329 | W65: 85.14287514 | X65: 86.26256844 | Y65: 86.54709196 | Z65: 86.09939139 | AA65: 85.97982686 | AB65: 86.89305987 | AC65: 87.00675983 | AD65: 88.33594357 | AE65: 94.38004371 | AF65: 105.0956716 | AG65: 118.3361987 | AH65: 126.8395384 | AI65: 132.3660486 | AJ65: 134.340418 | AK65: 136.0771401 | AL65: 137.6215422 | AM65: 137.4898528 | AN65: 137.0517369 | AO65: 135.8131288 | AP65: 135.0260047 | AQ65: 132.4533112 | AR65: 131.2062566 | AS65: 129.2216305 | AT65: 126.7613365 | AU65: 125.366427 | AV65: 125.4344319 | AW65: 124.9296195 | AX65: 126.5609035 | AY65: 129.6131944 | AZ65: 132.5765048 | BA65: 133.7989074 | BB65: 132.0638079 | BC65: 130.4219303 | BD65: 128.4706982 | BE65: 127.2966227 | BF65: 127.4381717 | BG65: 128.8344612 | BH65: 132.0649843 | BI65: 133.0993618 | BJ65: 128.9453645 | BK65: 124.3176488 | BL65: 119.5670512 | BM65: 113.196173 | BN65: 105.6374538
C66: 20 | D66: 131.0223631 | E66: 123.4800773 | F66: 115.1599423 | G66: 117.6015357 | H66: 124.3507194 | I66: 132.0819321 | J66: 124.4847879 | K66: 127.754165 | L66: 121.629719 | M66: 134.6938285 | N66: 138.9091216 | O66: 139.6209963 | R66: =EDATE(R60,1) -> 2014-05-01
C67: 21 | D67: 121.94235 | E67: 120.367059 | F67: 116.2024107 | G67: 119.1376961 | H67: 119.6612696 | I67: 121.8795419 | J67: 115.6634224 | K67: 115.807584 | L67: 117.6706574 | M67: 126.1506832 | N67: 127.7476526 | O67: 130.5452996 | R67: Month | S67: May
C68: 22 | D68: 109.4168134 | E68: 108.185337 | F68: 108.8960823 | G68: 108.7213471 | H68: 108.1236755 | I68: 109.518675 | J68: 105.123777 | K68: 105.1674087 | L68: 105.6643936 | M68: 114.77558 | N68: 116.4652415 | O68: 120.7210828 | R68: Settlement Period | S68: 1 | T68: 2 | U68: 3 | V68: 4 | W68: 5 | X68: 6 | Y68: 7 | Z68: 8 | AA68: 9 | AB68: 10 | AC68: 11 | AD68: 12 | AE68: 13 | AF68: 14 | AG68: 15 | AH68: 16 | AI68: 17 | AJ68: 18 | AK68: 19 | AL68: 20 | AM68: 21 | AN68: 22 | AO68: 23 | AP68: 24 | AQ68: 25 | AR68: 26 | AS68: 27 | AT68: 28 | AU68: 29 | AV68: 30 | AW68: 31 | AX68: 32 | AY68: 33 | AZ68: 34 | BA68: 35 | BB68: 36 | BC68: 37 | BD68: 38 | BE68: 39 | BF68: 40 | BG68: 41 | BH68: 42 | BI68: 43 | BJ68: 44 | BK68: 45 | BL68: 46 | BM68: 47 | BN68: 48
C69: 23 | D69: 91.26421703 | E69: 91.26072914 | F69: 93.50604036 | G69: 94.07909797 | H69: 92.9490812 | I69: 93.90172618 | J69: 93.88665878 | K69: 90.88803515 | L69: 101.4564821 | M69: 97.43797417 | N69: 108.1245551 | O69: 104.8900612 | R69: Saturday | S69: 103.7946057 | T69: 96.33221858 | U69: 93.58394757 | V69: 92.77240263 | W69: 93.00289753 | X69: 91.5959218 | Y69: 91.42356055 | Z69: 91.24121743 | AA69: 90.28906638 | AB69: 88.18550128 | AC69: 85.35347781 | AD69: 84.59711092 | AE69: 86.16739954 | AF69: 89.28465168 | AG69: 94.85960235 | AH69: 100.5409268 | AI69: 107.5744772 | AJ69: 113.4722481 | AK69: 117.5555541 | AL69: 120.752822 | AM69: 122.590364 | AN69: 121.9233753 | AO69: 120.7366642 | AP69: 119.8310583 | AQ69: 116.4346422 | AR69: 114.1303037 | AS69: 110.1318278 | AT69: 107.3347014 | AU69: 105.2316568 | AV69: 104.7521798 | AW69: 104.8469767 | AX69: 105.0374566 | AY69: 106.9090366 | AZ69: 109.115689 | BA69: 111.9444052 | BB69: 113.0423785 | BC69: 112.0742764 | BD69: 110.8090996 | BE69: 111.3434626 | BF69: 111.4710843 | BG69: 110.7022401 | BH69: 110.1998579 | BI69: 109.6798893 | BJ69: 111.1231036 | BK69: 113.339907 | BL69: 112.8034531 | BM69: 107.9654776 | BN69: 102.6879343
R70: Sunday/Bank Holiday | S70: 96.18571777 | T70: 89.47779177 | U70: 85.58327136 | V70: 84.99010633 | W70: 85.33791275 | X70: 85.77463446 | Y70: 85.14891881 | Z70: 84.99429397 | AA70: 84.80086664 | AB70: 83.59565897 | AC70: 81.29347639 | AD70: 79.45716326 | AE70: 79.57991367 | AF70: 79.53042035 | AG70: 82.64061973 | AH70: 86.3604065 | AI70: 90.53641652 | AJ70: 96.70166505 | AK70: 101.7123084 | AL70: 105.9390187 | AM70: 110.6829907 | AN70: 111.8471389 | AO70: 110.9989284 | AP70: 109.4780875 | AQ70: 108.4853195 | AR70: 108.1134167 | AS70: 105.3939915 | AT70: 103.5583238 | AU70: 101.4273751 | AV70: 100.4466309 | AW70: 100.7424364 | AX70: 102.8533576 | AY70: 106.0811195 | AZ70: 110.6651533 | BA70: 112.7567542 | BB70: 112.8362082 | BC70: 112.6303396 | BD70: 111.771731 | BE70: 110.8185016 | BF70: 110.9652885 | BG70: 110.7034758 | BH70: 111.8145961 | BI70: 114.3514279 | BJ70: 114.2966689 | BK70: 112.030328 | BL70: 109.4055727 | BM70: 105.4747059 | BN70: 98.35945991
B71: 2015 Scaled capability (MW) | C71: 0 | D71: =D46*CLASS_installed_capacity_2015/MAX($D$46:$O$69) -> 84.29807157 | E71: 85.42398327 | F71: 85.93665982 | G71: 87.80094488 | H71: 87.01539695 | I71: 88.49220112 | J71: 88.82014157 | K71: 90.1523953 | L71: 97.83083788 | M71: 95.78297875 | N71: 106.8060245 | O71: 98.38132966 | R71: Weekday | S71: 94.10877948 | T71: 88.4126788 | U71: 85.84968986 | V71: 84.99827668 | W71: 86.15669412 | X71: 86.61584504 | Y71: 87.00816865 | Z71: 86.6300274 | AA71: 86.62640623 | AB71: 85.76872727 | AC71: 84.64372506 | AD71: 85.75292593 | AE71: 91.75180363 | AF71: 100.6847782 | AG71: 110.6433505 | AH71: 119.544413 | AI71: 127.3639003 | AJ71: 132.6520034 | AK71: 134.2820391 | AL71: 134.8680945 | AM71: 135.1649349 | AN71: 134.013138 | AO71: 133.2388645 | AP71: 132.2832347 | AQ71: 130.1284794 | AR71: 127.550166 | AS71: 125.3020435 | AT71: 123.6284671 | AU71: 123.1453328 | AV71: 123.1708546 | AW71: 122.7274572 | AX71: 124.1062297 | AY71: 127.115271 | AZ71: 128.9799006 | BA71: 129.9123283 | BB71: 127.9762317 | BC71: 126.0652915 | BD71: 125.2173189 | BE71: 123.7868158 | BF71: 123.2921649 | BG71: 121.7078526 | BH71: 120.1173523 | BI71: 121.9248942 | BJ71: 125.0352603 | BK71: 123.0220378 | BL71: 117.7120801 | BM71: 111.7771478 | BN71: 104.5935262
C72: 1 | D72: =D47*CLASS_installed_capacity_2015/MAX($D$46:$O$69) -> 85.70272179 | E72: 86.38626958 | F72: 84.49273972 | G72: 85.75346296 | H72: 85.91938349 | I72: 88.0079249 | J72: 89.57525448 | K72: 91.09535053 | L72: 98.77784366 | M72: 98.18190071 | N72: 108.7315084 | O72: 98.58911073 | R72: =EDATE(R66,1) -> 2014-06-01
C73: 2 | D73: =D48*CLASS_installed_capacity_2015/MAX($D$46:$O$69) -> 86.32324168 | E73: 86.81909803 | F73: 83.68565867 | G73: 84.20123751 | H73: 85.44252113 | I73: 88.82058212 | J73: 91.41783386 | K73: 90.9823925 | L73: 96.16507123 | M73: 96.66626161 | N73: 106.8492179 | O73: 99.9929302 | R73: Month | S73: June
C74: 3 | D74: =D49*CLASS_installed_capacity_2015/MAX($D$46:$O$69) -> 86.43644336 | E74: 86.19756675 | F74: 81.55619421 | G74: 81.90717198 | H74: 84.86877991 | I74: 89.05165974 | J74: 92.19806976 | K74: 95.63074698 | L74: 97.91863834 | M74: 97.97222154 | N74: 110.9812028 | O74: 97.7260997 | R74: Settlement Period | S74: 1 | T74: 2 | U74: 3 | V74: 4 | W74: 5 | X74: 6 | Y74: 7 | Z74: 8 | AA74: 9 | AB74: 10 | AC74: 11 | AD74: 12 | AE74: 13 | AF74: 14 | AG74: 15 | AH74: 16 | AI74: 17 | AJ74: 18 | AK74: 19 | AL74: 20 | AM74: 21 | AN74: 22 | AO74: 23 | AP74: 24 | AQ74: 25 | AR74: 26 | AS74: 27 | AT74: 28 | AU74: 29 | AV74: 30 | AW74: 31 | AX74: 32 | AY74: 33 | AZ74: 34 | BA74: 35 | BB74: 36 | BC74: 37 | BD74: 38 | BE74: 39 | BF74: 40 | BG74: 41 | BH74: 42 | BI74: 43 | BJ74: 44 | BK74: 45 | BL74: 46 | BM74: 47 | BN74: 48
C75: 4 | D75: =D50*CLASS_installed_capacity_2015/MAX($D$46:$O$69) -> 87.6713517 | E75: 85.19832549 | F75: 80.5418997 | G75: 80.85454543 | H75: 85.20131085 | I75: 92.39707931 | J75: 96.0323506 | K75: 115.147059 | L75: 109.2281013 | M75: 107.3823116 | N75: 129.2123089 | O75: 98.5448249 | R75: Saturday | S75: 101.3243905 | T75: 95.88911572 | U75: 92.15491309 | V75: 91.0086776 | W75: 88.91429605 | X75: 88.09532929 | Y75: 87.4157949 | Z75: 85.87605511 | AA75: 84.24442789 | AB75: 81.03255051 | AC75: 79.65658361 | AD75: 79.80288463 | AE75: 81.22866242 | AF75: 83.6050176 | AG75: 88.37719984 | AH75: 94.69222193 | AI75: 103.5563667 | AJ75: 109.3051989 | AK75: 113.8861709 | AL75: 117.641262 | AM75: 118.915742 | AN75: 119.4256679 | AO75: 119.7795333 | AP75: 119.32146 | AQ75: 116.3601199 | AR75: 114.3650273 | AS75: 109.3884962 | AT75: 105.86135 | AU75: 103.6438349 | AV75: 101.4832544 | AW75: 101.0406189 | AX75: 102.6173735 | AY75: 105.0389263 | AZ75: 107.5189125 | BA75: 109.7469344 | BB75: 109.633928 | BC75: 108.8009439 | BD75: 107.51078 | BE75: 107.2798236 | BF75: 106.5363778 | BG75: 105.6546784 | BH75: 104.9536218 | BI75: 106.469403 | BJ75: 106.3522752 | BK75: 108.416862 | BL75: 109.9610782 | BM75: 108.1396854 | BN75: 104.3607321
C76: 5 | D76: =D51*CLASS_installed_capacity_2015/MAX($D$46:$O$69) -> 99.73785763 | E76: 96.21829089 | F76: 93.21383811 | G76: 93.1193183 | H76: 93.65936446 | I76: 105.6149125 | J76: 114.1647982 | K76: 140.5450795 | L76: 122.0690694 | M76: 121.5027881 | N76: 151.0633253 | O76: 114.994254 | R76: Sunday/Bank Holiday | S76: 99.17242054 | T76: 94.27048061 | U76: 90.11817068 | V76: 88.48687987 | W76: 86.75523034 | X76: 85.51274264 | Y76: 84.99623502 | Z76: 83.57522571 | AA76: 81.41295465 | AB76: 78.69110643 | AC76: 76.00462926 | AD76: 75.28640799 | AE76: 75.74589393 | AF76: 76.52668343 | AG76: 78.95718613 | AH76: 82.44106248 | AI76: 88.34280642 | AJ76: 93.52940133 | AK76: 98.11946919 | AL76: 103.0271481 | AM76: 107.491744 | AN76: 109.8665051 | AO76: 111.7639271 | AP76: 113.3232847 | AQ76: 112.0547109 | AR76: 110.9601874 | AS76: 106.3297998 | AT76: 103.2921272 | AU76: 100.4646234 | AV76: 99.13198602 | AW76: 99.71064738 | AX76: 100.8163718 | AY76: 102.2604035 | AZ76: 104.0097224 | BA76: 105.2017608 | BB76: 106.3532623 | BC76: 107.0738432 | BD76: 107.2253649 | BE76: 107.6547623 | BF76: 108.3484743 | BG76: 108.7821226 | BH76: 108.9084807 | BI76: 110.9899755 | BJ76: 111.5411846 | BK76: 114.2759304 | BL76: 112.18163 | BM76: 107.5073905 | BN76: 101.0775743
C77: 6 | D77: =D52*CLASS_installed_capacity_2015/MAX($D$46:$O$69) -> 122.5878685 | E77: 115.0938817 | F77: 114.9549702 | G77: 111.4772304 | H77: 109.1439073 | I77: 126.9679965 | J77: 141.5477577 | K77: 151.0290717 | L77: 133.7451105 | M77: 133.3262442 | N77: 166.96241 | O77: 137.8830002 | R77: Weekday | S77: 95.74559754 | T77: 91.26648319 | U77: 86.59950033 | V77: 85.27381932 | W77: 84.69034156 | X77: 84.29513788 | Y77: 84.06680124 | Z77: 83.3045161 | AA77: 82.37669273 | AB77: 80.7356957 | AC77: 79.34304352 | AD77: 81.74075588 | AE77: 88.35770115 | AF77: 98.06997507 | AG77: 109.7842694 | AH77: 120.1256709 | AI77: 127.3099655 | AJ77: 130.812003 | AK77: 132.7730205 | AL77: 133.9087568 | AM77: 134.9482686 | AN77: 135.0761927 | AO77: 135.3923432 | AP77: 135.6643131 | AQ77: 132.5111679 | AR77: 131.7167225 | AS77: 126.8606112 | AT77: 123.0066599 | AU77: 121.5843073 | AV77: 118.7625168 | AW77: 118.8000527 | AX77: 121.2708605 | AY77: 123.8455672 | AZ77: 124.7497468 | BA77: 126.035814 | BB77: 123.7773243 | BC77: 121.6823259 | BD77: 120.1008131 | BE77: 118.7710435 | BF77: 117.8609457 | BG77: 116.0110581 | BH77: 114.5472819 | BI77: 115.4135901 | BJ77: 114.9062944 | BK77: 115.7561174 | BL77: 116.6487039 | BM77: 111.9154966 | BN77: 105.876668
C78: 7 | D78: =D53*CLASS_installed_capacity_2015/MAX($D$46:$O$69) -> 133.3532333 | E78: 130.0079519 | F78: 129.0609842 | G78: 126.7903052 | H78: 123.7489051 | I78: 143.1535117 | J78: 151.1397072 | K78: 155.2175224 | L78: 146.4577125 | M78: 144.3565817 | N78: 174.9188798 | O78: 146.2153668 | R78: =EDATE(R72,1) -> 2014-07-01
C79: 8 | D79: =D54*CLASS_installed_capacity_2015/MAX($D$46:$O$69) -> 136.8493412 | E79: 134.5750668 | F79: 133.3408887 | G79: 132.5752441 | H79: 129.9783289 | I79: 150.7426313 | J79: 153.1369651 | K79: 155.3912809 | L79: 153.3713155 | M79: 153.4682944 | N79: 176.3905097 | O79: 148.1488329 | R79: Month | S79: July
C80: 9 | D80: =D55*CLASS_installed_capacity_2015/MAX($D$46:$O$69) -> 137.2707949 | E80: 134.5890364 | F80: 135.0122307 | G80: 135.0874599 | H80: 132.1808494 | I80: 152.0187529 | J80: 153.717363 | K80: 154.4298913 | L80: 153.3669016 | M80: 155.5229667 | N80: 174.5960769 | O80: 147.6404361 | R80: Settlement Period | S80: 1 | T80: 2 | U80: 3 | V80: 4 | W80: 5 | X80: 6 | Y80: 7 | Z80: 8 | AA80: 9 | AB80: 10 | AC80: 11 | AD80: 12 | AE80: 13 | AF80: 14 | AG80: 15 | AH80: 16 | AI80: 17 | AJ80: 18 | AK80: 19 | AL80: 20 | AM80: 21 | AN80: 22 | AO80: 23 | AP80: 24 | AQ80: 25 | AR80: 26 | AS80: 27 | AT80: 28 | AU80: 29 | AV80: 30 | AW80: 31 | AX80: 32 | AY80: 33 | AZ80: 34 | BA80: 35 | BB80: 36 | BC80: 37 | BD80: 38 | BE80: 39 | BF80: 40 | BG80: 41 | BH80: 42 | BI80: 43 | BJ80: 44 | BK80: 45 | BL80: 46 | BM80: 47 | BN80: 48
C81: 10 | D81: =D56*CLASS_installed_capacity_2015/MAX($D$46:$O$69) -> 135.4195667 | E81: 132.7610496 | F81: 135.5283281 | G81: 135.9829146 | H81: 132.8048651 | I81: 151.886114 | J81: 153.074096 | K81: 153.16024 | L81: 149.4150171 | M81: 155.019579 | N81: 169.9255717 | O81: 146.0009545 | R81: Saturday | S81: 102.8679282 | T81: 98.28859379 | U81: 94.5928529 | V81: 91.87528579 | W81: 89.82250272 | X81: 89.69891369 | Y81: 89.78485355 | Z81: 87.5117581 | AA81: 86.13800512 | AB81: 83.25658649 | AC81: 81.15195171 | AD81: 80.54555068 | AE81: 81.428838 | AF81: 84.29852833 | AG81: 89.89266513 | AH81: 96.54937893 | AI81: 103.8819971 | AJ81: 110.8636819 | AK81: 114.565607 | AL81: 116.6802164 | AM81: 118.1288687 | AN81: 119.644917 | AO81: 119.9660757 | AP81: 119.8447824 | AQ81: 117.1842422 | AR81: 115.0779284 | AS81: 110.2116162 | AT81: 106.8789227 | AU81: 104.1936434 | AV81: 102.2072247 | AW81: 101.0351304 | AX81: 101.9600673 | AY81: 103.6261346 | AZ81: 105.550237 | BA81: 108.1292945 | BB81: 108.4024177 | BC81: 108.1608111 | BD81: 107.1020346 | BE81: 107.3070521 | BF81: 106.9680703 | BG81: 106.2518234 | BH81: 106.2524877 | BI81: 107.9779611 | BJ81: 109.6546777 | BK81: 111.3524083 | BL81: 111.8929734 | BM81: 109.1156374 | BN81: 104.1586221
C82: 11 | D82: =D57*CLASS_installed_capacity_2015/MAX($D$46:$O$69) -> 131.8297839 | E82: 128.8393227 | F82: 132.1139452 | G82: 131.895049 | H82: 129.4198693 | I82: 148.7446712 | J82: 149.144129 | K82: 150.5982065 | L82: 142.8237338 | M82: 149.736663 | N82: 162.9900997 | O82: 140.7598408 | R82: Sunday/Bank Holiday | S82: 99.08966676 | T82: 94.24491314 | U82: 89.87100077 | V82: 88.48402105 | W82: 86.4757005 | X82: 85.9778239 | Y82: 86.15813713 | Z82: 84.77140942 | AA82: 83.45865771 | AB82: 80.45077033 | AC82: 78.47505482 | AD82: 77.62191626 | AE82: 77.69896874 | AF82: 77.99752843 | AG82: 80.56021914 | AH82: 84.18385633 | AI82: 89.61684908 | AJ82: 95.45287584 | AK82: 99.30600646 | AL82: 104.0204753 | AM82: 107.9603576 | AN82: 110.2031875 | AO82: 112.4728189 | AP82: 113.216463 | AQ82: 111.6692323 | AR82: 110.3772857 | AS82: 106.130562 | AT82: 103.1811182 | AU82: 101.6801918 | AV82: 100.3500873 | AW82: 100.4513019 | AX82: 102.7587663 | AY82: 104.7723588 | AZ82: 106.2517222 | BA82: 108.0682408 | BB82: 108.3352841 | BC82: 107.9107886 | BD82: 107.5222449 | BE82: 107.2154168 | BF82: 107.2692403 | BG82: 107.1521014 | BH82: 108.0949974 | BI82: 110.5615456 | BJ82: 110.6174027 | BK82: 112.7798963 | BL82: 111.7478262 | BM82: 106.7619367 | BN82: 101.5690918
C83: 12 | D83: =D58*CLASS_installed_capacity_2015/MAX($D$46:$O$69) -> 127.9914835 | E83: 124.4652553 | F83: 124.9336356 | G83: 125.6101386 | H83: 124.3914187 | I83: 144.281129 | J83: 143.3865056 | K83: 149.4668214 | L83: 139.5273762 | M83: 146.6252732 | N83: 160.2506273 | O83: 134.1652083 | R83: Weekday | S83: 96.32178714 | T83: 91.8364088 | U83: 88.56258669 | V83: 87.03930306 | W83: 86.02916579 | X83: 85.47776013 | Y83: 84.98604658 | Z83: 83.41642843 | AA83: 82.48706642 | AB83: 81.32727754 | AC83: 79.88221722 | AD83: 81.82687365 | AE83: 88.52749958 | AF83: 97.71113703 | AG83: 107.1932284 | AH83: 115.7612324 | AI83: 123.9812369 | AJ83: 129.5993734 | AK83: 131.9802078 | AL83: 133.1702804 | AM83: 134.4432026 | AN83: 135.7317172 | AO83: 136.2362507 | AP83: 135.7295786 | AQ83: 132.5957865 | AR83: 131.1943115 | AS83: 126.9751722 | AT83: 124.2451049 | AU83: 122.4470761 | AV83: 121.303518 | AW83: 121.47302 | AX83: 123.7142334 | AY83: 125.4847777 | AZ83: 127.2204523 | BA83: 126.8476639 | BB83: 124.2621724 | BC83: 121.5050834 | BD83: 119.3470843 | BE83: 119.1596155 | BF83: 118.002536 | BG83: 116.8257135 | BH83: 115.4406704 | BI83: 117.1529724 | BJ83: 118.050099 | BK83: 119.7526071 | BL83: 118.5227851 | BM83: 111.6415299 | BN83: 105.8011642
C84: 13 | D84: =D59*CLASS_installed_capacity_2015/MAX($D$46:$O$69) -> 125.4004294 | E84: 123.1580937 | F84: 120.1734121 | G84: 121.8752971 | H84: 119.9586731 | I84: 142.0241391 | J84: 141.5970929 | K84: 150.9173291 | L84: 141.8643847 | M84: 148.9358546 | N84: 158.2801711 | O84: 131.4090188 | R84: =EDATE(R78,1) -> 2014-08-01
C85: 14 | D85: =D60*CLASS_installed_capacity_2015/MAX($D$46:$O$69) -> 125.7452615 | E85: 123.4168434 | F85: 120.0354566 | G85: 122.5936267 | H85: 119.9346126 | I85: 140.1208616 | J85: 142.1341821 | K85: 164.5769859 | L85: 155.6254225 | M85: 165.2646113 | N85: 164.7176975 | O85: 132.8252416 | R85: Month | S85: August
C86: 15 | D86: =D61*CLASS_installed_capacity_2015/MAX($D$46:$O$69) -> 131.0948496 | E86: 128.0475858 | F86: 124.297657 | G86: 126.352615 | H86: 123.6414724 | I86: 141.0343745 | J86: 145.7081668 | K86: 179.0542167 | L86: 161.9348595 | M86: 176.7132729 | N86: 171.1820501 | O86: 139.5336772 | R86: Settlement Period | S86: 1 | T86: 2 | U86: 3 | V86: 4 | W86: 5 | X86: 6 | Y86: 7 | Z86: 8 | AA86: 9 | AB86: 10 | AC86: 11 | AD86: 12 | AE86: 13 | AF86: 14 | AG86: 15 | AH86: 16 | AI86: 17 | AJ86: 18 | AK86: 19 | AL86: 20 | AM86: 21 | AN86: 22 | AO86: 23 | AP86: 24 | AQ86: 25 | AR86: 26 | AS86: 27 | AT86: 28 | AU86: 29 | AV86: 30 | AW86: 31 | AX86: 32 | AY86: 33 | AZ86: 34 | BA86: 35 | BB86: 36 | BC86: 37 | BD86: 38 | BE86: 39 | BF86: 40 | BG86: 41 | BH86: 42 | BI86: 43 | BJ86: 44 | BK86: 45 | BL86: 46 | BM86: 47 | BN86: 48
C87: 16 | D87: =D62*CLASS_installed_capacity_2015/MAX($D$46:$O$69) -> 132.9313577 | E87: 128.94428 | F87: 124.9065692 | G87: 125.5549182 | H87: 125.0578095 | I87: 142.7431903 | J87: 149.4013267 | K87: 173.1155665 | L87: 155.7983195 | M87: 171.437785 | N87: 177.9596816 | O87: 145.0251171 | R87: Saturday | S87: 101.1500108 | T87: 96.36644828 | U87: 92.35287231 | V87: 91.04613275 | W87: 89.50943419 | X87: 88.52515233 | Y87: 87.06931863 | Z87: 86.13307978 | AA87: 85.58237643 | AB87: 84.74942562 | AC87: 83.97965307 | AD87: 82.28131168 | AE87: 81.40122481 | AF87: 83.03998501 | AG87: 88.05317225 | AH87: 93.65720287 | AI87: 100.6316835 | AJ87: 107.9067855 | AK87: 112.1774553 | AL87: 115.4815262 | AM87: 117.7262973 | AN87: 119.2326371 | AO87: 119.448277 | AP87: 118.9978687 | AQ87: 115.8507416 | AR87: 113.1811492 | AS87: 108.378294 | AT87: 105.1470887 | AU87: 103.1677762 | AV87: 101.0189252 | AW87: 101.0021295 | AX87: 101.8788966 | AY87: 103.5744915 | AZ87: 106.3198014 | BA87: 108.9193 | BB87: 109.668437 | BC87: 109.6161775 | BD87: 109.0106359 | BE87: 108.4027684 | BF87: 107.5673516 | BG87: 107.7174957 | BH87: 109.0762092 | BI87: 114.2161487 | BJ87: 116.0690032 | BK87: 114.8303375 | BL87: 111.4441493 | BM87: 107.4385405 | BN87: 103.379248
C88: 17 | D88: =D63*CLASS_installed_capacity_2015/MAX($D$46:$O$69) -> 129.4463142 | E88: 125.6413052 | F88: 120.8915695 | G88: 120.4260838 | H88: 122.8258425 | I88: 139.1208601 | J88: 148.2799827 | K88: 162.9346109 | L88: 146.9354143 | M88: 161.2420344 | N88: 169.8175765 | O88: 150.600609 | R88: Sunday/Bank Holiday | S88: 96.06099388 | T88: 90.92184717 | U88: 87.37590291 | V88: 86.77588184 | W88: 85.79961471 | X88: 84.63779621 | Y88: 84.51191069 | Z88: 82.66507155 | AA88: 82.56046588 | AB88: 82.15467209 | AC88: 80.42910857 | AD88: 78.41204317 | AE88: 77.45879316 | AF88: 78.00117641 | AG88: 80.10090783 | AH88: 84.24856696 | AI88: 89.8956574 | AJ88: 94.9591518 | AK88: 99.40701739 | AL88: 102.7648377 | AM88: 106.7108832 | AN88: 110.3630126 | AO88: 112.0640564 | AP88: 112.2702758 | AQ88: 110.794947 | AR88: 109.1264147 | AS88: 105.2464993 | AT88: 102.8962821 | AU88: 100.0003533 | AV88: 97.9910615 | AW88: 97.90762261 | AX88: 100.5536625 | AY88: 102.9395178 | AZ88: 105.7541957 | BA88: 108.1608094 | BB88: 110.2482904 | BC88: 110.8330524 | BD88: 110.7479449 | BE88: 109.8385053 | BF88: 109.4038505 | BG88: 110.021738 | BH88: 111.8314373 | BI88: 115.1913167 | BJ88: 116.3070072 | BK88: 113.6410435 | BL88: 109.7346956 | BM88: 105.4482778 | BN88: 100.5729145
C89: 18 | D89: =D64*CLASS_installed_capacity_2015/MAX($D$46:$O$69) -> 127.3673972 | E89: 123.5394903 | F89: 118.3159946 | G89: 118.5810757 | H89: 120.8922253 | I89: 137.5757946 | J89: 141.244433 | K89: 152.5397459 | L89: 137.1636709 | M89: 151.7732425 | N89: 159.9255441 | O89: 152.9652943 | R89: Weekday | S89: 95.56452028 | T89: 90.33364212 | U89: 87.4720195 | V89: 86.55877439 | W89: 86.25681145 | X89: 85.58195553 | Y89: 85.90218872 | Z89: 84.98285354 | AA89: 84.744195 | AB89: 84.99336482 | AC89: 85.00303849 | AD89: 85.39958321 | AE89: 90.2376705 | AF89: 97.08105843 | AG89: 105.255581 | AH89: 113.0322335 | AI89: 120.5926806 | AJ89: 126.9051297 | AK89: 129.5113257 | AL89: 130.4453322 | AM89: 131.7871906 | AN89: 132.5745082 | AO89: 133.0256374 | AP89: 132.5840929 | AQ89: 130.4911059 | AR89: 128.3486327 | AS89: 125.3217772 | AT89: 123.4610601 | AU89: 121.4905005 | AV89: 118.4268458 | AW89: 119.1607654 | AX89: 120.7084597 | AY89: 122.8270863 | AZ89: 124.4558586 | BA89: 124.8868175 | BB89: 125.2288016 | BC89: 123.3064613 | BD89: 122.3452237 | BE89: 121.2788212 | BF89: 120.5056294 | BG89: 120.1264324 | BH89: 120.6569593 | BI89: 123.212135 | BJ89: 125.4893038 | BK89: 122.3625575 | BL89: 116.9599817 | BM89: 110.9444223 | BN89: 105.3029286
C90: 19 | D90: =D65*CLASS_installed_capacity_2015/MAX($D$46:$O$69) -> 130.4497228 | E90: 120.9126025 | F90: 115.27917 | G90: 116.133192 | H90: 120.3916959 | I90: 140.1316188 | J90: 131.8782834 | K90: 140.3654571 | L90: 127.5739966 | M90: 142.7664837 | N90: 148.3181451 | O90: 148.8428031 | R90: =EDATE(R84,1) -> 2014-09-01
C91: 20 | D91: =D66*CLASS_installed_capacity_2015/MAX($D$46:$O$69) -> 131.0223631 | E91: 123.4800773 | F91: 115.1599423 | G91: 117.6015357 | H91: 124.3507194 | I91: 132.0819321 | J91: 124.4847879 | K91: 127.754165 | L91: 121.629719 | M91: 134.6938285 | N91: 138.9091216 | O91: 139.6209963 | R91: Month | S91: September
C92: 21 | D92: =D67*CLASS_installed_capacity_2015/MAX($D$46:$O$69) -> 121.94235 | E92: 120.367059 | F92: 116.2024107 | G92: 119.1376961 | H92: 119.6612696 | I92: 121.8795419 | J92: 115.6634224 | K92: 115.807584 | L92: 117.6706574 | M92: 126.1506832 | N92: 127.7476526 | O92: 130.5452996 | R92: Settlement Period | S92: 1 | T92: 2 | U92: 3 | V92: 4 | W92: 5 | X92: 6 | Y92: 7 | Z92: 8 | AA92: 9 | AB92: 10 | AC92: 11 | AD92: 12 | AE92: 13 | AF92: 14 | AG92: 15 | AH92: 16 | AI92: 17 | AJ92: 18 | AK92: 19 | AL92: 20 | AM92: 21 | AN92: 22 | AO92: 23 | AP92: 24 | AQ92: 25 | AR92: 26 | AS92: 27 | AT92: 28 | AU92: 29 | AV92: 30 | AW92: 31 | AX92: 32 | AY92: 33 | AZ92: 34 | BA92: 35 | BB92: 36 | BC92: 37 | BD92: 38 | BE92: 39 | BF92: 40 | BG92: 41 | BH92: 42 | BI92: 43 | BJ92: 44 | BK92: 45 | BL92: 46 | BM92: 47 | BN92: 48
C93: 22 | D93: =D68*CLASS_installed_capacity_2015/MAX($D$46:$O$69) -> 109.4168134 | E93: 108.185337 | F93: 108.8960823 | G93: 108.7213471 | H93: 108.1236755 | I93: 109.518675 | J93: 105.123777 | K93: 105.1674087 | L93: 105.6643936 | M93: 114.77558 | N93: 116.4652415 | O93: 120.7210828 | R93: Saturday | S93: 103.8407007 | T93: 97.96548177 | U93: 94.48871895 | V93: 93.35507842 | W93: 92.95447836 | X93: 91.9295646 | Y93: 91.95250867 | Z93: 91.9331601 | AA93: 91.86082013 | AB93: 91.10103891 | AC93: 91.07177116 | AD93: 91.7095982 | AE93: 94.38739741 | AF93: 97.00083111 | AG93: 102.274524 | AH93: 109.699069 | AI93: 118.0692711 | AJ93: 125.3955811 | AK93: 130.6773344 | AL93: 132.858659 | AM93: 134.6920925 | AN93: 135.3531467 | AO93: 134.3841569 | AP93: 134.7464023 | AQ93: 132.1320398 | AR93: 129.9543433 | AS93: 126.8142433 | AT93: 124.6163235 | AU93: 121.8128476 | AV93: 120.5741119 | AW93: 120.5023497 | AX93: 120.7755399 | AY93: 121.1279558 | AZ93: 123.9463812 | BA93: 126.168824 | BB93: 126.9815935 | BC93: 126.0971051 | BD93: 124.7028574 | BE93: 123.2682724 | BF93: 123.2336647 | BG93: 126.083044 | BH93: 126.5075093 | BI93: 122.9502112 | BJ93: 119.6984955 | BK93: 116.7168916 | BL93: 112.8051603 | BM93: 108.7909728 | BN93: 103.6569019
C94: 23 | D94: =D69*CLASS_installed_capacity_2015/MAX($D$46:$O$69) -> 91.26421703 | E94: 91.26072914 | F94: 93.50604036 | G94: 94.07909797 | H94: 92.9490812 | I94: 93.90172618 | J94: 93.88665878 | K94: 90.88803515 | L94: 101.4564821 | M94: 97.43797417 | N94: 108.1245551 | O94: 104.8900612 | R94: Sunday/Bank Holiday | S94: 98.74288657 | T94: 93.65267966 | U94: 90.11629839 | V94: 88.37055746 | W94: 87.73457322 | X94: 87.15034154 | Y94: 86.86579443 | Z94: 87.19088619 | AA94: 87.23276895 | AB94: 86.14843586 | AC94: 85.98332098 | AD94: 85.96976172 | AE94: 85.89087559 | AF94: 85.49581231 | AG94: 88.32231 | AH94: 93.55775137 | AI94: 99.94796135 | AJ94: 107.1794758 | AK94: 112.197465 | AL94: 117.3700329 | AM94: 120.6451006 | AN94: 124.0123263 | AO94: 124.5238378 | AP94: 125.0364096 | AQ94: 123.9240777 | AR94: 122.3112772 | AS94: 120.3721602 | AT94: 118.1657566 | AU94: 117.2166022 | AV94: 116.4227943 | AW94: 116.5243636 | AX94: 116.5798882 | AY94: 117.7923497 | AZ94: 120.7542367 | BA94: 122.5898406 | BB94: 122.9147368 | BC94: 122.1300356 | BD94: 122.1648117 | BE94: 122.8942958 | BF94: 124.1896708 | BG94: 128.6784366 | BH94: 130.1848218 | BI94: 127.5163087 | BJ94: 123.4122799 | BK94: 118.1906222 | BL94: 113.098579 | BM94: 107.0707461 | BN94: 100.5141169
R95: Weekday | S95: 96.28375078 | T95: 91.51970157 | U95: 88.76090818 | V95: 88.22349407 | W95: 87.94748409 | X95: 88.0683657 | Y95: 88.60079332 | Z95: 89.04037092 | AA95: 89.05089729 | AB95: 89.0524222 | AC95: 90.50117265 | AD95: 94.29298597 | AE95: 100.5409709 | AF95: 110.6888542 | AG95: 121.8895854 | AH95: 132.0464076 | AI95: 140.121439 | AJ95: 146.1855844 | AK95: 149.6578057 | AL95: 151.8274569 | AM95: 152.0744222 | AN95: 151.9630836 | AO95: 151.9271547 | AP95: 151.8450733 | AQ95: 150.3119803 | AR95: 147.177362 | AS95: 144.8545268 | AT95: 143.7077312 | AU95: 142.6256487 | AV95: 141.4226294 | AW95: 140.2054836 | AX95: 140.0362396 | AY95: 140.1082244 | AZ95: 141.9605247 | BA95: 142.895422 | BB95: 142.5909586 | BC95: 140.4729396 | BD95: 137.7687807 | BE95: 136.9337962 | BF95: 138.2177929 | BG95: 140.462675 | BH95: 139.8005626 | BI95: 134.1277826 | BJ95: 130.0360816 | BK95: 124.2433009 | BL95: 119.5157828 | BM95: 112.9619463 | BN95: 106.0754037
B96: 2027 Scaled capability (MW) | C96: 0 | D96: =D46*CLASS_installed_capacity_2027/MAX($D$46:$O$69) -> 1404.96786 | E96: 1423.733055 | F96: 1432.277664 | G96: 1463.349081 | H96: 1450.256616 | I96: 1474.870019 | J96: 1480.335693 | K96: 1502.539922 | L96: 1630.513965 | M96: 1596.382979 | N96: 1780.100408 | O96: 1639.688828 | R96: =EDATE(R90,1) -> 2014-10-01
C97: 1 | D97: =D47*CLASS_installed_capacity_2027/MAX($D$46:$O$69) -> 1428.378697 | E97: 1439.77116 | F97: 1408.212329 | G97: 1429.224383 | H97: 1431.989725 | I97: 1466.798748 | J97: 1492.920908 | K97: 1518.255842 | L97: 1646.297394 | M97: 1636.365012 | N97: 1812.191806 | O97: 1643.151846 | R97: Month | S97: October
C98: 2 | D98: =D48*CLASS_installed_capacity_2027/MAX($D$46:$O$69) -> 1438.720695 | E98: 1446.984967 | F98: 1394.760978 | G98: 1403.353958 | H98: 1424.042019 | I98: 1480.343035 | J98: 1523.630564 | K98: 1516.373208 | L98: 1602.751187 | M98: 1611.10436 | N98: 1780.820298 | O98: 1666.548837 | R98: Settlement Period | S98: 1 | T98: 2 | U98: 3 | V98: 4 | W98: 5 | X98: 6 | Y98: 7 | Z98: 8 | AA98: 9 | AB98: 10 | AC98: 11 | AD98: 12 | AE98: 13 | AF98: 14 | AG98: 15 | AH98: 16 | AI98: 17 | AJ98: 18 | AK98: 19 | AL98: 20 | AM98: 21 | AN98: 22 | AO98: 23 | AP98: 24 | AQ98: 25 | AR98: 26 | AS98: 27 | AT98: 28 | AU98: 29 | AV98: 30 | AW98: 31 | AX98: 32 | AY98: 33 | AZ98: 34 | BA98: 35 | BB98: 36 | BC98: 37 | BD98: 38 | BE98: 39 | BF98: 40 | BG98: 41 | BH98: 42 | BI98: 43 | BJ98: 44 | BK98: 45 | BL98: 46 | BM98: 47 | BN98: 48
C99: 3 | D99: =D49*CLASS_installed_capacity_2027/MAX($D$46:$O$69) -> 1440.607389 | E99: 1436.626112 | F99: 1359.269904 | G99: 1365.119533 | H99: 1414.479665 | I99: 1484.194329 | J99: 1536.634496 | K99: 1593.845783 | L99: 1631.977306 | M99: 1632.870359 | N99: 1849.686714 | O99: 1628.768328 | R99: Saturday | S99: 105.1821427 | T99: 98.85309676 | U99: 95.04290492 | V99: 95.46496757 | W99: 94.9139955 | X99: 94.0442026 | Y99: 94.36106013 | Z99: 94.38729607 | AA99: 94.36972647 | AB99: 92.45178661 | AC99: 92.26916494 | AD99: 93.37129893 | AE99: 95.70873184 | AF99: 100.2711913 | AG99: 106.5843619 | AH99: 113.1444225 | AI99: 121.6286991 | AJ99: 127.9716618 | AK99: 132.5091005 | AL99: 137.2014473 | AM99: 138.6113842 | AN99: 140.1156021 | AO99: 140.5512628 | AP99: 140.3463864 | AQ99: 138.0852533 | AR99: 134.8624277 | AS99: 130.9016573 | AT99: 127.5316177 | AU99: 124.4552305 | AV99: 123.5703608 | AW99: 122.5590135 | AX99: 121.7478034 | AY99: 122.0191448 | AZ99: 124.3229324 | BA99: 128.4928451 | BB99: 130.080935 | BC99: 130.5312987 | BD99: 133.9984817 | BE99: 138.9561531 | BF99: 140.5476283 | BG99: 135.1194569 | BH99: 130.648266 | BI99: 125.7564156 | BJ99: 122.5005476 | BK99: 119.1674337 | BL99: 116.1271959 | BM99: 112.0201571 | BN99: 107.1569627
C100: 4 | D100: =D50*CLASS_installed_capacity_2027/MAX($D$46:$O$69) -> 1461.189195 | E100: 1419.972092 | F100: 1342.364995 | G100: 1347.575757 | H100: 1420.021848 | I100: 1539.951322 | J100: 1600.539177 | K100: 1919.11765 | L100: 1820.468356 | M100: 1789.705193 | N100: 2153.538482 | O100: 1642.413748 | R100: Sunday/Bank Holiday | S100: 102.0337517 | T100: 95.4169322 | U100: 91.57205342 | V100: 90.23878917 | W100: 88.48684497 | X100: 88.68893207 | Y100: 89.46391213 | Z100: 90.0275943 | AA100: 90.01961838 | AB100: 88.7900081 | AC100: 88.081279 | AD100: 88.16366553 | AE100: 88.71724786 | AF100: 90.0964233 | AG100: 92.09049207 | AH100: 95.61405441 | AI100: 98.95306519 | AJ100: 103.829217 | AK100: 110.1544811 | AL100: 117.8764149 | AM100: 125.8890054 | AN100: 128.305519 | AO100: 128.8673971 | AP100: 129.4008273 | AQ100: 128.8842082 | AR100: 127.021116 | AS100: 124.3174318 | AT100: 121.2834424 | AU100: 121.4483984 | AV100: 122.406583 | AW100: 123.0063121 | AX100: 125.0360684 | AY100: 127.9144494 | AZ100: 131.5336291 | BA100: 134.094888 | BB100: 135.2367073 | BC100: 134.6288892 | BD100: 138.2758317 | BE100: 144.2976358 | BF100: 141.7705087 | BG100: 137.7501343 | BH100: 133.4237936 | BI100: 129.287953 | BJ100: 124.2327065 | BK100: 119.2273503 | BL100: 114.7704907 | BM100: 109.0580807 | BN100: 101.9277798
C101: 5 | D101: =D51*CLASS_installed_capacity_2027/MAX($D$46:$O$69) -> 1662.297627 | E101: 1603.638182 | F101: 1553.563969 | G101: 1551.988638 | H101: 1560.989408 | I101: 1760.248542 | J101: 1902.746636 | K101: 2342.417992 | L101: 2034.48449 | M101: 2025.046468 | N101: 2517.722088 | O101: 1916.5709 | R101: Weekday | S101: 95.73799174 | T101: 92.03532582 | U101: 89.04033134 | V101: 88.5999518 | W101: 89.16744999 | X101: 89.98305897 | Y101: 91.1273058 | Z101: 91.70836192 | AA101: 92.18419543 | AB101: 92.2119441 | AC101: 93.85861885 | AD101: 98.20608235 | AE101: 106.4671055 | AF101: 121.8624908 | AG101: 136.8172625 | AH101: 146.2782528 | AI101: 151.4703226 | AJ101: 150.8090918 | AK101: 151.8932898 | AL101: 154.3806404 | AM101: 153.4507791 | AN101: 153.9839469 | AO101: 154.1646025 | AP101: 151.9835896 | AQ101: 150.602178 | AR101: 147.68608 | AS101: 144.4017285 | AT101: 142.3712827 | AU101: 141.545071 | AV101: 141.6491148 | AW101: 141.9381887 | AX101: 142.3301755 | AY101: 143.9814686 | AZ101: 147.434865 | BA101: 149.3827478 | BB101: 149.4199056 | BC101: 148.080901 | BD101: 148.4790645 | BE101: 143.4809595 | BF101: 139.0079064 | BG101: 133.7709519 | BH101: 129.9856148 | BI101: 125.5674753 | BJ101: 123.4021005 | BK101: 118.8967676 | BL101: 112.4300773 | BM101: 107.4356905 | BN101: 102.8118634
C102: 6 | D102: =D52*CLASS_installed_capacity_2027/MAX($D$46:$O$69) -> 2043.131142 | E102: 1918.231362 | F102: 1915.916169 | G102: 1857.95384 | H102: 1819.065121 | I102: 2116.133275 | J102: 2359.129294 | K102: 2517.151195 | L102: 2229.085174 | M102: 2222.10407 | N102: 2782.706834 | O102: 2298.050004 | R102: =EDATE(R96,1) -> 2014-11-01
C103: 7 | D103: =D53*CLASS_installed_capacity_2027/MAX($D$46:$O$69) -> 2222.553888 | E103: 2166.799198 | F103: 2151.016404 | G103: 2113.171753 | H103: 2062.481752 | I103: 2385.891861 | J103: 2518.99512 | K103: 2586.958707 | L103: 2440.961875 | M103: 2405.943029 | N103: 2915.314664 | O103: 2436.922779 | R103: Month | S103: November
C104: 8 | D104: =D54*CLASS_installed_capacity_2027/MAX($D$46:$O$69) -> 2280.822353 | E104: 2242.91778 | F104: 2222.348145 | G104: 2209.587402 | H104: 2166.305482 | I104: 2512.377188 | J104: 2552.282751 | K104: 2589.854681 | L104: 2556.188592 | M104: 2557.804906 | N104: 2939.841828 | O104: 2469.147215 | R104: Settlement Period | S104: 1 | T104: 2 | U104: 3 | V104: 4 | W104: 5 | X104: 6 | Y104: 7 | Z104: 8 | AA104: 9 | AB104: 10 | AC104: 11 | AD104: 12 | AE104: 13 | AF104: 14 | AG104: 15 | AH104: 16 | AI104: 17 | AJ104: 18 | AK104: 19 | AL104: 20 | AM104: 21 | AN104: 22 | AO104: 23 | AP104: 24 | AQ104: 25 | AR104: 26 | AS104: 27 | AT104: 28 | AU104: 29 | AV104: 30 | AW104: 31 | AX104: 32 | AY104: 33 | AZ104: 34 | BA104: 35 | BB104: 36 | BC104: 37 | BD104: 38 | BE104: 39 | BF104: 40 | BG104: 41 | BH104: 42 | BI104: 43 | BJ104: 44 | BK104: 45 | BL104: 46 | BM104: 47 | BN104: 48
C105: 9 | D105: =D55*CLASS_installed_capacity_2027/MAX($D$46:$O$69) -> 2287.846581 | E105: 2243.150607 | F105: 2250.203845 | G105: 2251.457665 | H105: 2203.014157 | I105: 2533.645881 | J105: 2561.95605 | K105: 2573.831521 | L105: 2556.115027 | M105: 2592.049445 | N105: 2909.934614 | O105: 2460.673935 | R105: Saturday | S105: 101.0063271 | T105: 98.95234141 | U105: 97.98082983 | V105: 97.77652326 | W105: 97.74657688 | X105: 96.61602196 | Y105: 95.84051692 | Z105: 94.80450657 | AA105: 94.2856187 | AB105: 94.91759202 | AC105: 97.98103825 | AD105: 102.1339945 | AE105: 106.2040813 | AF105: 110.7676889 | AG105: 118.6866017 | AH105: 125.966095 | AI105: 130.8125453 | AJ105: 133.099569 | AK105: 134.6694525 | AL105: 134.7237402 | AM105: 133.9784878 | AN105: 134.6532502 | AO105: 133.945626 | AP105: 132.3169258 | AQ105: 129.8226258 | AR105: 126.3288638 | AS105: 125.1899619 | AT105: 126.4746996 | AU105: 130.3371881 | AV105: 131.9919795 | AW105: 134.6056574 | AX105: 143.0727851 | AY105: 152.5275659 | AZ105: 155.6465384 | BA105: 152.3201464 | BB105: 147.9819889 | BC105: 142.4251979 | BD105: 137.1128951 | BE105: 132.970341 | BF105: 128.899924 | BG105: 125.2414523 | BH105: 121.8146374 | BI105: 118.1214236 | BJ105: 116.4646989 | BK105: 113.3976812 | BL105: 108.412373 | BM105: 104.3562522 | BN105: 99.25116839
C106: 10 | D106: =D56*CLASS_installed_capacity_2027/MAX($D$46:$O$69) -> 2256.992779 | E106: 2212.684159 | F106: 2258.805469 | G106: 2266.381911 | H106: 2213.414419 | I106: 2531.435234 | J106: 2551.234934 | K106: 2552.670666 | L106: 2490.250285 | M106: 2583.65965 | N106: 2832.092862 | O106: 2433.349242 | R106: Sunday/Bank Holiday | S106: 95.93701469 | T106: 93.7331833 | U106: 91.87293837 | V106: 91.98937905 | W106: 92.13771715 | X106: 90.64165832 | Y106: 89.14374824 | Z106: 88.17050822 | AA106: 88.03004178 | AB106: 88.22012966 | AC106: 89.68760253 | AD106: 91.93063921 | AE106: 94.23110083 | AF106: 97.39270874 | AG106: 102.2086582 | AH106: 108.8850916 | AI106: 114.9998523 | AJ106: 120.6910235 | AK106: 124.8136531 | AL106: 127.660986 | AM106: 129.3668175 | AN106: 129.80641 | AO106: 129.2587291 | AP106: 128.2333502 | AQ106: 126.6904207 | AR106: 124.859642 | AS106: 125.1416669 | AT106: 126.1534285 | AU106: 128.89084 | AV106: 134.3130551 | AW106: 138.2419433 | AX106: 149.6765573 | AY106: 157.8026874 | AZ106: 159.1775227 | BA106: 155.2770131 | BB106: 151.0588962 | BC106: 147.1079867 | BD106: 142.1332091 | BE106: 138.8815905 | BF106: 134.0856186 | BG106: 128.8799393 | BH106: 123.7147113 | BI106: 118.2710906 | BJ106: 115.0999374 | BK106: 110.0172961 | BL106: 103.9275377 | BM106: 99.31615764 | BN106: 95.06485273
C107: 11 | D107: =D57*CLASS_installed_capacity_2027/MAX($D$46:$O$69) -> 2197.163065 | E107: 2147.322045 | F107: 2201.899087 | G107: 2198.250816 | H107: 2156.997822 | I107: 2479.077853 | J107: 2485.735484 | K107: 2509.970108 | L107: 2380.395564 | M107: 2495.61105 | N107: 2716.501662 | O107: 2345.997347 | R107: Weekday | S107: 91.50363154 | T107: 90.27243875 | U107: 89.5906396 | V107: 90.714151 | W107: 91.46706688 | X107: 90.72363418 | Y107: 90.93247532 | Z107: 91.03230967 | AA107: 92.80789789 | AB107: 98.45359606 | AC107: 108.6457795 | AD107: 121.6483385 | AE107: 136.0418228 | AF107: 145.0483362 | AG107: 149.3893483 | AH107: 152.6687951 | AI107: 154.399395 | AJ107: 156.0356499 | AK107: 155.8229056 | AL107: 154.9596561 | AM107: 154.6561295 | AN107: 154.203653 | AO107: 152.5023332 | AP107: 153.8181467 | AQ107: 151.2570119 | AR107: 149.9394011 | AS107: 149.6343156 | AT107: 149.2993272 | AU107: 149.8106157 | AV107: 152.0240424 | AW107: 158.5712876 | AX107: 170.5826842 | AY107: 178.9138137 | AZ107: 179.1946197 | BA107: 175.3980004 | BB107: 170.8331325 | BC107: 165.8431936 | BD107: 160.0260282 | BE107: 155.3756434 | BF107: 149.7038484 | BG107: 143.7881805 | BH107: 136.9427337 | BI107: 130.0985022 | BJ107: 125.4098278 | BK107: 119.6278425 | BL107: 111.9873256 | BM107: 107.4243777 | BN107: 102.9104397
C108: 12 | D108: =D58*CLASS_installed_capacity_2027/MAX($D$46:$O$69) -> 2133.191391 | E108: 2074.420922 | F108: 2082.22726 | G108: 2093.50231 | H108: 2073.190311 | I108: 2404.685484 | J108: 2389.775094 | K108: 2491.11369 | L108: 2325.456271 | M108: 2443.754554 | N108: 2670.843789 | O108: 2236.086805 | R108: =EDATE(R102,1) -> 2014-12-01
C109: 13 | D109: =D59*CLASS_installed_capacity_2027/MAX($D$46:$O$69) -> 2090.007157 | E109: 2052.634895 | F109: 2002.890201 | G109: 2031.254951 | H109: 1999.311219 | I109: 2367.068984 | J109: 2359.951549 | K109: 2515.288818 | L109: 2364.406411 | M109: 2482.264243 | N109: 2638.002851 | O109: 2190.150314 | R109: Month | S109: December
C110: 14 | D110: =D60*CLASS_installed_capacity_2027/MAX($D$46:$O$69) -> 2095.754358 | E110: 2056.947391 | F110: 2000.590943 | G110: 2043.227112 | H110: 1998.91021 | I110: 2335.347694 | J110: 2368.903035 | K110: 2742.949765 | L110: 2593.757041 | M110: 2754.410189 | N110: 2745.294959 | O110: 2213.754027 | R110: Settlement Period | S110: 1 | T110: 2 | U110: 3 | V110: 4 | W110: 5 | X110: 6 | Y110: 7 | Z110: 8 | AA110: 9 | AB110: 10 | AC110: 11 | AD110: 12 | AE110: 13 | AF110: 14 | AG110: 15 | AH110: 16 | AI110: 17 | AJ110: 18 | AK110: 19 | AL110: 20 | AM110: 21 | AN110: 22 | AO110: 23 | AP110: 24 | AQ110: 25 | AR110: 26 | AS110: 27 | AT110: 28 | AU110: 29 | AV110: 30 | AW110: 31 | AX110: 32 | AY110: 33 | AZ110: 34 | BA110: 35 | BB110: 36 | BC110: 37 | BD110: 38 | BE110: 39 | BF110: 40 | BG110: 41 | BH110: 42 | BI110: 43 | BJ110: 44 | BK110: 45 | BL110: 46 | BM110: 47 | BN110: 48
C111: 15 | D111: =D61*CLASS_installed_capacity_2027/MAX($D$46:$O$69) -> 2184.91416 | E111: 2134.126429 | F111: 2071.627616 | G111: 2105.876917 | H111: 2060.691207 | I111: 2350.572909 | J111: 2428.469447 | K111: 2984.236945 | L111: 2698.914325 | M111: 2945.221214 | N111: 2853.034168 | O111: 2325.561287 | R111: Saturday | S111: 101.6583997 | T111: 98.62274062 | U111: 95.86112745 | V111: 98.03889188 | W111: 98.41499709 | X111: 98.05048756 | Y111: 96.87522657 | Z111: 95.90443121 | AA111: 96.1206324 | AB111: 96.77042434 | AC111: 98.95472346 | AD111: 102.2432378 | AE111: 107.0855067 | AF111: 110.1869029 | AG111: 115.8691118 | AH111: 121.8622451 | AI111: 129.875875 | AJ111: 135.9895179 | AK111: 140.4886854 | AL111: 144.6497784 | AM111: 145.9055422 | AN111: 146.0607291 | AO111: 146.7153817 | AP111: 146.2944596 | AQ111: 143.7177413 | AR111: 141.65253 | AS111: 140.2509626 | AT111: 139.5699319 | AU111: 140.3020121 | AV111: 142.2742347 | AW111: 149.5554354 | AX111: 159.5757294 | AY111: 163.9680628 | AZ111: 164.348537 | BA111: 162.1643902 | BB111: 158.1496683 | BC111: 154.3126478 | BD111: 149.4732251 | BE111: 146.1502151 | BF111: 143.2116687 | BG111: 139.3015149 | BH111: 134.7723067 | BI111: 129.9242635 | BJ111: 129.3122098 | BK111: 126.6294708 | BL111: 119.6019942 | BM111: 115.1476338 | BN111: 109.1262403
C112: 16 | D112: =D62*CLASS_installed_capacity_2027/MAX($D$46:$O$69) -> 2215.522628 | E112: 2149.071333 | F112: 2081.776153 | G112: 2092.581969 | H112: 2084.296826 | I112: 2379.053171 | J112: 2490.022112 | K112: 2885.259441 | L112: 2596.638658 | M112: 2857.296417 | N112: 2965.994694 | O112: 2417.085284 | R112: Sunday/Bank Holiday | S112: 94.84068578 | T112: 91.02469236 | U112: 88.27828177 | V112: 89.60746284 | W112: 91.12210756 | X112: 89.8595862 | Y112: 89.99815727 | Z112: 90.32588229 | AA112: 89.09800007 | AB112: 89.19169615 | AC112: 90.92418519 | AD112: 94.30354737 | AE112: 98.79635799 | AF112: 100.3260118 | AG112: 104.1423666 | AH112: 108.866039 | AI112: 115.3694903 | AJ112: 122.2745292 | AK112: 127.7178819 | AL112: 132.9853457 | AM112: 134.723622 | AN112: 135.9099025 | AO112: 136.6558927 | AP112: 136.4260896 | AQ112: 133.9096483 | AR112: 132.8141753 | AS112: 130.9493912 | AT112: 129.491646 | AU112: 128.7542884 | AV112: 128.6002887 | AW112: 129.9041109 | AX112: 130.5207157 | AY112: 128.8139258 | AZ112: 125.6372042 | BA112: 122.9445712 | BB112: 120.9178884 | BC112: 119.4650743 | BD112: 119.1154419 | BE112: 118.3704761 | BF112: 117.0746268 | BG112: 117.6414153 | BH112: 116.3739003 | BI112: 114.654156 | BJ112: 117.5067637 | BK112: 114.9257067 | BL112: 110.1946035 | BM112: 105.4664952 | BN112: 98.15140804
C113: 17 | D113: =D63*CLASS_installed_capacity_2027/MAX($D$46:$O$69) -> 2157.43857 | E113: 2094.021753 | F113: 2014.859491 | G113: 2007.101397 | H113: 2047.097375 | I113: 2318.681002 | J113: 2471.333046 | K113: 2715.576848 | L113: 2448.923572 | M113: 2687.36724 | N113: 2830.292941 | O113: 2510.010151 | R113: Weekday | S113: 102.9524741 | T113: 99.96049015 | U113: 96.95093408 | V113: 98.71074169 | W113: 99.45359681 | X113: 98.1020905 | Y113: 96.50315371 | Z113: 95.82698875 | AA113: 96.90869342 | AB113: 98.92858326 | AC113: 105.7227458 | AD113: 112.7334569 | AE113: 119.9552253 | AF113: 124.1829135 | AG113: 130.3574866 | AH113: 137.1327344 | AI113: 144.1703587 | AJ113: 148.7450663 | AK113: 152.5017292 | AL113: 154.2409019 | AM113: 154.4159792 | AN113: 152.3178239 | AO113: 150.5240627 | AP113: 148.3059714 | AQ113: 144.4149781 | AR113: 141.2324896 | AS113: 140.1703284 | AT113: 138.884424 | AU113: 140.2838255 | AV113: 143.4449439 | AW113: 151.5996435 | AX113: 159.6512014 | AY113: 162.7123389 | AZ113: 161.1573801 | BA113: 157.7796056 | BB113: 153.8170334 | BC113: 148.6267478 | BD113: 145.2440808 | BE113: 139.5166317 | BF113: 134.8107102 | BG113: 129.7275678 | BH113: 125.4204254 | BI113: 121.1517579 | BJ113: 122.1076802 | BK113: 120.4449341 | BL113: 114.8963806 | BM113: 108.9223603 | BN113: 102.4064269
C114: 18 | D114: =D64*CLASS_installed_capacity_2027/MAX($D$46:$O$69) -> 2122.789953 | E114: 2058.991505 | F114: 1971.933243 | G114: 1976.351262 | H114: 2014.870422 | I114: 2292.929909 | J114: 2354.073883 | K114: 2542.329099 | L114: 2286.061182 | M114: 2529.554042 | N114: 2665.425734 | O114: 2549.421571
C115: 19 | D115: =D65*CLASS_installed_capacity_2027/MAX($D$46:$O$69) -> 2174.162046 | E115: 2015.210041 | F115: 1921.3195 | G115: 1935.553199 | H115: 2006.528265 | I115: 2335.52698 | J115: 2197.97139 | K115: 2339.424285 | L115: 2126.233277 | M115: 2379.441396 | N115: 2471.969085 | O115: 2480.713384
C116: 20 | D116: =D66*CLASS_installed_capacity_2027/MAX($D$46:$O$69) -> 2183.706052 | E116: 2058.001288 | F116: 1919.332371 | G116: 1960.025595 | H116: 2072.51199 | I116: 2201.365535 | J116: 2074.746465 | K116: 2129.236084 | L116: 2027.161984 | M116: 2244.897142 | N116: 2315.152027 | O116: 2327.016605
C117: 21 | D117: =D67*CLASS_installed_capacity_2027/MAX($D$46:$O$69) -> 2032.3725 | E117: 2006.117649 | F117: 1936.706844 | G117: 1985.628268 | H117: 1994.354493 | I117: 2031.325698 | J117: 1927.723707 | K117: 1930.126401 | L117: 1961.177623 | M117: 2102.511387 | N117: 2129.127543 | O117: 2175.754994
C118: 22 | D118: =D68*CLASS_installed_capacity_2027/MAX($D$46:$O$69) -> 1823.613557 | E118: 1803.08895 | F118: 1814.934705 | G118: 1812.022451 | H118: 1802.061258 | I118: 1825.31125 | J118: 1752.06295 | K118: 1752.790144 | L118: 1761.073227 | M118: 1912.926333 | N118: 1941.087359 | O118: 2012.018046
C119: 23 | D119: =D69*CLASS_installed_capacity_2027/MAX($D$46:$O$69) -> 1521.070284 | E119: 1521.012152 | F119: 1558.434006 | G119: 1567.984966 | H119: 1549.151353 | I119: 1565.02877 | J119: 1564.777646 | K119: 1514.800586 | L119: 1690.941368 | M119: 1623.966236 | N119: 1802.075918 | O119: 1748.167686

Sheet Stack_viewer
A1: Stack viewer tab
A2: This sheet shows the baseline and "with CLASS" stack by season and service. Note that only Frequency Response and Fast Reserve is shown since STOR has both Utilisation and Availaility components for each bid. The effect of CLASS can be seen for the volume and pricing strategy selected on the Control sheet.
A3: Note that these bidding strategies are not intended to describe a bidding behaviour for a particular DNO but to bound the range of possible strategies. The shadow marginal price is intended to show the maximum average price that a DNO or DNOs could achieve given the bids of competitor providers.
A4: In the case of large volumes of CLASS, this pricing strategy implicitly bids CLASS as a single block priced at the average of the displaced providers. In reality, this may only be achievable if CLASS volumes can be subdivided and bid in at different prices, as may be the case when multiple DNOs offer CLASS independently.
B6: Stack selector | J6: Contribution from CLASS | K6: Capacity (MW) | L6: Price (£/MW/h)
B7: Year | C7: 2015 | J7: CLASS | K7: =INDEX(Control!$C$19:$K$21,IF(Service="Frequency Response",1,IF(Service="Fast Reserve",2,3)),IF(Year=2027,5,0)+IF(Period="Overnight",2,0)+IF(Season="Non-Winter",2,1)) -> 105.1674087 | L7: =INDEX(Control!$C$51:$K$54,IF(Service="Frequency Response",1,IF(Service="Fast Reserve",2,4)),IF(Year=2027,5,0)+IF(Period="Overnight",2,0)+IF(Season="Non-Winter",2,1)) -> 31.16570481
B8: Season | C8: Winter | J8: NGET requirement | K8: =Viewer_NoCLASS_volume -> 1112.5
B9: Period of day | C9: Daytime | H9: # | I9: # | J9: Displaced plant | K9: Capacity (MW) | L9: Price (£/MW/h) | N9: # | O9: # | P9: Unit | Q9: Capacity (MW) | R9: Price (£/MW/h)
B10: Service stack | C10: Frequency Response | H10: =IF(Viewer_CLASS_position_in_stack=0,"",1) -> 1 | I10: =IF(J10="","",INDEX(Stack_viewer_data!$P$10:$P$259,MATCH(J10,Stack_viewer_data!$Q$10:$Q$259,0))) -> 6 | J10: =IF(H10="","",OFFSET(Stack_viewer_data!$X$9,Viewer_displaced_position_start-1+$H10,0)) -> Mandatory (£25-30/MWh) | K10: =IF(J10="","",OFFSET(Stack_viewer_data!$Z$9,Viewer_displaced_position_start-1+$H10,0)) -> 48.16740866 | L10: =IF(K10="","",OFFSET(Stack_viewer_data!$AE$9,Viewer_displaced_position_start-1+$H10,0)) -> 27.95183513 | N10: 1 | O10: =IF(P10="","",INDEX(Stack_viewer_data!$P$10:$P$259,MATCH(P10,Stack_viewer_data!$Q$10:$Q$259,0))) -> 1 | P10: =IF(Viewer_CLASS_position_in_stack=0,Stack_viewer_data!$X10,IF($N10>=Viewer_displaced_position_start-IF(Viewer_CLASS_position_in_stack>0,1,0),"",IF($N10>=Viewer_CLASS_position_in_stack,OFFSET(Stack_viewer_data!$X$9,$N10+1,0),OFFSET(Stack_viewer_data!$X$9,$N10,0)))) -> Diesel Engines 2 | Q10: =IF(P10="","",INDEX(Stack_viewer_data!$Z$10:$Z$259,MATCH($P10,Stack_viewer_data!$X$10:$X$259,0))) -> 6.75 | R10: =IF(Q10="","",INDEX(Stack_viewer_data!$AE$10:$AE$259,MATCH($P10,Stack_viewer_data!$X$10:$X$259,0))) -> 3.95
H11: =IFERROR(IF(H10+1>COUNTIF(Stack_viewer_data!$Z$10:$Z$259,">0")-Viewer_displaced_position_start+1,"",H10+1),"") -> 2 | I11: =IF(J11="","",INDEX(Stack_viewer_data!$P$10:$P$259,MATCH(J11,Stack_viewer_data!$Q$10:$Q$259,0))) -> 7 | J11: =IF(H11="","",OFFSET(Stack_viewer_data!$X$9,Viewer_displaced_position_start-1+$H11,0)) -> CCGT 1 | K11: =IF(J11="","",OFFSET(Stack_viewer_data!$Z$9,Viewer_displaced_position_start-1+$H11,0)) -> 57 | L11: =IF(K11="","",OFFSET(Stack_viewer_data!$AE$9,Viewer_displaced_position_start-1+$H11,0)) -> 33.88157895 | N11: =IFERROR(IF(OR(N10+1>=Viewer_displaced_position_start-IF(Viewer_CLASS_position_in_stack>0,1,0),N10=""),"",N10+1),"") -> 2 | O11: =IF(P11="","",INDEX(Stack_viewer_data!$P$10:$P$259,MATCH(P11,Stack_viewer_data!$Q$10:$Q$259,0))) -> 2 | P11: =IF(Viewer_CLASS_position_in_stack=0,Stack_viewer_data!$X11,IF($N11>=Viewer_displaced_position_start-IF(Viewer_CLASS_position_in_stack>0,1,0),"",IF($N11>=Viewer_CLASS_position_in_stack,OFFSET(Stack_viewer_data!$X$9,$N11+1,0),OFFSET(Stack_viewer_data!$X$9,$N11,0)))) -> DSR 1 | Q11: =IF(P11="","",INDEX(Stack_viewer_data!$Z$10:$Z$259,MATCH($P11,Stack_viewer_data!$X$10:$X$259,0))) -> 11 | R11: =IF(Q11="","",INDEX(Stack_viewer_data!$AE$10:$AE$259,MATCH($P11,Stack_viewer_data!$X$10:$X$259,0))) -> 5.7
H12: =IFERROR(IF(H11+1>COUNTIF(Stack_viewer_data!$Z$10:$Z$259,">0")-Viewer_displaced_position_start+1,"",H11+1),"") ->  | I12: =IF(J12="","",INDEX(Stack_viewer_data!$P$10:$P$259,MATCH(J12,Stack_viewer_data!$Q$10:$Q$259,0))) ->  | J12: =IF(H12="","",OFFSET(Stack_viewer_data!$X$9,Viewer_displaced_position_start-1+$H12,0)) ->  | K12: =IF(J12="","",OFFSET(Stack_viewer_data!$Z$9,Viewer_displaced_position_start-1+$H12,0)) ->  | L12: =IF(K12="","",OFFSET(Stack_viewer_data!$AE$9,Viewer_displaced_position_start-1+$H12,0)) ->  | N12: 3 | O12: =IF(P12="","",INDEX(Stack_viewer_data!$P$10:$P$259,MATCH(P12,Stack_viewer_data!$Q$10:$Q$259,0))) -> 3 | P12: =IF(Viewer_CLASS_position_in_stack=0,Stack_viewer_data!$X12,IF($N12>=Viewer_displaced_position_start-IF(Viewer_CLASS_position_in_stack>0,1,0),"",IF($N12>=Viewer_CLASS_position_in_stack,OFFSET(Stack_viewer_data!$X$9,$N12+1,0),OFFSET(Stack_viewer_data!$X$9,$N12,0)))) -> Pump Storage 4 | Q12: =IF(P12="","",INDEX(Stack_viewer_data!$Z$10:$Z$259,MATCH($P12,Stack_viewer_data!$X$10:$X$259,0))) -> 170 | R12: =IF(Q12="","",INDEX(Stack_viewer_data!$AE$10:$AE$259,MATCH($P12,Stack_viewer_data!$X$10:$X$259,0))) -> 22.23529412
H13: =IFERROR(IF(H12+1>COUNTIF(Stack_viewer_data!$Z$10:$Z$259,">0")-Viewer_displaced_position_start+1,"",H12+1),"") ->  | I13: =IF(J13="","",INDEX(Stack_viewer_data!$P$10:$P$259,MATCH(J13,Stack_viewer_data!$Q$10:$Q$259,0))) ->  | J13: =IF(H13="","",OFFSET(Stack_viewer_data!$X$9,Viewer_displaced_position_start-1+$H13,0)) ->  | K13: =IF(J13="","",OFFSET(Stack_viewer_data!$Z$9,Viewer_displaced_position_start-1+$H13,0)) ->  | L13: =IF(K13="","",OFFSET(Stack_viewer_data!$AE$9,Viewer_displaced_position_start-1+$H13,0)) ->  | N13: 4 | O13: =IF(P13="","",INDEX(Stack_viewer_data!$P$10:$P$259,MATCH(P13,Stack_viewer_data!$Q$10:$Q$259,0))) -> 4 | P13: =IF(Viewer_CLASS_position_in_stack=0,Stack_viewer_data!$X13,IF($N13>=Viewer_displaced_position_start-IF(Viewer_CLASS_position_in_stack>0,1,0),"",IF($N13>=Viewer_CLASS_position_in_stack,OFFSET(Stack_viewer_data!$X$9,$N13+1,0),OFFSET(Stack_viewer_data!$X$9,$N13,0)))) -> Pump Storage 5 | Q13: =IF(P13="","",INDEX(Stack_viewer_data!$Z$10:$Z$259,MATCH($P13,Stack_viewer_data!$X$10:$X$259,0))) -> 170 | R13: =IF(Q13="","",INDEX(Stack_viewer_data!$AE$10:$AE$259,MATCH($P13,Stack_viewer_data!$X$10:$X$259,0))) -> 22.47058824
H14: =IFERROR(IF(H13+1>COUNTIF(Stack_viewer_data!$Z$10:$Z$259,">0")-Viewer_displaced_position_start+1,"",H13+1),"") ->  | I14: =IF(J14="","",INDEX(Stack_viewer_data!$P$10:$P$259,MATCH(J14,Stack_viewer_data!$Q$10:$Q$259,0))) ->  | J14: =IF(H14="","",OFFSET(Stack_viewer_data!$X$9,Viewer_displaced_position_start-1+$H14,0)) ->  | K14: =IF(J14="","",OFFSET(Stack_viewer_data!$Z$9,Viewer_displaced_position_start-1+$H14,0)) ->  | L14: =IF(K14="","",OFFSET(Stack_viewer_data!$AE$9,Viewer_displaced_position_start-1+$H14,0)) ->  | N14: 5 | O14: =IF(P14="","",INDEX(Stack_viewer_data!$P$10:$P$259,MATCH(P14,Stack_viewer_data!$Q$10:$Q$259,0))) -> 5 | P14: =IF(Viewer_CLASS_position_in_stack=0,Stack_viewer_data!$X14,IF($N14>=Viewer_displaced_position_start-IF(Viewer_CLASS_position_in_stack>0,1,0),"",IF($N14>=Viewer_CLASS_position_in_stack,OFFSET(Stack_viewer_data!$X$9,$N14+1,0),OFFSET(Stack_viewer_data!$X$9,$N14,0)))) -> Mandatory (£20-25/MWh) | Q14: =IF(P14="","",INDEX(Stack_viewer_data!$Z$10:$Z$259,MATCH($P14,Stack_viewer_data!$X$10:$X$259,0))) -> 44.52 | R14: =IF(Q14="","",INDEX(Stack_viewer_data!$AE$10:$AE$259,MATCH($P14,Stack_viewer_data!$X$10:$X$259,0))) -> 24.38334903
H15: =IFERROR(IF(H14+1>COUNTIF(Stack_viewer_data!$Z$10:$Z$259,">0")-Viewer_displaced_position_start+1,"",H14+1),"") ->  | I15: =IF(J15="","",INDEX(Stack_viewer_data!$P$10:$P$259,MATCH(J15,Stack_viewer_data!$Q$10:$Q$259,0))) ->  | J15: =IF(H15="","",OFFSET(Stack_viewer_data!$X$9,Viewer_displaced_position_start-1+$H15,0)) ->  | K15: =IF(J15="","",OFFSET(Stack_viewer_data!$Z$9,Viewer_displaced_position_start-1+$H15,0)) ->  | L15: =IF(K15="","",OFFSET(Stack_viewer_data!$AE$9,Viewer_displaced_position_start-1+$H15,0)) ->  | N15: 6 | O15: =IF(P15="","",INDEX(Stack_viewer_data!$P$10:$P$259,MATCH(P15,Stack_viewer_data!$Q$10:$Q$259,0))) -> 6 | P15: =IF(Viewer_CLASS_position_in_stack=0,Stack_viewer_data!$X15,IF($N15>=Viewer_displaced_position_start-IF(Viewer_CLASS_position_in_stack>0,1,0),"",IF($N15>=Viewer_CLASS_position_in_stack,OFFSET(Stack_viewer_data!$X$9,$N15+1,0),OFFSET(Stack_viewer_data!$X$9,$N15,0)))) -> Mandatory (£25-30/MWh) | Q15: =IF(P15="","",INDEX(Stack_viewer_data!$Z$10:$Z$259,MATCH($P15,Stack_viewer_data!$X$10:$X$259,0))) -> 605.06 | R15: =IF(Q15="","",INDEX(Stack_viewer_data!$AE$10:$AE$259,MATCH($P15,Stack_viewer_data!$X$10:$X$259,0))) -> 27.95183513
H16: =IFERROR(IF(H15+1>COUNTIF(Stack_viewer_data!$Z$10:$Z$259,">0")-Viewer_displaced_position_start+1,"",H15+1),"") ->  | I16: =IF(J16="","",INDEX(Stack_viewer_data!$P$10:$P$259,MATCH(J16,Stack_viewer_data!$Q$10:$Q$259,0))) ->  | J16: =IF(H16="","",OFFSET(Stack_viewer_data!$X$9,Viewer_displaced_position_start-1+$H16,0)) ->  | K16: =IF(J16="","",OFFSET(Stack_viewer_data!$Z$9,Viewer_displaced_position_start-1+$H16,0)) ->  | L16: =IF(K16="","",OFFSET(Stack_viewer_data!$AE$9,Viewer_displaced_position_start-1+$H16,0)) ->  | O16: =IF(P16="","",INDEX(Stack_viewer_data!$P$10:$P$259,MATCH(P16,Stack_viewer_data!$Q$10:$Q$259,0))) ->  | P16: =IF(Viewer_CLASS_position_in_stack=0,Stack_viewer_data!$X16,IF($N16>=Viewer_displaced_position_start-IF(Viewer_CLASS_position_in_stack>0,1,0),"",IF($N16>=Viewer_CLASS_position_in_stack,OFFSET(Stack_viewer_data!$X$9,$N16+1,0),OFFSET(Stack_viewer_data!$X$9,$N16,0)))) ->  | Q16: =IF(P16="","",INDEX(Stack_viewer_data!$Z$10:$Z$259,MATCH($P16,Stack_viewer_data!$X$10:$X$259,0))) ->  | R16: =IF(Q16="","",INDEX(Stack_viewer_data!$AE$10:$AE$259,MATCH($P16,Stack_viewer_data!$X$10:$X$259,0))) -> 
H17: =IFERROR(IF(H16+1>COUNTIF(Stack_viewer_data!$Z$10:$Z$259,">0")-Viewer_displaced_position_start+1,"",H16+1),"") ->  | I17: =IF(J17="","",INDEX(Stack_viewer_data!$P$10:$P$259,MATCH(J17,Stack_viewer_data!$Q$10:$Q$259,0))) ->  | J17: =IF(H17="","",OFFSET(Stack_viewer_data!$X$9,Viewer_displaced_position_start-1+$H17,0)) ->  | K17: =IF(J17="","",OFFSET(Stack_viewer_data!$Z$9,Viewer_displaced_position_start-1+$H17,0)) ->  | L17: =IF(K17="","",OFFSET(Stack_viewer_data!$AE$9,Viewer_displaced_position_start-1+$H17,0)) ->  | O17: =IF(P17="","",INDEX(Stack_viewer_data!$P$10:$P$259,MATCH(P17,Stack_viewer_data!$Q$10:$Q$259,0))) ->  | P17: =IF(Viewer_CLASS_position_in_stack=0,Stack_viewer_data!$X17,IF($N17>=Viewer_displaced_position_start-IF(Viewer_CLASS_position_in_stack>0,1,0),"",IF($N17>=Viewer_CLASS_position_in_stack,OFFSET(Stack_viewer_data!$X$9,$N17+1,0),OFFSET(Stack_viewer_data!$X$9,$N17,0)))) ->  | Q17: =IF(P17="","",INDEX(Stack_viewer_data!$Z$10:$Z$259,MATCH($P17,Stack_viewer_data!$X$10:$X$259,0))) ->  | R17: =IF(Q17="","",INDEX(Stack_viewer_data!$AE$10:$AE$259,MATCH($P17,Stack_viewer_data!$X$10:$X$259,0))) -> 
H18: =IFERROR(IF(H17+1>COUNTIF(Stack_viewer_data!$Z$10:$Z$259,">0")-Viewer_displaced_position_start+1,"",H17+1),"") ->  | I18: =IF(J18="","",INDEX(Stack_viewer_data!$P$10:$P$259,MATCH(J18,Stack_viewer_data!$Q$10:$Q$259,0))) ->  | J18: =IF(H18="","",OFFSET(Stack_viewer_data!$X$9,Viewer_displaced_position_start-1+$H18,0)) ->  | K18: =IF(J18="","",OFFSET(Stack_viewer_data!$Z$9,Viewer_displaced_position_start-1+$H18,0)) ->  | L18: =IF(K18="","",OFFSET(Stack_viewer_data!$AE$9,Viewer_displaced_position_start-1+$H18,0)) ->  | O18: =IF(P18="","",INDEX(Stack_viewer_data!$P$10:$P$259,MATCH(P18,Stack_viewer_data!$Q$10:$Q$259,0))) ->  | P18: =IF(Viewer_CLASS_position_in_stack=0,Stack_viewer_data!$X18,IF($N18>=Viewer_displaced_position_start-IF(Viewer_CLASS_position_in_stack>0,1,0),"",IF($N18>=Viewer_CLASS_position_in_stack,OFFSET(Stack_viewer_data!$X$9,$N18+1,0),OFFSET(Stack_viewer_data!$X$9,$N18,0)))) ->  | Q18: =IF(P18="","",INDEX(Stack_viewer_data!$Z$10:$Z$259,MATCH($P18,Stack_viewer_data!$X$10:$X$259,0))) ->  | R18: =IF(Q18="","",INDEX(Stack_viewer_data!$AE$10:$AE$259,MATCH($P18,Stack_viewer_data!$X$10:$X$259,0))) -> 
H19: =IFERROR(IF(H18+1>COUNTIF(Stack_viewer_data!$Z$10:$Z$259,">0")-Viewer_displaced_position_start+1,"",H18+1),"") ->  | I19: =IF(J19="","",INDEX(Stack_viewer_data!$P$10:$P$259,MATCH(J19,Stack_viewer_data!$Q$10:$Q$259,0))) ->  | J19: =IF(H19="","",OFFSET(Stack_viewer_data!$X$9,Viewer_displaced_position_start-1+$H19,0)) ->  | K19: =IF(J19="","",OFFSET(Stack_viewer_data!$Z$9,Viewer_displaced_position_start-1+$H19,0)) ->  | L19: =IF(K19="","",OFFSET(Stack_viewer_data!$AE$9,Viewer_displaced_position_start-1+$H19,0)) ->  | O19: =IF(P19="","",INDEX(Stack_viewer_data!$P$10:$P$259,MATCH(P19,Stack_viewer_data!$Q$10:$Q$259,0))) ->  | P19: =IF(Viewer_CLASS_position_in_stack=0,Stack_viewer_data!$X19,IF($N19>=Viewer_displaced_position_start-IF(Viewer_CLASS_position_in_stack>0,1,0),"",IF($N19>=Viewer_CLASS_position_in_stack,OFFSET(Stack_viewer_data!$X$9,$N19+1,0),OFFSET(Stack_viewer_data!$X$9,$N19,0)))) ->  | Q19: =IF(P19="","",INDEX(Stack_viewer_data!$Z$10:$Z$259,MATCH($P19,Stack_viewer_data!$X$10:$X$259,0))) ->  | R19: =IF(Q19="","",INDEX(Stack_viewer_data!$AE$10:$AE$259,MATCH($P19,Stack_viewer_data!$X$10:$X$259,0))) -> 
H20: =IFERROR(IF(H19+1>COUNTIF(Stack_viewer_data!$Z$10:$Z$259,">0")-Viewer_displaced_position_start+1,"",H19+1),"") ->  | I20: =IF(J20="","",INDEX(Stack_viewer_data!$P$10:$P$259,MATCH(J20,Stack_viewer_data!$Q$10:$Q$259,0))) ->  | J20: =IF(H20="","",OFFSET(Stack_viewer_data!$X$9,Viewer_displaced_position_start-1+$H20,0)) ->  | K20: =IF(J20="","",OFFSET(Stack_viewer_data!$Z$9,Viewer_displaced_position_start-1+$H20,0)) ->  | L20: =IF(K20="","",OFFSET(Stack_viewer_data!$AE$9,Viewer_displaced_position_start-1+$H20,0)) ->  | O20: =IF(P20="","",INDEX(Stack_viewer_data!$P$10:$P$259,MATCH(P20,Stack_viewer_data!$Q$10:$Q$259,0))) ->  | P20: =IF(Viewer_CLASS_position_in_stack=0,Stack_viewer_data!$X20,IF($N20>=Viewer_displaced_position_start-IF(Viewer_CLASS_position_in_stack>0,1,0),"",IF($N20>=Viewer_CLASS_position_in_stack,OFFSET(Stack_viewer_data!$X$9,$N20+1,0),OFFSET(Stack_viewer_data!$X$9,$N20,0)))) ->  | Q20: =IF(P20="","",INDEX(Stack_viewer_data!$Z$10:$Z$259,MATCH($P20,Stack_viewer_data!$X$10:$X$259,0))) ->  | R20: =IF(Q20="","",INDEX(Stack_viewer_data!$AE$10:$AE$259,MATCH($P20,Stack_viewer_data!$X$10:$X$259,0))) -> 
H21: =IFERROR(IF(H20+1>COUNTIF(Stack_viewer_data!$Z$10:$Z$259,">0")-Viewer_displaced_position_start+1,"",H20+1),"") ->  | I21: =IF(J21="","",INDEX(Stack_viewer_data!$P$10:$P$259,MATCH(J21,Stack_viewer_data!$Q$10:$Q$259,0))) ->  | J21: =IF(H21="","",OFFSET(Stack_viewer_data!$X$9,Viewer_displaced_position_start-1+$H21,0)) ->  | K21: =IF(J21="","",OFFSET(Stack_viewer_data!$Z$9,Viewer_displaced_position_start-1+$H21,0)) ->  | L21: =IF(K21="","",OFFSET(Stack_viewer_data!$AE$9,Viewer_displaced_position_start-1+$H21,0)) ->  | O21: =IF(P21="","",INDEX(Stack_viewer_data!$P$10:$P$259,MATCH(P21,Stack_viewer_data!$Q$10:$Q$259,0))) ->  | P21: =IF(Viewer_CLASS_position_in_stack=0,Stack_viewer_data!$X21,IF($N21>=Viewer_displaced_position_start-IF(Viewer_CLASS_position_in_stack>0,1,0),"",IF($N21>=Viewer_CLASS_position_in_stack,OFFSET(Stack_viewer_data!$X$9,$N21+1,0),OFFSET(Stack_viewer_data!$X$9,$N21,0)))) ->  | Q21: =IF(P21="","",INDEX(Stack_viewer_data!$Z$10:$Z$259,MATCH($P21,Stack_viewer_data!$X$10:$X$259,0))) ->  | R21: =IF(Q21="","",INDEX(Stack_viewer_data!$AE$10:$AE$259,MATCH($P21,Stack_viewer_data!$X$10:$X$259,0))) -> 
H22: =IFERROR(IF(H21+1>COUNTIF(Stack_viewer_data!$Z$10:$Z$259,">0")-Viewer_displaced_position_start+1,"",H21+1),"") ->  | I22: =IF(J22="","",INDEX(Stack_viewer_data!$P$10:$P$259,MATCH(J22,Stack_viewer_data!$Q$10:$Q$259,0))) ->  | J22: =IF(H22="","",OFFSET(Stack_viewer_data!$X$9,Viewer_displaced_position_start-1+$H22,0)) ->  | K22: =IF(J22="","",OFFSET(Stack_viewer_data!$Z$9,Viewer_displaced_position_start-1+$H22,0)) ->  | L22: =IF(K22="","",OFFSET(Stack_viewer_data!$AE$9,Viewer_displaced_position_start-1+$H22,0)) ->  | O22: =IF(P22="","",INDEX(Stack_viewer_data!$P$10:$P$259,MATCH(P22,Stack_viewer_data!$Q$10:$Q$259,0))) ->  | P22: =IF(Viewer_CLASS_position_in_stack=0,Stack_viewer_data!$X22,IF($N22>=Viewer_displaced_position_start-IF(Viewer_CLASS_position_in_stack>0,1,0),"",IF($N22>=Viewer_CLASS_position_in_stack,OFFSET(Stack_viewer_data!$X$9,$N22+1,0),OFFSET(Stack_viewer_data!$X$9,$N22,0)))) ->  | Q22: =IF(P22="","",INDEX(Stack_viewer_data!$Z$10:$Z$259,MATCH($P22,Stack_viewer_data!$X$10:$X$259,0))) ->  | R22: =IF(Q22="","",INDEX(Stack_viewer_data!$AE$10:$AE$259,MATCH($P22,Stack_viewer_data!$X$10:$X$259,0))) -> 
H23: =IFERROR(IF(H22+1>COUNTIF(Stack_viewer_data!$Z$10:$Z$259,">0")-Viewer_displaced_position_start+1,"",H22+1),"") ->  | I23: =IF(J23="","",INDEX(Stack_viewer_data!$P$10:$P$259,MATCH(J23,Stack_viewer_data!$Q$10:$Q$259,0))) ->  | J23: =IF(H23="","",OFFSET(Stack_viewer_data!$X$9,Viewer_displaced_position_start-1+$H23,0)) ->  | K23: =IF(J23="","",OFFSET(Stack_viewer_data!$Z$9,Viewer_displaced_position_start-1+$H23,0)) ->  | L23: =IF(K23="","",OFFSET(Stack_viewer_data!$AE$9,Viewer_displaced_position_start-1+$H23,0)) ->  | O23: =IF(P23="","",INDEX(Stack_viewer_data!$P$10:$P$259,MATCH(P23,Stack_viewer_data!$Q$10:$Q$259,0))) ->  | P23: =IF(Viewer_CLASS_position_in_stack=0,Stack_viewer_data!$X23,IF($N23>=Viewer_displaced_position_start-IF(Viewer_CLASS_position_in_stack>0,1,0),"",IF($N23>=Viewer_CLASS_position_in_stack,OFFSET(Stack_viewer_data!$X$9,$N23+1,0),OFFSET(Stack_viewer_data!$X$9,$N23,0)))) ->  | Q23: =IF(P23="","",INDEX(Stack_viewer_data!$Z$10:$Z$259,MATCH($P23,Stack_viewer_data!$X$10:$X$259,0))) ->  | R23: =IF(Q23="","",INDEX(Stack_viewer_data!$AE$10:$AE$259,MATCH($P23,Stack_viewer_data!$X$10:$X$259,0))) -> 
H24: =IFERROR(IF(H23+1>COUNTIF(Stack_viewer_data!$Z$10:$Z$259,">0")-Viewer_displaced_position_start+1,"",H23+1),"") ->  | I24: =IF(J24="","",INDEX(Stack_viewer_data!$P$10:$P$259,MATCH(J24,Stack_viewer_data!$Q$10:$Q$259,0))) ->  | J24: =IF(H24="","",OFFSET(Stack_viewer_data!$X$9,Viewer_displaced_position_start-1+$H24,0)) ->  | K24: =IF(J24="","",OFFSET(Stack_viewer_data!$Z$9,Viewer_displaced_position_start-1+$H24,0)) ->  | L24: =IF(K24="","",OFFSET(Stack_viewer_data!$AE$9,Viewer_displaced_position_start-1+$H24,0)) ->  | O24: =IF(P24="","",INDEX(Stack_viewer_data!$P$10:$P$259,MATCH(P24,Stack_viewer_data!$Q$10:$Q$259,0))) ->  | P24: =IF(Viewer_CLASS_position_in_stack=0,Stack_viewer_data!$X24,IF($N24>=Viewer_displaced_position_start-IF(Viewer_CLASS_position_in_stack>0,1,0),"",IF($N24>=Viewer_CLASS_position_in_stack,OFFSET(Stack_viewer_data!$X$9,$N24+1,0),OFFSET(Stack_viewer_data!$X$9,$N24,0)))) ->  | Q24: =IF(P24="","",INDEX(Stack_viewer_data!$Z$10:$Z$259,MATCH($P24,Stack_viewer_data!$X$10:$X$259,0))) ->  | R24: =IF(Q24="","",INDEX(Stack_viewer_data!$AE$10:$AE$259,MATCH($P24,Stack_viewer_data!$X$10:$X$259,0))) -> 
H25: =IFERROR(IF(H24+1>COUNTIF(Stack_viewer_data!$Z$10:$Z$259,">0")-Viewer_displaced_position_start+1,"",H24+1),"") ->  | I25: =IF(J25="","",INDEX(Stack_viewer_data!$P$10:$P$259,MATCH(J25,Stack_viewer_data!$Q$10:$Q$259,0))) ->  | J25: =IF(H25="","",OFFSET(Stack_viewer_data!$X$9,Viewer_displaced_position_start-1+$H25,0)) ->  | K25: =IF(J25="","",OFFSET(Stack_viewer_data!$Z$9,Viewer_displaced_position_start-1+$H25,0)) ->  | L25: =IF(K25="","",OFFSET(Stack_viewer_data!$AE$9,Viewer_displaced_position_start-1+$H25,0)) ->  | O25: =IF(P25="","",INDEX(Stack_viewer_data!$P$10:$P$259,MATCH(P25,Stack_viewer_data!$Q$10:$Q$259,0))) ->  | P25: =IF(Viewer_CLASS_position_in_stack=0,Stack_viewer_data!$X25,IF($N25>=Viewer_displaced_position_start-IF(Viewer_CLASS_position_in_stack>0,1,0),"",IF($N25>=Viewer_CLASS_position_in_stack,OFFSET(Stack_viewer_data!$X$9,$N25+1,0),OFFSET(Stack_viewer_data!$X$9,$N25,0)))) ->  | Q25: =IF(P25="","",INDEX(Stack_viewer_data!$Z$10:$Z$259,MATCH($P25,Stack_viewer_data!$X$10:$X$259,0))) ->  | R25: =IF(Q25="","",INDEX(Stack_viewer_data!$AE$10:$AE$259,MATCH($P25,Stack_viewer_data!$X$10:$X$259,0))) -> 
H26: =IFERROR(IF(H25+1>COUNTIF(Stack_viewer_data!$Z$10:$Z$259,">0")-Viewer_displaced_position_start+1,"",H25+1),"") ->  | I26: =IF(J26="","",INDEX(Stack_viewer_data!$P$10:$P$259,MATCH(J26,Stack_viewer_data!$Q$10:$Q$259,0))) ->  | J26: =IF(H26="","",OFFSET(Stack_viewer_data!$X$9,Viewer_displaced_position_start-1+$H26,0)) ->  | K26: =IF(J26="","",OFFSET(Stack_viewer_data!$Z$9,Viewer_displaced_position_start-1+$H26,0)) ->  | L26: =IF(K26="","",OFFSET(Stack_viewer_data!$AE$9,Viewer_displaced_position_start-1+$H26,0)) ->  | O26: =IF(P26="","",INDEX(Stack_viewer_data!$P$10:$P$259,MATCH(P26,Stack_viewer_data!$Q$10:$Q$259,0))) ->  | P26: =IF(Viewer_CLASS_position_in_stack=0,Stack_viewer_data!$X26,IF($N26>=Viewer_displaced_position_start-IF(Viewer_CLASS_position_in_stack>0,1,0),"",IF($N26>=Viewer_CLASS_position_in_stack,OFFSET(Stack_viewer_data!$X$9,$N26+1,0),OFFSET(Stack_viewer_data!$X$9,$N26,0)))) ->  | Q26: =IF(P26="","",INDEX(Stack_viewer_data!$Z$10:$Z$259,MATCH($P26,Stack_viewer_data!$X$10:$X$259,0))) ->  | R26: =IF(Q26="","",INDEX(Stack_viewer_data!$AE$10:$AE$259,MATCH($P26,Stack_viewer_data!$X$10:$X$259,0))) -> 
H27: =IFERROR(IF(H26+1>COUNTIF(Stack_viewer_data!$Z$10:$Z$259,">0")-Viewer_displaced_position_start+1,"",H26+1),"") ->  | I27: =IF(J27="","",INDEX(Stack_viewer_data!$P$10:$P$259,MATCH(J27,Stack_viewer_data!$Q$10:$Q$259,0))) ->  | J27: =IF(H27="","",OFFSET(Stack_viewer_data!$X$9,Viewer_displaced_position_start-1+$H27,0)) ->  | K27: =IF(J27="","",OFFSET(Stack_viewer_data!$Z$9,Viewer_displaced_position_start-1+$H27,0)) ->  | L27: =IF(K27="","",OFFSET(Stack_viewer_data!$AE$9,Viewer_displaced_position_start-1+$H27,0)) ->  | O27: =IF(P27="","",INDEX(Stack_viewer_data!$P$10:$P$259,MATCH(P27,Stack_viewer_data!$Q$10:$Q$259,0))) ->  | P27: =IF(Viewer_CLASS_position_in_stack=0,Stack_viewer_data!$X27,IF($N27>=Viewer_displaced_position_start-IF(Viewer_CLASS_position_in_stack>0,1,0),"",IF($N27>=Viewer_CLASS_position_in_stack,OFFSET(Stack_viewer_data!$X$9,$N27+1,0),OFFSET(Stack_viewer_data!$X$9,$N27,0)))) ->  | Q27: =IF(P27="","",INDEX(Stack_viewer_data!$Z$10:$Z$259,MATCH($P27,Stack_viewer_data!$X$10:$X$259,0))) ->  | R27: =IF(Q27="","",INDEX(Stack_viewer_data!$AE$10:$AE$259,MATCH($P27,Stack_viewer_data!$X$10:$X$259,0))) -> 
H28: =IFERROR(IF(H27+1>COUNTIF(Stack_viewer_data!$Z$10:$Z$259,">0")-Viewer_displaced_position_start+1,"",H27+1),"") ->  | I28: =IF(J28="","",INDEX(Stack_viewer_data!$P$10:$P$259,MATCH(J28,Stack_viewer_data!$Q$10:$Q$259,0))) ->  | J28: =IF(H28="","",OFFSET(Stack_viewer_data!$X$9,Viewer_displaced_position_start-1+$H28,0)) ->  | K28: =IF(J28="","",OFFSET(Stack_viewer_data!$Z$9,Viewer_displaced_position_start-1+$H28,0)) ->  | L28: =IF(K28="","",OFFSET(Stack_viewer_data!$AE$9,Viewer_displaced_position_start-1+$H28,0)) ->  | O28: =IF(P28="","",INDEX(Stack_viewer_data!$P$10:$P$259,MATCH(P28,Stack_viewer_data!$Q$10:$Q$259,0))) ->  | P28: =IF(Viewer_CLASS_position_in_stack=0,Stack_viewer_data!$X28,IF($N28>=Viewer_displaced_position_start-IF(Viewer_CLASS_position_in_stack>0,1,0),"",IF($N28>=Viewer_CLASS_position_in_stack,OFFSET(Stack_viewer_data!$X$9,$N28+1,0),OFFSET(Stack_viewer_data!$X$9,$N28,0)))) ->  | Q28: =IF(P28="","",INDEX(Stack_viewer_data!$Z$10:$Z$259,MATCH($P28,Stack_viewer_data!$X$10:$X$259,0))) ->  | R28: =IF(Q28="","",INDEX(Stack_viewer_data!$AE$10:$AE$259,MATCH($P28,Stack_viewer_data!$X$10:$X$259,0))) -> 
H29: =IFERROR(IF(H28+1>COUNTIF(Stack_viewer_data!$Z$10:$Z$259,">0")-Viewer_displaced_position_start+1,"",H28+1),"") ->  | I29: =IF(J29="","",INDEX(Stack_viewer_data!$P$10:$P$259,MATCH(J29,Stack_viewer_data!$Q$10:$Q$259,0))) ->  | J29: =IF(H29="","",OFFSET(Stack_viewer_data!$X$9,Viewer_displaced_position_start-1+$H29,0)) ->  | K29: =IF(J29="","",OFFSET(Stack_viewer_data!$Z$9,Viewer_displaced_position_start-1+$H29,0)) ->  | L29: =IF(K29="","",OFFSET(Stack_viewer_data!$AE$9,Viewer_displaced_position_start-1+$H29,0)) ->  | O29: =IF(P29="","",INDEX(Stack_viewer_data!$P$10:$P$259,MATCH(P29,Stack_viewer_data!$Q$10:$Q$259,0))) ->  | P29: =IF(Viewer_CLASS_position_in_stack=0,Stack_viewer_data!$X29,IF($N29>=Viewer_displaced_position_start-IF(Viewer_CLASS_position_in_stack>0,1,0),"",IF($N29>=Viewer_CLASS_position_in_stack,OFFSET(Stack_viewer_data!$X$9,$N29+1,0),OFFSET(Stack_viewer_data!$X$9,$N29,0)))) ->  | Q29: =IF(P29="","",INDEX(Stack_viewer_data!$Z$10:$Z$259,MATCH($P29,Stack_viewer_data!$X$10:$X$259,0))) ->  | R29: =IF(Q29="","",INDEX(Stack_viewer_data!$AE$10:$AE$259,MATCH($P29,Stack_viewer_data!$X$10:$X$259,0))) -> 
H30: =IFERROR(IF(H29+1>COUNTIF(Stack_viewer_data!$Z$10:$Z$259,">0")-Viewer_displaced_position_start+1,"",H29+1),"") ->  | I30: =IF(J30="","",INDEX(Stack_viewer_data!$P$10:$P$259,MATCH(J30,Stack_viewer_data!$Q$10:$Q$259,0))) ->  | J30: =IF(H30="","",OFFSET(Stack_viewer_data!$X$9,Viewer_displaced_position_start-1+$H30,0)) ->  | K30: =IF(J30="","",OFFSET(Stack_viewer_data!$Z$9,Viewer_displaced_position_start-1+$H30,0)) ->  | L30: =IF(K30="","",OFFSET(Stack_viewer_data!$AE$9,Viewer_displaced_position_start-1+$H30,0)) ->  | O30: =IF(P30="","",INDEX(Stack_viewer_data!$P$10:$P$259,MATCH(P30,Stack_viewer_data!$Q$10:$Q$259,0))) ->  | P30: =IF(Viewer_CLASS_position_in_stack=0,Stack_viewer_data!$X30,IF($N30>=Viewer_displaced_position_start-IF(Viewer_CLASS_position_in_stack>0,1,0),"",IF($N30>=Viewer_CLASS_position_in_stack,OFFSET(Stack_viewer_data!$X$9,$N30+1,0),OFFSET(Stack_viewer_data!$X$9,$N30,0)))) ->  | Q30: =IF(P30="","",INDEX(Stack_viewer_data!$Z$10:$Z$259,MATCH($P30,Stack_viewer_data!$X$10:$X$259,0))) ->  | R30: =IF(Q30="","",INDEX(Stack_viewer_data!$AE$10:$AE$259,MATCH($P30,Stack_viewer_data!$X$10:$X$259,0))) -> 
H31: =IFERROR(IF(H30+1>COUNTIF(Stack_viewer_data!$Z$10:$Z$259,">0")-Viewer_displaced_position_start+1,"",H30+1),"") ->  | I31: =IF(J31="","",INDEX(Stack_viewer_data!$P$10:$P$259,MATCH(J31,Stack_viewer_data!$Q$10:$Q$259,0))) ->  | J31: =IF(H31="","",OFFSET(Stack_viewer_data!$X$9,Viewer_displaced_position_start-1+$H31,0)) ->  | K31: =IF(J31="","",OFFSET(Stack_viewer_data!$Z$9,Viewer_displaced_position_start-1+$H31,0)) ->  | L31: =IF(K31="","",OFFSET(Stack_viewer_data!$AE$9,Viewer_displaced_position_start-1+$H31,0)) ->  | O31: =IF(P31="","",INDEX(Stack_viewer_data!$P$10:$P$259,MATCH(P31,Stack_viewer_data!$Q$10:$Q$259,0))) ->  | P31: =IF(Viewer_CLASS_position_in_stack=0,Stack_viewer_data!$X31,IF($N31>=Viewer_displaced_position_start-IF(Viewer_CLASS_position_in_stack>0,1,0),"",IF($N31>=Viewer_CLASS_position_in_stack,OFFSET(Stack_viewer_data!$X$9,$N31+1,0),OFFSET(Stack_viewer_data!$X$9,$N31,0)))) ->  | Q31: =IF(P31="","",INDEX(Stack_viewer_data!$Z$10:$Z$259,MATCH($P31,Stack_viewer_data!$X$10:$X$259,0))) ->  | R31: =IF(Q31="","",INDEX(Stack_viewer_data!$AE$10:$AE$259,MATCH($P31,Stack_viewer_data!$X$10:$X$259,0))) -> 
H32: =IFERROR(IF(H31+1>COUNTIF(Stack_viewer_data!$Z$10:$Z$259,">0")-Viewer_displaced_position_start+1,"",H31+1),"") ->  | I32: =IF(J32="","",INDEX(Stack_viewer_data!$P$10:$P$259,MATCH(J32,Stack_viewer_data!$Q$10:$Q$259,0))) ->  | J32: =IF(H32="","",OFFSET(Stack_viewer_data!$X$9,Viewer_displaced_position_start-1+$H32,0)) ->  | K32: =IF(J32="","",OFFSET(Stack_viewer_data!$Z$9,Viewer_displaced_position_start-1+$H32,0)) ->  | L32: =IF(K32="","",OFFSET(Stack_viewer_data!$AE$9,Viewer_displaced_position_start-1+$H32,0)) ->  | O32: =IF(P32="","",INDEX(Stack_viewer_data!$P$10:$P$259,MATCH(P32,Stack_viewer_data!$Q$10:$Q$259,0))) ->  | P32: =IF(Viewer_CLASS_position_in_stack=0,Stack_viewer_data!$X32,IF($N32>=Viewer_displaced_position_start-IF(Viewer_CLASS_position_in_stack>0,1,0),"",IF($N32>=Viewer_CLASS_position_in_stack,OFFSET(Stack_viewer_data!$X$9,$N32+1,0),OFFSET(Stack_viewer_data!$X$9,$N32,0)))) ->  | Q32: =IF(P32="","",INDEX(Stack_viewer_data!$Z$10:$Z$259,MATCH($P32,Stack_viewer_data!$X$10:$X$259,0))) ->  | R32: =IF(Q32="","",INDEX(Stack_viewer_data!$AE$10:$AE$259,MATCH($P32,Stack_viewer_data!$X$10:$X$259,0))) -> 
H33: =IFERROR(IF(H32+1>COUNTIF(Stack_viewer_data!$Z$10:$Z$259,">0")-Viewer_displaced_position_start+1,"",H32+1),"") ->  | I33: =IF(J33="","",INDEX(Stack_viewer_data!$P$10:$P$259,MATCH(J33,Stack_viewer_data!$Q$10:$Q$259,0))) ->  | J33: =IF(H33="","",OFFSET(Stack_viewer_data!$X$9,Viewer_displaced_position_start-1+$H33,0)) ->  | K33: =IF(J33="","",OFFSET(Stack_viewer_data!$Z$9,Viewer_displaced_position_start-1+$H33,0)) ->  | L33: =IF(K33="","",OFFSET(Stack_viewer_data!$AE$9,Viewer_displaced_position_start-1+$H33,0)) ->  | O33: =IF(P33="","",INDEX(Stack_viewer_data!$P$10:$P$259,MATCH(P33,Stack_viewer_data!$Q$10:$Q$259,0))) ->  | P33: =IF(Viewer_CLASS_position_in_stack=0,Stack_viewer_data!$X33,IF($N33>=Viewer_displaced_position_start-IF(Viewer_CLASS_position_in_stack>0,1,0),"",IF($N33>=Viewer_CLASS_position_in_stack,OFFSET(Stack_viewer_data!$X$9,$N33+1,0),OFFSET(Stack_viewer_data!$X$9,$N33,0)))) ->  | Q33: =IF(P33="","",INDEX(Stack_viewer_data!$Z$10:$Z$259,MATCH($P33,Stack_viewer_data!$X$10:$X$259,0))) ->  | R33: =IF(Q33="","",INDEX(Stack_viewer_data!$AE$10:$AE$259,MATCH($P33,Stack_viewer_data!$X$10:$X$259,0))) -> 
H34: =IFERROR(IF(H33+1>COUNTIF(Stack_viewer_data!$Z$10:$Z$259,">0")-Viewer_displaced_position_start+1,"",H33+1),"") ->  | I34: =IF(J34="","",INDEX(Stack_viewer_data!$P$10:$P$259,MATCH(J34,Stack_viewer_data!$Q$10:$Q$259,0))) ->  | J34: =IF(H34="","",OFFSET(Stack_viewer_data!$X$9,Viewer_displaced_position_start-1+$H34,0)) ->  | K34: =IF(J34="","",OFFSET(Stack_viewer_data!$Z$9,Viewer_displaced_position_start-1+$H34,0)) ->  | L34: =IF(K34="","",OFFSET(Stack_viewer_data!$AE$9,Viewer_displaced_position_start-1+$H34,0)) ->  | O34: =IF(P34="","",INDEX(Stack_viewer_data!$P$10:$P$259,MATCH(P34,Stack_viewer_data!$Q$10:$Q$259,0))) ->  | P34: =IF(Viewer_CLASS_position_in_stack=0,Stack_viewer_data!$X34,IF($N34>=Viewer_displaced_position_start-IF(Viewer_CLASS_position_in_stack>0,1,0),"",IF($N34>=Viewer_CLASS_position_in_stack,OFFSET(Stack_viewer_data!$X$9,$N34+1,0),OFFSET(Stack_viewer_data!$X$9,$N34,0)))) ->  | Q34: =IF(P34="","",INDEX(Stack_viewer_data!$Z$10:$Z$259,MATCH($P34,Stack_viewer_data!$X$10:$X$259,0))) ->  | R34: =IF(Q34="","",INDEX(Stack_viewer_data!$AE$10:$AE$259,MATCH($P34,Stack_viewer_data!$X$10:$X$259,0))) -> 
H35: =IFERROR(IF(H34+1>COUNTIF(Stack_viewer_data!$Z$10:$Z$259,">0")-Viewer_displaced_position_start+1,"",H34+1),"") ->  | I35: =IF(J35="","",INDEX(Stack_viewer_data!$P$10:$P$259,MATCH(J35,Stack_viewer_data!$Q$10:$Q$259,0))) ->  | J35: =IF(H35="","",OFFSET(Stack_viewer_data!$X$9,Viewer_displaced_position_start-1+$H35,0)) ->  | K35: =IF(J35="","",OFFSET(Stack_viewer_data!$Z$9,Viewer_displaced_position_start-1+$H35,0)) ->  | L35: =IF(K35="","",OFFSET(Stack_viewer_data!$AE$9,Viewer_displaced_position_start-1+$H35,0)) ->  | O35: =IF(P35="","",INDEX(Stack_viewer_data!$P$10:$P$259,MATCH(P35,Stack_viewer_data!$Q$10:$Q$259,0))) ->  | P35: =IF(Viewer_CLASS_position_in_stack=0,Stack_viewer_data!$X35,IF($N35>=Viewer_displaced_position_start-IF(Viewer_CLASS_position_in_stack>0,1,0),"",IF($N35>=Viewer_CLASS_position_in_stack,OFFSET(Stack_viewer_data!$X$9,$N35+1,0),OFFSET(Stack_viewer_data!$X$9,$N35,0)))) ->  | Q35: =IF(P35="","",INDEX(Stack_viewer_data!$Z$10:$Z$259,MATCH($P35,Stack_viewer_data!$X$10:$X$259,0))) ->  | R35: =IF(Q35="","",INDEX(Stack_viewer_data!$AE$10:$AE$259,MATCH($P35,Stack_viewer_data!$X$10:$X$259,0))) -> 
H36: =IFERROR(IF(H35+1>COUNTIF(Stack_viewer_data!$Z$10:$Z$259,">0")-Viewer_displaced_position_start+1,"",H35+1),"") ->  | I36: =IF(J36="","",INDEX(Stack_viewer_data!$P$10:$P$259,MATCH(J36,Stack_viewer_data!$Q$10:$Q$259,0))) ->  | J36: =IF(H36="","",OFFSET(Stack_viewer_data!$X$9,Viewer_displaced_position_start-1+$H36,0)) ->  | K36: =IF(J36="","",OFFSET(Stack_viewer_data!$Z$9,Viewer_displaced_position_start-1+$H36,0)) ->  | L36: =IF(K36="","",OFFSET(Stack_viewer_data!$AE$9,Viewer_displaced_position_start-1+$H36,0)) ->  | O36: =IF(P36="","",INDEX(Stack_viewer_data!$P$10:$P$259,MATCH(P36,Stack_viewer_data!$Q$10:$Q$259,0))) ->  | P36: =IF(Viewer_CLASS_position_in_stack=0,Stack_viewer_data!$X36,IF($N36>=Viewer_displaced_position_start-IF(Viewer_CLASS_position_in_stack>0,1,0),"",IF($N36>=Viewer_CLASS_position_in_stack,OFFSET(Stack_viewer_data!$X$9,$N36+1,0),OFFSET(Stack_viewer_data!$X$9,$N36,0)))) ->  | Q36: =IF(P36="","",INDEX(Stack_viewer_data!$Z$10:$Z$259,MATCH($P36,Stack_viewer_data!$X$10:$X$259,0))) ->  | R36: =IF(Q36="","",INDEX(Stack_viewer_data!$AE$10:$AE$259,MATCH($P36,Stack_viewer_data!$X$10:$X$259,0))) -> 
H37: =IFERROR(IF(H36+1>COUNTIF(Stack_viewer_data!$Z$10:$Z$259,">0")-Viewer_displaced_position_start+1,"",H36+1),"") ->  | I37: =IF(J37="","",INDEX(Stack_viewer_data!$P$10:$P$259,MATCH(J37,Stack_viewer_data!$Q$10:$Q$259,0))) ->  | J37: =IF(H37="","",OFFSET(Stack_viewer_data!$X$9,Viewer_displaced_position_start-1+$H37,0)) ->  | K37: =IF(J37="","",OFFSET(Stack_viewer_data!$Z$9,Viewer_displaced_position_start-1+$H37,0)) ->  | L37: =IF(K37="","",OFFSET(Stack_viewer_data!$AE$9,Viewer_displaced_position_start-1+$H37,0)) ->  | O37: =IF(P37="","",INDEX(Stack_viewer_data!$P$10:$P$259,MATCH(P37,Stack_viewer_data!$Q$10:$Q$259,0))) ->  | P37: =IF(Viewer_CLASS_position_in_stack=0,Stack_viewer_data!$X37,IF($N37>=Viewer_displaced_position_start-IF(Viewer_CLASS_position_in_stack>0,1,0),"",IF($N37>=Viewer_CLASS_position_in_stack,OFFSET(Stack_viewer_data!$X$9,$N37+1,0),OFFSET(Stack_viewer_data!$X$9,$N37,0)))) ->  | Q37: =IF(P37="","",INDEX(Stack_viewer_data!$Z$10:$Z$259,MATCH($P37,Stack_viewer_data!$X$10:$X$259,0))) ->  | R37: =IF(Q37="","",INDEX(Stack_viewer_data!$AE$10:$AE$259,MATCH($P37,Stack_viewer_data!$X$10:$X$259,0))) -> 
H38: =IFERROR(IF(H37+1>COUNTIF(Stack_viewer_data!$Z$10:$Z$259,">0")-Viewer_displaced_position_start+1,"",H37+1),"") ->  | I38: =IF(J38="","",INDEX(Stack_viewer_data!$P$10:$P$259,MATCH(J38,Stack_viewer_data!$Q$10:$Q$259,0))) ->  | J38: =IF(H38="","",OFFSET(Stack_viewer_data!$X$9,Viewer_displaced_position_start-1+$H38,0)) ->  | K38: =IF(J38="","",OFFSET(Stack_viewer_data!$Z$9,Viewer_displaced_position_start-1+$H38,0)) ->  | L38: =IF(K38="","",OFFSET(Stack_viewer_data!$AE$9,Viewer_displaced_position_start-1+$H38,0)) ->  | O38: =IF(P38="","",INDEX(Stack_viewer_data!$P$10:$P$259,MATCH(P38,Stack_viewer_data!$Q$10:$Q$259,0))) ->  | P38: =IF(Viewer_CLASS_position_in_stack=0,Stack_viewer_data!$X38,IF($N38>=Viewer_displaced_position_start-IF(Viewer_CLASS_position_in_stack>0,1,0),"",IF($N38>=Viewer_CLASS_position_in_stack,OFFSET(Stack_viewer_data!$X$9,$N38+1,0),OFFSET(Stack_viewer_data!$X$9,$N38,0)))) ->  | Q38: =IF(P38="","",INDEX(Stack_viewer_data!$Z$10:$Z$259,MATCH($P38,Stack_viewer_data!$X$10:$X$259,0))) ->  | R38: =IF(Q38="","",INDEX(Stack_viewer_data!$AE$10:$AE$259,MATCH($P38,Stack_viewer_data!$X$10:$X$259,0))) -> 
H39: =IFERROR(IF(H38+1>COUNTIF(Stack_viewer_data!$Z$10:$Z$259,">0")-Viewer_displaced_position_start+1,"",H38+1),"") ->  | I39: =IF(J39="","",INDEX(Stack_viewer_data!$P$10:$P$259,MATCH(J39,Stack_viewer_data!$Q$10:$Q$259,0))) ->  | J39: =IF(H39="","",OFFSET(Stack_viewer_data!$X$9,Viewer_displaced_position_start-1+$H39,0)) ->  | K39: =IF(J39="","",OFFSET(Stack_viewer_data!$Z$9,Viewer_displaced_position_start-1+$H39,0)) ->  | L39: =IF(K39="","",OFFSET(Stack_viewer_data!$AE$9,Viewer_displaced_position_start-1+$H39,0)) ->  | O39: =IF(P39="","",INDEX(Stack_viewer_data!$P$10:$P$259,MATCH(P39,Stack_viewer_data!$Q$10:$Q$259,0))) ->  | P39: =IF(Viewer_CLASS_position_in_stack=0,Stack_viewer_data!$X39,IF($N39>=Viewer_displaced_position_start-IF(Viewer_CLASS_position_in_stack>0,1,0),"",IF($N39>=Viewer_CLASS_position_in_stack,OFFSET(Stack_viewer_data!$X$9,$N39+1,0),OFFSET(Stack_viewer_data!$X$9,$N39,0)))) ->  | Q39: =IF(P39="","",INDEX(Stack_viewer_data!$Z$10:$Z$259,MATCH($P39,Stack_viewer_data!$X$10:$X$259,0))) ->  | R39: =IF(Q39="","",INDEX(Stack_viewer_data!$AE$10:$AE$259,MATCH($P39,Stack_viewer_data!$X$10:$X$259,0))) -> 
H40: =IFERROR(IF(H39+1>COUNTIF(Stack_viewer_data!$Z$10:$Z$259,">0")-Viewer_displaced_position_start+1,"",H39+1),"") ->  | I40: =IF(J40="","",INDEX(Stack_viewer_data!$P$10:$P$259,MATCH(J40,Stack_viewer_data!$Q$10:$Q$259,0))) ->  | J40: =IF(H40="","",OFFSET(Stack_viewer_data!$X$9,Viewer_displaced_position_start-1+$H40,0)) ->  | K40: =IF(J40="","",OFFSET(Stack_viewer_data!$Z$9,Viewer_displaced_position_start-1+$H40,0)) ->  | L40: =IF(K40="","",OFFSET(Stack_viewer_data!$AE$9,Viewer_displaced_position_start-1+$H40,0)) ->  | O40: =IF(P40="","",INDEX(Stack_viewer_data!$P$10:$P$259,MATCH(P40,Stack_viewer_data!$Q$10:$Q$259,0))) ->  | P40: =IF(Viewer_CLASS_position_in_stack=0,Stack_viewer_data!$X40,IF($N40>=Viewer_displaced_position_start-IF(Viewer_CLASS_position_in_stack>0,1,0),"",IF($N40>=Viewer_CLASS_position_in_stack,OFFSET(Stack_viewer_data!$X$9,$N40+1,0),OFFSET(Stack_viewer_data!$X$9,$N40,0)))) ->  | Q40: =IF(P40="","",INDEX(Stack_viewer_data!$Z$10:$Z$259,MATCH($P40,Stack_viewer_data!$X$10:$X$259,0))) ->  | R40: =IF(Q40="","",INDEX(Stack_viewer_data!$AE$10:$AE$259,MATCH($P40,Stack_viewer_data!$X$10:$X$259,0))) -> 
H41: =IFERROR(IF(H40+1>COUNTIF(Stack_viewer_data!$Z$10:$Z$259,">0")-Viewer_displaced_position_start+1,"",H40+1),"") ->  | I41: =IF(J41="","",INDEX(Stack_viewer_data!$P$10:$P$259,MATCH(J41,Stack_viewer_data!$Q$10:$Q$259,0))) ->  | J41: =IF(H41="","",OFFSET(Stack_viewer_data!$X$9,Viewer_displaced_position_start-1+$H41,0)) ->  | K41: =IF(J41="","",OFFSET(Stack_viewer_data!$Z$9,Viewer_displaced_position_start-1+$H41,0)) ->  | L41: =IF(K41="","",OFFSET(Stack_viewer_data!$AE$9,Viewer_displaced_position_start-1+$H41,0)) ->  | O41: =IF(P41="","",INDEX(Stack_viewer_data!$P$10:$P$259,MATCH(P41,Stack_viewer_data!$Q$10:$Q$259,0))) ->  | P41: =IF(Viewer_CLASS_position_in_stack=0,Stack_viewer_data!$X41,IF($N41>=Viewer_displaced_position_start-IF(Viewer_CLASS_position_in_stack>0,1,0),"",IF($N41>=Viewer_CLASS_position_in_stack,OFFSET(Stack_viewer_data!$X$9,$N41+1,0),OFFSET(Stack_viewer_data!$X$9,$N41,0)))) ->  | Q41: =IF(P41="","",INDEX(Stack_viewer_data!$Z$10:$Z$259,MATCH($P41,Stack_viewer_data!$X$10:$X$259,0))) ->  | R41: =IF(Q41="","",INDEX(Stack_viewer_data!$AE$10:$AE$259,MATCH($P41,Stack_viewer_data!$X$10:$X$259,0))) -> 
H42: =IFERROR(IF(H41+1>COUNTIF(Stack_viewer_data!$Z$10:$Z$259,">0")-Viewer_displaced_position_start+1,"",H41+1),"") ->  | I42: =IF(J42="","",INDEX(Stack_viewer_data!$P$10:$P$259,MATCH(J42,Stack_viewer_data!$Q$10:$Q$259,0))) ->  | J42: =IF(H42="","",OFFSET(Stack_viewer_data!$X$9,Viewer_displaced_position_start-1+$H42,0)) ->  | K42: =IF(J42="","",OFFSET(Stack_viewer_data!$Z$9,Viewer_displaced_position_start-1+$H42,0)) ->  | L42: =IF(K42="","",OFFSET(Stack_viewer_data!$AE$9,Viewer_displaced_position_start-1+$H42,0)) ->  | O42: =IF(P42="","",INDEX(Stack_viewer_data!$P$10:$P$259,MATCH(P42,Stack_viewer_data!$Q$10:$Q$259,0))) ->  | P42: =IF(Viewer_CLASS_position_in_stack=0,Stack_viewer_data!$X42,IF($N42>=Viewer_displaced_position_start-IF(Viewer_CLASS_position_in_stack>0,1,0),"",IF($N42>=Viewer_CLASS_position_in_stack,OFFSET(Stack_viewer_data!$X$9,$N42+1,0),OFFSET(Stack_viewer_data!$X$9,$N42,0)))) ->  | Q42: =IF(P42="","",INDEX(Stack_viewer_data!$Z$10:$Z$259,MATCH($P42,Stack_viewer_data!$X$10:$X$259,0))) ->  | R42: =IF(Q42="","",INDEX(Stack_viewer_data!$AE$10:$AE$259,MATCH($P42,Stack_viewer_data!$X$10:$X$259,0))) -> 
H43: =IFERROR(IF(H42+1>COUNTIF(Stack_viewer_data!$Z$10:$Z$259,">0")-Viewer_displaced_position_start+1,"",H42+1),"") ->  | I43: =IF(J43="","",INDEX(Stack_viewer_data!$P$10:$P$259,MATCH(J43,Stack_viewer_data!$Q$10:$Q$259,0))) ->  | J43: =IF(H43="","",OFFSET(Stack_viewer_data!$X$9,Viewer_displaced_position_start-1+$H43,0)) ->  | K43: =IF(J43="","",OFFSET(Stack_viewer_data!$Z$9,Viewer_displaced_position_start-1+$H43,0)) ->  | L43: =IF(K43="","",OFFSET(Stack_viewer_data!$AE$9,Viewer_displaced_position_start-1+$H43,0)) ->  | N43: =IFERROR(IF(OR(N42+1>=Viewer_displaced_position_start-IF(Viewer_CLASS_position_in_stack>0,1,0),N42=""),"",N42+1),"") ->  | O43: =IF(P43="","",INDEX(Stack_viewer_data!$P$10:$P$259,MATCH(P43,Stack_viewer_data!$Q$10:$Q$259,0))) ->  | P43: =IF(Viewer_CLASS_position_in_stack=0,Stack_viewer_data!$X43,IF($N43>=Viewer_displaced_position_start-IF(Viewer_CLASS_position_in_stack>0,1,0),"",IF($N43>=Viewer_CLASS_position_in_stack,OFFSET(Stack_viewer_data!$X$9,$N43+1,0),OFFSET(Stack_viewer_data!$X$9,$N43,0)))) ->  | Q43: =IF(P43="","",INDEX(Stack_viewer_data!$Z$10:$Z$259,MATCH($P43,Stack_viewer_data!$X$10:$X$259,0))) ->  | R43: =IF(Q43="","",INDEX(Stack_viewer_data!$AE$10:$AE$259,MATCH($P43,Stack_viewer_data!$X$10:$X$259,0))) -> 
H44: =IFERROR(IF(H43+1>COUNTIF(Stack_viewer_data!$Z$10:$Z$259,">0")-Viewer_displaced_position_start+1,"",H43+1),"") ->  | I44: =IF(J44="","",INDEX(Stack_viewer_data!$P$10:$P$259,MATCH(J44,Stack_viewer_data!$Q$10:$Q$259,0))) ->  | J44: =IF(H44="","",OFFSET(Stack_viewer_data!$X$9,Viewer_displaced_position_start-1+$H44,0)) ->  | K44: =IF(J44="","",OFFSET(Stack_viewer_data!$Z$9,Viewer_displaced_position_start-1+$H44,0)) ->  | L44: =IF(K44="","",OFFSET(Stack_viewer_data!$AE$9,Viewer_displaced_position_start-1+$H44,0)) ->  | O44: =IF(P44="","",INDEX(Stack_viewer_data!$P$10:$P$259,MATCH(P44,Stack_viewer_data!$Q$10:$Q$259,0))) ->  | P44: =IF(Viewer_CLASS_position_in_stack=0,Stack_viewer_data!$X44,IF($N44>=Viewer_displaced_position_start-IF(Viewer_CLASS_position_in_stack>0,1,0),"",IF($N44>=Viewer_CLASS_position_in_stack,OFFSET(Stack_viewer_data!$X$9,$N44+1,0),OFFSET(Stack_viewer_data!$X$9,$N44,0)))) ->  | Q44: =IF(P44="","",INDEX(Stack_viewer_data!$Z$10:$Z$259,MATCH($P44,Stack_viewer_data!$X$10:$X$259,0))) ->  | R44: =IF(Q44="","",INDEX(Stack_viewer_data!$AE$10:$AE$259,MATCH($P44,Stack_viewer_data!$X$10:$X$259,0))) -> 
H45: =IFERROR(IF(H44+1>COUNTIF(Stack_viewer_data!$Z$10:$Z$259,">0")-Viewer_displaced_position_start+1,"",H44+1),"") ->  | I45: =IF(J45="","",INDEX(Stack_viewer_data!$P$10:$P$259,MATCH(J45,Stack_viewer_data!$Q$10:$Q$259,0))) ->  | J45: =IF(H45="","",OFFSET(Stack_viewer_data!$X$9,Viewer_displaced_position_start-1+$H45,0)) ->  | K45: =IF(J45="","",OFFSET(Stack_viewer_data!$Z$9,Viewer_displaced_position_start-1+$H45,0)) ->  | L45: =IF(K45="","",OFFSET(Stack_viewer_data!$AE$9,Viewer_displaced_position_start-1+$H45,0)) ->  | O45: =IF(P45="","",INDEX(Stack_viewer_data!$P$10:$P$259,MATCH(P45,Stack_viewer_data!$Q$10:$Q$259,0))) ->  | P45: =IF(Viewer_CLASS_position_in_stack=0,Stack_viewer_data!$X45,IF($N45>=Viewer_displaced_position_start-IF(Viewer_CLASS_position_in_stack>0,1,0),"",IF($N45>=Viewer_CLASS_position_in_stack,OFFSET(Stack_viewer_data!$X$9,$N45+1,0),OFFSET(Stack_viewer_data!$X$9,$N45,0)))) ->  | Q45: =IF(P45="","",INDEX(Stack_viewer_data!$Z$10:$Z$259,MATCH($P45,Stack_viewer_data!$X$10:$X$259,0))) ->  | R45: =IF(Q45="","",INDEX(Stack_viewer_data!$AE$10:$AE$259,MATCH($P45,Stack_viewer_data!$X$10:$X$259,0))) -> 
H46: =IFERROR(IF(H45+1>COUNTIF(Stack_viewer_data!$Z$10:$Z$259,">0")-Viewer_displaced_position_start+1,"",H45+1),"") ->  | I46: =IF(J46="","",INDEX(Stack_viewer_data!$P$10:$P$259,MATCH(J46,Stack_viewer_data!$Q$10:$Q$259,0))) ->  | J46: =IF(H46="","",OFFSET(Stack_viewer_data!$X$9,Viewer_displaced_position_start-1+$H46,0)) ->  | K46: =IF(J46="","",OFFSET(Stack_viewer_data!$Z$9,Viewer_displaced_position_start-1+$H46,0)) ->  | L46: =IF(K46="","",OFFSET(Stack_viewer_data!$AE$9,Viewer_displaced_position_start-1+$H46,0)) ->  | O46: =IF(P46="","",INDEX(Stack_viewer_data!$P$10:$P$259,MATCH(P46,Stack_viewer_data!$Q$10:$Q$259,0))) ->  | P46: =IF(Viewer_CLASS_position_in_stack=0,Stack_viewer_data!$X46,IF($N46>=Viewer_displaced_position_start-IF(Viewer_CLASS_position_in_stack>0,1,0),"",IF($N46>=Viewer_CLASS_position_in_stack,OFFSET(Stack_viewer_data!$X$9,$N46+1,0),OFFSET(Stack_viewer_data!$X$9,$N46,0)))) ->  | Q46: =IF(P46="","",INDEX(Stack_viewer_data!$Z$10:$Z$259,MATCH($P46,Stack_viewer_data!$X$10:$X$259,0))) ->  | R46: =IF(Q46="","",INDEX(Stack_viewer_data!$AE$10:$AE$259,MATCH($P46,Stack_viewer_data!$X$10:$X$259,0))) -> 
H47: =IFERROR(IF(H46+1>COUNTIF(Stack_viewer_data!$Z$10:$Z$259,">0")-Viewer_displaced_position_start+1,"",H46+1),"") ->  | I47: =IF(J47="","",INDEX(Stack_viewer_data!$P$10:$P$259,MATCH(J47,Stack_viewer_data!$Q$10:$Q$259,0))) ->  | J47: =IF(H47="","",OFFSET(Stack_viewer_data!$X$9,Viewer_displaced_position_start-1+$H47,0)) ->  | K47: =IF(J47="","",OFFSET(Stack_viewer_data!$Z$9,Viewer_displaced_position_start-1+$H47,0)) ->  | L47: =IF(K47="","",OFFSET(Stack_viewer_data!$AE$9,Viewer_displaced_position_start-1+$H47,0)) ->  | O47: =IF(P47="","",INDEX(Stack_viewer_data!$P$10:$P$259,MATCH(P47,Stack_viewer_data!$Q$10:$Q$259,0))) ->  | P47: =IF(Viewer_CLASS_position_in_stack=0,Stack_viewer_data!$X47,IF($N47>=Viewer_displaced_position_start-IF(Viewer_CLASS_position_in_stack>0,1,0),"",IF($N47>=Viewer_CLASS_position_in_stack,OFFSET(Stack_viewer_data!$X$9,$N47+1,0),OFFSET(Stack_viewer_data!$X$9,$N47,0)))) ->  | Q47: =IF(P47="","",INDEX(Stack_viewer_data!$Z$10:$Z$259,MATCH($P47,Stack_viewer_data!$X$10:$X$259,0))) ->  | R47: =IF(Q47="","",INDEX(Stack_viewer_data!$AE$10:$AE$259,MATCH($P47,Stack_viewer_data!$X$10:$X$259,0))) -> 
H48: =IFERROR(IF(H47+1>COUNTIF(Stack_viewer_data!$Z$10:$Z$259,">0")-Viewer_displaced_position_start+1,"",H47+1),"") ->  | I48: =IF(J48="","",INDEX(Stack_viewer_data!$P$10:$P$259,MATCH(J48,Stack_viewer_data!$Q$10:$Q$259,0))) ->  | J48: =IF(H48="","",OFFSET(Stack_viewer_data!$X$9,Viewer_displaced_position_start-1+$H48,0)) ->  | K48: =IF(J48="","",OFFSET(Stack_viewer_data!$Z$9,Viewer_displaced_position_start-1+$H48,0)) ->  | L48: =IF(K48="","",OFFSET(Stack_viewer_data!$AE$9,Viewer_displaced_position_start-1+$H48,0)) ->  | O48: =IF(P48="","",INDEX(Stack_viewer_data!$P$10:$P$259,MATCH(P48,Stack_viewer_data!$Q$10:$Q$259,0))) ->  | P48: =IF(Viewer_CLASS_position_in_stack=0,Stack_viewer_data!$X48,IF($N48>=Viewer_displaced_position_start-IF(Viewer_CLASS_position_in_stack>0,1,0),"",IF($N48>=Viewer_CLASS_position_in_stack,OFFSET(Stack_viewer_data!$X$9,$N48+1,0),OFFSET(Stack_viewer_data!$X$9,$N48,0)))) ->  | Q48: =IF(P48="","",INDEX(Stack_viewer_data!$Z$10:$Z$259,MATCH($P48,Stack_viewer_data!$X$10:$X$259,0))) ->  | R48: =IF(Q48="","",INDEX(Stack_viewer_data!$AE$10:$AE$259,MATCH($P48,Stack_viewer_data!$X$10:$X$259,0))) -> 
H49: =IFERROR(IF(H48+1>COUNTIF(Stack_viewer_data!$Z$10:$Z$259,">0")-Viewer_displaced_position_start+1,"",H48+1),"") ->  | I49: =IF(J49="","",INDEX(Stack_viewer_data!$P$10:$P$259,MATCH(J49,Stack_viewer_data!$Q$10:$Q$259,0))) ->  | J49: =IF(H49="","",OFFSET(Stack_viewer_data!$X$9,Viewer_displaced_position_start-1+$H49,0)) ->  | K49: =IF(J49="","",OFFSET(Stack_viewer_data!$Z$9,Viewer_displaced_position_start-1+$H49,0)) ->  | L49: =IF(K49="","",OFFSET(Stack_viewer_data!$AE$9,Viewer_displaced_position_start-1+$H49,0)) ->  | O49: =IF(P49="","",INDEX(Stack_viewer_data!$P$10:$P$259,MATCH(P49,Stack_viewer_data!$Q$10:$Q$259,0))) ->  | P49: =IF(Viewer_CLASS_position_in_stack=0,Stack_viewer_data!$X49,IF($N49>=Viewer_displaced_position_start-IF(Viewer_CLASS_position_in_stack>0,1,0),"",IF($N49>=Viewer_CLASS_position_in_stack,OFFSET(Stack_viewer_data!$X$9,$N49+1,0),OFFSET(Stack_viewer_data!$X$9,$N49,0)))) ->  | Q49: =IF(P49="","",INDEX(Stack_viewer_data!$Z$10:$Z$259,MATCH($P49,Stack_viewer_data!$X$10:$X$259,0))) ->  | R49: =IF(Q49="","",INDEX(Stack_viewer_data!$AE$10:$AE$259,MATCH($P49,Stack_viewer_data!$X$10:$X$259,0))) -> 
H50: =IFERROR(IF(H49+1>COUNTIF(Stack_viewer_data!$Z$10:$Z$259,">0")-Viewer_displaced_position_start+1,"",H49+1),"") ->  | I50: =IF(J50="","",INDEX(Stack_viewer_data!$P$10:$P$259,MATCH(J50,Stack_viewer_data!$Q$10:$Q$259,0))) ->  | J50: =IF(H50="","",OFFSET(Stack_viewer_data!$X$9,Viewer_displaced_position_start-1+$H50,0)) ->  | K50: =IF(J50="","",OFFSET(Stack_viewer_data!$Z$9,Viewer_displaced_position_start-1+$H50,0)) ->  | L50: =IF(K50="","",OFFSET(Stack_viewer_data!$AE$9,Viewer_displaced_position_start-1+$H50,0)) ->  | O50: =IF(P50="","",INDEX(Stack_viewer_data!$P$10:$P$259,MATCH(P50,Stack_viewer_data!$Q$10:$Q$259,0))) ->  | P50: =IF(Viewer_CLASS_position_in_stack=0,Stack_viewer_data!$X50,IF($N50>=Viewer_displaced_position_start-IF(Viewer_CLASS_position_in_stack>0,1,0),"",IF($N50>=Viewer_CLASS_position_in_stack,OFFSET(Stack_viewer_data!$X$9,$N50+1,0),OFFSET(Stack_viewer_data!$X$9,$N50,0)))) ->  | Q50: =IF(P50="","",INDEX(Stack_viewer_data!$Z$10:$Z$259,MATCH($P50,Stack_viewer_data!$X$10:$X$259,0))) ->  | R50: =IF(Q50="","",INDEX(Stack_viewer_data!$AE$10:$AE$259,MATCH($P50,Stack_viewer_data!$X$10:$X$259,0))) -> 
H51: =IFERROR(IF(H50+1>COUNTIF(Stack_viewer_data!$Z$10:$Z$259,">0")-Viewer_displaced_position_start+1,"",H50+1),"") ->  | I51: =IF(J51="","",INDEX(Stack_viewer_data!$P$10:$P$259,MATCH(J51,Stack_viewer_data!$Q$10:$Q$259,0))) ->  | J51: =IF(H51="","",OFFSET(Stack_viewer_data!$X$9,Viewer_displaced_position_start-1+$H51,0)) ->  | K51: =IF(J51="","",OFFSET(Stack_viewer_data!$Z$9,Viewer_displaced_position_start-1+$H51,0)) ->  | L51: =IF(K51="","",OFFSET(Stack_viewer_data!$AE$9,Viewer_displaced_position_start-1+$H51,0)) ->  | O51: =IF(P51="","",INDEX(Stack_viewer_data!$P$10:$P$259,MATCH(P51,Stack_viewer_data!$Q$10:$Q$259,0))) ->  | P51: =IF(Viewer_CLASS_position_in_stack=0,Stack_viewer_data!$X51,IF($N51>=Viewer_displaced_position_start-IF(Viewer_CLASS_position_in_stack>0,1,0),"",IF($N51>=Viewer_CLASS_position_in_stack,OFFSET(Stack_viewer_data!$X$9,$N51+1,0),OFFSET(Stack_viewer_data!$X$9,$N51,0)))) ->  | Q51: =IF(P51="","",INDEX(Stack_viewer_data!$Z$10:$Z$259,MATCH($P51,Stack_viewer_data!$X$10:$X$259,0))) ->  | R51: =IF(Q51="","",INDEX(Stack_viewer_data!$AE$10:$AE$259,MATCH($P51,Stack_viewer_data!$X$10:$X$259,0))) -> 
H52: =IFERROR(IF(H51+1>COUNTIF(Stack_viewer_data!$Z$10:$Z$259,">0")-Viewer_displaced_position_start+1,"",H51+1),"") ->  | I52: =IF(J52="","",INDEX(Stack_viewer_data!$P$10:$P$259,MATCH(J52,Stack_viewer_data!$Q$10:$Q$259,0))) ->  | J52: =IF(H52="","",OFFSET(Stack_viewer_data!$X$9,Viewer_displaced_position_start-1+$H52,0)) ->  | K52: =IF(J52="","",OFFSET(Stack_viewer_data!$Z$9,Viewer_displaced_position_start-1+$H52,0)) ->  | L52: =IF(K52="","",OFFSET(Stack_viewer_data!$AE$9,Viewer_displaced_position_start-1+$H52,0)) ->  | O52: =IF(P52="","",INDEX(Stack_viewer_data!$P$10:$P$259,MATCH(P52,Stack_viewer_data!$Q$10:$Q$259,0))) ->  | P52: =IF(Viewer_CLASS_position_in_stack=0,Stack_viewer_data!$X52,IF($N52>=Viewer_displaced_position_start-IF(Viewer_CLASS_position_in_stack>0,1,0),"",IF($N52>=Viewer_CLASS_position_in_stack,OFFSET(Stack_viewer_data!$X$9,$N52+1,0),OFFSET(Stack_viewer_data!$X$9,$N52,0)))) ->  | Q52: =IF(P52="","",INDEX(Stack_viewer_data!$Z$10:$Z$259,MATCH($P52,Stack_viewer_data!$X$10:$X$259,0))) ->  | R52: =IF(Q52="","",INDEX(Stack_viewer_data!$AE$10:$AE$259,MATCH($P52,Stack_viewer_data!$X$10:$X$259,0))) -> 
H53: =IFERROR(IF(H52+1>COUNTIF(Stack_viewer_data!$Z$10:$Z$259,">0")-Viewer_displaced_position_start+1,"",H52+1),"") ->  | I53: =IF(J53="","",INDEX(Stack_viewer_data!$P$10:$P$259,MATCH(J53,Stack_viewer_data!$Q$10:$Q$259,0))) ->  | J53: =IF(H53="","",OFFSET(Stack_viewer_data!$X$9,Viewer_displaced_position_start-1+$H53,0)) ->  | K53: =IF(J53="","",OFFSET(Stack_viewer_data!$Z$9,Viewer_displaced_position_start-1+$H53,0)) ->  | L53: =IF(K53="","",OFFSET(Stack_viewer_data!$AE$9,Viewer_displaced_position_start-1+$H53,0)) ->  | O53: =IF(P53="","",INDEX(Stack_viewer_data!$P$10:$P$259,MATCH(P53,Stack_viewer_data!$Q$10:$Q$259,0))) ->  | P53: =IF(Viewer_CLASS_position_in_stack=0,Stack_viewer_data!$X53,IF($N53>=Viewer_displaced_position_start-IF(Viewer_CLASS_position_in_stack>0,1,0),"",IF($N53>=Viewer_CLASS_position_in_stack,OFFSET(Stack_viewer_data!$X$9,$N53+1,0),OFFSET(Stack_viewer_data!$X$9,$N53,0)))) ->  | Q53: =IF(P53="","",INDEX(Stack_viewer_data!$Z$10:$Z$259,MATCH($P53,Stack_viewer_data!$X$10:$X$259,0))) ->  | R53: =IF(Q53="","",INDEX(Stack_viewer_data!$AE$10:$AE$259,MATCH($P53,Stack_viewer_data!$X$10:$X$259,0))) -> 
H54: =IFERROR(IF(H53+1>COUNTIF(Stack_viewer_data!$Z$10:$Z$259,">0")-Viewer_displaced_position_start+1,"",H53+1),"") ->  | I54: =IF(J54="","",INDEX(Stack_viewer_data!$P$10:$P$259,MATCH(J54,Stack_viewer_data!$Q$10:$Q$259,0))) ->  | J54: =IF(H54="","",OFFSET(Stack_viewer_data!$X$9,Viewer_displaced_position_start-1+$H54,0)) ->  | K54: =IF(J54="","",OFFSET(Stack_viewer_data!$Z$9,Viewer_displaced_position_start-1+$H54,0)) ->  | L54: =IF(K54="","",OFFSET(Stack_viewer_data!$AE$9,Viewer_displaced_position_start-1+$H54,0)) ->  | O54: =IF(P54="","",INDEX(Stack_viewer_data!$P$10:$P$259,MATCH(P54,Stack_viewer_data!$Q$10:$Q$259,0))) ->  | P54: =IF(Viewer_CLASS_position_in_stack=0,Stack_viewer_data!$X54,IF($N54>=Viewer_displaced_position_start-IF(Viewer_CLASS_position_in_stack>0,1,0),"",IF($N54>=Viewer_CLASS_position_in_stack,OFFSET(Stack_viewer_data!$X$9,$N54+1,0),OFFSET(Stack_viewer_data!$X$9,$N54,0)))) ->  | Q54: =IF(P54="","",INDEX(Stack_viewer_data!$Z$10:$Z$259,MATCH($P54,Stack_viewer_data!$X$10:$X$259,0))) ->  | R54: =IF(Q54="","",INDEX(Stack_viewer_data!$AE$10:$AE$259,MATCH($P54,Stack_viewer_data!$X$10:$X$259,0))) -> 
H55: =IFERROR(IF(H54+1>COUNTIF(Stack_viewer_data!$Z$10:$Z$259,">0")-Viewer_displaced_position_start+1,"",H54+1),"") ->  | I55: =IF(J55="","",INDEX(Stack_viewer_data!$P$10:$P$259,MATCH(J55,Stack_viewer_data!$Q$10:$Q$259,0))) ->  | J55: =IF(H55="","",OFFSET(Stack_viewer_data!$X$9,Viewer_displaced_position_start-1+$H55,0)) ->  | K55: =IF(J55="","",OFFSET(Stack_viewer_data!$Z$9,Viewer_displaced_position_start-1+$H55,0)) ->  | L55: =IF(K55="","",OFFSET(Stack_viewer_data!$AE$9,Viewer_displaced_position_start-1+$H55,0)) ->  | O55: =IF(P55="","",INDEX(Stack_viewer_data!$P$10:$P$259,MATCH(P55,Stack_viewer_data!$Q$10:$Q$259,0))) ->  | P55: =IF(Viewer_CLASS_position_in_stack=0,Stack_viewer_data!$X55,IF($N55>=Viewer_displaced_position_start-IF(Viewer_CLASS_position_in_stack>0,1,0),"",IF($N55>=Viewer_CLASS_position_in_stack,OFFSET(Stack_viewer_data!$X$9,$N55+1,0),OFFSET(Stack_viewer_data!$X$9,$N55,0)))) ->  | Q55: =IF(P55="","",INDEX(Stack_viewer_data!$Z$10:$Z$259,MATCH($P55,Stack_viewer_data!$X$10:$X$259,0))) ->  | R55: =IF(Q55="","",INDEX(Stack_viewer_data!$AE$10:$AE$259,MATCH($P55,Stack_viewer_data!$X$10:$X$259,0))) -> 
H56: =IFERROR(IF(H55+1>COUNTIF(Stack_viewer_data!$Z$10:$Z$259,">0")-Viewer_displaced_position_start+1,"",H55+1),"") ->  | I56: =IF(J56="","",INDEX(Stack_viewer_data!$P$10:$P$259,MATCH(J56,Stack_viewer_data!$Q$10:$Q$259,0))) ->  | J56: =IF(H56="","",OFFSET(Stack_viewer_data!$X$9,Viewer_displaced_position_start-1+$H56,0)) ->  | K56: =IF(J56="","",OFFSET(Stack_viewer_data!$Z$9,Viewer_displaced_position_start-1+$H56,0)) ->  | L56: =IF(K56="","",OFFSET(Stack_viewer_data!$AE$9,Viewer_displaced_position_start-1+$H56,0)) ->  | O56: =IF(P56="","",INDEX(Stack_viewer_data!$P$10:$P$259,MATCH(P56,Stack_viewer_data!$Q$10:$Q$259,0))) ->  | P56: =IF(Viewer_CLASS_position_in_stack=0,Stack_viewer_data!$X56,IF($N56>=Viewer_displaced_position_start-IF(Viewer_CLASS_position_in_stack>0,1,0),"",IF($N56>=Viewer_CLASS_position_in_stack,OFFSET(Stack_viewer_data!$X$9,$N56+1,0),OFFSET(Stack_viewer_data!$X$9,$N56,0)))) ->  | Q56: =IF(P56="","",INDEX(Stack_viewer_data!$Z$10:$Z$259,MATCH($P56,Stack_viewer_data!$X$10:$X$259,0))) ->  | R56: =IF(Q56="","",INDEX(Stack_viewer_data!$AE$10:$AE$259,MATCH($P56,Stack_viewer_data!$X$10:$X$259,0))) -> 
H57: =IFERROR(IF(H56+1>COUNTIF(Stack_viewer_data!$Z$10:$Z$259,">0")-Viewer_displaced_position_start+1,"",H56+1),"") ->  | I57: =IF(J57="","",INDEX(Stack_viewer_data!$P$10:$P$259,MATCH(J57,Stack_viewer_data!$Q$10:$Q$259,0))) ->  | J57: =IF(H57="","",OFFSET(Stack_viewer_data!$X$9,Viewer_displaced_position_start-1+$H57,0)) ->  | K57: =IF(J57="","",OFFSET(Stack_viewer_data!$Z$9,Viewer_displaced_position_start-1+$H57,0)) ->  | L57: =IF(K57="","",OFFSET(Stack_viewer_data!$AE$9,Viewer_displaced_position_start-1+$H57,0)) ->  | O57: =IF(P57="","",INDEX(Stack_viewer_data!$P$10:$P$259,MATCH(P57,Stack_viewer_data!$Q$10:$Q$259,0))) ->  | P57: =IF(Viewer_CLASS_position_in_stack=0,Stack_viewer_data!$X57,IF($N57>=Viewer_displaced_position_start-IF(Viewer_CLASS_position_in_stack>0,1,0),"",IF($N57>=Viewer_CLASS_position_in_stack,OFFSET(Stack_viewer_data!$X$9,$N57+1,0),OFFSET(Stack_viewer_data!$X$9,$N57,0)))) ->  | Q57: =IF(P57="","",INDEX(Stack_viewer_data!$Z$10:$Z$259,MATCH($P57,Stack_viewer_data!$X$10:$X$259,0))) ->  | R57: =IF(Q57="","",INDEX(Stack_viewer_data!$AE$10:$AE$259,MATCH($P57,Stack_viewer_data!$X$10:$X$259,0))) -> 
H58: =IFERROR(IF(H57+1>COUNTIF(Stack_viewer_data!$Z$10:$Z$259,">0")-Viewer_displaced_position_start+1,"",H57+1),"") ->  | I58: =IF(J58="","",INDEX(Stack_viewer_data!$P$10:$P$259,MATCH(J58,Stack_viewer_data!$Q$10:$Q$259,0))) ->  | J58: =IF(H58="","",OFFSET(Stack_viewer_data!$X$9,Viewer_displaced_position_start-1+$H58,0)) ->  | K58: =IF(J58="","",OFFSET(Stack_viewer_data!$Z$9,Viewer_displaced_position_start-1+$H58,0)) ->  | L58: =IF(K58="","",OFFSET(Stack_viewer_data!$AE$9,Viewer_displaced_position_start-1+$H58,0)) ->  | O58: =IF(P58="","",INDEX(Stack_viewer_data!$P$10:$P$259,MATCH(P58,Stack_viewer_data!$Q$10:$Q$259,0))) ->  | P58: =IF(Viewer_CLASS_position_in_stack=0,Stack_viewer_data!$X58,IF($N58>=Viewer_displaced_position_start-IF(Viewer_CLASS_position_in_stack>0,1,0),"",IF($N58>=Viewer_CLASS_position_in_stack,OFFSET(Stack_viewer_data!$X$9,$N58+1,0),OFFSET(Stack_viewer_data!$X$9,$N58,0)))) ->  | Q58: =IF(P58="","",INDEX(Stack_viewer_data!$Z$10:$Z$259,MATCH($P58,Stack_viewer_data!$X$10:$X$259,0))) ->  | R58: =IF(Q58="","",INDEX(Stack_viewer_data!$AE$10:$AE$259,MATCH($P58,Stack_viewer_data!$X$10:$X$259,0))) -> 
H59: =IFERROR(IF(H58+1>COUNTIF(Stack_viewer_data!$Z$10:$Z$259,">0")-Viewer_displaced_position_start+1,"",H58+1),"") ->  | I59: =IF(J59="","",INDEX(Stack_viewer_data!$P$10:$P$259,MATCH(J59,Stack_viewer_data!$Q$10:$Q$259,0))) ->  | J59: =IF(H59="","",OFFSET(Stack_viewer_data!$X$9,Viewer_displaced_position_start-1+$H59,0)) ->  | K59: =IF(J59="","",OFFSET(Stack_viewer_data!$Z$9,Viewer_displaced_position_start-1+$H59,0)) ->  | L59: =IF(K59="","",OFFSET(Stack_viewer_data!$AE$9,Viewer_displaced_position_start-1+$H59,0)) ->  | O59: =IF(P59="","",INDEX(Stack_viewer_data!$P$10:$P$259,MATCH(P59,Stack_viewer_data!$Q$10:$Q$259,0))) ->  | P59: =IF(Viewer_CLASS_position_in_stack=0,Stack_viewer_data!$X59,IF($N59>=Viewer_displaced_position_start-IF(Viewer_CLASS_position_in_stack>0,1,0),"",IF($N59>=Viewer_CLASS_position_in_stack,OFFSET(Stack_viewer_data!$X$9,$N59+1,0),OFFSET(Stack_viewer_data!$X$9,$N59,0)))) ->  | Q59: =IF(P59="","",INDEX(Stack_viewer_data!$Z$10:$Z$259,MATCH($P59,Stack_viewer_data!$X$10:$X$259,0))) ->  | R59: =IF(Q59="","",INDEX(Stack_viewer_data!$AE$10:$AE$259,MATCH($P59,Stack_viewer_data!$X$10:$X$259,0))) -> 
H60: =IFERROR(IF(H59+1>COUNTIF(Stack_viewer_data!$Z$10:$Z$259,">0")-Viewer_displaced_position_start+1,"",H59+1),"") ->  | I60: =IF(J60="","",INDEX(Stack_viewer_data!$P$10:$P$259,MATCH(J60,Stack_viewer_data!$Q$10:$Q$259,0))) ->  | J60: =IF(H60="","",OFFSET(Stack_viewer_data!$X$9,Viewer_displaced_position_start-1+$H60,0)) ->  | K60: =IF(J60="","",OFFSET(Stack_viewer_data!$Z$9,Viewer_displaced_position_start-1+$H60,0)) ->  | L60: =IF(K60="","",OFFSET(Stack_viewer_data!$AE$9,Viewer_displaced_position_start-1+$H60,0)) ->  | O60: =IF(P60="","",INDEX(Stack_viewer_data!$P$10:$P$259,MATCH(P60,Stack_viewer_data!$Q$10:$Q$259,0))) ->  | P60: =IF(Viewer_CLASS_position_in_stack=0,Stack_viewer_data!$X60,IF($N60>=Viewer_displaced_position_start-IF(Viewer_CLASS_position_in_stack>0,1,0),"",IF($N60>=Viewer_CLASS_position_in_stack,OFFSET(Stack_viewer_data!$X$9,$N60+1,0),OFFSET(Stack_viewer_data!$X$9,$N60,0)))) ->  | Q60: =IF(P60="","",INDEX(Stack_viewer_data!$Z$10:$Z$259,MATCH($P60,Stack_viewer_data!$X$10:$X$259,0))) ->  | R60: =IF(Q60="","",INDEX(Stack_viewer_data!$AE$10:$AE$259,MATCH($P60,Stack_viewer_data!$X$10:$X$259,0))) -> 
H61: =IFERROR(IF(H60+1>COUNTIF(Stack_viewer_data!$Z$10:$Z$259,">0")-Viewer_displaced_position_start+1,"",H60+1),"") ->  | I61: =IF(J61="","",INDEX(Stack_viewer_data!$P$10:$P$259,MATCH(J61,Stack_viewer_data!$Q$10:$Q$259,0))) ->  | J61: =IF(H61="","",OFFSET(Stack_viewer_data!$X$9,Viewer_displaced_position_start-1+$H61,0)) ->  | K61: =IF(J61="","",OFFSET(Stack_viewer_data!$Z$9,Viewer_displaced_position_start-1+$H61,0)) ->  | L61: =IF(K61="","",OFFSET(Stack_viewer_data!$AE$9,Viewer_displaced_position_start-1+$H61,0)) ->  | O61: =IF(P61="","",INDEX(Stack_viewer_data!$P$10:$P$259,MATCH(P61,Stack_viewer_data!$Q$10:$Q$259,0))) ->  | P61: =IF(Viewer_CLASS_position_in_stack=0,Stack_viewer_data!$X61,IF($N61>=Viewer_displaced_position_start-IF(Viewer_CLASS_position_in_stack>0,1,0),"",IF($N61>=Viewer_CLASS_position_in_stack,OFFSET(Stack_viewer_data!$X$9,$N61+1,0),OFFSET(Stack_viewer_data!$X$9,$N61,0)))) ->  | Q61: =IF(P61="","",INDEX(Stack_viewer_data!$Z$10:$Z$259,MATCH($P61,Stack_viewer_data!$X$10:$X$259,0))) ->  | R61: =IF(Q61="","",INDEX(Stack_viewer_data!$AE$10:$AE$259,MATCH($P61,Stack_viewer_data!$X$10:$X$259,0))) -> 
H62: =IFERROR(IF(H61+1>COUNTIF(Stack_viewer_data!$Z$10:$Z$259,">0")-Viewer_displaced_position_start+1,"",H61+1),"") ->  | I62: =IF(J62="","",INDEX(Stack_viewer_data!$P$10:$P$259,MATCH(J62,Stack_viewer_data!$Q$10:$Q$259,0))) ->  | J62: =IF(H62="","",OFFSET(Stack_viewer_data!$X$9,Viewer_displaced_position_start-1+$H62,0)) ->  | K62: =IF(J62="","",OFFSET(Stack_viewer_data!$Z$9,Viewer_displaced_position_start-1+$H62,0)) ->  | L62: =IF(K62="","",OFFSET(Stack_viewer_data!$AE$9,Viewer_displaced_position_start-1+$H62,0)) ->  | O62: =IF(P62="","",INDEX(Stack_viewer_data!$P$10:$P$259,MATCH(P62,Stack_viewer_data!$Q$10:$Q$259,0))) ->  | P62: =IF(Viewer_CLASS_position_in_stack=0,Stack_viewer_data!$X62,IF($N62>=Viewer_displaced_position_start-IF(Viewer_CLASS_position_in_stack>0,1,0),"",IF($N62>=Viewer_CLASS_position_in_stack,OFFSET(Stack_viewer_data!$X$9,$N62+1,0),OFFSET(Stack_viewer_data!$X$9,$N62,0)))) ->  | Q62: =IF(P62="","",INDEX(Stack_viewer_data!$Z$10:$Z$259,MATCH($P62,Stack_viewer_data!$X$10:$X$259,0))) ->  | R62: =IF(Q62="","",INDEX(Stack_viewer_data!$AE$10:$AE$259,MATCH($P62,Stack_viewer_data!$X$10:$X$259,0))) -> 
H63: =IFERROR(IF(H62+1>COUNTIF(Stack_viewer_data!$Z$10:$Z$259,">0")-Viewer_displaced_position_start+1,"",H62+1),"") ->  | I63: =IF(J63="","",INDEX(Stack_viewer_data!$P$10:$P$259,MATCH(J63,Stack_viewer_data!$Q$10:$Q$259,0))) ->  | J63: =IF(H63="","",OFFSET(Stack_viewer_data!$X$9,Viewer_displaced_position_start-1+$H63,0)) ->  | K63: =IF(J63="","",OFFSET(Stack_viewer_data!$Z$9,Viewer_displaced_position_start-1+$H63,0)) ->  | L63: =IF(K63="","",OFFSET(Stack_viewer_data!$AE$9,Viewer_displaced_position_start-1+$H63,0)) ->  | O63: =IF(P63="","",INDEX(Stack_viewer_data!$P$10:$P$259,MATCH(P63,Stack_viewer_data!$Q$10:$Q$259,0))) ->  | P63: =IF(Viewer_CLASS_position_in_stack=0,Stack_viewer_data!$X63,IF($N63>=Viewer_displaced_position_start-IF(Viewer_CLASS_position_in_stack>0,1,0),"",IF($N63>=Viewer_CLASS_position_in_stack,OFFSET(Stack_viewer_data!$X$9,$N63+1,0),OFFSET(Stack_viewer_data!$X$9,$N63,0)))) ->  | Q63: =IF(P63="","",INDEX(Stack_viewer_data!$Z$10:$Z$259,MATCH($P63,Stack_viewer_data!$X$10:$X$259,0))) ->  | R63: =IF(Q63="","",INDEX(Stack_viewer_data!$AE$10:$AE$259,MATCH($P63,Stack_viewer_data!$X$10:$X$259,0))) -> 
H64: =IFERROR(IF(H63+1>COUNTIF(Stack_viewer_data!$Z$10:$Z$259,">0")-Viewer_displaced_position_start+1,"",H63+1),"") ->  | I64: =IF(J64="","",INDEX(Stack_viewer_data!$P$10:$P$259,MATCH(J64,Stack_viewer_data!$Q$10:$Q$259,0))) ->  | J64: =IF(H64="","",OFFSET(Stack_viewer_data!$X$9,Viewer_displaced_position_start-1+$H64,0)) ->  | K64: =IF(J64="","",OFFSET(Stack_viewer_data!$Z$9,Viewer_displaced_position_start-1+$H64,0)) ->  | L64: =IF(K64="","",OFFSET(Stack_viewer_data!$AE$9,Viewer_displaced_position_start-1+$H64,0)) ->  | O64: =IF(P64="","",INDEX(Stack_viewer_data!$P$10:$P$259,MATCH(P64,Stack_viewer_data!$Q$10:$Q$259,0))) ->  | P64: =IF(Viewer_CLASS_position_in_stack=0,Stack_viewer_data!$X64,IF($N64>=Viewer_displaced_position_start-IF(Viewer_CLASS_position_in_stack>0,1,0),"",IF($N64>=Viewer_CLASS_position_in_stack,OFFSET(Stack_viewer_data!$X$9,$N64+1,0),OFFSET(Stack_viewer_data!$X$9,$N64,0)))) ->  | Q64: =IF(P64="","",INDEX(Stack_viewer_data!$Z$10:$Z$259,MATCH($P64,Stack_viewer_data!$X$10:$X$259,0))) ->  | R64: =IF(Q64="","",INDEX(Stack_viewer_data!$AE$10:$AE$259,MATCH($P64,Stack_viewer_data!$X$10:$X$259,0))) -> 
H65: =IFERROR(IF(H64+1>COUNTIF(Stack_viewer_data!$Z$10:$Z$259,">0")-Viewer_displaced_position_start+1,"",H64+1),"") ->  | I65: =IF(J65="","",INDEX(Stack_viewer_data!$P$10:$P$259,MATCH(J65,Stack_viewer_data!$Q$10:$Q$259,0))) ->  | J65: =IF(H65="","",OFFSET(Stack_viewer_data!$X$9,Viewer_displaced_position_start-1+$H65,0)) ->  | K65: =IF(J65="","",OFFSET(Stack_viewer_data!$Z$9,Viewer_displaced_position_start-1+$H65,0)) ->  | L65: =IF(K65="","",OFFSET(Stack_viewer_data!$AE$9,Viewer_displaced_position_start-1+$H65,0)) ->  | O65: =IF(P65="","",INDEX(Stack_viewer_data!$P$10:$P$259,MATCH(P65,Stack_viewer_data!$Q$10:$Q$259,0))) ->  | P65: =IF(Viewer_CLASS_position_in_stack=0,Stack_viewer_data!$X65,IF($N65>=Viewer_displaced_position_start-IF(Viewer_CLASS_position_in_stack>0,1,0),"",IF($N65>=Viewer_CLASS_position_in_stack,OFFSET(Stack_viewer_data!$X$9,$N65+1,0),OFFSET(Stack_viewer_data!$X$9,$N65,0)))) ->  | Q65: =IF(P65="","",INDEX(Stack_viewer_data!$Z$10:$Z$259,MATCH($P65,Stack_viewer_data!$X$10:$X$259,0))) ->  | R65: =IF(Q65="","",INDEX(Stack_viewer_data!$AE$10:$AE$259,MATCH($P65,Stack_viewer_data!$X$10:$X$259,0))) -> 
H66: =IFERROR(IF(H65+1>COUNTIF(Stack_viewer_data!$Z$10:$Z$259,">0")-Viewer_displaced_position_start+1,"",H65+1),"") ->  | I66: =IF(J66="","",INDEX(Stack_viewer_data!$P$10:$P$259,MATCH(J66,Stack_viewer_data!$Q$10:$Q$259,0))) ->  | J66: =IF(H66="","",OFFSET(Stack_viewer_data!$X$9,Viewer_displaced_position_start-1+$H66,0)) ->  | K66: =IF(J66="","",OFFSET(Stack_viewer_data!$Z$9,Viewer_displaced_position_start-1+$H66,0)) ->  | L66: =IF(K66="","",OFFSET(Stack_viewer_data!$AE$9,Viewer_displaced_position_start-1+$H66,0)) ->  | O66: =IF(P66="","",INDEX(Stack_viewer_data!$P$10:$P$259,MATCH(P66,Stack_viewer_data!$Q$10:$Q$259,0))) ->  | P66: =IF(Viewer_CLASS_position_in_stack=0,Stack_viewer_data!$X66,IF($N66>=Viewer_displaced_position_start-IF(Viewer_CLASS_position_in_stack>0,1,0),"",IF($N66>=Viewer_CLASS_position_in_stack,OFFSET(Stack_viewer_data!$X$9,$N66+1,0),OFFSET(Stack_viewer_data!$X$9,$N66,0)))) ->  | Q66: =IF(P66="","",INDEX(Stack_viewer_data!$Z$10:$Z$259,MATCH($P66,Stack_viewer_data!$X$10:$X$259,0))) ->  | R66: =IF(Q66="","",INDEX(Stack_viewer_data!$AE$10:$AE$259,MATCH($P66,Stack_viewer_data!$X$10:$X$259,0))) -> 
H67: =IFERROR(IF(H66+1>COUNTIF(Stack_viewer_data!$Z$10:$Z$259,">0")-Viewer_displaced_position_start+1,"",H66+1),"") ->  | I67: =IF(J67="","",INDEX(Stack_viewer_data!$P$10:$P$259,MATCH(J67,Stack_viewer_data!$Q$10:$Q$259,0))) ->  | J67: =IF(H67="","",OFFSET(Stack_viewer_data!$X$9,Viewer_displaced_position_start-1+$H67,0)) ->  | K67: =IF(J67="","",OFFSET(Stack_viewer_data!$Z$9,Viewer_displaced_position_start-1+$H67,0)) ->  | L67: =IF(K67="","",OFFSET(Stack_viewer_data!$AE$9,Viewer_displaced_position_start-1+$H67,0)) ->  | O67: =IF(P67="","",INDEX(Stack_viewer_data!$P$10:$P$259,MATCH(P67,Stack_viewer_data!$Q$10:$Q$259,0))) ->  | P67: =IF(Viewer_CLASS_position_in_stack=0,Stack_viewer_data!$X67,IF($N67>=Viewer_displaced_position_start-IF(Viewer_CLASS_position_in_stack>0,1,0),"",IF($N67>=Viewer_CLASS_position_in_stack,OFFSET(Stack_viewer_data!$X$9,$N67+1,0),OFFSET(Stack_viewer_data!$X$9,$N67,0)))) ->  | Q67: =IF(P67="","",INDEX(Stack_viewer_data!$Z$10:$Z$259,MATCH($P67,Stack_viewer_data!$X$10:$X$259,0))) ->  | R67: =IF(Q67="","",INDEX(Stack_viewer_data!$AE$10:$AE$259,MATCH($P67,Stack_viewer_data!$X$10:$X$259,0))) -> 
H68: =IFERROR(IF(H67+1>COUNTIF(Stack_viewer_data!$Z$10:$Z$259,">0")-Viewer_displaced_position_start+1,"",H67+1),"") ->  | I68: =IF(J68="","",INDEX(Stack_viewer_data!$P$10:$P$259,MATCH(J68,Stack_viewer_data!$Q$10:$Q$259,0))) ->  | J68: =IF(H68="","",OFFSET(Stack_viewer_data!$X$9,Viewer_displaced_position_start-1+$H68,0)) ->  | K68: =IF(J68="","",OFFSET(Stack_viewer_data!$Z$9,Viewer_displaced_position_start-1+$H68,0)) ->  | L68: =IF(K68="","",OFFSET(Stack_viewer_data!$AE$9,Viewer_displaced_position_start-1+$H68,0)) ->  | O68: =IF(P68="","",INDEX(Stack_viewer_data!$P$10:$P$259,MATCH(P68,Stack_viewer_data!$Q$10:$Q$259,0))) ->  | P68: =IF(Viewer_CLASS_position_in_stack=0,Stack_viewer_data!$X68,IF($N68>=Viewer_displaced_position_start-IF(Viewer_CLASS_position_in_stack>0,1,0),"",IF($N68>=Viewer_CLASS_position_in_stack,OFFSET(Stack_viewer_data!$X$9,$N68+1,0),OFFSET(Stack_viewer_data!$X$9,$N68,0)))) ->  | Q68: =IF(P68="","",INDEX(Stack_viewer_data!$Z$10:$Z$259,MATCH($P68,Stack_viewer_data!$X$10:$X$259,0))) ->  | R68: =IF(Q68="","",INDEX(Stack_viewer_data!$AE$10:$AE$259,MATCH($P68,Stack_viewer_data!$X$10:$X$259,0))) -> 
H69: =IFERROR(IF(H68+1>COUNTIF(Stack_viewer_data!$Z$10:$Z$259,">0")-Viewer_displaced_position_start+1,"",H68+1),"") ->  | I69: =IF(J69="","",INDEX(Stack_viewer_data!$P$10:$P$259,MATCH(J69,Stack_viewer_data!$Q$10:$Q$259,0))) ->  | J69: =IF(H69="","",OFFSET(Stack_viewer_data!$X$9,Viewer_displaced_position_start-1+$H69,0)) ->  | K69: =IF(J69="","",OFFSET(Stack_viewer_data!$Z$9,Viewer_displaced_position_start-1+$H69,0)) ->  | L69: =IF(K69="","",OFFSET(Stack_viewer_data!$AE$9,Viewer_displaced_position_start-1+$H69,0)) ->  | O69: =IF(P69="","",INDEX(Stack_viewer_data!$P$10:$P$259,MATCH(P69,Stack_viewer_data!$Q$10:$Q$259,0))) ->  | P69: =IF(Viewer_CLASS_position_in_stack=0,Stack_viewer_data!$X69,IF($N69>=Viewer_displaced_position_start-IF(Viewer_CLASS_position_in_stack>0,1,0),"",IF($N69>=Viewer_CLASS_position_in_stack,OFFSET(Stack_viewer_data!$X$9,$N69+1,0),OFFSET(Stack_viewer_data!$X$9,$N69,0)))) ->  | Q69: =IF(P69="","",INDEX(Stack_viewer_data!$Z$10:$Z$259,MATCH($P69,Stack_viewer_data!$X$10:$X$259,0))) ->  | R69: =IF(Q69="","",INDEX(Stack_viewer_data!$AE$10:$AE$259,MATCH($P69,Stack_viewer_data!$X$10:$X$259,0))) -> 
H70: =IFERROR(IF(H69+1>COUNTIF(Stack_viewer_data!$Z$10:$Z$259,">0")-Viewer_displaced_position_start+1,"",H69+1),"") ->  | I70: =IF(J70="","",INDEX(Stack_viewer_data!$P$10:$P$259,MATCH(J70,Stack_viewer_data!$Q$10:$Q$259,0))) ->  | J70: =IF(H70="","",OFFSET(Stack_viewer_data!$X$9,Viewer_displaced_position_start-1+$H70,0)) ->  | K70: =IF(J70="","",OFFSET(Stack_viewer_data!$Z$9,Viewer_displaced_position_start-1+$H70,0)) ->  | L70: =IF(K70="","",OFFSET(Stack_viewer_data!$AE$9,Viewer_displaced_position_start-1+$H70,0)) ->  | O70: =IF(P70="","",INDEX(Stack_viewer_data!$P$10:$P$259,MATCH(P70,Stack_viewer_data!$Q$10:$Q$259,0))) ->  | P70: =IF(Viewer_CLASS_position_in_stack=0,Stack_viewer_data!$X70,IF($N70>=Viewer_displaced_position_start-IF(Viewer_CLASS_position_in_stack>0,1,0),"",IF($N70>=Viewer_CLASS_position_in_stack,OFFSET(Stack_viewer_data!$X$9,$N70+1,0),OFFSET(Stack_viewer_data!$X$9,$N70,0)))) ->  | Q70: =IF(P70="","",INDEX(Stack_viewer_data!$Z$10:$Z$259,MATCH($P70,Stack_viewer_data!$X$10:$X$259,0))) ->  | R70: =IF(Q70="","",INDEX(Stack_viewer_data!$AE$10:$AE$259,MATCH($P70,Stack_viewer_data!$X$10:$X$259,0))) -> 
H71: =IFERROR(IF(H70+1>COUNTIF(Stack_viewer_data!$Z$10:$Z$259,">0")-Viewer_displaced_position_start+1,"",H70+1),"") ->  | I71: =IF(J71="","",INDEX(Stack_viewer_data!$P$10:$P$259,MATCH(J71,Stack_viewer_data!$Q$10:$Q$259,0))) ->  | J71: =IF(H71="","",OFFSET(Stack_viewer_data!$X$9,Viewer_displaced_position_start-1+$H71,0)) ->  | K71: =IF(J71="","",OFFSET(Stack_viewer_data!$Z$9,Viewer_displaced_position_start-1+$H71,0)) ->  | L71: =IF(K71="","",OFFSET(Stack_viewer_data!$AE$9,Viewer_displaced_position_start-1+$H71,0)) ->  | O71: =IF(P71="","",INDEX(Stack_viewer_data!$P$10:$P$259,MATCH(P71,Stack_viewer_data!$Q$10:$Q$259,0))) ->  | P71: =IF(Viewer_CLASS_position_in_stack=0,Stack_viewer_data!$X71,IF($N71>=Viewer_displaced_position_start-IF(Viewer_CLASS_position_in_stack>0,1,0),"",IF($N71>=Viewer_CLASS_position_in_stack,OFFSET(Stack_viewer_data!$X$9,$N71+1,0),OFFSET(Stack_viewer_data!$X$9,$N71,0)))) ->  | Q71: =IF(P71="","",INDEX(Stack_viewer_data!$Z$10:$Z$259,MATCH($P71,Stack_viewer_data!$X$10:$X$259,0))) ->  | R71: =IF(Q71="","",INDEX(Stack_viewer_data!$AE$10:$AE$259,MATCH($P71,Stack_viewer_data!$X$10:$X$259,0))) -> 
H72: =IFERROR(IF(H71+1>COUNTIF(Stack_viewer_data!$Z$10:$Z$259,">0")-Viewer_displaced_position_start+1,"",H71+1),"") ->  | I72: =IF(J72="","",INDEX(Stack_viewer_data!$P$10:$P$259,MATCH(J72,Stack_viewer_data!$Q$10:$Q$259,0))) ->  | J72: =IF(H72="","",OFFSET(Stack_viewer_data!$X$9,Viewer_displaced_position_start-1+$H72,0)) ->  | K72: =IF(J72="","",OFFSET(Stack_viewer_data!$Z$9,Viewer_displaced_position_start-1+$H72,0)) ->  | L72: =IF(K72="","",OFFSET(Stack_viewer_data!$AE$9,Viewer_displaced_position_start-1+$H72,0)) ->  | O72: =IF(P72="","",INDEX(Stack_viewer_data!$P$10:$P$259,MATCH(P72,Stack_viewer_data!$Q$10:$Q$259,0))) ->  | P72: =IF(Viewer_CLASS_position_in_stack=0,Stack_viewer_data!$X72,IF($N72>=Viewer_displaced_position_start-IF(Viewer_CLASS_position_in_stack>0,1,0),"",IF($N72>=Viewer_CLASS_position_in_stack,OFFSET(Stack_viewer_data!$X$9,$N72+1,0),OFFSET(Stack_viewer_data!$X$9,$N72,0)))) ->  | Q72: =IF(P72="","",INDEX(Stack_viewer_data!$Z$10:$Z$259,MATCH($P72,Stack_viewer_data!$X$10:$X$259,0))) ->  | R72: =IF(Q72="","",INDEX(Stack_viewer_data!$AE$10:$AE$259,MATCH($P72,Stack_viewer_data!$X$10:$X$259,0))) -> 
H73: =IFERROR(IF(H72+1>COUNTIF(Stack_viewer_data!$Z$10:$Z$259,">0")-Viewer_displaced_position_start+1,"",H72+1),"") ->  | I73: =IF(J73="","",INDEX(Stack_viewer_data!$P$10:$P$259,MATCH(J73,Stack_viewer_data!$Q$10:$Q$259,0))) ->  | J73: =IF(H73="","",OFFSET(Stack_viewer_data!$X$9,Viewer_displaced_position_start-1+$H73,0)) ->  | K73: =IF(J73="","",OFFSET(Stack_viewer_data!$Z$9,Viewer_displaced_position_start-1+$H73,0)) ->  | L73: =IF(K73="","",OFFSET(Stack_viewer_data!$AE$9,Viewer_displaced_position_start-1+$H73,0)) ->  | O73: =IF(P73="","",INDEX(Stack_viewer_data!$P$10:$P$259,MATCH(P73,Stack_viewer_data!$Q$10:$Q$259,0))) ->  | P73: =IF(Viewer_CLASS_position_in_stack=0,Stack_viewer_data!$X73,IF($N73>=Viewer_displaced_position_start-IF(Viewer_CLASS_position_in_stack>0,1,0),"",IF($N73>=Viewer_CLASS_position_in_stack,OFFSET(Stack_viewer_data!$X$9,$N73+1,0),OFFSET(Stack_viewer_data!$X$9,$N73,0)))) ->  | Q73: =IF(P73="","",INDEX(Stack_viewer_data!$Z$10:$Z$259,MATCH($P73,Stack_viewer_data!$X$10:$X$259,0))) ->  | R73: =IF(Q73="","",INDEX(Stack_viewer_data!$AE$10:$AE$259,MATCH($P73,Stack_viewer_data!$X$10:$X$259,0))) -> 
H74: =IFERROR(IF(H73+1>COUNTIF(Stack_viewer_data!$Z$10:$Z$259,">0")-Viewer_displaced_position_start+1,"",H73+1),"") ->  | I74: =IF(J74="","",INDEX(Stack_viewer_data!$P$10:$P$259,MATCH(J74,Stack_viewer_data!$Q$10:$Q$259,0))) ->  | J74: =IF(H74="","",OFFSET(Stack_viewer_data!$X$9,Viewer_displaced_position_start-1+$H74,0)) ->  | K74: =IF(J74="","",OFFSET(Stack_viewer_data!$Z$9,Viewer_displaced_position_start-1+$H74,0)) ->  | L74: =IF(K74="","",OFFSET(Stack_viewer_data!$AE$9,Viewer_displaced_position_start-1+$H74,0)) ->  | O74: =IF(P74="","",INDEX(Stack_viewer_data!$P$10:$P$259,MATCH(P74,Stack_viewer_data!$Q$10:$Q$259,0))) ->  | P74: =IF(Viewer_CLASS_position_in_stack=0,Stack_viewer_data!$X74,IF($N74>=Viewer_displaced_position_start-IF(Viewer_CLASS_position_in_stack>0,1,0),"",IF($N74>=Viewer_CLASS_position_in_stack,OFFSET(Stack_viewer_data!$X$9,$N74+1,0),OFFSET(Stack_viewer_data!$X$9,$N74,0)))) ->  | Q74: =IF(P74="","",INDEX(Stack_viewer_data!$Z$10:$Z$259,MATCH($P74,Stack_viewer_data!$X$10:$X$259,0))) ->  | R74: =IF(Q74="","",INDEX(Stack_viewer_data!$AE$10:$AE$259,MATCH($P74,Stack_viewer_data!$X$10:$X$259,0))) -> 
H75: =IFERROR(IF(H74+1>COUNTIF(Stack_viewer_data!$Z$10:$Z$259,">0")-Viewer_displaced_position_start+1,"",H74+1),"") ->  | I75: =IF(J75="","",INDEX(Stack_viewer_data!$P$10:$P$259,MATCH(J75,Stack_viewer_data!$Q$10:$Q$259,0))) ->  | J75: =IF(H75="","",OFFSET(Stack_viewer_data!$X$9,Viewer_displaced_position_start-1+$H75,0)) ->  | K75: =IF(J75="","",OFFSET(Stack_viewer_data!$Z$9,Viewer_displaced_position_start-1+$H75,0)) ->  | L75: =IF(K75="","",OFFSET(Stack_viewer_data!$AE$9,Viewer_displaced_position_start-1+$H75,0)) ->  | N75: =IFERROR(IF(OR(N74+1>=Viewer_displaced_position_start-IF(Viewer_CLASS_position_in_stack>0,1,0),N74=""),"",N74+1),"") ->  | O75: =IF(P75="","",INDEX(Stack_viewer_data!$P$10:$P$259,MATCH(P75,Stack_viewer_data!$Q$10:$Q$259,0))) ->  | P75: =IF(Viewer_CLASS_position_in_stack=0,Stack_viewer_data!$X75,IF($N75>=Viewer_displaced_position_start-IF(Viewer_CLASS_position_in_stack>0,1,0),"",IF($N75>=Viewer_CLASS_position_in_stack,OFFSET(Stack_viewer_data!$X$9,$N75+1,0),OFFSET(Stack_viewer_data!$X$9,$N75,0)))) ->  | Q75: =IF(P75="","",INDEX(Stack_viewer_data!$Z$10:$Z$259,MATCH($P75,Stack_viewer_data!$X$10:$X$259,0))) ->  | R75: =IF(Q75="","",INDEX(Stack_viewer_data!$AE$10:$AE$259,MATCH($P75,Stack_viewer_data!$X$10:$X$259,0))) -> 
H76: =IFERROR(IF(H75+1>COUNTIF(Stack_viewer_data!$Z$10:$Z$259,">0")-Viewer_displaced_position_start+1,"",H75+1),"") ->  | I76: =IF(J76="","",INDEX(Stack_viewer_data!$P$10:$P$259,MATCH(J76,Stack_viewer_data!$Q$10:$Q$259,0))) ->  | J76: =IF(H76="","",OFFSET(Stack_viewer_data!$X$9,Viewer_displaced_position_start-1+$H76,0)) ->  | K76: =IF(J76="","",OFFSET(Stack_viewer_data!$Z$9,Viewer_displaced_position_start-1+$H76,0)) ->  | L76: =IF(K76="","",OFFSET(Stack_viewer_data!$AE$9,Viewer_displaced_position_start-1+$H76,0)) ->  | O76: =IF(P76="","",INDEX(Stack_viewer_data!$P$10:$P$259,MATCH(P76,Stack_viewer_data!$Q$10:$Q$259,0))) ->  | P76: =IF(Viewer_CLASS_position_in_stack=0,Stack_viewer_data!$X76,IF($N76>=Viewer_displaced_position_start-IF(Viewer_CLASS_position_in_stack>0,1,0),"",IF($N76>=Viewer_CLASS_position_in_stack,OFFSET(Stack_viewer_data!$X$9,$N76+1,0),OFFSET(Stack_viewer_data!$X$9,$N76,0)))) ->  | Q76: =IF(P76="","",INDEX(Stack_viewer_data!$Z$10:$Z$259,MATCH($P76,Stack_viewer_data!$X$10:$X$259,0))) ->  | R76: =IF(Q76="","",INDEX(Stack_viewer_data!$AE$10:$AE$259,MATCH($P76,Stack_viewer_data!$X$10:$X$259,0))) -> 
H77: =IFERROR(IF(H76+1>COUNTIF(Stack_viewer_data!$Z$10:$Z$259,">0")-Viewer_displaced_position_start+1,"",H76+1),"") ->  | I77: =IF(J77="","",INDEX(Stack_viewer_data!$P$10:$P$259,MATCH(J77,Stack_viewer_data!$Q$10:$Q$259,0))) ->  | J77: =IF(H77="","",OFFSET(Stack_viewer_data!$X$9,Viewer_displaced_position_start-1+$H77,0)) ->  | K77: =IF(J77="","",OFFSET(Stack_viewer_data!$Z$9,Viewer_displaced_position_start-1+$H77,0)) ->  | L77: =IF(K77="","",OFFSET(Stack_viewer_data!$AE$9,Viewer_displaced_position_start-1+$H77,0)) ->  | O77: =IF(P77="","",INDEX(Stack_viewer_data!$P$10:$P$259,MATCH(P77,Stack_viewer_data!$Q$10:$Q$259,0))) ->  | P77: =IF(Viewer_CLASS_position_in_stack=0,Stack_viewer_data!$X77,IF($N77>=Viewer_displaced_position_start-IF(Viewer_CLASS_position_in_stack>0,1,0),"",IF($N77>=Viewer_CLASS_position_in_stack,OFFSET(Stack_viewer_data!$X$9,$N77+1,0),OFFSET(Stack_viewer_data!$X$9,$N77,0)))) ->  | Q77: =IF(P77="","",INDEX(Stack_viewer_data!$Z$10:$Z$259,MATCH($P77,Stack_viewer_data!$X$10:$X$259,0))) ->  | R77: =IF(Q77="","",INDEX(Stack_viewer_data!$AE$10:$AE$259,MATCH($P77,Stack_viewer_data!$X$10:$X$259,0))) -> 
H78: =IFERROR(IF(H77+1>COUNTIF(Stack_viewer_data!$Z$10:$Z$259,">0")-Viewer_displaced_position_start+1,"",H77+1),"") ->  | I78: =IF(J78="","",INDEX(Stack_viewer_data!$P$10:$P$259,MATCH(J78,Stack_viewer_data!$Q$10:$Q$259,0))) ->  | J78: =IF(H78="","",OFFSET(Stack_viewer_data!$X$9,Viewer_displaced_position_start-1+$H78,0)) ->  | K78: =IF(J78="","",OFFSET(Stack_viewer_data!$Z$9,Viewer_displaced_position_start-1+$H78,0)) ->  | L78: =IF(K78="","",OFFSET(Stack_viewer_data!$AE$9,Viewer_displaced_position_start-1+$H78,0)) ->  | O78: =IF(P78="","",INDEX(Stack_viewer_data!$P$10:$P$259,MATCH(P78,Stack_viewer_data!$Q$10:$Q$259,0))) ->  | P78: =IF(Viewer_CLASS_position_in_stack=0,Stack_viewer_data!$X78,IF($N78>=Viewer_displaced_position_start-IF(Viewer_CLASS_position_in_stack>0,1,0),"",IF($N78>=Viewer_CLASS_position_in_stack,OFFSET(Stack_viewer_data!$X$9,$N78+1,0),OFFSET(Stack_viewer_data!$X$9,$N78,0)))) ->  | Q78: =IF(P78="","",INDEX(Stack_viewer_data!$Z$10:$Z$259,MATCH($P78,Stack_viewer_data!$X$10:$X$259,0))) ->  | R78: =IF(Q78="","",INDEX(Stack_viewer_data!$AE$10:$AE$259,MATCH($P78,Stack_viewer_data!$X$10:$X$259,0))) -> 
H79: =IFERROR(IF(H78+1>COUNTIF(Stack_viewer_data!$Z$10:$Z$259,">0")-Viewer_displaced_position_start+1,"",H78+1),"") ->  | I79: =IF(J79="","",INDEX(Stack_viewer_data!$P$10:$P$259,MATCH(J79,Stack_viewer_data!$Q$10:$Q$259,0))) ->  | J79: =IF(H79="","",OFFSET(Stack_viewer_data!$X$9,Viewer_displaced_position_start-1+$H79,0)) ->  | K79: =IF(J79="","",OFFSET(Stack_viewer_data!$Z$9,Viewer_displaced_position_start-1+$H79,0)) ->  | L79: =IF(K79="","",OFFSET(Stack_viewer_data!$AE$9,Viewer_displaced_position_start-1+$H79,0)) ->  | O79: =IF(P79="","",INDEX(Stack_viewer_data!$P$10:$P$259,MATCH(P79,Stack_viewer_data!$Q$10:$Q$259,0))) ->  | P79: =IF(Viewer_CLASS_position_in_stack=0,Stack_viewer_data!$X79,IF($N79>=Viewer_displaced_position_start-IF(Viewer_CLASS_position_in_stack>0,1,0),"",IF($N79>=Viewer_CLASS_position_in_stack,OFFSET(Stack_viewer_data!$X$9,$N79+1,0),OFFSET(Stack_viewer_data!$X$9,$N79,0)))) ->  | Q79: =IF(P79="","",INDEX(Stack_viewer_data!$Z$10:$Z$259,MATCH($P79,Stack_viewer_data!$X$10:$X$259,0))) ->  | R79: =IF(Q79="","",INDEX(Stack_viewer_data!$AE$10:$AE$259,MATCH($P79,Stack_viewer_data!$X$10:$X$259,0))) -> 
H80: =IFERROR(IF(H79+1>COUNTIF(Stack_viewer_data!$Z$10:$Z$259,">0")-Viewer_displaced_position_start+1,"",H79+1),"") ->  | I80: =IF(J80="","",INDEX(Stack_viewer_data!$P$10:$P$259,MATCH(J80,Stack_viewer_data!$Q$10:$Q$259,0))) ->  | J80: =IF(H80="","",OFFSET(Stack_viewer_data!$X$9,Viewer_displaced_position_start-1+$H80,0)) ->  | K80: =IF(J80="","",OFFSET(Stack_viewer_data!$Z$9,Viewer_displaced_position_start-1+$H80,0)) ->  | L80: =IF(K80="","",OFFSET(Stack_viewer_data!$AE$9,Viewer_displaced_position_start-1+$H80,0)) ->  | O80: =IF(P80="","",INDEX(Stack_viewer_data!$P$10:$P$259,MATCH(P80,Stack_viewer_data!$Q$10:$Q$259,0))) ->  | P80: =IF(Viewer_CLASS_position_in_stack=0,Stack_viewer_data!$X80,IF($N80>=Viewer_displaced_position_start-IF(Viewer_CLASS_position_in_stack>0,1,0),"",IF($N80>=Viewer_CLASS_position_in_stack,OFFSET(Stack_viewer_data!$X$9,$N80+1,0),OFFSET(Stack_viewer_data!$X$9,$N80,0)))) ->  | Q80: =IF(P80="","",INDEX(Stack_viewer_data!$Z$10:$Z$259,MATCH($P80,Stack_viewer_data!$X$10:$X$259,0))) ->  | R80: =IF(Q80="","",INDEX(Stack_viewer_data!$AE$10:$AE$259,MATCH($P80,Stack_viewer_data!$X$10:$X$259,0))) -> 
H81: =IFERROR(IF(H80+1>COUNTIF(Stack_viewer_data!$Z$10:$Z$259,">0")-Viewer_displaced_position_start+1,"",H80+1),"") ->  | I81: =IF(J81="","",INDEX(Stack_viewer_data!$P$10:$P$259,MATCH(J81,Stack_viewer_data!$Q$10:$Q$259,0))) ->  | J81: =IF(H81="","",OFFSET(Stack_viewer_data!$X$9,Viewer_displaced_position_start-1+$H81,0)) ->  | K81: =IF(J81="","",OFFSET(Stack_viewer_data!$Z$9,Viewer_displaced_position_start-1+$H81,0)) ->  | L81: =IF(K81="","",OFFSET(Stack_viewer_data!$AE$9,Viewer_displaced_position_start-1+$H81,0)) ->  | O81: =IF(P81="","",INDEX(Stack_viewer_data!$P$10:$P$259,MATCH(P81,Stack_viewer_data!$Q$10:$Q$259,0))) ->  | P81: =IF(Viewer_CLASS_position_in_stack=0,Stack_viewer_data!$X81,IF($N81>=Viewer_displaced_position_start-IF(Viewer_CLASS_position_in_stack>0,1,0),"",IF($N81>=Viewer_CLASS_position_in_stack,OFFSET(Stack_viewer_data!$X$9,$N81+1,0),OFFSET(Stack_viewer_data!$X$9,$N81,0)))) ->  | Q81: =IF(P81="","",INDEX(Stack_viewer_data!$Z$10:$Z$259,MATCH($P81,Stack_viewer_data!$X$10:$X$259,0))) ->  | R81: =IF(Q81="","",INDEX(Stack_viewer_data!$AE$10:$AE$259,MATCH($P81,Stack_viewer_data!$X$10:$X$259,0))) -> 
H82: =IFERROR(IF(H81+1>COUNTIF(Stack_viewer_data!$Z$10:$Z$259,">0")-Viewer_displaced_position_start+1,"",H81+1),"") ->  | I82: =IF(J82="","",INDEX(Stack_viewer_data!$P$10:$P$259,MATCH(J82,Stack_viewer_data!$Q$10:$Q$259,0))) ->  | J82: =IF(H82="","",OFFSET(Stack_viewer_data!$X$9,Viewer_displaced_position_start-1+$H82,0)) ->  | K82: =IF(J82="","",OFFSET(Stack_viewer_data!$Z$9,Viewer_displaced_position_start-1+$H82,0)) ->  | L82: =IF(K82="","",OFFSET(Stack_viewer_data!$AE$9,Viewer_displaced_position_start-1+$H82,0)) ->  | O82: =IF(P82="","",INDEX(Stack_viewer_data!$P$10:$P$259,MATCH(P82,Stack_viewer_data!$Q$10:$Q$259,0))) ->  | P82: =IF(Viewer_CLASS_position_in_stack=0,Stack_viewer_data!$X82,IF($N82>=Viewer_displaced_position_start-IF(Viewer_CLASS_position_in_stack>0,1,0),"",IF($N82>=Viewer_CLASS_position_in_stack,OFFSET(Stack_viewer_data!$X$9,$N82+1,0),OFFSET(Stack_viewer_data!$X$9,$N82,0)))) ->  | Q82: =IF(P82="","",INDEX(Stack_viewer_data!$Z$10:$Z$259,MATCH($P82,Stack_viewer_data!$X$10:$X$259,0))) ->  | R82: =IF(Q82="","",INDEX(Stack_viewer_data!$AE$10:$AE$259,MATCH($P82,Stack_viewer_data!$X$10:$X$259,0))) -> 
H83: =IFERROR(IF(H82+1>COUNTIF(Stack_viewer_data!$Z$10:$Z$259,">0")-Viewer_displaced_position_start+1,"",H82+1),"") ->  | I83: =IF(J83="","",INDEX(Stack_viewer_data!$P$10:$P$259,MATCH(J83,Stack_viewer_data!$Q$10:$Q$259,0))) ->  | J83: =IF(H83="","",OFFSET(Stack_viewer_data!$X$9,Viewer_displaced_position_start-1+$H83,0)) ->  | K83: =IF(J83="","",OFFSET(Stack_viewer_data!$Z$9,Viewer_displaced_position_start-1+$H83,0)) ->  | L83: =IF(K83="","",OFFSET(Stack_viewer_data!$AE$9,Viewer_displaced_position_start-1+$H83,0)) ->  | O83: =IF(P83="","",INDEX(Stack_viewer_data!$P$10:$P$259,MATCH(P83,Stack_viewer_data!$Q$10:$Q$259,0))) ->  | P83: =IF(Viewer_CLASS_position_in_stack=0,Stack_viewer_data!$X83,IF($N83>=Viewer_displaced_position_start-IF(Viewer_CLASS_position_in_stack>0,1,0),"",IF($N83>=Viewer_CLASS_position_in_stack,OFFSET(Stack_viewer_data!$X$9,$N83+1,0),OFFSET(Stack_viewer_data!$X$9,$N83,0)))) ->  | Q83: =IF(P83="","",INDEX(Stack_viewer_data!$Z$10:$Z$259,MATCH($P83,Stack_viewer_data!$X$10:$X$259,0))) ->  | R83: =IF(Q83="","",INDEX(Stack_viewer_data!$AE$10:$AE$259,MATCH($P83,Stack_viewer_data!$X$10:$X$259,0))) -> 
H84: =IFERROR(IF(H83+1>COUNTIF(Stack_viewer_data!$Z$10:$Z$259,">0")-Viewer_displaced_position_start+1,"",H83+1),"") ->  | I84: =IF(J84="","",INDEX(Stack_viewer_data!$P$10:$P$259,MATCH(J84,Stack_viewer_data!$Q$10:$Q$259,0))) ->  | J84: =IF(H84="","",OFFSET(Stack_viewer_data!$X$9,Viewer_displaced_position_start-1+$H84,0)) ->  | K84: =IF(J84="","",OFFSET(Stack_viewer_data!$Z$9,Viewer_displaced_position_start-1+$H84,0)) ->  | L84: =IF(K84="","",OFFSET(Stack_viewer_data!$AE$9,Viewer_displaced_position_start-1+$H84,0)) ->  | O84: =IF(P84="","",INDEX(Stack_viewer_data!$P$10:$P$259,MATCH(P84,Stack_viewer_data!$Q$10:$Q$259,0))) ->  | P84: =IF(Viewer_CLASS_position_in_stack=0,Stack_viewer_data!$X84,IF($N84>=Viewer_displaced_position_start-IF(Viewer_CLASS_position_in_stack>0,1,0),"",IF($N84>=Viewer_CLASS_position_in_stack,OFFSET(Stack_viewer_data!$X$9,$N84+1,0),OFFSET(Stack_viewer_data!$X$9,$N84,0)))) ->  | Q84: =IF(P84="","",INDEX(Stack_viewer_data!$Z$10:$Z$259,MATCH($P84,Stack_viewer_data!$X$10:$X$259,0))) ->  | R84: =IF(Q84="","",INDEX(Stack_viewer_data!$AE$10:$AE$259,MATCH($P84,Stack_viewer_data!$X$10:$X$259,0))) -> 
H85: =IFERROR(IF(H84+1>COUNTIF(Stack_viewer_data!$Z$10:$Z$259,">0")-Viewer_displaced_position_start+1,"",H84+1),"") ->  | I85: =IF(J85="","",INDEX(Stack_viewer_data!$P$10:$P$259,MATCH(J85,Stack_viewer_data!$Q$10:$Q$259,0))) ->  | J85: =IF(H85="","",OFFSET(Stack_viewer_data!$X$9,Viewer_displaced_position_start-1+$H85,0)) ->  | K85: =IF(J85="","",OFFSET(Stack_viewer_data!$Z$9,Viewer_displaced_position_start-1+$H85,0)) ->  | L85: =IF(K85="","",OFFSET(Stack_viewer_data!$AE$9,Viewer_displaced_position_start-1+$H85,0)) ->  | O85: =IF(P85="","",INDEX(Stack_viewer_data!$P$10:$P$259,MATCH(P85,Stack_viewer_data!$Q$10:$Q$259,0))) ->  | P85: =IF(Viewer_CLASS_position_in_stack=0,Stack_viewer_data!$X85,IF($N85>=Viewer_displaced_position_start-IF(Viewer_CLASS_position_in_stack>0,1,0),"",IF($N85>=Viewer_CLASS_position_in_stack,OFFSET(Stack_viewer_data!$X$9,$N85+1,0),OFFSET(Stack_viewer_data!$X$9,$N85,0)))) ->  | Q85: =IF(P85="","",INDEX(Stack_viewer_data!$Z$10:$Z$259,MATCH($P85,Stack_viewer_data!$X$10:$X$259,0))) ->  | R85: =IF(Q85="","",INDEX(Stack_viewer_data!$AE$10:$AE$259,MATCH($P85,Stack_viewer_data!$X$10:$X$259,0))) -> 
H86: =IFERROR(IF(H85+1>COUNTIF(Stack_viewer_data!$Z$10:$Z$259,">0")-Viewer_displaced_position_start+1,"",H85+1),"") ->  | I86: =IF(J86="","",INDEX(Stack_viewer_data!$P$10:$P$259,MATCH(J86,Stack_viewer_data!$Q$10:$Q$259,0))) ->  | J86: =IF(H86="","",OFFSET(Stack_viewer_data!$X$9,Viewer_displaced_position_start-1+$H86,0)) ->  | K86: =IF(J86="","",OFFSET(Stack_viewer_data!$Z$9,Viewer_displaced_position_start-1+$H86,0)) ->  | L86: =IF(K86="","",OFFSET(Stack_viewer_data!$AE$9,Viewer_displaced_position_start-1+$H86,0)) ->  | O86: =IF(P86="","",INDEX(Stack_viewer_data!$P$10:$P$259,MATCH(P86,Stack_viewer_data!$Q$10:$Q$259,0))) ->  | P86: =IF(Viewer_CLASS_position_in_stack=0,Stack_viewer_data!$X86,IF($N86>=Viewer_displaced_position_start-IF(Viewer_CLASS_position_in_stack>0,1,0),"",IF($N86>=Viewer_CLASS_position_in_stack,OFFSET(Stack_viewer_data!$X$9,$N86+1,0),OFFSET(Stack_viewer_data!$X$9,$N86,0)))) ->  | Q86: =IF(P86="","",INDEX(Stack_viewer_data!$Z$10:$Z$259,MATCH($P86,Stack_viewer_data!$X$10:$X$259,0))) ->  | R86: =IF(Q86="","",INDEX(Stack_viewer_data!$AE$10:$AE$259,MATCH($P86,Stack_viewer_data!$X$10:$X$259,0))) -> 
H87: =IFERROR(IF(H86+1>COUNTIF(Stack_viewer_data!$Z$10:$Z$259,">0")-Viewer_displaced_position_start+1,"",H86+1),"") ->  | I87: =IF(J87="","",INDEX(Stack_viewer_data!$P$10:$P$259,MATCH(J87,Stack_viewer_data!$Q$10:$Q$259,0))) ->  | J87: =IF(H87="","",OFFSET(Stack_viewer_data!$X$9,Viewer_displaced_position_start-1+$H87,0)) ->  | K87: =IF(J87="","",OFFSET(Stack_viewer_data!$Z$9,Viewer_displaced_position_start-1+$H87,0)) ->  | L87: =IF(K87="","",OFFSET(Stack_viewer_data!$AE$9,Viewer_displaced_position_start-1+$H87,0)) ->  | O87: =IF(P87="","",INDEX(Stack_viewer_data!$P$10:$P$259,MATCH(P87,Stack_viewer_data!$Q$10:$Q$259,0))) ->  | P87: =IF(Viewer_CLASS_position_in_stack=0,Stack_viewer_data!$X87,IF($N87>=Viewer_displaced_position_start-IF(Viewer_CLASS_position_in_stack>0,1,0),"",IF($N87>=Viewer_CLASS_position_in_stack,OFFSET(Stack_viewer_data!$X$9,$N87+1,0),OFFSET(Stack_viewer_data!$X$9,$N87,0)))) ->  | Q87: =IF(P87="","",INDEX(Stack_viewer_data!$Z$10:$Z$259,MATCH($P87,Stack_viewer_data!$X$10:$X$259,0))) ->  | R87: =IF(Q87="","",INDEX(Stack_viewer_data!$AE$10:$AE$259,MATCH($P87,Stack_viewer_data!$X$10:$X$259,0))) -> 
H88: =IFERROR(IF(H87+1>COUNTIF(Stack_viewer_data!$Z$10:$Z$259,">0")-Viewer_displaced_position_start+1,"",H87+1),"") ->  | I88: =IF(J88="","",INDEX(Stack_viewer_data!$P$10:$P$259,MATCH(J88,Stack_viewer_data!$Q$10:$Q$259,0))) ->  | J88: =IF(H88="","",OFFSET(Stack_viewer_data!$X$9,Viewer_displaced_position_start-1+$H88,0)) ->  | K88: =IF(J88="","",OFFSET(Stack_viewer_data!$Z$9,Viewer_displaced_position_start-1+$H88,0)) ->  | L88: =IF(K88="","",OFFSET(Stack_viewer_data!$AE$9,Viewer_displaced_position_start-1+$H88,0)) ->  | O88: =IF(P88="","",INDEX(Stack_viewer_data!$P$10:$P$259,MATCH(P88,Stack_viewer_data!$Q$10:$Q$259,0))) ->  | P88: =IF(Viewer_CLASS_position_in_stack=0,Stack_viewer_data!$X88,IF($N88>=Viewer_displaced_position_start-IF(Viewer_CLASS_position_in_stack>0,1,0),"",IF($N88>=Viewer_CLASS_position_in_stack,OFFSET(Stack_viewer_data!$X$9,$N88+1,0),OFFSET(Stack_viewer_data!$X$9,$N88,0)))) ->  | Q88: =IF(P88="","",INDEX(Stack_viewer_data!$Z$10:$Z$259,MATCH($P88,Stack_viewer_data!$X$10:$X$259,0))) ->  | R88: =IF(Q88="","",INDEX(Stack_viewer_data!$AE$10:$AE$259,MATCH($P88,Stack_viewer_data!$X$10:$X$259,0))) -> 
H89: =IFERROR(IF(H88+1>COUNTIF(Stack_viewer_data!$Z$10:$Z$259,">0")-Viewer_displaced_position_start+1,"",H88+1),"") ->  | I89: =IF(J89="","",INDEX(Stack_viewer_data!$P$10:$P$259,MATCH(J89,Stack_viewer_data!$Q$10:$Q$259,0))) ->  | J89: =IF(H89="","",OFFSET(Stack_viewer_data!$X$9,Viewer_displaced_position_start-1+$H89,0)) ->  | K89: =IF(J89="","",OFFSET(Stack_viewer_data!$Z$9,Viewer_displaced_position_start-1+$H89,0)) ->  | L89: =IF(K89="","",OFFSET(Stack_viewer_data!$AE$9,Viewer_displaced_position_start-1+$H89,0)) ->  | O89: =IF(P89="","",INDEX(Stack_viewer_data!$P$10:$P$259,MATCH(P89,Stack_viewer_data!$Q$10:$Q$259,0))) ->  | P89: =IF(Viewer_CLASS_position_in_stack=0,Stack_viewer_data!$X89,IF($N89>=Viewer_displaced_position_start-IF(Viewer_CLASS_position_in_stack>0,1,0),"",IF($N89>=Viewer_CLASS_position_in_stack,OFFSET(Stack_viewer_data!$X$9,$N89+1,0),OFFSET(Stack_viewer_data!$X$9,$N89,0)))) ->  | Q89: =IF(P89="","",INDEX(Stack_viewer_data!$Z$10:$Z$259,MATCH($P89,Stack_viewer_data!$X$10:$X$259,0))) ->  | R89: =IF(Q89="","",INDEX(Stack_viewer_data!$AE$10:$AE$259,MATCH($P89,Stack_viewer_data!$X$10:$X$259,0))) -> 
H90: =IFERROR(IF(H89+1>COUNTIF(Stack_viewer_data!$Z$10:$Z$259,">0")-Viewer_displaced_position_start+1,"",H89+1),"") ->  | I90: =IF(J90="","",INDEX(Stack_viewer_data!$P$10:$P$259,MATCH(J90,Stack_viewer_data!$Q$10:$Q$259,0))) ->  | J90: =IF(H90="","",OFFSET(Stack_viewer_data!$X$9,Viewer_displaced_position_start-1+$H90,0)) ->  | K90: =IF(J90="","",OFFSET(Stack_viewer_data!$Z$9,Viewer_displaced_position_start-1+$H90,0)) ->  | L90: =IF(K90="","",OFFSET(Stack_viewer_data!$AE$9,Viewer_displaced_position_start-1+$H90,0)) ->  | O90: =IF(P90="","",INDEX(Stack_viewer_data!$P$10:$P$259,MATCH(P90,Stack_viewer_data!$Q$10:$Q$259,0))) ->  | P90: =IF(Viewer_CLASS_position_in_stack=0,Stack_viewer_data!$X90,IF($N90>=Viewer_displaced_position_start-IF(Viewer_CLASS_position_in_stack>0,1,0),"",IF($N90>=Viewer_CLASS_position_in_stack,OFFSET(Stack_viewer_data!$X$9,$N90+1,0),OFFSET(Stack_viewer_data!$X$9,$N90,0)))) ->  | Q90: =IF(P90="","",INDEX(Stack_viewer_data!$Z$10:$Z$259,MATCH($P90,Stack_viewer_data!$X$10:$X$259,0))) ->  | R90: =IF(Q90="","",INDEX(Stack_viewer_data!$AE$10:$AE$259,MATCH($P90,Stack_viewer_data!$X$10:$X$259,0))) -> 
H91: =IFERROR(IF(H90+1>COUNTIF(Stack_viewer_data!$Z$10:$Z$259,">0")-Viewer_displaced_position_start+1,"",H90+1),"") ->  | I91: =IF(J91="","",INDEX(Stack_viewer_data!$P$10:$P$259,MATCH(J91,Stack_viewer_data!$Q$10:$Q$259,0))) ->  | J91: =IF(H91="","",OFFSET(Stack_viewer_data!$X$9,Viewer_displaced_position_start-1+$H91,0)) ->  | K91: =IF(J91="","",OFFSET(Stack_viewer_data!$Z$9,Viewer_displaced_position_start-1+$H91,0)) ->  | L91: =IF(K91="","",OFFSET(Stack_viewer_data!$AE$9,Viewer_displaced_position_start-1+$H91,0)) ->  | O91: =IF(P91="","",INDEX(Stack_viewer_data!$P$10:$P$259,MATCH(P91,Stack_viewer_data!$Q$10:$Q$259,0))) ->  | P91: =IF(Viewer_CLASS_position_in_stack=0,Stack_viewer_data!$X91,IF($N91>=Viewer_displaced_position_start-IF(Viewer_CLASS_position_in_stack>0,1,0),"",IF($N91>=Viewer_CLASS_position_in_stack,OFFSET(Stack_viewer_data!$X$9,$N91+1,0),OFFSET(Stack_viewer_data!$X$9,$N91,0)))) ->  | Q91: =IF(P91="","",INDEX(Stack_viewer_data!$Z$10:$Z$259,MATCH($P91,Stack_viewer_data!$X$10:$X$259,0))) ->  | R91: =IF(Q91="","",INDEX(Stack_viewer_data!$AE$10:$AE$259,MATCH($P91,Stack_viewer_data!$X$10:$X$259,0))) -> 
H92: =IFERROR(IF(H91+1>COUNTIF(Stack_viewer_data!$Z$10:$Z$259,">0")-Viewer_displaced_position_start+1,"",H91+1),"") ->  | I92: =IF(J92="","",INDEX(Stack_viewer_data!$P$10:$P$259,MATCH(J92,Stack_viewer_data!$Q$10:$Q$259,0))) ->  | J92: =IF(H92="","",OFFSET(Stack_viewer_data!$X$9,Viewer_displaced_position_start-1+$H92,0)) ->  | K92: =IF(J92="","",OFFSET(Stack_viewer_data!$Z$9,Viewer_displaced_position_start-1+$H92,0)) ->  | L92: =IF(K92="","",OFFSET(Stack_viewer_data!$AE$9,Viewer_displaced_position_start-1+$H92,0)) ->  | O92: =IF(P92="","",INDEX(Stack_viewer_data!$P$10:$P$259,MATCH(P92,Stack_viewer_data!$Q$10:$Q$259,0))) ->  | P92: =IF(Viewer_CLASS_position_in_stack=0,Stack_viewer_data!$X92,IF($N92>=Viewer_displaced_position_start-IF(Viewer_CLASS_position_in_stack>0,1,0),"",IF($N92>=Viewer_CLASS_position_in_stack,OFFSET(Stack_viewer_data!$X$9,$N92+1,0),OFFSET(Stack_viewer_data!$X$9,$N92,0)))) ->  | Q92: =IF(P92="","",INDEX(Stack_viewer_data!$Z$10:$Z$259,MATCH($P92,Stack_viewer_data!$X$10:$X$259,0))) ->  | R92: =IF(Q92="","",INDEX(Stack_viewer_data!$AE$10:$AE$259,MATCH($P92,Stack_viewer_data!$X$10:$X$259,0))) -> 
H93: =IFERROR(IF(H92+1>COUNTIF(Stack_viewer_data!$Z$10:$Z$259,">0")-Viewer_displaced_position_start+1,"",H92+1),"") ->  | I93: =IF(J93="","",INDEX(Stack_viewer_data!$P$10:$P$259,MATCH(J93,Stack_viewer_data!$Q$10:$Q$259,0))) ->  | J93: =IF(H93="","",OFFSET(Stack_viewer_data!$X$9,Viewer_displaced_position_start-1+$H93,0)) ->  | K93: =IF(J93="","",OFFSET(Stack_viewer_data!$Z$9,Viewer_displaced_position_start-1+$H93,0)) ->  | L93: =IF(K93="","",OFFSET(Stack_viewer_data!$AE$9,Viewer_displaced_position_start-1+$H93,0)) ->  | O93: =IF(P93="","",INDEX(Stack_viewer_data!$P$10:$P$259,MATCH(P93,Stack_viewer_data!$Q$10:$Q$259,0))) ->  | P93: =IF(Viewer_CLASS_position_in_stack=0,Stack_viewer_data!$X93,IF($N93>=Viewer_displaced_position_start-IF(Viewer_CLASS_position_in_stack>0,1,0),"",IF($N93>=Viewer_CLASS_position_in_stack,OFFSET(Stack_viewer_data!$X$9,$N93+1,0),OFFSET(Stack_viewer_data!$X$9,$N93,0)))) ->  | Q93: =IF(P93="","",INDEX(Stack_viewer_data!$Z$10:$Z$259,MATCH($P93,Stack_viewer_data!$X$10:$X$259,0))) ->  | R93: =IF(Q93="","",INDEX(Stack_viewer_data!$AE$10:$AE$259,MATCH($P93,Stack_viewer_data!$X$10:$X$259,0))) -> 
H94: =IFERROR(IF(H93+1>COUNTIF(Stack_viewer_data!$Z$10:$Z$259,">0")-Viewer_displaced_position_start+1,"",H93+1),"") ->  | I94: =IF(J94="","",INDEX(Stack_viewer_data!$P$10:$P$259,MATCH(J94,Stack_viewer_data!$Q$10:$Q$259,0))) ->  | J94: =IF(H94="","",OFFSET(Stack_viewer_data!$X$9,Viewer_displaced_position_start-1+$H94,0)) ->  | K94: =IF(J94="","",OFFSET(Stack_viewer_data!$Z$9,Viewer_displaced_position_start-1+$H94,0)) ->  | L94: =IF(K94="","",OFFSET(Stack_viewer_data!$AE$9,Viewer_displaced_position_start-1+$H94,0)) ->  | O94: =IF(P94="","",INDEX(Stack_viewer_data!$P$10:$P$259,MATCH(P94,Stack_viewer_data!$Q$10:$Q$259,0))) ->  | P94: =IF(Viewer_CLASS_position_in_stack=0,Stack_viewer_data!$X94,IF($N94>=Viewer_displaced_position_start-IF(Viewer_CLASS_position_in_stack>0,1,0),"",IF($N94>=Viewer_CLASS_position_in_stack,OFFSET(Stack_viewer_data!$X$9,$N94+1,0),OFFSET(Stack_viewer_data!$X$9,$N94,0)))) ->  | Q94: =IF(P94="","",INDEX(Stack_viewer_data!$Z$10:$Z$259,MATCH($P94,Stack_viewer_data!$X$10:$X$259,0))) ->  | R94: =IF(Q94="","",INDEX(Stack_viewer_data!$AE$10:$AE$259,MATCH($P94,Stack_viewer_data!$X$10:$X$259,0))) -> 
H95: =IFERROR(IF(H94+1>COUNTIF(Stack_viewer_data!$Z$10:$Z$259,">0")-Viewer_displaced_position_start+1,"",H94+1),"") ->  | I95: =IF(J95="","",INDEX(Stack_viewer_data!$P$10:$P$259,MATCH(J95,Stack_viewer_data!$Q$10:$Q$259,0))) ->  | J95: =IF(H95="","",OFFSET(Stack_viewer_data!$X$9,Viewer_displaced_position_start-1+$H95,0)) ->  | K95: =IF(J95="","",OFFSET(Stack_viewer_data!$Z$9,Viewer_displaced_position_start-1+$H95,0)) ->  | L95: =IF(K95="","",OFFSET(Stack_viewer_data!$AE$9,Viewer_displaced_position_start-1+$H95,0)) ->  | O95: =IF(P95="","",INDEX(Stack_viewer_data!$P$10:$P$259,MATCH(P95,Stack_viewer_data!$Q$10:$Q$259,0))) ->  | P95: =IF(Viewer_CLASS_position_in_stack=0,Stack_viewer_data!$X95,IF($N95>=Viewer_displaced_position_start-IF(Viewer_CLASS_position_in_stack>0,1,0),"",IF($N95>=Viewer_CLASS_position_in_stack,OFFSET(Stack_viewer_data!$X$9,$N95+1,0),OFFSET(Stack_viewer_data!$X$9,$N95,0)))) ->  | Q95: =IF(P95="","",INDEX(Stack_viewer_data!$Z$10:$Z$259,MATCH($P95,Stack_viewer_data!$X$10:$X$259,0))) ->  | R95: =IF(Q95="","",INDEX(Stack_viewer_data!$AE$10:$AE$259,MATCH($P95,Stack_viewer_data!$X$10:$X$259,0))) -> 
H96: =IFERROR(IF(H95+1>COUNTIF(Stack_viewer_data!$Z$10:$Z$259,">0")-Viewer_displaced_position_start+1,"",H95+1),"") ->  | I96: =IF(J96="","",INDEX(Stack_viewer_data!$P$10:$P$259,MATCH(J96,Stack_viewer_data!$Q$10:$Q$259,0))) ->  | J96: =IF(H96="","",OFFSET(Stack_viewer_data!$X$9,Viewer_displaced_position_start-1+$H96,0)) ->  | K96: =IF(J96="","",OFFSET(Stack_viewer_data!$Z$9,Viewer_displaced_position_start-1+$H96,0)) ->  | L96: =IF(K96="","",OFFSET(Stack_viewer_data!$AE$9,Viewer_displaced_position_start-1+$H96,0)) ->  | O96: =IF(P96="","",INDEX(Stack_viewer_data!$P$10:$P$259,MATCH(P96,Stack_viewer_data!$Q$10:$Q$259,0))) ->  | P96: =IF(Viewer_CLASS_position_in_stack=0,Stack_viewer_data!$X96,IF($N96>=Viewer_displaced_position_start-IF(Viewer_CLASS_position_in_stack>0,1,0),"",IF($N96>=Viewer_CLASS_position_in_stack,OFFSET(Stack_viewer_data!$X$9,$N96+1,0),OFFSET(Stack_viewer_data!$X$9,$N96,0)))) ->  | Q96: =IF(P96="","",INDEX(Stack_viewer_data!$Z$10:$Z$259,MATCH($P96,Stack_viewer_data!$X$10:$X$259,0))) ->  | R96: =IF(Q96="","",INDEX(Stack_viewer_data!$AE$10:$AE$259,MATCH($P96,Stack_viewer_data!$X$10:$X$259,0))) -> 
H97: =IFERROR(IF(H96+1>COUNTIF(Stack_viewer_data!$Z$10:$Z$259,">0")-Viewer_displaced_position_start+1,"",H96+1),"") ->  | I97: =IF(J97="","",INDEX(Stack_viewer_data!$P$10:$P$259,MATCH(J97,Stack_viewer_data!$Q$10:$Q$259,0))) ->  | J97: =IF(H97="","",OFFSET(Stack_viewer_data!$X$9,Viewer_displaced_position_start-1+$H97,0)) ->  | K97: =IF(J97="","",OFFSET(Stack_viewer_data!$Z$9,Viewer_displaced_position_start-1+$H97,0)) ->  | L97: =IF(K97="","",OFFSET(Stack_viewer_data!$AE$9,Viewer_displaced_position_start-1+$H97,0)) ->  | O97: =IF(P97="","",INDEX(Stack_viewer_data!$P$10:$P$259,MATCH(P97,Stack_viewer_data!$Q$10:$Q$259,0))) ->  | P97: =IF(Viewer_CLASS_position_in_stack=0,Stack_viewer_data!$X97,IF($N97>=Viewer_displaced_position_start-IF(Viewer_CLASS_position_in_stack>0,1,0),"",IF($N97>=Viewer_CLASS_position_in_stack,OFFSET(Stack_viewer_data!$X$9,$N97+1,0),OFFSET(Stack_viewer_data!$X$9,$N97,0)))) ->  | Q97: =IF(P97="","",INDEX(Stack_viewer_data!$Z$10:$Z$259,MATCH($P97,Stack_viewer_data!$X$10:$X$259,0))) ->  | R97: =IF(Q97="","",INDEX(Stack_viewer_data!$AE$10:$AE$259,MATCH($P97,Stack_viewer_data!$X$10:$X$259,0))) -> 
H98: =IFERROR(IF(H97+1>COUNTIF(Stack_viewer_data!$Z$10:$Z$259,">0")-Viewer_displaced_position_start+1,"",H97+1),"") ->  | I98: =IF(J98="","",INDEX(Stack_viewer_data!$P$10:$P$259,MATCH(J98,Stack_viewer_data!$Q$10:$Q$259,0))) ->  | J98: =IF(H98="","",OFFSET(Stack_viewer_data!$X$9,Viewer_displaced_position_start-1+$H98,0)) ->  | K98: =IF(J98="","",OFFSET(Stack_viewer_data!$Z$9,Viewer_displaced_position_start-1+$H98,0)) ->  | L98: =IF(K98="","",OFFSET(Stack_viewer_data!$AE$9,Viewer_displaced_position_start-1+$H98,0)) ->  | O98: =IF(P98="","",INDEX(Stack_viewer_data!$P$10:$P$259,MATCH(P98,Stack_viewer_data!$Q$10:$Q$259,0))) ->  | P98: =IF(Viewer_CLASS_position_in_stack=0,Stack_viewer_data!$X98,IF($N98>=Viewer_displaced_position_start-IF(Viewer_CLASS_position_in_stack>0,1,0),"",IF($N98>=Viewer_CLASS_position_in_stack,OFFSET(Stack_viewer_data!$X$9,$N98+1,0),OFFSET(Stack_viewer_data!$X$9,$N98,0)))) ->  | Q98: =IF(P98="","",INDEX(Stack_viewer_data!$Z$10:$Z$259,MATCH($P98,Stack_viewer_data!$X$10:$X$259,0))) ->  | R98: =IF(Q98="","",INDEX(Stack_viewer_data!$AE$10:$AE$259,MATCH($P98,Stack_viewer_data!$X$10:$X$259,0))) -> 
H99: =IFERROR(IF(H98+1>COUNTIF(Stack_viewer_data!$Z$10:$Z$259,">0")-Viewer_displaced_position_start+1,"",H98+1),"") ->  | I99: =IF(J99="","",INDEX(Stack_viewer_data!$P$10:$P$259,MATCH(J99,Stack_viewer_data!$Q$10:$Q$259,0))) ->  | J99: =IF(H99="","",OFFSET(Stack_viewer_data!$X$9,Viewer_displaced_position_start-1+$H99,0)) ->  | K99: =IF(J99="","",OFFSET(Stack_viewer_data!$Z$9,Viewer_displaced_position_start-1+$H99,0)) ->  | L99: =IF(K99="","",OFFSET(Stack_viewer_data!$AE$9,Viewer_displaced_position_start-1+$H99,0)) ->  | O99: =IF(P99="","",INDEX(Stack_viewer_data!$P$10:$P$259,MATCH(P99,Stack_viewer_data!$Q$10:$Q$259,0))) ->  | P99: =IF(Viewer_CLASS_position_in_stack=0,Stack_viewer_data!$X99,IF($N99>=Viewer_displaced_position_start-IF(Viewer_CLASS_position_in_stack>0,1,0),"",IF($N99>=Viewer_CLASS_position_in_stack,OFFSET(Stack_viewer_data!$X$9,$N99+1,0),OFFSET(Stack_viewer_data!$X$9,$N99,0)))) ->  | Q99: =IF(P99="","",INDEX(Stack_viewer_data!$Z$10:$Z$259,MATCH($P99,Stack_viewer_data!$X$10:$X$259,0))) ->  | R99: =IF(Q99="","",INDEX(Stack_viewer_data!$AE$10:$AE$259,MATCH($P99,Stack_viewer_data!$X$10:$X$259,0))) -> 
H100: =IFERROR(IF(H99+1>COUNTIF(Stack_viewer_data!$Z$10:$Z$259,">0")-Viewer_displaced_position_start+1,"",H99+1),"") ->  | I100: =IF(J100="","",INDEX(Stack_viewer_data!$P$10:$P$259,MATCH(J100,Stack_viewer_data!$Q$10:$Q$259,0))) ->  | J100: =IF(H100="","",OFFSET(Stack_viewer_data!$X$9,Viewer_displaced_position_start-1+$H100,0)) ->  | K100: =IF(J100="","",OFFSET(Stack_viewer_data!$Z$9,Viewer_displaced_position_start-1+$H100,0)) ->  | L100: =IF(K100="","",OFFSET(Stack_viewer_data!$AE$9,Viewer_displaced_position_start-1+$H100,0)) ->  | O100: =IF(P100="","",INDEX(Stack_viewer_data!$P$10:$P$259,MATCH(P100,Stack_viewer_data!$Q$10:$Q$259,0))) ->  | P100: =IF(Viewer_CLASS_position_in_stack=0,Stack_viewer_data!$X100,IF($N100>=Viewer_displaced_position_start-IF(Viewer_CLASS_position_in_stack>0,1,0),"",IF($N100>=Viewer_CLASS_position_in_stack,OFFSET(Stack_viewer_data!$X$9,$N100+1,0),OFFSET(Stack_viewer_data!$X$9,$N100,0)))) ->  | Q100: =IF(P100="","",INDEX(Stack_viewer_data!$Z$10:$Z$259,MATCH($P100,Stack_viewer_data!$X$10:$X$259,0))) ->  | R100: =IF(Q100="","",INDEX(Stack_viewer_data!$AE$10:$AE$259,MATCH($P100,Stack_viewer_data!$X$10:$X$259,0))) -> 
H101: =IFERROR(IF(H100+1>COUNTIF(Stack_viewer_data!$Z$10:$Z$259,">0")-Viewer_displaced_position_start+1,"",H100+1),"") ->  | I101: =IF(J101="","",INDEX(Stack_viewer_data!$P$10:$P$259,MATCH(J101,Stack_viewer_data!$Q$10:$Q$259,0))) ->  | J101: =IF(H101="","",OFFSET(Stack_viewer_data!$X$9,Viewer_displaced_position_start-1+$H101,0)) ->  | K101: =IF(J101="","",OFFSET(Stack_viewer_data!$Z$9,Viewer_displaced_position_start-1+$H101,0)) ->  | L101: =IF(K101="","",OFFSET(Stack_viewer_data!$AE$9,Viewer_displaced_position_start-1+$H101,0)) ->  | O101: =IF(P101="","",INDEX(Stack_viewer_data!$P$10:$P$259,MATCH(P101,Stack_viewer_data!$Q$10:$Q$259,0))) ->  | P101: =IF(Viewer_CLASS_position_in_stack=0,Stack_viewer_data!$X101,IF($N101>=Viewer_displaced_position_start-IF(Viewer_CLASS_position_in_stack>0,1,0),"",IF($N101>=Viewer_CLASS_position_in_stack,OFFSET(Stack_viewer_data!$X$9,$N101+1,0),OFFSET(Stack_viewer_data!$X$9,$N101,0)))) ->  | Q101: =IF(P101="","",INDEX(Stack_viewer_data!$Z$10:$Z$259,MATCH($P101,Stack_viewer_data!$X$10:$X$259,0))) ->  | R101: =IF(Q101="","",INDEX(Stack_viewer_data!$AE$10:$AE$259,MATCH($P101,Stack_viewer_data!$X$10:$X$259,0))) -> 
H102: =IFERROR(IF(H101+1>COUNTIF(Stack_viewer_data!$Z$10:$Z$259,">0")-Viewer_displaced_position_start+1,"",H101+1),"") ->  | I102: =IF(J102="","",INDEX(Stack_viewer_data!$P$10:$P$259,MATCH(J102,Stack_viewer_data!$Q$10:$Q$259,0))) ->  | J102: =IF(H102="","",OFFSET(Stack_viewer_data!$X$9,Viewer_displaced_position_start-1+$H102,0)) ->  | K102: =IF(J102="","",OFFSET(Stack_viewer_data!$Z$9,Viewer_displaced_position_start-1+$H102,0)) ->  | L102: =IF(K102="","",OFFSET(Stack_viewer_data!$AE$9,Viewer_displaced_position_start-1+$H102,0)) ->  | O102: =IF(P102="","",INDEX(Stack_viewer_data!$P$10:$P$259,MATCH(P102,Stack_viewer_data!$Q$10:$Q$259,0))) ->  | P102: =IF(Viewer_CLASS_position_in_stack=0,Stack_viewer_data!$X102,IF($N102>=Viewer_displaced_position_start-IF(Viewer_CLASS_position_in_stack>0,1,0),"",IF($N102>=Viewer_CLASS_position_in_stack,OFFSET(Stack_viewer_data!$X$9,$N102+1,0),OFFSET(Stack_viewer_data!$X$9,$N102,0)))) ->  | Q102: =IF(P102="","",INDEX(Stack_viewer_data!$Z$10:$Z$259,MATCH($P102,Stack_viewer_data!$X$10:$X$259,0))) ->  | R102: =IF(Q102="","",INDEX(Stack_viewer_data!$AE$10:$AE$259,MATCH($P102,Stack_viewer_data!$X$10:$X$259,0))) -> 
H103: =IFERROR(IF(H102+1>COUNTIF(Stack_viewer_data!$Z$10:$Z$259,">0")-Viewer_displaced_position_start+1,"",H102+1),"") ->  | I103: =IF(J103="","",INDEX(Stack_viewer_data!$P$10:$P$259,MATCH(J103,Stack_viewer_data!$Q$10:$Q$259,0))) ->  | J103: =IF(H103="","",OFFSET(Stack_viewer_data!$X$9,Viewer_displaced_position_start-1+$H103,0)) ->  | K103: =IF(J103="","",OFFSET(Stack_viewer_data!$Z$9,Viewer_displaced_position_start-1+$H103,0)) ->  | L103: =IF(K103="","",OFFSET(Stack_viewer_data!$AE$9,Viewer_displaced_position_start-1+$H103,0)) ->  | O103: =IF(P103="","",INDEX(Stack_viewer_data!$P$10:$P$259,MATCH(P103,Stack_viewer_data!$Q$10:$Q$259,0))) ->  | P103: =IF(Viewer_CLASS_position_in_stack=0,Stack_viewer_data!$X103,IF($N103>=Viewer_displaced_position_start-IF(Viewer_CLASS_position_in_stack>0,1,0),"",IF($N103>=Viewer_CLASS_position_in_stack,OFFSET(Stack_viewer_data!$X$9,$N103+1,0),OFFSET(Stack_viewer_data!$X$9,$N103,0)))) ->  | Q103: =IF(P103="","",INDEX(Stack_viewer_data!$Z$10:$Z$259,MATCH($P103,Stack_viewer_data!$X$10:$X$259,0))) ->  | R103: =IF(Q103="","",INDEX(Stack_viewer_data!$AE$10:$AE$259,MATCH($P103,Stack_viewer_data!$X$10:$X$259,0))) -> 
H104: =IFERROR(IF(H103+1>COUNTIF(Stack_viewer_data!$Z$10:$Z$259,">0")-Viewer_displaced_position_start+1,"",H103+1),"") ->  | I104: =IF(J104="","",INDEX(Stack_viewer_data!$P$10:$P$259,MATCH(J104,Stack_viewer_data!$Q$10:$Q$259,0))) ->  | J104: =IF(H104="","",OFFSET(Stack_viewer_data!$X$9,Viewer_displaced_position_start-1+$H104,0)) ->  | K104: =IF(J104="","",OFFSET(Stack_viewer_data!$Z$9,Viewer_displaced_position_start-1+$H104,0)) ->  | L104: =IF(K104="","",OFFSET(Stack_viewer_data!$AE$9,Viewer_displaced_position_start-1+$H104,0)) ->  | O104: =IF(P104="","",INDEX(Stack_viewer_data!$P$10:$P$259,MATCH(P104,Stack_viewer_data!$Q$10:$Q$259,0))) ->  | P104: =IF(Viewer_CLASS_position_in_stack=0,Stack_viewer_data!$X104,IF($N104>=Viewer_displaced_position_start-IF(Viewer_CLASS_position_in_stack>0,1,0),"",IF($N104>=Viewer_CLASS_position_in_stack,OFFSET(Stack_viewer_data!$X$9,$N104+1,0),OFFSET(Stack_viewer_data!$X$9,$N104,0)))) ->  | Q104: =IF(P104="","",INDEX(Stack_viewer_data!$Z$10:$Z$259,MATCH($P104,Stack_viewer_data!$X$10:$X$259,0))) ->  | R104: =IF(Q104="","",INDEX(Stack_viewer_data!$AE$10:$AE$259,MATCH($P104,Stack_viewer_data!$X$10:$X$259,0))) -> 
H105: =IFERROR(IF(H104+1>COUNTIF(Stack_viewer_data!$Z$10:$Z$259,">0")-Viewer_displaced_position_start+1,"",H104+1),"") ->  | I105: =IF(J105="","",INDEX(Stack_viewer_data!$P$10:$P$259,MATCH(J105,Stack_viewer_data!$Q$10:$Q$259,0))) ->  | J105: =IF(H105="","",OFFSET(Stack_viewer_data!$X$9,Viewer_displaced_position_start-1+$H105,0)) ->  | K105: =IF(J105="","",OFFSET(Stack_viewer_data!$Z$9,Viewer_displaced_position_start-1+$H105,0)) ->  | L105: =IF(K105="","",OFFSET(Stack_viewer_data!$AE$9,Viewer_displaced_position_start-1+$H105,0)) ->  | O105: =IF(P105="","",INDEX(Stack_viewer_data!$P$10:$P$259,MATCH(P105,Stack_viewer_data!$Q$10:$Q$259,0))) ->  | P105: =IF(Viewer_CLASS_position_in_stack=0,Stack_viewer_data!$X105,IF($N105>=Viewer_displaced_position_start-IF(Viewer_CLASS_position_in_stack>0,1,0),"",IF($N105>=Viewer_CLASS_position_in_stack,OFFSET(Stack_viewer_data!$X$9,$N105+1,0),OFFSET(Stack_viewer_data!$X$9,$N105,0)))) ->  | Q105: =IF(P105="","",INDEX(Stack_viewer_data!$Z$10:$Z$259,MATCH($P105,Stack_viewer_data!$X$10:$X$259,0))) ->  | R105: =IF(Q105="","",INDEX(Stack_viewer_data!$AE$10:$AE$259,MATCH($P105,Stack_viewer_data!$X$10:$X$259,0))) -> 
H106: =IFERROR(IF(H105+1>COUNTIF(Stack_viewer_data!$Z$10:$Z$259,">0")-Viewer_displaced_position_start+1,"",H105+1),"") ->  | I106: =IF(J106="","",INDEX(Stack_viewer_data!$P$10:$P$259,MATCH(J106,Stack_viewer_data!$Q$10:$Q$259,0))) ->  | J106: =IF(H106="","",OFFSET(Stack_viewer_data!$X$9,Viewer_displaced_position_start-1+$H106,0)) ->  | K106: =IF(J106="","",OFFSET(Stack_viewer_data!$Z$9,Viewer_displaced_position_start-1+$H106,0)) ->  | L106: =IF(K106="","",OFFSET(Stack_viewer_data!$AE$9,Viewer_displaced_position_start-1+$H106,0)) ->  | O106: =IF(P106="","",INDEX(Stack_viewer_data!$P$10:$P$259,MATCH(P106,Stack_viewer_data!$Q$10:$Q$259,0))) ->  | P106: =IF(Viewer_CLASS_position_in_stack=0,Stack_viewer_data!$X106,IF($N106>=Viewer_displaced_position_start-IF(Viewer_CLASS_position_in_stack>0,1,0),"",IF($N106>=Viewer_CLASS_position_in_stack,OFFSET(Stack_viewer_data!$X$9,$N106+1,0),OFFSET(Stack_viewer_data!$X$9,$N106,0)))) ->  | Q106: =IF(P106="","",INDEX(Stack_viewer_data!$Z$10:$Z$259,MATCH($P106,Stack_viewer_data!$X$10:$X$259,0))) ->  | R106: =IF(Q106="","",INDEX(Stack_viewer_data!$AE$10:$AE$259,MATCH($P106,Stack_viewer_data!$X$10:$X$259,0))) -> 
H107: =IFERROR(IF(H106+1>COUNTIF(Stack_viewer_data!$Z$10:$Z$259,">0")-Viewer_displaced_position_start+1,"",H106+1),"") ->  | I107: =IF(J107="","",INDEX(Stack_viewer_data!$P$10:$P$259,MATCH(J107,Stack_viewer_data!$Q$10:$Q$259,0))) ->  | J107: =IF(H107="","",OFFSET(Stack_viewer_data!$X$9,Viewer_displaced_position_start-1+$H107,0)) ->  | K107: =IF(J107="","",OFFSET(Stack_viewer_data!$Z$9,Viewer_displaced_position_start-1+$H107,0)) ->  | L107: =IF(K107="","",OFFSET(Stack_viewer_data!$AE$9,Viewer_displaced_position_start-1+$H107,0)) ->  | N107: =IFERROR(IF(OR(N106+1>=Viewer_displaced_position_start-IF(Viewer_CLASS_position_in_stack>0,1,0),N106=""),"",N106+1),"") ->  | O107: =IF(P107="","",INDEX(Stack_viewer_data!$P$10:$P$259,MATCH(P107,Stack_viewer_data!$Q$10:$Q$259,0))) ->  | P107: =IF(Viewer_CLASS_position_in_stack=0,Stack_viewer_data!$X107,IF($N107>=Viewer_displaced_position_start-IF(Viewer_CLASS_position_in_stack>0,1,0),"",IF($N107>=Viewer_CLASS_position_in_stack,OFFSET(Stack_viewer_data!$X$9,$N107+1,0),OFFSET(Stack_viewer_data!$X$9,$N107,0)))) ->  | Q107: =IF(P107="","",INDEX(Stack_viewer_data!$Z$10:$Z$259,MATCH($P107,Stack_viewer_data!$X$10:$X$259,0))) ->  | R107: =IF(Q107="","",INDEX(Stack_viewer_data!$AE$10:$AE$259,MATCH($P107,Stack_viewer_data!$X$10:$X$259,0))) -> 
H108: =IFERROR(IF(H107+1>COUNTIF(Stack_viewer_data!$Z$10:$Z$259,">0")-Viewer_displaced_position_start+1,"",H107+1),"") ->  | I108: =IF(J108="","",INDEX(Stack_viewer_data!$P$10:$P$259,MATCH(J108,Stack_viewer_data!$Q$10:$Q$259,0))) ->  | J108: =IF(H108="","",OFFSET(Stack_viewer_data!$X$9,Viewer_displaced_position_start-1+$H108,0)) ->  | K108: =IF(J108="","",OFFSET(Stack_viewer_data!$Z$9,Viewer_displaced_position_start-1+$H108,0)) ->  | L108: =IF(K108="","",OFFSET(Stack_viewer_data!$AE$9,Viewer_displaced_position_start-1+$H108,0)) ->  | O108: =IF(P108="","",INDEX(Stack_viewer_data!$P$10:$P$259,MATCH(P108,Stack_viewer_data!$Q$10:$Q$259,0))) ->  | P108: =IF(Viewer_CLASS_position_in_stack=0,Stack_viewer_data!$X108,IF($N108>=Viewer_displaced_position_start-IF(Viewer_CLASS_position_in_stack>0,1,0),"",IF($N108>=Viewer_CLASS_position_in_stack,OFFSET(Stack_viewer_data!$X$9,$N108+1,0),OFFSET(Stack_viewer_data!$X$9,$N108,0)))) ->  | Q108: =IF(P108="","",INDEX(Stack_viewer_data!$Z$10:$Z$259,MATCH($P108,Stack_viewer_data!$X$10:$X$259,0))) ->  | R108: =IF(Q108="","",INDEX(Stack_viewer_data!$AE$10:$AE$259,MATCH($P108,Stack_viewer_data!$X$10:$X$259,0))) -> 
H109: =IFERROR(IF(H108+1>COUNTIF(Stack_viewer_data!$Z$10:$Z$259,">0")-Viewer_displaced_position_start+1,"",H108+1),"") ->  | I109: =IF(J109="","",INDEX(Stack_viewer_data!$P$10:$P$259,MATCH(J109,Stack_viewer_data!$Q$10:$Q$259,0))) ->  | J109: =IF(H109="","",OFFSET(Stack_viewer_data!$X$9,Viewer_displaced_position_start-1+$H109,0)) ->  | K109: =IF(J109="","",OFFSET(Stack_viewer_data!$Z$9,Viewer_displaced_position_start-1+$H109,0)) ->  | L109: =IF(K109="","",OFFSET(Stack_viewer_data!$AE$9,Viewer_displaced_position_start-1+$H109,0)) ->  | O109: =IF(P109="","",INDEX(Stack_viewer_data!$P$10:$P$259,MATCH(P109,Stack_viewer_data!$Q$10:$Q$259,0))) ->  | P109: =IF(Viewer_CLASS_position_in_stack=0,Stack_viewer_data!$X109,IF($N109>=Viewer_displaced_position_start-IF(Viewer_CLASS_position_in_stack>0,1,0),"",IF($N109>=Viewer_CLASS_position_in_stack,OFFSET(Stack_viewer_data!$X$9,$N109+1,0),OFFSET(Stack_viewer_data!$X$9,$N109,0)))) ->  | Q109: =IF(P109="","",INDEX(Stack_viewer_data!$Z$10:$Z$259,MATCH($P109,Stack_viewer_data!$X$10:$X$259,0))) ->  | R109: =IF(Q109="","",INDEX(Stack_viewer_data!$AE$10:$AE$259,MATCH($P109,Stack_viewer_data!$X$10:$X$259,0))) -> 
H110: =IFERROR(IF(H109+1>COUNTIF(Stack_viewer_data!$Z$10:$Z$259,">0")-Viewer_displaced_position_start+1,"",H109+1),"") ->  | I110: =IF(J110="","",INDEX(Stack_viewer_data!$P$10:$P$259,MATCH(J110,Stack_viewer_data!$Q$10:$Q$259,0))) ->  | J110: =IF(H110="","",OFFSET(Stack_viewer_data!$X$9,Viewer_displaced_position_start-1+$H110,0)) ->  | K110: =IF(J110="","",OFFSET(Stack_viewer_data!$Z$9,Viewer_displaced_position_start-1+$H110,0)) ->  | L110: =IF(K110="","",OFFSET(Stack_viewer_data!$AE$9,Viewer_displaced_position_start-1+$H110,0)) ->  | O110: =IF(P110="","",INDEX(Stack_viewer_data!$P$10:$P$259,MATCH(P110,Stack_viewer_data!$Q$10:$Q$259,0))) ->  | P110: =IF(Viewer_CLASS_position_in_stack=0,Stack_viewer_data!$X110,IF($N110>=Viewer_displaced_position_start-IF(Viewer_CLASS_position_in_stack>0,1,0),"",IF($N110>=Viewer_CLASS_position_in_stack,OFFSET(Stack_viewer_data!$X$9,$N110+1,0),OFFSET(Stack_viewer_data!$X$9,$N110,0)))) ->  | Q110: =IF(P110="","",INDEX(Stack_viewer_data!$Z$10:$Z$259,MATCH($P110,Stack_viewer_data!$X$10:$X$259,0))) ->  | R110: =IF(Q110="","",INDEX(Stack_viewer_data!$AE$10:$AE$259,MATCH($P110,Stack_viewer_data!$X$10:$X$259,0))) -> 
H111: =IFERROR(IF(H110+1>COUNTIF(Stack_viewer_data!$Z$10:$Z$259,">0")-Viewer_displaced_position_start+1,"",H110+1),"") ->  | I111: =IF(J111="","",INDEX(Stack_viewer_data!$P$10:$P$259,MATCH(J111,Stack_viewer_data!$Q$10:$Q$259,0))) ->  | J111: =IF(H111="","",OFFSET(Stack_viewer_data!$X$9,Viewer_displaced_position_start-1+$H111,0)) ->  | K111: =IF(J111="","",OFFSET(Stack_viewer_data!$Z$9,Viewer_displaced_position_start-1+$H111,0)) ->  | L111: =IF(K111="","",OFFSET(Stack_viewer_data!$AE$9,Viewer_displaced_position_start-1+$H111,0)) ->  | O111: =IF(P111="","",INDEX(Stack_viewer_data!$P$10:$P$259,MATCH(P111,Stack_viewer_data!$Q$10:$Q$259,0))) ->  | P111: =IF(Viewer_CLASS_position_in_stack=0,Stack_viewer_data!$X111,IF($N111>=Viewer_displaced_position_start-IF(Viewer_CLASS_position_in_stack>0,1,0),"",IF($N111>=Viewer_CLASS_position_in_stack,OFFSET(Stack_viewer_data!$X$9,$N111+1,0),OFFSET(Stack_viewer_data!$X$9,$N111,0)))) ->  | Q111: =IF(P111="","",INDEX(Stack_viewer_data!$Z$10:$Z$259,MATCH($P111,Stack_viewer_data!$X$10:$X$259,0))) ->  | R111: =IF(Q111="","",INDEX(Stack_viewer_data!$AE$10:$AE$259,MATCH($P111,Stack_viewer_data!$X$10:$X$259,0))) -> 
H112: =IFERROR(IF(H111+1>COUNTIF(Stack_viewer_data!$Z$10:$Z$259,">0")-Viewer_displaced_position_start+1,"",H111+1),"") ->  | I112: =IF(J112="","",INDEX(Stack_viewer_data!$P$10:$P$259,MATCH(J112,Stack_viewer_data!$Q$10:$Q$259,0))) ->  | J112: =IF(H112="","",OFFSET(Stack_viewer_data!$X$9,Viewer_displaced_position_start-1+$H112,0)) ->  | K112: =IF(J112="","",OFFSET(Stack_viewer_data!$Z$9,Viewer_displaced_position_start-1+$H112,0)) ->  | L112: =IF(K112="","",OFFSET(Stack_viewer_data!$AE$9,Viewer_displaced_position_start-1+$H112,0)) ->  | O112: =IF(P112="","",INDEX(Stack_viewer_data!$P$10:$P$259,MATCH(P112,Stack_viewer_data!$Q$10:$Q$259,0))) ->  | P112: =IF(Viewer_CLASS_position_in_stack=0,Stack_viewer_data!$X112,IF($N112>=Viewer_displaced_position_start-IF(Viewer_CLASS_position_in_stack>0,1,0),"",IF($N112>=Viewer_CLASS_position_in_stack,OFFSET(Stack_viewer_data!$X$9,$N112+1,0),OFFSET(Stack_viewer_data!$X$9,$N112,0)))) ->  | Q112: =IF(P112="","",INDEX(Stack_viewer_data!$Z$10:$Z$259,MATCH($P112,Stack_viewer_data!$X$10:$X$259,0))) ->  | R112: =IF(Q112="","",INDEX(Stack_viewer_data!$AE$10:$AE$259,MATCH($P112,Stack_viewer_data!$X$10:$X$259,0))) -> 
H113: =IFERROR(IF(H112+1>COUNTIF(Stack_viewer_data!$Z$10:$Z$259,">0")-Viewer_displaced_position_start+1,"",H112+1),"") ->  | I113: =IF(J113="","",INDEX(Stack_viewer_data!$P$10:$P$259,MATCH(J113,Stack_viewer_data!$Q$10:$Q$259,0))) ->  | J113: =IF(H113="","",OFFSET(Stack_viewer_data!$X$9,Viewer_displaced_position_start-1+$H113,0)) ->  | K113: =IF(J113="","",OFFSET(Stack_viewer_data!$Z$9,Viewer_displaced_position_start-1+$H113,0)) ->  | L113: =IF(K113="","",OFFSET(Stack_viewer_data!$AE$9,Viewer_displaced_position_start-1+$H113,0)) ->  | O113: =IF(P113="","",INDEX(Stack_viewer_data!$P$10:$P$259,MATCH(P113,Stack_viewer_data!$Q$10:$Q$259,0))) ->  | P113: =IF(Viewer_CLASS_position_in_stack=0,Stack_viewer_data!$X113,IF($N113>=Viewer_displaced_position_start-IF(Viewer_CLASS_position_in_stack>0,1,0),"",IF($N113>=Viewer_CLASS_position_in_stack,OFFSET(Stack_viewer_data!$X$9,$N113+1,0),OFFSET(Stack_viewer_data!$X$9,$N113,0)))) ->  | Q113: =IF(P113="","",INDEX(Stack_viewer_data!$Z$10:$Z$259,MATCH($P113,Stack_viewer_data!$X$10:$X$259,0))) ->  | R113: =IF(Q113="","",INDEX(Stack_viewer_data!$AE$10:$AE$259,MATCH($P113,Stack_viewer_data!$X$10:$X$259,0))) -> 
H114: =IFERROR(IF(H113+1>COUNTIF(Stack_viewer_data!$Z$10:$Z$259,">0")-Viewer_displaced_position_start+1,"",H113+1),"") ->  | I114: =IF(J114="","",INDEX(Stack_viewer_data!$P$10:$P$259,MATCH(J114,Stack_viewer_data!$Q$10:$Q$259,0))) ->  | J114: =IF(H114="","",OFFSET(Stack_viewer_data!$X$9,Viewer_displaced_position_start-1+$H114,0)) ->  | K114: =IF(J114="","",OFFSET(Stack_viewer_data!$Z$9,Viewer_displaced_position_start-1+$H114,0)) ->  | L114: =IF(K114="","",OFFSET(Stack_viewer_data!$AE$9,Viewer_displaced_position_start-1+$H114,0)) ->  | O114: =IF(P114="","",INDEX(Stack_viewer_data!$P$10:$P$259,MATCH(P114,Stack_viewer_data!$Q$10:$Q$259,0))) ->  | P114: =IF(Viewer_CLASS_position_in_stack=0,Stack_viewer_data!$X114,IF($N114>=Viewer_displaced_position_start-IF(Viewer_CLASS_position_in_stack>0,1,0),"",IF($N114>=Viewer_CLASS_position_in_stack,OFFSET(Stack_viewer_data!$X$9,$N114+1,0),OFFSET(Stack_viewer_data!$X$9,$N114,0)))) ->  | Q114: =IF(P114="","",INDEX(Stack_viewer_data!$Z$10:$Z$259,MATCH($P114,Stack_viewer_data!$X$10:$X$259,0))) ->  | R114: =IF(Q114="","",INDEX(Stack_viewer_data!$AE$10:$AE$259,MATCH($P114,Stack_viewer_data!$X$10:$X$259,0))) -> 
H115: =IFERROR(IF(H114+1>COUNTIF(Stack_viewer_data!$Z$10:$Z$259,">0")-Viewer_displaced_position_start+1,"",H114+1),"") ->  | I115: =IF(J115="","",INDEX(Stack_viewer_data!$P$10:$P$259,MATCH(J115,Stack_viewer_data!$Q$10:$Q$259,0))) ->  | J115: =IF(H115="","",OFFSET(Stack_viewer_data!$X$9,Viewer_displaced_position_start-1+$H115,0)) ->  | K115: =IF(J115="","",OFFSET(Stack_viewer_data!$Z$9,Viewer_displaced_position_start-1+$H115,0)) ->  | L115: =IF(K115="","",OFFSET(Stack_viewer_data!$AE$9,Viewer_displaced_position_start-1+$H115,0)) ->  | O115: =IF(P115="","",INDEX(Stack_viewer_data!$P$10:$P$259,MATCH(P115,Stack_viewer_data!$Q$10:$Q$259,0))) ->  | P115: =IF(Viewer_CLASS_position_in_stack=0,Stack_viewer_data!$X115,IF($N115>=Viewer_displaced_position_start-IF(Viewer_CLASS_position_in_stack>0,1,0),"",IF($N115>=Viewer_CLASS_position_in_stack,OFFSET(Stack_viewer_data!$X$9,$N115+1,0),OFFSET(Stack_viewer_data!$X$9,$N115,0)))) ->  | Q115: =IF(P115="","",INDEX(Stack_viewer_data!$Z$10:$Z$259,MATCH($P115,Stack_viewer_data!$X$10:$X$259,0))) ->  | R115: =IF(Q115="","",INDEX(Stack_viewer_data!$AE$10:$AE$259,MATCH($P115,Stack_viewer_data!$X$10:$X$259,0))) -> 
H116: =IFERROR(IF(H115+1>COUNTIF(Stack_viewer_data!$Z$10:$Z$259,">0")-Viewer_displaced_position_start+1,"",H115+1),"") ->  | I116: =IF(J116="","",INDEX(Stack_viewer_data!$P$10:$P$259,MATCH(J116,Stack_viewer_data!$Q$10:$Q$259,0))) ->  | J116: =IF(H116="","",OFFSET(Stack_viewer_data!$X$9,Viewer_displaced_position_start-1+$H116,0)) ->  | K116: =IF(J116="","",OFFSET(Stack_viewer_data!$Z$9,Viewer_displaced_position_start-1+$H116,0)) ->  | L116: =IF(K116="","",OFFSET(Stack_viewer_data!$AE$9,Viewer_displaced_position_start-1+$H116,0)) ->  | O116: =IF(P116="","",INDEX(Stack_viewer_data!$P$10:$P$259,MATCH(P116,Stack_viewer_data!$Q$10:$Q$259,0))) ->  | P116: =IF(Viewer_CLASS_position_in_stack=0,Stack_viewer_data!$X116,IF($N116>=Viewer_displaced_position_start-IF(Viewer_CLASS_position_in_stack>0,1,0),"",IF($N116>=Viewer_CLASS_position_in_stack,OFFSET(Stack_viewer_data!$X$9,$N116+1,0),OFFSET(Stack_viewer_data!$X$9,$N116,0)))) ->  | Q116: =IF(P116="","",INDEX(Stack_viewer_data!$Z$10:$Z$259,MATCH($P116,Stack_viewer_data!$X$10:$X$259,0))) ->  | R116: =IF(Q116="","",INDEX(Stack_viewer_data!$AE$10:$AE$259,MATCH($P116,Stack_viewer_data!$X$10:$X$259,0))) -> 
H117: =IFERROR(IF(H116+1>COUNTIF(Stack_viewer_data!$Z$10:$Z$259,">0")-Viewer_displaced_position_start+1,"",H116+1),"") ->  | I117: =IF(J117="","",INDEX(Stack_viewer_data!$P$10:$P$259,MATCH(J117,Stack_viewer_data!$Q$10:$Q$259,0))) ->  | J117: =IF(H117="","",OFFSET(Stack_viewer_data!$X$9,Viewer_displaced_position_start-1+$H117,0)) ->  | K117: =IF(J117="","",OFFSET(Stack_viewer_data!$Z$9,Viewer_displaced_position_start-1+$H117,0)) ->  | L117: =IF(K117="","",OFFSET(Stack_viewer_data!$AE$9,Viewer_displaced_position_start-1+$H117,0)) ->  | O117: =IF(P117="","",INDEX(Stack_viewer_data!$P$10:$P$259,MATCH(P117,Stack_viewer_data!$Q$10:$Q$259,0))) ->  | P117: =IF(Viewer_CLASS_position_in_stack=0,Stack_viewer_data!$X117,IF($N117>=Viewer_displaced_position_start-IF(Viewer_CLASS_position_in_stack>0,1,0),"",IF($N117>=Viewer_CLASS_position_in_stack,OFFSET(Stack_viewer_data!$X$9,$N117+1,0),OFFSET(Stack_viewer_data!$X$9,$N117,0)))) ->  | Q117: =IF(P117="","",INDEX(Stack_viewer_data!$Z$10:$Z$259,MATCH($P117,Stack_viewer_data!$X$10:$X$259,0))) ->  | R117: =IF(Q117="","",INDEX(Stack_viewer_data!$AE$10:$AE$259,MATCH($P117,Stack_viewer_data!$X$10:$X$259,0))) -> 
H118: =IFERROR(IF(H117+1>COUNTIF(Stack_viewer_data!$Z$10:$Z$259,">0")-Viewer_displaced_position_start+1,"",H117+1),"") ->  | I118: =IF(J118="","",INDEX(Stack_viewer_data!$P$10:$P$259,MATCH(J118,Stack_viewer_data!$Q$10:$Q$259,0))) ->  | J118: =IF(H118="","",OFFSET(Stack_viewer_data!$X$9,Viewer_displaced_position_start-1+$H118,0)) ->  | K118: =IF(J118="","",OFFSET(Stack_viewer_data!$Z$9,Viewer_displaced_position_start-1+$H118,0)) ->  | L118: =IF(K118="","",OFFSET(Stack_viewer_data!$AE$9,Viewer_displaced_position_start-1+$H118,0)) ->  | O118: =IF(P118="","",INDEX(Stack_viewer_data!$P$10:$P$259,MATCH(P118,Stack_viewer_data!$Q$10:$Q$259,0))) ->  | P118: =IF(Viewer_CLASS_position_in_stack=0,Stack_viewer_data!$X118,IF($N118>=Viewer_displaced_position_start-IF(Viewer_CLASS_position_in_stack>0,1,0),"",IF($N118>=Viewer_CLASS_position_in_stack,OFFSET(Stack_viewer_data!$X$9,$N118+1,0),OFFSET(Stack_viewer_data!$X$9,$N118,0)))) ->  | Q118: =IF(P118="","",INDEX(Stack_viewer_data!$Z$10:$Z$259,MATCH($P118,Stack_viewer_data!$X$10:$X$259,0))) ->  | R118: =IF(Q118="","",INDEX(Stack_viewer_data!$AE$10:$AE$259,MATCH($P118,Stack_viewer_data!$X$10:$X$259,0))) -> 
H119: =IFERROR(IF(H118+1>COUNTIF(Stack_viewer_data!$Z$10:$Z$259,">0")-Viewer_displaced_position_start+1,"",H118+1),"") ->  | I119: =IF(J119="","",INDEX(Stack_viewer_data!$P$10:$P$259,MATCH(J119,Stack_viewer_data!$Q$10:$Q$259,0))) ->  | J119: =IF(H119="","",OFFSET(Stack_viewer_data!$X$9,Viewer_displaced_position_start-1+$H119,0)) ->  | K119: =IF(J119="","",OFFSET(Stack_viewer_data!$Z$9,Viewer_displaced_position_start-1+$H119,0)) ->  | L119: =IF(K119="","",OFFSET(Stack_viewer_data!$AE$9,Viewer_displaced_position_start-1+$H119,0)) ->  | O119: =IF(P119="","",INDEX(Stack_viewer_data!$P$10:$P$259,MATCH(P119,Stack_viewer_data!$Q$10:$Q$259,0))) ->  | P119: =IF(Viewer_CLASS_position_in_stack=0,Stack_viewer_data!$X119,IF($N119>=Viewer_displaced_position_start-IF(Viewer_CLASS_position_in_stack>0,1,0),"",IF($N119>=Viewer_CLASS_position_in_stack,OFFSET(Stack_viewer_data!$X$9,$N119+1,0),OFFSET(Stack_viewer_data!$X$9,$N119,0)))) ->  | Q119: =IF(P119="","",INDEX(Stack_viewer_data!$Z$10:$Z$259,MATCH($P119,Stack_viewer_data!$X$10:$X$259,0))) ->  | R119: =IF(Q119="","",INDEX(Stack_viewer_data!$AE$10:$AE$259,MATCH($P119,Stack_viewer_data!$X$10:$X$259,0))) -> 
H120: =IFERROR(IF(H119+1>COUNTIF(Stack_viewer_data!$Z$10:$Z$259,">0")-Viewer_displaced_position_start+1,"",H119+1),"") ->  | I120: =IF(J120="","",INDEX(Stack_viewer_data!$P$10:$P$259,MATCH(J120,Stack_viewer_data!$Q$10:$Q$259,0))) ->  | J120: =IF(H120="","",OFFSET(Stack_viewer_data!$X$9,Viewer_displaced_position_start-1+$H120,0)) ->  | K120: =IF(J120="","",OFFSET(Stack_viewer_data!$Z$9,Viewer_displaced_position_start-1+$H120,0)) ->  | L120: =IF(K120="","",OFFSET(Stack_viewer_data!$AE$9,Viewer_displaced_position_start-1+$H120,0)) ->  | O120: =IF(P120="","",INDEX(Stack_viewer_data!$P$10:$P$259,MATCH(P120,Stack_viewer_data!$Q$10:$Q$259,0))) ->  | P120: =IF(Viewer_CLASS_position_in_stack=0,Stack_viewer_data!$X120,IF($N120>=Viewer_displaced_position_start-IF(Viewer_CLASS_position_in_stack>0,1,0),"",IF($N120>=Viewer_CLASS_position_in_stack,OFFSET(Stack_viewer_data!$X$9,$N120+1,0),OFFSET(Stack_viewer_data!$X$9,$N120,0)))) ->  | Q120: =IF(P120="","",INDEX(Stack_viewer_data!$Z$10:$Z$259,MATCH($P120,Stack_viewer_data!$X$10:$X$259,0))) ->  | R120: =IF(Q120="","",INDEX(Stack_viewer_data!$AE$10:$AE$259,MATCH($P120,Stack_viewer_data!$X$10:$X$259,0))) -> 
H121: =IFERROR(IF(H120+1>COUNTIF(Stack_viewer_data!$Z$10:$Z$259,">0")-Viewer_displaced_position_start+1,"",H120+1),"") ->  | I121: =IF(J121="","",INDEX(Stack_viewer_data!$P$10:$P$259,MATCH(J121,Stack_viewer_data!$Q$10:$Q$259,0))) ->  | J121: =IF(H121="","",OFFSET(Stack_viewer_data!$X$9,Viewer_displaced_position_start-1+$H121,0)) ->  | K121: =IF(J121="","",OFFSET(Stack_viewer_data!$Z$9,Viewer_displaced_position_start-1+$H121,0)) ->  | L121: =IF(K121="","",OFFSET(Stack_viewer_data!$AE$9,Viewer_displaced_position_start-1+$H121,0)) ->  | O121: =IF(P121="","",INDEX(Stack_viewer_data!$P$10:$P$259,MATCH(P121,Stack_viewer_data!$Q$10:$Q$259,0))) ->  | P121: =IF(Viewer_CLASS_position_in_stack=0,Stack_viewer_data!$X121,IF($N121>=Viewer_displaced_position_start-IF(Viewer_CLASS_position_in_stack>0,1,0),"",IF($N121>=Viewer_CLASS_position_in_stack,OFFSET(Stack_viewer_data!$X$9,$N121+1,0),OFFSET(Stack_viewer_data!$X$9,$N121,0)))) ->  | Q121: =IF(P121="","",INDEX(Stack_viewer_data!$Z$10:$Z$259,MATCH($P121,Stack_viewer_data!$X$10:$X$259,0))) ->  | R121: =IF(Q121="","",INDEX(Stack_viewer_data!$AE$10:$AE$259,MATCH($P121,Stack_viewer_data!$X$10:$X$259,0))) -> 
H122: =IFERROR(IF(H121+1>COUNTIF(Stack_viewer_data!$Z$10:$Z$259,">0")-Viewer_displaced_position_start+1,"",H121+1),"") ->  | I122: =IF(J122="","",INDEX(Stack_viewer_data!$P$10:$P$259,MATCH(J122,Stack_viewer_data!$Q$10:$Q$259,0))) ->  | J122: =IF(H122="","",OFFSET(Stack_viewer_data!$X$9,Viewer_displaced_position_start-1+$H122,0)) ->  | K122: =IF(J122="","",OFFSET(Stack_viewer_data!$Z$9,Viewer_displaced_position_start-1+$H122,0)) ->  | L122: =IF(K122="","",OFFSET(Stack_viewer_data!$AE$9,Viewer_displaced_position_start-1+$H122,0)) ->  | O122: =IF(P122="","",INDEX(Stack_viewer_data!$P$10:$P$259,MATCH(P122,Stack_viewer_data!$Q$10:$Q$259,0))) ->  | P122: =IF(Viewer_CLASS_position_in_stack=0,Stack_viewer_data!$X122,IF($N122>=Viewer_displaced_position_start-IF(Viewer_CLASS_position_in_stack>0,1,0),"",IF($N122>=Viewer_CLASS_position_in_stack,OFFSET(Stack_viewer_data!$X$9,$N122+1,0),OFFSET(Stack_viewer_data!$X$9,$N122,0)))) ->  | Q122: =IF(P122="","",INDEX(Stack_viewer_data!$Z$10:$Z$259,MATCH($P122,Stack_viewer_data!$X$10:$X$259,0))) ->  | R122: =IF(Q122="","",INDEX(Stack_viewer_data!$AE$10:$AE$259,MATCH($P122,Stack_viewer_data!$X$10:$X$259,0))) -> 
H123: =IFERROR(IF(H122+1>COUNTIF(Stack_viewer_data!$Z$10:$Z$259,">0")-Viewer_displaced_position_start+1,"",H122+1),"") ->  | I123: =IF(J123="","",INDEX(Stack_viewer_data!$P$10:$P$259,MATCH(J123,Stack_viewer_data!$Q$10:$Q$259,0))) ->  | J123: =IF(H123="","",OFFSET(Stack_viewer_data!$X$9,Viewer_displaced_position_start-1+$H123,0)) ->  | K123: =IF(J123="","",OFFSET(Stack_viewer_data!$Z$9,Viewer_displaced_position_start-1+$H123,0)) ->  | L123: =IF(K123="","",OFFSET(Stack_viewer_data!$AE$9,Viewer_displaced_position_start-1+$H123,0)) ->  | O123: =IF(P123="","",INDEX(Stack_viewer_data!$P$10:$P$259,MATCH(P123,Stack_viewer_data!$Q$10:$Q$259,0))) ->  | P123: =IF(Viewer_CLASS_position_in_stack=0,Stack_viewer_data!$X123,IF($N123>=Viewer_displaced_position_start-IF(Viewer_CLASS_position_in_stack>0,1,0),"",IF($N123>=Viewer_CLASS_position_in_stack,OFFSET(Stack_viewer_data!$X$9,$N123+1,0),OFFSET(Stack_viewer_data!$X$9,$N123,0)))) ->  | Q123: =IF(P123="","",INDEX(Stack_viewer_data!$Z$10:$Z$259,MATCH($P123,Stack_viewer_data!$X$10:$X$259,0))) ->  | R123: =IF(Q123="","",INDEX(Stack_viewer_data!$AE$10:$AE$259,MATCH($P123,Stack_viewer_data!$X$10:$X$259,0))) -> 
H124: =IFERROR(IF(H123+1>COUNTIF(Stack_viewer_data!$Z$10:$Z$259,">0")-Viewer_displaced_position_start+1,"",H123+1),"") ->  | I124: =IF(J124="","",INDEX(Stack_viewer_data!$P$10:$P$259,MATCH(J124,Stack_viewer_data!$Q$10:$Q$259,0))) ->  | J124: =IF(H124="","",OFFSET(Stack_viewer_data!$X$9,Viewer_displaced_position_start-1+$H124,0)) ->  | K124: =IF(J124="","",OFFSET(Stack_viewer_data!$Z$9,Viewer_displaced_position_start-1+$H124,0)) ->  | L124: =IF(K124="","",OFFSET(Stack_viewer_data!$AE$9,Viewer_displaced_position_start-1+$H124,0)) ->  | O124: =IF(P124="","",INDEX(Stack_viewer_data!$P$10:$P$259,MATCH(P124,Stack_viewer_data!$Q$10:$Q$259,0))) ->  | P124: =IF(Viewer_CLASS_position_in_stack=0,Stack_viewer_data!$X124,IF($N124>=Viewer_displaced_position_start-IF(Viewer_CLASS_position_in_stack>0,1,0),"",IF($N124>=Viewer_CLASS_position_in_stack,OFFSET(Stack_viewer_data!$X$9,$N124+1,0),OFFSET(Stack_viewer_data!$X$9,$N124,0)))) ->  | Q124: =IF(P124="","",INDEX(Stack_viewer_data!$Z$10:$Z$259,MATCH($P124,Stack_viewer_data!$X$10:$X$259,0))) ->  | R124: =IF(Q124="","",INDEX(Stack_viewer_data!$AE$10:$AE$259,MATCH($P124,Stack_viewer_data!$X$10:$X$259,0))) -> 
H125: =IFERROR(IF(H124+1>COUNTIF(Stack_viewer_data!$Z$10:$Z$259,">0")-Viewer_displaced_position_start+1,"",H124+1),"") ->  | I125: =IF(J125="","",INDEX(Stack_viewer_data!$P$10:$P$259,MATCH(J125,Stack_viewer_data!$Q$10:$Q$259,0))) ->  | J125: =IF(H125="","",OFFSET(Stack_viewer_data!$X$9,Viewer_displaced_position_start-1+$H125,0)) ->  | K125: =IF(J125="","",OFFSET(Stack_viewer_data!$Z$9,Viewer_displaced_position_start-1+$H125,0)) ->  | L125: =IF(K125="","",OFFSET(Stack_viewer_data!$AE$9,Viewer_displaced_position_start-1+$H125,0)) ->  | O125: =IF(P125="","",INDEX(Stack_viewer_data!$P$10:$P$259,MATCH(P125,Stack_viewer_data!$Q$10:$Q$259,0))) ->  | P125: =IF(Viewer_CLASS_position_in_stack=0,Stack_viewer_data!$X125,IF($N125>=Viewer_displaced_position_start-IF(Viewer_CLASS_position_in_stack>0,1,0),"",IF($N125>=Viewer_CLASS_position_in_stack,OFFSET(Stack_viewer_data!$X$9,$N125+1,0),OFFSET(Stack_viewer_data!$X$9,$N125,0)))) ->  | Q125: =IF(P125="","",INDEX(Stack_viewer_data!$Z$10:$Z$259,MATCH($P125,Stack_viewer_data!$X$10:$X$259,0))) ->  | R125: =IF(Q125="","",INDEX(Stack_viewer_data!$AE$10:$AE$259,MATCH($P125,Stack_viewer_data!$X$10:$X$259,0))) -> 

Sheet DCF_calculation
A1: Discounted Cash Flow calculation tab
A2: This sheet uses the single-year displacement data and associated carbon and reactive power calculations to estimate the CBA over multiple years. The RIIO-ED1 totex treatment is used to describe the effect on each stakeholder
B3: ="Cumulative Discounted Cash Flow by Stakeholder ("&CLASS_response_price_strategy&" pricing)" -> Cumulative Discounted Cash Flow by Stakeholder (Shadow marginal pricing)
E5: Net Present Value (£m, 2015 real)
D6: DNO | E6: =C109/1000000 -> 343.6542916
D7: National Grid | E7: =C110/1000000 -> 1.257119723
D8: End Consumer | E8: =C111/1000000 -> 131.2991412
D9: Total | E9: =SUM(E6:E8) -> 476.2105525
B21: Inter-year interpolation for Discounted Cash Flow calculation | C21: Linear interpolation
B22: Year from which CLASS revenues no longer pass to DNO | C22: No restriction
C23: NPV | D23: No restriction | E23: 2015 | F23: =E23+1 -> 2016 | G23: =F23+1 -> 2017 | H23: 2018 | I23: 2019 | J23: 2020 | K23: 2021 | L23: 2022 | M23: 2023 | N23: 2024 | O23: 2025 | P23: 2026 | Q23: 2027 | R23: 2028 | S23: 2029 | T23: 2030 | U23: 2031 | V23: 2032 | W23: 2033 | X23: 2034 | Y23: 2035 | Z23: 2036 | AA23: 2037 | AB23: 2038 | AC23: 2039 | AD23: 2040 | AE23: 2041 | AF23: 2042 | AG23: 2043 | AH23: =AG23+1 -> 2044 | AI23: 2045 | AJ23: 2046 | AK23: 2047 | AL23: 2048 | AM23: 2049 | AN23: 2050 | AO23: 2051 | AP23: 2052 | AQ23: 2053 | AR23: 2054 | AS23: 2055 | AT23: 2056 | AU23: 2057 | AV23: 2058 | AW23: 2059 | AX23: 2060 | AY23: 2061 | AZ23: 2062 | BA23: 2063 | BB23: 2064 | BC23: 2065 | BD23: 2066 | BE23: 2067 | BF23: 2068 | BG23: 2069 | BH23: 2070 | BI23: 2071 | BJ23: 2072 | BK23: 2073 | BL23: 2074 | BM23: 2075 | BN23: =BM23+1 -> 2076 | BO23: 2077 | BP23: 2078 | BQ23: 2079 | BR23: 2080 | BS23: 2081 | BT23: 2082 | BU23: 2083 | BV23: 2084 | BW23: 2085 | BX23: 2086 | BY23: 2087 | BZ23: 2088 | CA23: 2089 | CB23: 2090 | CC23: 2091 | CD23: 2092 | CE23: 2093 | CF23: 2094 | CG23: 2095 | CH23: 2096 | CI23: 2097 | CJ23: 2098 | CK23: 2099 | CL23: 2100
A24: Estimate of CLASS costs and NGET benefit (ignoring totex treatment, and assuming annuitisation of capex)
A25: Cost of providing CLASS | B25: CLASS cumulative capex | D25: £ (real 2015) | E25: =Control!$C$9*CLASS_capex -> 21751583.48 | F25: =IF(Interpolation="Flat to 2027",$E25,IF(Interpolation="Linear interpolation",$E25+($Q25-$E25)*(F$23-$E$23)/($Q$23-$E$23),"")) -> 50149484.13 | G25: 78547384.78 | H25: 106945285.4 | I25: 135343186.1 | J25: 163741086.7 | K25: 192138987.4 | L25: 220536888 | M25: 248934788.7 | N25: 277332689.3 | O25: 305730590 | P25: 334128490.6 | Q25: =Control!$H$9*CLASS_capex -> 362526391.3 | R25: =$Q$25-SUMIFS($E26:$Q26,$E23:$Q23,"<="&R$23-CLASS_lifetime) -> 362526391.3 | S25: 362526391.3 | T25: 340774807.8 | U25: 312376907.1 | V25: 283979006.5 | W25: 255581105.8 | X25: 227183205.2 | Y25: 198785304.5 | Z25: 170387403.9 | AA25: 141989503.2 | AB25: 113591602.6 | AC25: 85193701.95 | AD25: 56795801.3 | AE25: 28397900.65 | AF25: 0 | AG25: 0 | AH25: 0 | AI25: 0 | AJ25: 0 | AK25: 0 | AL25: 0 | AM25: 0 | AN25: 0 | AO25: 0 | AP25: 0 | AQ25: 0 | AR25: 0 | AS25: 0 | AT25: 0 | AU25: 0 | AV25: 0 | AW25: 0 | AX25: =$Q$25-SUMIFS($E26:$Q26,$E23:$Q23,"<="&AX$23-CLASS_lifetime) -> 0 | AY25: 0 | AZ25: 0 | BA25: 0 | BB25: 0 | BC25: 0 | BD25: 0 | BE25: 0 | BF25: 0 | BG25: 0 | BH25: 0 | BI25: 0 | BJ25: 0 | BK25: 0 | BL25: 0 | BM25: 0 | BN25: 0 | BO25: 0 | BP25: 0 | BQ25: 0 | BR25: 0 | BS25: 0 | BT25: 0 | BU25: 0 | BV25: 0 | BW25: 0 | BX25: 0 | BY25: 0 | BZ25: 0 | CA25: 0 | CB25: 0 | CC25: 0 | CD25: =$Q$25-SUMIFS($E26:$Q26,$E23:$Q23,"<="&CD$23-CLASS_lifetime) -> 0 | CE25: 0 | CF25: 0 | CG25: 0 | CH25: 0 | CI25: 0 | CJ25: 0 | CK25: 0 | CL25: 0
B26: CLASS non-annuitised annual capex | C26: =NPV(DiscountRate,E26:CL26) -> 286154581.5 | D26: £ (real 2015) | E26: =E25 -> 21751583.48 | F26: =F25-E25 -> 28397900.65 | G26: 28397900.65 | H26: 28397900.65 | I26: 28397900.65 | J26: 28397900.65 | K26: 28397900.65 | L26: 28397900.65 | M26: 28397900.65 | N26: 28397900.65 | O26: 28397900.65 | P26: 28397900.65 | Q26: 28397900.65 | R26: 0 | S26: 0 | T26: 0 | U26: 0 | V26: 0 | W26: 0 | X26: 0 | Y26: 0 | Z26: 0 | AA26: 0 | AB26: 0 | AC26: 0 | AD26: 0 | AE26: 0 | AF26: 0 | AG26: 0 | AH26: 0 | AI26: 0 | AJ26: 0 | AK26: 0 | AL26: 0 | AM26: 0 | AN26: 0 | AO26: 0 | AP26: 0 | AQ26: 0 | AR26: 0 | AS26: 0 | AT26: 0 | AU26: 0 | AV26: 0 | AW26: 0 | AX26: 0 | AY26: 0 | AZ26: 0 | BA26: 0 | BB26: 0 | BC26: 0 | BD26: 0 | BE26: 0 | BF26: 0 | BG26: 0 | BH26: 0 | BI26: 0 | BJ26: 0 | BK26: 0 | BL26: 0 | BM26: 0 | BN26: 0 | BO26: 0 | BP26: 0 | BQ26: 0 | BR26: 0 | BS26: 0 | BT26: 0 | BU26: 0 | BV26: 0 | BW26: 0 | BX26: 0 | BY26: 0 | BZ26: 0 | CA26: 0 | CB26: 0 | CC26: 0 | CD26: 0 | CE26: 0 | CF26: 0 | CG26: 0 | CH26: 0 | CI26: 0 | CJ26: 0 | CK26: 0 | CL26: 0
B27: CLASS additional contribution to annuitised capex | C27: 25302558.61 | D27: £ (real 2015) | E27: =-PMT(WACC,CLASS_lifetime,E$26) -> 1923333.58 | F27: 2511018.841 | G27: 2511018.841 | H27: 2511018.841 | I27: 2511018.841 | J27: 2511018.841 | K27: 2511018.841 | L27: 2511018.841 | M27: 2511018.841 | N27: 2511018.841 | O27: 2511018.841 | P27: 2511018.841 | Q27: 2511018.841 | R27: 0 | S27: 0 | T27: 0 | U27: 0 | V27: 0 | W27: 0 | X27: 0 | Y27: 0 | Z27: 0 | AA27: 0 | AB27: 0 | AC27: 0 | AD27: 0 | AE27: 0 | AF27: 0 | AG27: 0 | AH27: 0 | AI27: 0 | AJ27: 0 | AK27: 0 | AL27: 0 | AM27: 0 | AN27: 0 | AO27: 0 | AP27: 0 | AQ27: 0 | AR27: 0 | AS27: 0 | AT27: 0 | AU27: 0 | AV27: 0 | AW27: 0 | AX27: 0 | AY27: 0 | AZ27: 0 | BA27: 0 | BB27: 0 | BC27: 0 | BD27: 0 | BE27: 0 | BF27: 0 | BG27: 0 | BH27: 0 | BI27: 0 | BJ27: 0 | BK27: 0 | BL27: 0 | BM27: 0 | BN27: 0 | BO27: 0 | BP27: 0 | BQ27: =-PMT(WACC,CLASS_lifetime,BQ$26) -> 0 | BR27: 0 | BS27: 0 | BT27: 0 | BU27: 0 | BV27: 0 | BW27: 0 | BX27: 0 | BY27: 0 | BZ27: 0 | CA27: 0 | CB27: 0 | CC27: 0 | CD27: 0 | CE27: 0 | CF27: 0 | CG27: 0 | CH27: 0 | CI27: 0 | CJ27: 0 | CK27: 0 | CL27: 0
B28: CLASS annuitised capex | C28: 301619663 | D28: £ (real 2015) | E28: =-PMT(WACC,CLASS_lifetime,E$26) -> 1923333.58 | F28: =F$27+SUMIFS($E$27:E$27,$E$23:E$23,">"&F23-CLASS_lifetime) -> 4434352.422 | G28: =G$27+SUMIFS($E$27:F$27,$E$23:F$23,">"&G23-CLASS_lifetime) -> 6945371.263 | H28: =H$27+SUMIFS($E$27:G$27,$E$23:G$23,">"&H23-CLASS_lifetime) -> 9456390.104 | I28: =I$27+SUMIFS($E$27:H$27,$E$23:H$23,">"&I23-CLASS_lifetime) -> 11967408.95 | J28: =J$27+SUMIFS($E$27:I$27,$E$23:I$23,">"&J23-CLASS_lifetime) -> 14478427.79 | K28: =K$27+SUMIFS($E$27:J$27,$E$23:J$23,">"&K23-CLASS_lifetime) -> 16989446.63 | L28: =L$27+SUMIFS($E$27:K$27,$E$23:K$23,">"&L23-CLASS_lifetime) -> 19500465.47 | M28: =M$27+SUMIFS($E$27:L$27,$E$23:L$23,">"&M23-CLASS_lifetime) -> 22011484.31 | N28: =N$27+SUMIFS($E$27:M$27,$E$23:M$23,">"&N23-CLASS_lifetime) -> 24522503.15 | O28: =O$27+SUMIFS($E$27:N$27,$E$23:N$23,">"&O23-CLASS_lifetime) -> 27033521.99 | P28: =P$27+SUMIFS($E$27:O$27,$E$23:O$23,">"&P23-CLASS_lifetime) -> 29544540.83 | Q28: =Q$27+SUMIFS($E$27:P$27,$E$23:P$23,">"&Q23-CLASS_lifetime) -> 32055559.67 | R28: =R$27+SUMIFS($E$27:Q$27,$E$23:Q$23,">"&R23-CLASS_lifetime) -> 32055559.67 | S28: =S$27+SUMIFS($E$27:R$27,$E$23:R$23,">"&S23-CLASS_lifetime) -> 32055559.67 | T28: =T$27+SUMIFS($E$27:S$27,$E$23:S$23,">"&T23-CLASS_lifetime) -> 30132226.09 | U28: =U$27+SUMIFS($E$27:T$27,$E$23:T$23,">"&U23-CLASS_lifetime) -> 27621207.25 | V28: =V$27+SUMIFS($E$27:U$27,$E$23:U$23,">"&V23-CLASS_lifetime) -> 25110188.41 | W28: =W$27+SUMIFS($E$27:V$27,$E$23:V$23,">"&W23-CLASS_lifetime) -> 22599169.57 | X28: =X$27+SUMIFS($E$27:W$27,$E$23:W$23,">"&X23-CLASS_lifetime) -> 20088150.73 | Y28: =Y$27+SUMIFS($E$27:X$27,$E$23:X$23,">"&Y23-CLASS_lifetime) -> 17577131.89 | Z28: =Z$27+SUMIFS($E$27:Y$27,$E$23:Y$23,">"&Z23-CLASS_lifetime) -> 15066113.05 | AA28: =AA$27+SUMIFS($E$27:Z$27,$E$23:Z$23,">"&AA23-CLASS_lifetime) -> 12555094.21 | AB28: =AB$27+SUMIFS($E$27:AA$27,$E$23:AA$23,">"&AB23-CLASS_lifetime) -> 10044075.36 | AC28: =AC$27+SUMIFS($E$27:AB$27,$E$23:AB$23,">"&AC23-CLASS_lifetime) -> 7533056.524 | AD28: =AD$27+SUMIFS($E$27:AC$27,$E$23:AC$23,">"&AD23-CLASS_lifetime) -> 5022037.682 | AE28: =AE$27+SUMIFS($E$27:AD$27,$E$23:AD$23,">"&AE23-CLASS_lifetime) -> 2511018.841 | AF28: =AF$27+SUMIFS($E$27:AE$27,$E$23:AE$23,">"&AF23-CLASS_lifetime) -> 0 | AG28: =AG$27+SUMIFS($E$27:AF$27,$E$23:AF$23,">"&AG23-CLASS_lifetime) -> 0 | AH28: =AH$27+SUMIFS($E$27:AG$27,$E$23:AG$23,">"&AH23-CLASS_lifetime) -> 0 | AI28: =AI$27+SUMIFS($E$27:AH$27,$E$23:AH$23,">"&AI23-CLASS_lifetime) -> 0 | AJ28: =AJ$27+SUMIFS($E$27:AI$27,$E$23:AI$23,">"&AJ23-CLASS_lifetime) -> 0 | AK28: =AK$27+SUMIFS($E$27:AJ$27,$E$23:AJ$23,">"&AK23-CLASS_lifetime) -> 0 | AL28: =AL$27+SUMIFS($E$27:AK$27,$E$23:AK$23,">"&AL23-CLASS_lifetime) -> 0 | AM28: =AM$27+SUMIFS($E$27:AL$27,$E$23:AL$23,">"&AM23-CLASS_lifetime) -> 0 | AN28: =AN$27+SUMIFS($E$27:AM$27,$E$23:AM$23,">"&AN23-CLASS_lifetime) -> 0 | AO28: =AO$27+SUMIFS($E$27:AN$27,$E$23:AN$23,">"&AO23-CLASS_lifetime) -> 0 | AP28: =AP$27+SUMIFS($E$27:AO$27,$E$23:AO$23,">"&AP23-CLASS_lifetime) -> 0 | AQ28: =AQ$27+SUMIFS($E$27:AP$27,$E$23:AP$23,">"&AQ23-CLASS_lifetime) -> 0 | AR28: =AR$27+SUMIFS($E$27:AQ$27,$E$23:AQ$23,">"&AR23-CLASS_lifetime) -> 0 | AS28: =AS$27+SUMIFS($E$27:AR$27,$E$23:AR$23,">"&AS23-CLASS_lifetime) -> 0 | AT28: =AT$27+SUMIFS($E$27:AS$27,$E$23:AS$23,">"&AT23-CLASS_lifetime) -> 0 | AU28: =AU$27+SUMIFS($E$27:AT$27,$E$23:AT$23,">"&AU23-CLASS_lifetime) -> 0 | AV28: =AV$27+SUMIFS($E$27:AU$27,$E$23:AU$23,">"&AV23-CLASS_lifetime) -> 0 | AW28: =AW$27+SUMIFS($E$27:AV$27,$E$23:AV$23,">"&AW23-CLASS_lifetime) -> 0 | AX28: =AX$27+SUMIFS($E$27:AW$27,$E$23:AW$23,">"&AX23-CLASS_lifetime) -> 0 | AY28: =AY$27+SUMIFS($E$27:AX$27,$E$23:AX$23,">"&AY23-CLASS_lifetime) -> 0 | AZ28: =AZ$27+SUMIFS($E$27:AY$27,$E$23:AY$23,">"&AZ23-CLASS_lifetime) -> 0 | BA28: =BA$27+SUMIFS($E$27:AZ$27,$E$23:AZ$23,">"&BA23-CLASS_lifetime) -> 0 | BB28: =BB$27+SUMIFS($E$27:BA$27,$E$23:BA$23,">"&BB23-CLASS_lifetime) -> 0 | BC28: =BC$27+SUMIFS($E$27:BB$27,$E$23:BB$23,">"&BC23-CLASS_lifetime) -> 0 | BD28: =BD$27+SUMIFS($E$27:BC$27,$E$23:BC$23,">"&BD23-CLASS_lifetime) -> 0 | BE28: =BE$27+SUMIFS($E$27:BD$27,$E$23:BD$23,">"&BE23-CLASS_lifetime) -> 0 | BF28: =BF$27+SUMIFS($E$27:BE$27,$E$23:BE$23,">"&BF23-CLASS_lifetime) -> 0 | BG28: =BG$27+SUMIFS($E$27:BF$27,$E$23:BF$23,">"&BG23-CLASS_lifetime) -> 0 | BH28: =BH$27+SUMIFS($E$27:BG$27,$E$23:BG$23,">"&BH23-CLASS_lifetime) -> 0 | BI28: =BI$27+SUMIFS($E$27:BH$27,$E$23:BH$23,">"&BI23-CLASS_lifetime) -> 0 | BJ28: =BJ$27+SUMIFS($E$27:BI$27,$E$23:BI$23,">"&BJ23-CLASS_lifetime) -> 0 | BK28: =BK$27+SUMIFS($E$27:BJ$27,$E$23:BJ$23,">"&BK23-CLASS_lifetime) -> 0 | BL28: =BL$27+SUMIFS($E$27:BK$27,$E$23:BK$23,">"&BL23-CLASS_lifetime) -> 0 | BM28: =BM$27+SUMIFS($E$27:BL$27,$E$23:BL$23,">"&BM23-CLASS_lifetime) -> 0 | BN28: =BN$27+SUMIFS($E$27:BM$27,$E$23:BM$23,">"&BN23-CLASS_lifetime) -> 0 | BO28: =BO$27+SUMIFS($E$27:BN$27,$E$23:BN$23,">"&BO23-CLASS_lifetime) -> 0 | BP28: =BP$27+SUMIFS($E$27:BO$27,$E$23:BO$23,">"&BP23-CLASS_lifetime) -> 0 | BQ28: =BQ$27+SUMIFS($E$27:BP$27,$E$23:BP$23,">"&BQ23-CLASS_lifetime) -> 0 | BR28: =BR$27+SUMIFS($E$27:BQ$27,$E$23:BQ$23,">"&BR23-CLASS_lifetime) -> 0 | BS28: =BS$27+SUMIFS($E$27:BR$27,$E$23:BR$23,">"&BS23-CLASS_lifetime) -> 0 | BT28: =BT$27+SUMIFS($E$27:BS$27,$E$23:BS$23,">"&BT23-CLASS_lifetime) -> 0 | BU28: =BU$27+SUMIFS($E$27:BT$27,$E$23:BT$23,">"&BU23-CLASS_lifetime) -> 0 | BV28: =BV$27+SUMIFS($E$27:BU$27,$E$23:BU$23,">"&BV23-CLASS_lifetime) -> 0 | BW28: =BW$27+SUMIFS($E$27:BV$27,$E$23:BV$23,">"&BW23-CLASS_lifetime) -> 0 | BX28: =BX$27+SUMIFS($E$27:BW$27,$E$23:BW$23,">"&BX23-CLASS_lifetime) -> 0 | BY28: =BY$27+SUMIFS($E$27:BX$27,$E$23:BX$23,">"&BY23-CLASS_lifetime) -> 0 | BZ28: =BZ$27+SUMIFS($E$27:BY$27,$E$23:BY$23,">"&BZ23-CLASS_lifetime) -> 0 | CA28: =CA$27+SUMIFS($E$27:BZ$27,$E$23:BZ$23,">"&CA23-CLASS_lifetime) -> 0 | CB28: =CB$27+SUMIFS($E$27:CA$27,$E$23:CA$23,">"&CB23-CLASS_lifetime) -> 0 | CC28: =CC$27+SUMIFS($E$27:CB$27,$E$23:CB$23,">"&CC23-CLASS_lifetime) -> 0 | CD28: =CD$27+SUMIFS($E$27:CC$27,$E$23:CC$23,">"&CD23-CLASS_lifetime) -> 0 | CE28: =CE$27+SUMIFS($E$27:CD$27,$E$23:CD$23,">"&CE23-CLASS_lifetime) -> 0 | CF28: =CF$27+SUMIFS($E$27:CE$27,$E$23:CE$23,">"&CF23-CLASS_lifetime) -> 0 | CG28: =CG$27+SUMIFS($E$27:CF$27,$E$23:CF$23,">"&CG23-CLASS_lifetime) -> 0 | CH28: =CH$27+SUMIFS($E$27:CG$27,$E$23:CG$23,">"&CH23-CLASS_lifetime) -> 0 | CI28: =CI$27+SUMIFS($E$27:CH$27,$E$23:CH$23,">"&CI23-CLASS_lifetime) -> 0 | CJ28: =CJ$27+SUMIFS($E$27:CI$27,$E$23:CI$23,">"&CJ23-CLASS_lifetime) -> 0 | CK28: =CK$27+SUMIFS($E$27:CJ$27,$E$23:CJ$23,">"&CK23-CLASS_lifetime) -> 0 | CL28: =CL$27+SUMIFS($E$27:CK$27,$E$23:CK$23,">"&CL23-CLASS_lifetime) -> 0
B29: CLASS opex | C29: 79306769.24 | D29: £ (real 2015) | E29: =CLASS_opex*Control!$C$9 -> 505714.2857 | F29: =IF(Interpolation="Flat to 2027",$E29,IF(Interpolation="Linear interpolation",$E29+($Q29-$E29)*(F$23-$E$23)/($Q$23-$E$23),"")) -> 1165952.381 | G29: 1826190.476 | H29: 2486428.571 | I29: 3146666.667 | J29: 3806904.762 | K29: 4467142.857 | L29: 5127380.952 | M29: 5787619.048 | N29: 6447857.143 | O29: 7108095.238 | P29: 7768333.333 | Q29: =CLASS_opex*Control!$H$9 -> 8428571.429 | R29: =$Q29*R$25/$Q$25 -> 8428571.429 | S29: =$Q29*S$25/$Q$25 -> 8428571.429 | T29: 7922857.143 | U29: 7262619.048 | V29: 6602380.952 | W29: 5942142.857 | X29: 5281904.762 | Y29: 4621666.667 | Z29: 3961428.571 | AA29: 3301190.476 | AB29: 2640952.381 | AC29: 1980714.286 | AD29: 1320476.19 | AE29: 660238.0952 | AF29: 0 | AG29: 0 | AH29: 0 | AI29: =$Q29*AI$25/$Q$25 -> 0 | AJ29: 0 | AK29: 0 | AL29: 0 | AM29: 0 | AN29: 0 | AO29: 0 | AP29: 0 | AQ29: 0 | AR29: 0 | AS29: 0 | AT29: 0 | AU29: 0 | AV29: 0 | AW29: 0 | AX29: 0 | AY29: 0 | AZ29: 0 | BA29: 0 | BB29: 0 | BC29: 0 | BD29: 0 | BE29: 0 | BF29: 0 | BG29: 0 | BH29: 0 | BI29: 0 | BJ29: 0 | BK29: 0 | BL29: 0 | BM29: 0 | BN29: 0 | BO29: 0 | BP29: 0 | BQ29: 0 | BR29: 0 | BS29: 0 | BT29: 0 | BU29: 0 | BV29: 0 | BW29: 0 | BX29: 0 | BY29: 0 | BZ29: 0 | CA29: 0 | CB29: 0 | CC29: 0 | CD29: 0 | CE29: 0 | CF29: 0 | CG29: 0 | CH29: 0 | CI29: 0 | CJ29: 0 | CK29: 0 | CL29: 0
B30: Cost to DNO of providing CLASS | C30: 380926432.3 | D30: £ (real 2015) | E30: =SUM(E28:E29) -> 2429047.866 | F30: =SUM(F28:F29) -> 5600304.803 | G30: 8771561.739 | H30: 11942818.68 | I30: 15114075.61 | J30: 18285332.55 | K30: 21456589.48 | L30: 24627846.42 | M30: 27799103.36 | N30: 30970360.29 | O30: 34141617.23 | P30: 37312874.17 | Q30: =SUM(Q28:Q29) -> 40484131.1 | R30: =SUM(R28:R29) -> 40484131.1 | S30: =SUM(S28:S29) -> 40484131.1 | T30: 38055083.24 | U30: 34883826.3 | V30: 31712569.36 | W30: 28541312.43 | X30: 25370055.49 | Y30: 22198798.55 | Z30: 19027541.62 | AA30: 15856284.68 | AB30: 12685027.75 | AC30: 9513770.809 | AD30: 6342513.873 | AE30: 3171256.936 | AF30: 0 | AG30: 0 | AH30: =SUM(AH28:AH29) -> 0 | AI30: 0 | AJ30: 0 | AK30: 0 | AL30: 0 | AM30: 0 | AN30: 0 | AO30: 0 | AP30: 0 | AQ30: 0 | AR30: 0 | AS30: 0 | AT30: 0 | AU30: 0 | AV30: 0 | AW30: 0 | AX30: 0 | AY30: 0 | AZ30: 0 | BA30: 0 | BB30: 0 | BC30: 0 | BD30: 0 | BE30: 0 | BF30: 0 | BG30: 0 | BH30: 0 | BI30: 0 | BJ30: 0 | BK30: 0 | BL30: 0 | BM30: 0 | BN30: 0 | BO30: 0 | BP30: 0 | BQ30: 0 | BR30: 0 | BS30: 0 | BT30: 0 | BU30: 0 | BV30: 0 | BW30: 0 | BX30: 0 | BY30: 0 | BZ30: 0 | CA30: 0 | CB30: 0 | CC30: 0 | CD30: 0 | CE30: 0 | CF30: 0 | CG30: 0 | CH30: 0 | CI30: 0 | CJ30: 0 | CK30: 0 | CL30: 0
A31: CLASS spend by NGET | B31: Cost to NGET of CLASS providing Frequency Response | C31: 740152042.8 | D31: £ (real 2015) | E31: =IFERROR(INDEX('2015_Response_stack_WinDay'!$H$8:$H$107,MATCH("CLASS",'2015_Response_stack_WinDay'!$C$8:$C$107,0))*WinDayHours,0)+IFERROR(INDEX('2015_Response_stack_NonWinDay'!$H$8:$H$107,MATCH("CLASS",'2015_Response_stack_NonWinDay'!$C$8:$C$107,0))*NonWinDayHours,0)+IFERROR(INDEX('2015_Response_stack_WinNight'!$H$8:$H$107,MATCH("CLASS",'2015_Response_stack_WinNight'!$C$8:$C$107,0))*WinNightHours,0)+IFERROR(INDEX('2015_Response_stack_NonWinNight'!$H$8:$H$107,MATCH("CLASS",'2015_Response_stack_NonWinNight'!$C$8:$C$107,0))*NonWinNightHours,0) -> 29897055.67 | F31: =IF(Interpolation="Flat to 2027",$E31,IF(Interpolation="Linear interpolation",$E31+($Q31-$E31)*(F$23-$E$23)/($Q$23-$E$23),"")) -> 32674601.04 | G31: 35452146.41 | H31: 38229691.78 | I31: 41007237.15 | J31: 43784782.52 | K31: 46562327.89 | L31: 49339873.26 | M31: 52117418.63 | N31: 54894964 | O31: 57672509.37 | P31: 60450054.75 | Q31: =IFERROR(INDEX('2027_Response_stack_WinDay'!$H$8:$H$107,MATCH("CLASS",'2027_Response_stack_WinDay'!$C$8:$C$107,0))*WinDayHours,0)+IFERROR(INDEX('2027_Response_stack_NonWinDay'!$H$8:$H$107,MATCH("CLASS",'2027_Response_stack_NonWinDay'!$C$8:$C$107,0))*NonWinDayHours,0)+IFERROR(INDEX('2027_Response_stack_WinNight'!$H$8:$H$107,MATCH("CLASS",'2027_Response_stack_WinNight'!$C$8:$C$107,0))*WinNightHours,0)+IFERROR(INDEX('2027_Response_stack_NonWinNight'!$H$8:$H$107,MATCH("CLASS",'2027_Response_stack_NonWinNight'!$C$8:$C$107,0))*NonWinNightHours,0) -> 63227600.12 | R31: =$Q31*R$25/$Q$25 -> 63227600.12 | S31: 63227600.12 | T31: 59433944.11 | U31: 54481115.43 | V31: 49528286.76 | W31: 44575458.08 | X31: 39622629.41 | Y31: 34669800.73 | Z31: 29716972.05 | AA31: 24764143.38 | AB31: 19811314.7 | AC31: 14858486.03 | AD31: 9905657.351 | AE31: 4952828.676 | AF31: 0 | AG31: 0 | AH31: =$Q31*AH$25/$Q$25 -> 0 | AI31: 0 | AJ31: 0 | AK31: 0 | AL31: 0 | AM31: 0 | AN31: 0 | AO31: 0 | AP31: 0 | AQ31: 0 | AR31: 0 | AS31: =$Q31*AS$25/$Q$25 -> 0 | AT31: 0 | AU31: 0 | AV31: 0 | AW31: 0 | AX31: 0 | AY31: 0 | AZ31: 0 | BA31: 0 | BB31: 0 | BC31: 0 | BD31: 0 | BE31: 0 | BF31: 0 | BG31: 0 | BH31: 0 | BI31: 0 | BJ31: 0 | BK31: 0 | BL31: 0 | BM31: 0 | BN31: 0 | BO31: 0 | BP31: 0 | BQ31: 0 | BR31: 0 | BS31: 0 | BT31: 0 | BU31: 0 | BV31: 0 | BW31: 0 | BX31: 0 | BY31: 0 | BZ31: =$Q31*BZ$25/$Q$25 -> 0 | CA31: 0 | CB31: 0 | CC31: 0 | CD31: 0 | CE31: 0 | CF31: 0 | CG31: 0 | CH31: 0 | CI31: 0 | CJ31: 0 | CK31: 0 | CL31: 0
B32: Cost to NGET of CLASS providing Fast Reserve | C32: 77420135.04 | D32: £ (real 2015) | E32: =(IFERROR(INDEX('2015_Reserve_stack_WinDay'!$H$8:$H$107,MATCH("CLASS",'2015_Reserve_stack_WinDay'!$C$8:$C$107,0))*WinDayHours,0)+IFERROR(INDEX('2015_Reserve_stack_NonWinDay'!$H$8:$H$107,MATCH("CLASS",'2015_Reserve_stack_NonWinDay'!$C$8:$C$107,0))*NonWinDayHours,0)+IFERROR(INDEX('2015_Reserve_stack_WinNight'!$H$8:$H$107,MATCH("CLASS",'2015_Reserve_stack_WinNight'!$C$8:$C$107,0))*WinNightHours,0)+IFERROR(INDEX('2015_Reserve_stack_NonWinNight'!$H$8:$H$107,MATCH("CLASS",'2015_Reserve_stack_NonWinNight'!$C$8:$C$107,0))*NonWinNightHours,0))*(Advanced_control!$I$31/8760) -> 0 | F32: =IF(Interpolation="Flat to 2027",$E32,IF(Interpolation="Linear interpolation",$E32+($Q32-$E32)*(F$23-$E$23)/($Q$23-$E$23),"")) -> 710892.0101 | G32: 1421784.02 | H32: 2132676.03 | I32: 2843568.04 | J32: 3554460.05 | K32: 4265352.06 | L32: 4976244.071 | M32: 5687136.081 | N32: 6398028.091 | O32: 7108920.101 | P32: 7819812.111 | Q32: =(IFERROR(INDEX('2027_Reserve_stack_WinDay'!$H$8:$H$107,MATCH("CLASS",'2027_Reserve_stack_WinDay'!$C$8:$C$107,0))*WinDayHours,0)+IFERROR(INDEX('2027_Reserve_stack_NonWinDay'!$H$8:$H$107,MATCH("CLASS",'2027_Reserve_stack_NonWinDay'!$C$8:$C$107,0))*NonWinDayHours,0)+IFERROR(INDEX('2027_Reserve_stack_WinNight'!$H$8:$H$107,MATCH("CLASS",'2027_Reserve_stack_WinNight'!$C$8:$C$107,0))*WinNightHours,0)+IFERROR(INDEX('2027_Reserve_stack_NonWinNight'!$H$8:$H$107,MATCH("CLASS",'2027_Reserve_stack_NonWinNight'!$C$8:$C$107,0))*NonWinNightHours,0))*(Advanced_control!$I$31/8760) -> 8530704.121 | R32: =$Q32*R$25/$Q$25 -> 8530704.121 | S32: 8530704.121 | T32: 8018861.874 | U32: 7350623.384 | V32: 6682384.895 | W32: 6014146.405 | X32: 5345907.916 | Y32: 4677669.426 | Z32: 4009430.937 | AA32: 3341192.447 | AB32: 2672953.958 | AC32: 2004715.468 | AD32: 1336476.979 | AE32: 668238.4895 | AF32: 0 | AG32: 0 | AH32: 0 | AI32: 0 | AJ32: 0 | AK32: 0 | AL32: 0 | AM32: 0 | AN32: 0 | AO32: 0 | AP32: 0 | AQ32: 0 | AR32: 0 | AS32: 0 | AT32: 0 | AU32: 0 | AV32: 0 | AW32: 0 | AX32: 0 | AY32: 0 | AZ32: 0 | BA32: 0 | BB32: 0 | BC32: 0 | BD32: 0 | BE32: 0 | BF32: 0 | BG32: 0 | BH32: 0 | BI32: 0 | BJ32: 0 | BK32: 0 | BL32: 0 | BM32: 0 | BN32: 0 | BO32: 0 | BP32: 0 | BQ32: 0 | BR32: 0 | BS32: 0 | BT32: 0 | BU32: 0 | BV32: 0 | BW32: 0 | BX32: 0 | BY32: 0 | BZ32: 0 | CA32: 0 | CB32: 0 | CC32: 0 | CD32: 0 | CE32: 0 | CF32: 0 | CG32: 0 | CH32: 0 | CI32: 0 | CJ32: 0 | CK32: 0 | CL32: 0
B33: Cost to NGET of CLASS providing STOR | C33: 9847271.892 | D33: £ (real 2015) | E33: =IFERROR('2015_STOR_stack_WinDay'!$T$259*STOR_hours_win,0)+IFERROR('2015_STOR_stack_NonWinDay'!$T$259*STOR_hours_nonwin,0) -> 0 | F33: 90420.23635 | G33: 180840.4727 | H33: 271260.7091 | I33: 361680.9454 | J33: 452101.1818 | K33: 542521.4181 | L33: 632941.6545 | M33: 723361.8908 | N33: 813782.1272 | O33: 904202.3635 | P33: 994622.5999 | Q33: =IFERROR('2027_STOR_stack_WinDay'!$T$259*STOR_hours_win,0)+IFERROR('2027_STOR_stack_NonWinDay'!$T$259*STOR_hours_nonwin,0) -> 1085042.836 | R33: =$Q33*R$25/$Q$25 -> 1085042.836 | S33: 1085042.836 | T33: 1019940.266 | U33: 934945.2439 | V33: 849950.2217 | W33: 764955.1995 | X33: 679960.1774 | Y33: 594965.1552 | Z33: 509970.133 | AA33: 424975.1109 | AB33: 339980.0887 | AC33: 254985.0665 | AD33: 169990.0443 | AE33: 84995.02217 | AF33: 0 | AG33: 0 | AH33: 0 | AI33: 0 | AJ33: 0 | AK33: 0 | AL33: 0 | AM33: 0 | AN33: 0 | AO33: 0 | AP33: 0 | AQ33: 0 | AR33: 0 | AS33: 0 | AT33: 0 | AU33: 0 | AV33: 0 | AW33: 0 | AX33: 0 | AY33: 0 | AZ33: 0 | BA33: 0 | BB33: 0 | BC33: 0 | BD33: 0 | BE33: 0 | BF33: 0 | BG33: 0 | BH33: 0 | BI33: 0 | BJ33: 0 | BK33: 0 | BL33: 0 | BM33: 0 | BN33: 0 | BO33: 0 | BP33: 0 | BQ33: 0 | BR33: 0 | BS33: 0 | BT33: 0 | BU33: 0 | BV33: 0 | BW33: 0 | BX33: 0 | BY33: 0 | BZ33: 0 | CA33: 0 | CB33: 0 | CC33: 0 | CD33: 0 | CE33: 0 | CF33: 0 | CG33: 0 | CH33: 0 | CI33: 0 | CJ33: 0 | CK33: 0 | CL33: 0
B34: Cost to NGET of CLASS providing Reactive Absorption | C34: 0 | D34: £ (real 2015) | E34: =Reactive_Power!$F$21 -> 0 | F34: =IF(Interpolation="Flat to 2027",$E34,IF(Interpolation="Linear interpolation",$E34+($Q34-$E34)*(F$23-$E$23)/($Q$23-$E$23),"")) -> 0 | G34: 0 | H34: 0 | I34: 0 | J34: 0 | K34: 0 | L34: 0 | M34: 0 | N34: 0 | O34: 0 | P34: 0 | Q34: =Reactive_Power!$I$21 -> 0 | R34: =$Q34*R$25/$Q$25 -> 0 | S34: =$Q34*S$25/$Q$25 -> 0 | T34: 0 | U34: 0 | V34: 0 | W34: 0 | X34: 0 | Y34: 0 | Z34: 0 | AA34: 0 | AB34: 0 | AC34: 0 | AD34: 0 | AE34: 0 | AF34: 0 | AG34: 0 | AH34: 0 | AI34: 0 | AJ34: 0 | AK34: 0 | AL34: 0 | AM34: 0 | AN34: 0 | AO34: 0 | AP34: 0 | AQ34: 0 | AR34: 0 | AS34: 0 | AT34: 0 | AU34: 0 | AV34: 0 | AW34: 0 | AX34: 0 | AY34: 0 | AZ34: 0 | BA34: 0 | BB34: 0 | BC34: 0 | BD34: 0 | BE34: 0 | BF34: 0 | BG34: 0 | BH34: 0 | BI34: 0 | BJ34: 0 | BK34: 0 | BL34: 0 | BM34: 0 | BN34: 0 | BO34: 0 | BP34: 0 | BQ34: 0 | BR34: 0 | BS34: 0 | BT34: 0 | BU34: 0 | BV34: 0 | BW34: 0 | BX34: 0 | BY34: 0 | BZ34: 0 | CA34: 0 | CB34: 0 | CC34: 0 | CD34: 0 | CE34: 0 | CF34: 0 | CG34: 0 | CH34: 0 | CI34: 0 | CJ34: 0 | CK34: 0 | CL34: 0
B35: Total CLASS spend | C35: 827419449.8 | D35: £ (real 2015) | E35: =SUM(E$31:E$34) -> 29897055.67 | F35: 33475913.29 | G35: 37054770.91 | H35: 40633628.52 | I35: 44212486.14 | J35: 47791343.76 | K35: 51370201.37 | L35: 54949058.99 | M35: 58527916.61 | N35: 62106774.22 | O35: 65685631.84 | P35: 69264489.46 | Q35: 72843347.07 | R35: =SUM(R31:R34) -> 72843347.07 | S35: 72843347.07 | T35: 68472746.25 | U35: 62766684.06 | V35: 57060621.87 | W35: 51354559.69 | X35: 45648497.5 | Y35: 39942435.31 | Z35: 34236373.12 | AA35: 28530310.94 | AB35: 22824248.75 | AC35: 17118186.56 | AD35: 11412124.37 | AE35: 5706062.187 | AF35: 0 | AG35: 0 | AH35: =SUM(AH31:AH34) -> 0 | AI35: 0 | AJ35: 0 | AK35: 0 | AL35: 0 | AM35: 0 | AN35: 0 | AO35: 0 | AP35: 0 | AQ35: 0 | AR35: 0 | AS35: =SUM(AS31:AS34) -> 0 | AT35: 0 | AU35: 0 | AV35: 0 | AW35: 0 | AX35: 0 | AY35: 0 | AZ35: 0 | BA35: 0 | BB35: 0 | BC35: 0 | BD35: 0 | BE35: 0 | BF35: 0 | BG35: 0 | BH35: 0 | BI35: 0 | BJ35: 0 | BK35: 0 | BL35: 0 | BM35: 0 | BN35: 0 | BO35: 0 | BP35: 0 | BQ35: 0 | BR35: =SUM(BR31:BR34) -> 0 | BS35: 0 | BT35: 0 | BU35: 0 | BV35: 0 | BW35: 0 | BX35: 0 | BY35: 0 | BZ35: 0 | CA35: =SUM(CA31:CA34) -> 0 | CB35: 0 | CC35: 0 | CD35: 0 | CE35: 0 | CF35: 0 | CG35: 0 | CH35: 0 | CI35: =SUM(CI31:CI34) -> 0 | CJ35: =SUM(CJ31:CJ34) -> 0 | CK35: =SUM(CK31:CK34) -> 0 | CL35: =SUM(CL31:CL34) -> 0
A36: Avoided spend by NGET | B36: Displaced cost to NGET from Frequency Response | C36: 753915110.2 | D36: £ (real 2015) | E36: =SUMPRODUCT('2015_Response_stack_WinDay'!$W$8:$W$107,'2015_Response_stack_WinDay'!$O$8:$O$107)*WinDayHours+SUMPRODUCT('2015_Response_stack_NonWinDay'!$W$8:$W$107,'2015_Response_stack_NonWinDay'!$O$8:$O$107)*NonWinDayHours+SUMPRODUCT('2015_Response_stack_WinNight'!$W$8:$W$107,'2015_Response_stack_WinNight'!$O$8:$O$107)*WinNightHours+SUMPRODUCT('2015_Response_stack_NonWinNight'!$W$8:$W$107,'2015_Response_stack_NonWinNight'!$O$8:$O$107)*NonWinNightHours -> 32190033.41 | F36: =IF(Interpolation="Flat to 2027",$E36,IF(Interpolation="Linear interpolation",$E36+($Q36-$E36)*(F$23-$E$23)/($Q$23-$E$23),"")) -> 34785735.66 | G36: 37381437.92 | H36: 39977140.17 | I36: 42572842.42 | J36: 45168544.67 | K36: 47764246.92 | L36: 50359949.18 | M36: 52955651.43 | N36: 55551353.68 | O36: 58147055.93 | P36: 60742758.19 | Q36: =SUMPRODUCT('2027_Response_stack_WinDay'!$W$8:$W$107,'2027_Response_stack_WinDay'!$O$8:$O$107)*WinDayHours+SUMPRODUCT('2027_Response_stack_NonWinDay'!$W$8:$W$107,'2027_Response_stack_NonWinDay'!$O$8:$O$107)*NonWinDayHours+SUMPRODUCT('2027_Response_stack_WinNight'!$W$8:$W$107,'2027_Response_stack_WinNight'!$O$8:$O$107)*WinNightHours+SUMPRODUCT('2027_Response_stack_NonWinNight'!$W$8:$W$107,'2027_Response_stack_NonWinNight'!$O$8:$O$107)*NonWinNightHours -> 63338460.44 | R36: =$Q36*R$25/$Q$25 -> 63338460.44 | S36: 63338460.44 | T36: 59538152.81 | U36: 54576640.08 | V36: 49615127.34 | W36: 44653614.61 | X36: 39692101.87 | Y36: 34730589.14 | Z36: 29769076.41 | AA36: 24807563.67 | AB36: 19846050.94 | AC36: 14884538.2 | AD36: 9923025.468 | AE36: 4961512.734 | AF36: 0 | AG36: 0 | AH36: =$Q36*AH$25/$Q$25 -> 0 | AI36: 0 | AJ36: 0 | AK36: 0 | AL36: 0 | AM36: 0 | AN36: 0 | AO36: 0 | AP36: 0 | AQ36: 0 | AR36: 0 | AS36: 0 | AT36: 0 | AU36: 0 | AV36: 0 | AW36: 0 | AX36: 0 | AY36: 0 | AZ36: 0 | BA36: 0 | BB36: 0 | BC36: 0 | BD36: 0 | BE36: 0 | BF36: 0 | BG36: 0 | BH36: 0 | BI36: 0 | BJ36: 0 | BK36: 0 | BL36: 0 | BM36: 0 | BN36: 0 | BO36: 0 | BP36: 0 | BQ36: 0 | BR36: 0 | BS36: 0 | BT36: 0 | BU36: 0 | BV36: 0 | BW36: 0 | BX36: 0 | BY36: 0 | BZ36: 0 | CA36: 0 | CB36: 0 | CC36: 0 | CD36: 0 | CE36: 0 | CF36: 0 | CG36: 0 | CH36: 0 | CI36: 0 | CJ36: 0 | CK36: 0 | CL36: 0
B37: Displaced cost to NGET from Fast Reserve | C37: 77615778.17 | D37: £ (real 2015) | E37: =(SUMPRODUCT('2015_Reserve_stack_WinDay'!$S$8:$S$107,'2015_Reserve_stack_WinDay'!$O$8:$O$107)*WinDayHours+SUMPRODUCT('2015_Reserve_stack_NonWinDay'!$S$8:$S$107,'2015_Reserve_stack_NonWinDay'!$O$8:$O$107)*NonWinDayHours+SUMPRODUCT('2015_Reserve_stack_WinNight'!$S$8:$S$107,'2015_Reserve_stack_WinNight'!$O$8:$O$107)*WinNightHours+SUMPRODUCT('2015_Reserve_stack_NonWinNight'!$S$8:$S$107,'2015_Reserve_stack_NonWinNight'!$O$8:$O$107)*NonWinNightHours)*(Advanced_control!$I$31/8760) -> 0 | F37: 712688.4566 | G37: 1425376.913 | H37: 2138065.37 | I37: 2850753.827 | J37: 3563442.283 | K37: 4276130.74 | L37: 4988819.196 | M37: 5701507.653 | N37: 6414196.11 | O37: 7126884.566 | P37: 7839573.023 | Q37: =(SUMPRODUCT('2027_Reserve_stack_WinDay'!$S$8:$S$107,'2027_Reserve_stack_WinDay'!$O$8:$O$107)*WinDayHours+SUMPRODUCT('2027_Reserve_stack_NonWinDay'!$S$8:$S$107,'2027_Reserve_stack_NonWinDay'!$O$8:$O$107)*NonWinDayHours+SUMPRODUCT('2027_Reserve_stack_WinNight'!$S$8:$S$107,'2027_Reserve_stack_WinNight'!$O$8:$O$107)*WinNightHours+SUMPRODUCT('2027_Reserve_stack_NonWinNight'!$S$8:$S$107,'2027_Reserve_stack_NonWinNight'!$O$8:$O$107)*NonWinNightHours)*(Advanced_control!$I$31/8760) -> 8552261.48 | R37: =$Q37*R$25/$Q$25 -> 8552261.48 | S37: 8552261.48 | T37: 8039125.791 | U37: 7369198.642 | V37: 6699271.492 | W37: 6029344.343 | X37: 5359417.194 | Y37: 4689490.045 | Z37: 4019562.895 | AA37: 3349635.746 | AB37: 2679708.597 | AC37: 2009781.448 | AD37: 1339854.298 | AE37: 669927.1492 | AF37: 0 | AG37: 0 | AH37: 0 | AI37: 0 | AJ37: 0 | AK37: 0 | AL37: 0 | AM37: 0 | AN37: 0 | AO37: 0 | AP37: 0 | AQ37: 0 | AR37: 0 | AS37: 0 | AT37: 0 | AU37: 0 | AV37: 0 | AW37: 0 | AX37: 0 | AY37: 0 | AZ37: 0 | BA37: 0 | BB37: 0 | BC37: 0 | BD37: 0 | BE37: 0 | BF37: 0 | BG37: 0 | BH37: 0 | BI37: 0 | BJ37: 0 | BK37: 0 | BL37: 0 | BM37: 0 | BN37: 0 | BO37: 0 | BP37: 0 | BQ37: 0 | BR37: 0 | BS37: 0 | BT37: 0 | BU37: 0 | BV37: 0 | BW37: 0 | BX37: 0 | BY37: =$Q37*BY$25/$Q$25 -> 0 | BZ37: 0 | CA37: 0 | CB37: 0 | CC37: 0 | CD37: 0 | CE37: 0 | CF37: 0 | CG37: 0 | CH37: 0 | CI37: 0 | CJ37: 0 | CK37: 0 | CL37: 0
B38: Displaced cost to NGET from STOR | C38: 10141014.92 | D38: £ (real 2015) | E38: =IFERROR((SUM('2015_STOR_stack_WinDay'!$Z$8:$Z$257)+SUM('2015_STOR_stack_WinDay'!$AF$8:$AF$257))*STOR_hours_win,0)+IFERROR((SUM('2015_STOR_stack_NonWinDay'!$Z$8:$Z$257)+SUM('2015_STOR_stack_NonWinDay'!$AF$8:$AF$257))*STOR_hours_nonwin,0) -> -3.055108507e-10 | F38: 93117.46198 | G38: 186234.924 | H38: 279352.3859 | I38: 372469.8479 | J38: 465587.3099 | K38: 558704.7719 | L38: 651822.2339 | M38: 744939.6959 | N38: 838057.1578 | O38: 931174.6198 | P38: 1024292.082 | Q38: =IFERROR((SUM('2027_STOR_stack_WinDay'!$Z$8:$Z$257)+SUM('2027_STOR_stack_WinDay'!$AF$8:$AF$257))*STOR_hours_win,0)+IFERROR((SUM('2027_STOR_stack_NonWinDay'!$Z$8:$Z$257)+SUM('2027_STOR_stack_NonWinDay'!$AF$8:$AF$257))*STOR_hours_nonwin,0) -> 1117409.544 | R38: =$Q38*R$25/$Q$25 -> 1117409.544 | S38: 1117409.544 | T38: 1050364.971 | U38: 962834.5569 | V38: 875304.1426 | W38: 787773.7284 | X38: 700243.3141 | Y38: 612712.8998 | Z38: 525182.4856 | AA38: 437652.0713 | AB38: 350121.6571 | AC38: 262591.2428 | AD38: 175060.8285 | AE38: 87530.41426 | AF38: 0 | AG38: 0 | AH38: 0 | AI38: 0 | AJ38: 0 | AK38: 0 | AL38: 0 | AM38: 0 | AN38: 0 | AO38: 0 | AP38: 0 | AQ38: 0 | AR38: 0 | AS38: 0 | AT38: 0 | AU38: 0 | AV38: 0 | AW38: 0 | AX38: 0 | AY38: 0 | AZ38: 0 | BA38: 0 | BB38: 0 | BC38: 0 | BD38: 0 | BE38: 0 | BF38: 0 | BG38: 0 | BH38: 0 | BI38: 0 | BJ38: 0 | BK38: 0 | BL38: 0 | BM38: 0 | BN38: 0 | BO38: 0 | BP38: 0 | BQ38: 0 | BR38: =$Q38*BR$25/$Q$25 -> 0 | BS38: 0 | BT38: 0 | BU38: 0 | BV38: 0 | BW38: 0 | BX38: 0 | BY38: =$Q38*BY$25/$Q$25 -> 0 | BZ38: 0 | CA38: =$Q38*CA$25/$Q$25 -> 0 | CB38: =$Q38*CB$25/$Q$25 -> 0 | CC38: 0 | CD38: =$Q38*CD$25/$Q$25 -> 0 | CE38: =$Q38*CE$25/$Q$25 -> 0 | CF38: =$Q38*CF$25/$Q$25 -> 0 | CG38: =$Q38*CG$25/$Q$25 -> 0 | CH38: 0 | CI38: 0 | CJ38: 0 | CK38: 0 | CL38: 0
B39: Displaced cost to NGET from Reactive Absorption | C39: 0 | D39: £ (real 2015) | E39: =Reactive_Power!$F$18*Reactive_Power!$F$7 -> 0 | F39: =IF(Interpolation="Flat to 2027",$E39,IF(Interpolation="Linear interpolation",$E39+($Q39-$E39)*(F$23-$E$23)/($Q$23-$E$23),"")) -> 0 | G39: 0 | H39: 0 | I39: 0 | J39: 0 | K39: 0 | L39: 0 | M39: 0 | N39: 0 | O39: 0 | P39: 0 | Q39: =Reactive_Power!$I$18*Reactive_Power!$F$7 -> 0 | R39: =$Q39*R$25/$Q$25 -> 0 | S39: =$Q39*S$25/$Q$25 -> 0 | T39: 0 | U39: 0 | V39: 0 | W39: 0 | X39: 0 | Y39: 0 | Z39: 0 | AA39: 0 | AB39: 0 | AC39: 0 | AD39: 0 | AE39: 0 | AF39: 0 | AG39: 0 | AH39: 0 | AI39: 0 | AJ39: 0 | AK39: 0 | AL39: 0 | AM39: 0 | AN39: 0 | AO39: 0 | AP39: 0 | AQ39: 0 | AR39: 0 | AS39: 0 | AT39: 0 | AU39: 0 | AV39: 0 | AW39: 0 | AX39: 0 | AY39: 0 | AZ39: 0 | BA39: 0 | BB39: 0 | BC39: 0 | BD39: 0 | BE39: 0 | BF39: 0 | BG39: 0 | BH39: 0 | BI39: 0 | BJ39: 0 | BK39: 0 | BL39: 0 | BM39: 0 | BN39: 0 | BO39: 0 | BP39: 0 | BQ39: 0 | BR39: 0 | BS39: 0 | BT39: 0 | BU39: 0 | BV39: 0 | BW39: 0 | BX39: 0 | BY39: 0 | BZ39: 0 | CA39: 0 | CB39: 0 | CC39: 0 | CD39: 0 | CE39: 0 | CF39: 0 | CG39: 0 | CH39: 0 | CI39: 0 | CJ39: 0 | CK39: 0 | CL39: 0
B40: Total avoided spend | C40: 841671903.3 | D40: £ (real 2015) | E40: =SUM(E$36:E$39) -> 32190033.41 | F40: 35591541.58 | G40: 38993049.75 | H40: 42394557.92 | I40: 45796066.09 | J40: 49197574.27 | K40: 52599082.44 | L40: 56000590.61 | M40: 59402098.78 | N40: 62803606.95 | O40: 66205115.12 | P40: 69606623.29 | Q40: 73008131.46 | R40: 73008131.46 | S40: 73008131.46 | T40: 68627643.57 | U40: 62908673.28 | V40: 57189702.98 | W40: 51470732.68 | X40: 45751762.38 | Y40: 40032792.08 | Z40: 34313821.79 | AA40: 28594851.49 | AB40: 22875881.19 | AC40: 17156910.89 | AD40: 11437940.6 | AE40: 5718970.298 | AF40: 0 | AG40: 0 | AH40: 0 | AI40: 0 | AJ40: 0 | AK40: 0 | AL40: 0 | AM40: 0 | AN40: 0 | AO40: 0 | AP40: 0 | AQ40: 0 | AR40: 0 | AS40: 0 | AT40: 0 | AU40: 0 | AV40: 0 | AW40: 0 | AX40: 0 | AY40: 0 | AZ40: 0 | BA40: 0 | BB40: 0 | BC40: 0 | BD40: 0 | BE40: 0 | BF40: 0 | BG40: 0 | BH40: 0 | BI40: 0 | BJ40: 0 | BK40: 0 | BL40: 0 | BM40: 0 | BN40: 0 | BO40: 0 | BP40: 0 | BQ40: =SUM(BQ$36:BQ$39) -> 0 | BR40: 0 | BS40: 0 | BT40: 0 | BU40: 0 | BV40: 0 | BW40: 0 | BX40: 0 | BY40: 0 | BZ40: 0 | CA40: 0 | CB40: 0 | CC40: 0 | CD40: 0 | CE40: 0 | CF40: 0 | CG40: 0 | CH40: 0 | CI40: 0 | CJ40: 0 | CK40: 0 | CL40: 0
B41: Net NG Ancillary Service cost reduction | C41: 14252453.48 | D41: £ (real 2015) | E41: =-E35+E40 -> 2292977.738 | F41: 2115628.292 | G41: 1938278.846 | H41: 1760929.401 | I41: 1583579.955 | J41: 1406230.509 | K41: 1228881.063 | L41: 1051531.617 | M41: 874182.1715 | N41: 696832.7257 | O41: 519483.2799 | P41: 342133.8341 | Q41: 164784.3884 | R41: 164784.3884 | S41: 164784.3884 | T41: 154897.325 | U41: 141989.2146 | V41: 129081.1042 | W41: 116172.9938 | X41: 103264.8834 | Y41: 90356.77295 | Z41: 77448.66252 | AA41: 64540.5521 | AB41: 51632.44168 | AC41: 38724.33126 | AD41: 25816.22084 | AE41: 12908.11042 | AF41: 0 | AG41: 0 | AH41: =-AH35+AH40 -> 0 | AI41: 0 | AJ41: 0 | AK41: 0 | AL41: 0 | AM41: 0 | AN41: 0 | AO41: 0 | AP41: 0 | AQ41: 0 | AR41: 0 | AS41: =-AS35+AS40 -> 0 | AT41: 0 | AU41: 0 | AV41: 0 | AW41: 0 | AX41: 0 | AY41: 0 | AZ41: 0 | BA41: 0 | BB41: 0 | BC41: 0 | BD41: 0 | BE41: 0 | BF41: 0 | BG41: 0 | BH41: 0 | BI41: 0 | BJ41: 0 | BK41: 0 | BL41: 0 | BM41: 0 | BN41: 0 | BO41: 0 | BP41: 0 | BQ41: 0 | BR41: =-BR35+BR40 -> 0 | BS41: 0 | BT41: 0 | BU41: 0 | BV41: 0 | BW41: 0 | BX41: 0 | BY41: 0 | BZ41: 0 | CA41: =-CA35+CA40 -> 0 | CB41: 0 | CC41: 0 | CD41: 0 | CE41: 0 | CF41: 0 | CG41: 0 | CH41: 0 | CI41: =-CI35+CI40 -> 0 | CJ41: =-CJ35+CJ40 -> 0 | CK41: =-CK35+CK40 -> 0 | CL41: =-CL35+CL40 -> 0
A43: Totex treatment to calculate DNO payments
B44: Cumulatve CLASS site-related capex to date | D44: £ (real 2015) | E44: =-E25 -> -21751583.48 | F44: -50149484.13 | G44: -78547384.78 | H44: -106945285.4 | I44: -135343186.1 | J44: -163741086.7 | K44: -192138987.4 | L44: -220536888 | M44: -248934788.7 | N44: -277332689.3 | O44: -305730590 | P44: -334128490.6 | Q44: -362526391.3 | R44: -362526391.3 | S44: -362526391.3 | T44: -340774807.8 | U44: -312376907.1 | V44: -283979006.5 | W44: -255581105.8 | X44: -227183205.2 | Y44: -198785304.5 | Z44: -170387403.9 | AA44: -141989503.2 | AB44: -113591602.6 | AC44: -85193701.95 | AD44: -56795801.3 | AE44: -28397900.65 | AF44: 0 | AG44: 0 | AH44: 0 | AI44: 0 | AJ44: 0 | AK44: =-AK25 -> 0 | AL44: 0 | AM44: 0 | AN44: 0 | AO44: 0 | AP44: 0 | AQ44: 0 | AR44: 0 | AS44: 0 | AT44: 0 | AU44: 0 | AV44: 0 | AW44: 0 | AX44: 0 | AY44: 0 | AZ44: 0 | BA44: 0 | BB44: 0 | BC44: 0 | BD44: 0 | BE44: 0 | BF44: 0 | BG44: 0 | BH44: 0 | BI44: 0 | BJ44: 0 | BK44: 0 | BL44: 0 | BM44: 0 | BN44: 0 | BO44: 0 | BP44: 0 | BQ44: =-BQ25 -> 0 | BR44: 0 | BS44: 0 | BT44: 0 | BU44: 0 | BV44: 0 | BW44: 0 | BX44: 0 | BY44: 0 | BZ44: 0 | CA44: 0 | CB44: 0 | CC44: 0 | CD44: 0 | CE44: 0 | CF44: 0 | CG44: 0 | CH44: 0 | CI44: 0 | CJ44: 0 | CK44: 0 | CL44: 0
B45: CLASS site-related capex | C45: =NPV(DiscountRate,E45:CL45) -> -286154581.5 | D45: £ (real 2015) | E45: =E44 -> -21751583.48 | F45: =F44-E44 -> -28397900.65 | G45: =G44-F44 -> -28397900.65 | H45: -28397900.65 | I45: -28397900.65 | J45: -28397900.65 | K45: -28397900.65 | L45: -28397900.65 | M45: -28397900.65 | N45: -28397900.65 | O45: -28397900.65 | P45: -28397900.65 | Q45: -28397900.65 | R45: 0 | S45: 0 | T45: 0 | U45: 0 | V45: 0 | W45: 0 | X45: 0 | Y45: 0 | Z45: 0 | AA45: 0 | AB45: 0 | AC45: 0 | AD45: 0 | AE45: 0 | AF45: 0 | AG45: 0 | AH45: 0 | AI45: 0 | AJ45: 0 | AK45: 0 | AL45: 0 | AM45: 0 | AN45: 0 | AO45: 0 | AP45: 0 | AQ45: 0 | AR45: 0 | AS45: 0 | AT45: 0 | AU45: 0 | AV45: 0 | AW45: 0 | AX45: 0 | AY45: 0 | AZ45: 0 | BA45: 0 | BB45: 0 | BC45: 0 | BD45: 0 | BE45: 0 | BF45: 0 | BG45: 0 | BH45: 0 | BI45: 0 | BJ45: 0 | BK45: 0 | BL45: 0 | BM45: 0 | BN45: 0 | BO45: 0 | BP45: 0 | BQ45: 0 | BR45: 0 | BS45: 0 | BT45: 0 | BU45: 0 | BV45: 0 | BW45: 0 | BX45: 0 | BY45: 0 | BZ45: 0 | CA45: 0 | CB45: 0 | CC45: 0 | CD45: 0 | CE45: 0 | CF45: 0 | CG45: 0 | CH45: 0 | CI45: 0 | CJ45: 0 | CK45: 0 | CL45: 0
B46: CLASS opex | C46: -79306769.24 | D46: £ (real 2015) | E46: =-CLASS_opex*Control!$C$9 -> -505714.2857 | F46: =IF(Interpolation="Flat to 2027",$E46,IF(Interpolation="Linear interpolation",$E46+($Q46-$E46)*(F$23-$E$23)/($Q$23-$E$23),"")) -> -1165952.381 | G46: =IF(Interpolation="Flat to 2027",$E46,IF(Interpolation="Linear interpolation",$E46+($Q46-$E46)*(G$23-$E$23)/($Q$23-$E$23),"")) -> -1826190.476 | H46: -2486428.571 | I46: -3146666.667 | J46: -3806904.762 | K46: -4467142.857 | L46: -5127380.952 | M46: -5787619.048 | N46: -6447857.143 | O46: -7108095.238 | P46: -7768333.333 | Q46: =-CLASS_opex*Control!$H$9 -> -8428571.429 | R46: =-R29 -> -8428571.429 | S46: -8428571.429 | T46: -7922857.143 | U46: -7262619.048 | V46: -6602380.952 | W46: -5942142.857 | X46: -5281904.762 | Y46: -4621666.667 | Z46: -3961428.571 | AA46: -3301190.476 | AB46: -2640952.381 | AC46: -1980714.286 | AD46: -1320476.19 | AE46: -660238.0952 | AF46: 0 | AG46: 0 | AH46: 0 | AI46: 0 | AJ46: 0 | AK46: 0 | AL46: 0 | AM46: 0 | AN46: 0 | AO46: 0 | AP46: 0 | AQ46: 0 | AR46: 0 | AS46: 0 | AT46: 0 | AU46: 0 | AV46: 0 | AW46: 0 | AX46: =-AX29 -> 0 | AY46: 0 | AZ46: 0 | BA46: 0 | BB46: 0 | BC46: 0 | BD46: 0 | BE46: 0 | BF46: 0 | BG46: 0 | BH46: 0 | BI46: 0 | BJ46: 0 | BK46: 0 | BL46: 0 | BM46: 0 | BN46: 0 | BO46: 0 | BP46: 0 | BQ46: 0 | BR46: 0 | BS46: 0 | BT46: 0 | BU46: 0 | BV46: 0 | BW46: 0 | BX46: 0 | BY46: 0 | BZ46: 0 | CA46: 0 | CB46: 0 | CC46: 0 | CD46: =-CD29 -> 0 | CE46: 0 | CF46: 0 | CG46: 0 | CH46: 0 | CI46: 0 | CJ46: 0 | CK46: 0 | CL46: 0
B47: CLASS revenues | C47: 827419449.8 | D47: £ (real 2015) | E47: =E$35 -> 29897055.67 | F47: =F$35 -> 33475913.29 | G47: 37054770.91 | H47: 40633628.52 | I47: 44212486.14 | J47: 47791343.76 | K47: 51370201.37 | L47: 54949058.99 | M47: 58527916.61 | N47: 62106774.22 | O47: 65685631.84 | P47: 69264489.46 | Q47: 72843347.07 | R47: 72843347.07 | S47: 72843347.07 | T47: 68472746.25 | U47: 62766684.06 | V47: 57060621.87 | W47: 51354559.69 | X47: 45648497.5 | Y47: 39942435.31 | Z47: 34236373.12 | AA47: 28530310.94 | AB47: 22824248.75 | AC47: 17118186.56 | AD47: 11412124.37 | AE47: 5706062.187 | AF47: 0 | AG47: 0 | AH47: 0 | AI47: 0 | AJ47: 0 | AK47: 0 | AL47: 0 | AM47: 0 | AN47: 0 | AO47: 0 | AP47: 0 | AQ47: 0 | AR47: 0 | AS47: 0 | AT47: 0 | AU47: 0 | AV47: 0 | AW47: 0 | AX47: 0 | AY47: 0 | AZ47: 0 | BA47: 0 | BB47: 0 | BC47: 0 | BD47: 0 | BE47: 0 | BF47: 0 | BG47: 0 | BH47: 0 | BI47: 0 | BJ47: 0 | BK47: 0 | BL47: 0 | BM47: 0 | BN47: 0 | BO47: 0 | BP47: 0 | BQ47: 0 | BR47: =BR$35 -> 0 | BS47: 0 | BT47: 0 | BU47: 0 | BV47: 0 | BW47: 0 | BX47: 0 | BY47: 0 | BZ47: 0 | CA47: 0 | CB47: 0 | CC47: 0 | CD47: 0 | CE47: 0 | CF47: 0 | CG47: 0 | CH47: 0 | CI47: 0 | CJ47: 0 | CK47: 0 | CL47: 0
B48: Change in Totex | C48: 461958099 | D48: £ (real 2015) | E48: =IF($C$22="No restriction",SUM(E45:E47),IF(E$23>=$C$22,0,SUM(E45:E47))) -> 7639757.911 | F48: =IF($C$22="No restriction",SUM(F45:F47),IF(F$23>=$C$22,0,SUM(F45:F47))) -> 3912060.259 | G48: 6830679.781 | H48: 9749299.302 | I48: 12667918.82 | J48: 15586538.34 | K48: 18505157.87 | L48: 21423777.39 | M48: 24342396.91 | N48: 27261016.43 | O48: 30179635.95 | P48: 33098255.47 | Q48: 36016874.99 | R48: 64414775.64 | S48: 64414775.64 | T48: 60549889.11 | U48: 55504065.01 | V48: 50458240.92 | W48: 45412416.83 | X48: 40366592.74 | Y48: 35320768.64 | Z48: 30274944.55 | AA48: 25229120.46 | AB48: 20183296.37 | AC48: 15137472.28 | AD48: 10091648.18 | AE48: 5045824.092 | AF48: 0 | AG48: 0 | AH48: 0 | AI48: 0 | AJ48: 0 | AK48: 0 | AL48: 0 | AM48: 0 | AN48: 0 | AO48: 0 | AP48: 0 | AQ48: 0 | AR48: 0 | AS48: 0 | AT48: 0 | AU48: 0 | AV48: 0 | AW48: 0 | AX48: 0 | AY48: 0 | AZ48: 0 | BA48: 0 | BB48: 0 | BC48: 0 | BD48: 0 | BE48: 0 | BF48: 0 | BG48: 0 | BH48: 0 | BI48: 0 | BJ48: 0 | BK48: 0 | BL48: 0 | BM48: 0 | BN48: 0 | BO48: 0 | BP48: 0 | BQ48: 0 | BR48: =IF($C$22="No restriction",SUM(BR45:BR47),IF(BR$23>=$C$22,0,SUM(BR45:BR47))) -> 0 | BS48: 0 | BT48: 0 | BU48: 0 | BV48: 0 | BW48: 0 | BX48: 0 | BY48: 0 | BZ48: 0 | CA48: 0 | CB48: 0 | CC48: 0 | CD48: 0 | CE48: 0 | CF48: 0 | CG48: 0 | CH48: 0 | CI48: 0 | CJ48: 0 | CK48: 0 | CL48: 0
B49: Totex to be retained by DNO (before capitalisation) | C49: =NPV(DiscountRate,E49:CL49) -> 332994796.4 | D49: £ (real 2015) | E49: =E48*Advanced_control!$E$35/(1-Advanced_control!$C$42) -> 5506992.161 | F49: =F48*Advanced_control!$E$35/(1-Advanced_control!$C$42) -> 2819943.437 | G49: =G48*Advanced_control!$E$35/(1-Advanced_control!$C$42) -> 4923781.675 | H49: =H48*Advanced_control!$E$35/(1-Advanced_control!$C$42) -> 7027619.914 | I49: =I48*Advanced_control!$E$35/(1-Advanced_control!$C$42) -> 9131458.152 | J49: =J48*Advanced_control!$E$35/(1-Advanced_control!$C$42) -> 11235296.39 | K49: =K48*Advanced_control!$E$35/(1-Advanced_control!$C$42) -> 13339134.63 | L49: =L48*Advanced_control!$E$35/(1-Advanced_control!$C$42) -> 15442972.87 | M49: =M48*Advanced_control!$E$35/(1-Advanced_control!$C$42) -> 17546811.11 | N49: =N48*Advanced_control!$E$35/(1-Advanced_control!$C$42) -> 19650649.34 | O49: =O48*Advanced_control!$E$35/(1-Advanced_control!$C$42) -> 21754487.58 | P49: =P48*Advanced_control!$E$35/(1-Advanced_control!$C$42) -> 23858325.82 | Q49: =Q48*Advanced_control!$E$35/(1-Advanced_control!$C$42) -> 25962164.06 | R49: =R48*Advanced_control!$E$35/(1-Advanced_control!$C$42) -> 46432317.44 | S49: =S48*Advanced_control!$E$35/(1-Advanced_control!$C$42) -> 46432317.44 | T49: =T48*Advanced_control!$E$35/(1-Advanced_control!$C$42) -> 43646378.4 | U49: =U48*Advanced_control!$E$35/(1-Advanced_control!$C$42) -> 40009180.2 | V49: =V48*Advanced_control!$E$35/(1-Advanced_control!$C$42) -> 36371982 | W49: =W48*Advanced_control!$E$35/(1-Advanced_control!$C$42) -> 32734783.8 | X49: =X48*Advanced_control!$E$35/(1-Advanced_control!$C$42) -> 29097585.6 | Y49: =Y48*Advanced_control!$E$35/(1-Advanced_control!$C$42) -> 25460387.4 | Z49: =Z48*Advanced_control!$E$35/(1-Advanced_control!$C$42) -> 21823189.2 | AA49: =AA48*Advanced_control!$E$35/(1-Advanced_control!$C$42) -> 18185991 | AB49: =AB48*Advanced_control!$E$35/(1-Advanced_control!$C$42) -> 14548792.8 | AC49: =AC48*Advanced_control!$E$35/(1-Advanced_control!$C$42) -> 10911594.6 | AD49: =AD48*Advanced_control!$E$35/(1-Advanced_control!$C$42) -> 7274396.399 | AE49: =AE48*Advanced_control!$E$35/(1-Advanced_control!$C$42) -> 3637198.2 | AF49: =AF48*Advanced_control!$E$35/(1-Advanced_control!$C$42) -> 0 | AG49: =AG48*Advanced_control!$E$35/(1-Advanced_control!$C$42) -> 0 | AH49: =AH48*Advanced_control!$E$35/(1-Advanced_control!$C$42) -> 0 | AI49: =AI48*Advanced_control!$E$35/(1-Advanced_control!$C$42) -> 0 | AJ49: =AJ48*Advanced_control!$E$35/(1-Advanced_control!$C$42) -> 0 | AK49: =AK48*Advanced_control!$E$35/(1-Advanced_control!$C$42) -> 0 | AL49: =AL48*Advanced_control!$E$35/(1-Advanced_control!$C$42) -> 0 | AM49: =AM48*Advanced_control!$E$35/(1-Advanced_control!$C$42) -> 0 | AN49: =AN48*Advanced_control!$E$35/(1-Advanced_control!$C$42) -> 0 | AO49: =AO48*Advanced_control!$E$35/(1-Advanced_control!$C$42) -> 0 | AP49: =AP48*Advanced_control!$E$35/(1-Advanced_control!$C$42) -> 0 | AQ49: =AQ48*Advanced_control!$E$35/(1-Advanced_control!$C$42) -> 0 | AR49: =AR48*Advanced_control!$E$35/(1-Advanced_control!$C$42) -> 0 | AS49: =AS48*Advanced_control!$E$35/(1-Advanced_control!$C$42) -> 0 | AT49: =AT48*Advanced_control!$E$35/(1-Advanced_control!$C$42) -> 0 | AU49: =AU48*Advanced_control!$E$35/(1-Advanced_control!$C$42) -> 0 | AV49: =AV48*Advanced_control!$E$35/(1-Advanced_control!$C$42) -> 0 | AW49: =AW48*Advanced_control!$E$35/(1-Advanced_control!$C$42) -> 0 | AX49: =AX48*Advanced_control!$E$35/(1-Advanced_control!$C$42) -> 0 | AY49: =AY48*Advanced_control!$E$35/(1-Advanced_control!$C$42) -> 0 | AZ49: =AZ48*Advanced_control!$E$35/(1-Advanced_control!$C$42) -> 0 | BA49: =BA48*Advanced_control!$E$35/(1-Advanced_control!$C$42) -> 0 | BB49: =BB48*Advanced_control!$E$35/(1-Advanced_control!$C$42) -> 0 | BC49: =BC48*Advanced_control!$E$35/(1-Advanced_control!$C$42) -> 0 | BD49: =BD48*Advanced_control!$E$35/(1-Advanced_control!$C$42) -> 0 | BE49: =BE48*Advanced_control!$E$35/(1-Advanced_control!$C$42) -> 0 | BF49: =BF48*Advanced_control!$E$35/(1-Advanced_control!$C$42) -> 0 | BG49: =BG48*Advanced_control!$E$35/(1-Advanced_control!$C$42) -> 0 | BH49: =BH48*Advanced_control!$E$35/(1-Advanced_control!$C$42) -> 0 | BI49: =BI48*Advanced_control!$E$35/(1-Advanced_control!$C$42) -> 0 | BJ49: =BJ48*Advanced_control!$E$35/(1-Advanced_control!$C$42) -> 0 | BK49: =BK48*Advanced_control!$E$35/(1-Advanced_control!$C$42) -> 0 | BL49: =BL48*Advanced_control!$E$35/(1-Advanced_control!$C$42) -> 0 | BM49: =BM48*Advanced_control!$E$35/(1-Advanced_control!$C$42) -> 0 | BN49: =BN48*Advanced_control!$E$35/(1-Advanced_control!$C$42) -> 0 | BO49: =BO48*Advanced_control!$E$35/(1-Advanced_control!$C$42) -> 0 | BP49: =BP48*Advanced_control!$E$35/(1-Advanced_control!$C$42) -> 0 | BQ49: =BQ48*Advanced_control!$E$35/(1-Advanced_control!$C$42) -> 0 | BR49: =BR48*Advanced_control!$E$35/(1-Advanced_control!$C$42) -> 0 | BS49: =BS48*Advanced_control!$E$35/(1-Advanced_control!$C$42) -> 0 | BT49: =BT48*Advanced_control!$E$35/(1-Advanced_control!$C$42) -> 0 | BU49: =BU48*Advanced_control!$E$35/(1-Advanced_control!$C$42) -> 0 | BV49: =BV48*Advanced_control!$E$35/(1-Advanced_control!$C$42) -> 0 | BW49: =BW48*Advanced_control!$E$35/(1-Advanced_control!$C$42) -> 0 | BX49: =BX48*Advanced_control!$E$35/(1-Advanced_control!$C$42) -> 0 | BY49: =BY48*Advanced_control!$E$35/(1-Advanced_control!$C$42) -> 0 | BZ49: =BZ48*Advanced_control!$E$35/(1-Advanced_control!$C$42) -> 0 | CA49: =CA48*Advanced_control!$E$35/(1-Advanced_control!$C$42) -> 0 | CB49: =CB48*Advanced_control!$E$35/(1-Advanced_control!$C$42) -> 0 | CC49: =CC48*Advanced_control!$E$35/(1-Advanced_control!$C$42) -> 0 | CD49: =CD48*Advanced_control!$E$35/(1-Advanced_control!$C$42) -> 0 | CE49: =CE48*Advanced_control!$E$35/(1-Advanced_control!$C$42) -> 0 | CF49: =CF48*Advanced_control!$E$35/(1-Advanced_control!$C$42) -> 0 | CG49: =CG48*Advanced_control!$E$35/(1-Advanced_control!$C$42) -> 0 | CH49: =CH48*Advanced_control!$E$35/(1-Advanced_control!$C$42) -> 0 | CI49: =CI48*Advanced_control!$E$35/(1-Advanced_control!$C$42) -> 0 | CJ49: =CJ48*Advanced_control!$E$35/(1-Advanced_control!$C$42) -> 0 | CK49: =CK48*Advanced_control!$E$35/(1-Advanced_control!$C$42) -> 0 | CL49: =CL48*Advanced_control!$E$35/(1-Advanced_control!$C$42) -> 0
B50: Investment to be expensed ("fast money") | C50: =NPV(DiscountRate,E50:CL50) -> 103704093.7 | D50: £ (real 2015) | E50: =E49*(1-Advanced_control!$C$40) -> 1715034.702 | F50: =F49*(1-Advanced_control!$C$40) -> 878210.9561 | G50: =G49*(1-Advanced_control!$C$40) -> 1533406.293 | H50: =H49*(1-Advanced_control!$C$40) -> 2188601.63 | I50: =I49*(1-Advanced_control!$C$40) -> 2843796.967 | J50: =J49*(1-Advanced_control!$C$40) -> 3498992.304 | K50: =K49*(1-Advanced_control!$C$40) -> 4154187.641 | L50: =L49*(1-Advanced_control!$C$40) -> 4809382.978 | M50: =M49*(1-Advanced_control!$C$40) -> 5464578.316 | N50: =N49*(1-Advanced_control!$C$40) -> 6119773.653 | O50: =O49*(1-Advanced_control!$C$40) -> 6774968.99 | P50: =P49*(1-Advanced_control!$C$40) -> 7430164.327 | Q50: =Q49*(1-Advanced_control!$C$40) -> 8085359.664 | R50: =R49*(1-Advanced_control!$C$40) -> 14460350.29 | S50: =S49*(1-Advanced_control!$C$40) -> 14460350.29 | T50: =T49*(1-Advanced_control!$C$40) -> 13592729.27 | U50: =U49*(1-Advanced_control!$C$40) -> 12460001.83 | V50: =V49*(1-Advanced_control!$C$40) -> 11327274.39 | W50: =W49*(1-Advanced_control!$C$40) -> 10194546.95 | X50: =X49*(1-Advanced_control!$C$40) -> 9061819.515 | Y50: =Y49*(1-Advanced_control!$C$40) -> 7929092.075 | Z50: =Z49*(1-Advanced_control!$C$40) -> 6796364.636 | AA50: =AA49*(1-Advanced_control!$C$40) -> 5663637.197 | AB50: =AB49*(1-Advanced_control!$C$40) -> 4530909.757 | AC50: =AC49*(1-Advanced_control!$C$40) -> 3398182.318 | AD50: =AD49*(1-Advanced_control!$C$40) -> 2265454.879 | AE50: =AE49*(1-Advanced_control!$C$40) -> 1132727.439 | AF50: =AF49*(1-Advanced_control!$C$40) -> 0 | AG50: =AG49*(1-Advanced_control!$C$40) -> 0 | AH50: =AH49*(1-Advanced_control!$C$40) -> 0 | AI50: =AI49*(1-Advanced_control!$C$40) -> 0 | AJ50: =AJ49*(1-Advanced_control!$C$40) -> 0 | AK50: =AK49*(1-Advanced_control!$C$40) -> 0 | AL50: =AL49*(1-Advanced_control!$C$40) -> 0 | AM50: =AM49*(1-Advanced_control!$C$40) -> 0 | AN50: =AN49*(1-Advanced_control!$C$40) -> 0 | AO50: =AO49*(1-Advanced_control!$C$40) -> 0 | AP50: =AP49*(1-Advanced_control!$C$40) -> 0 | AQ50: =AQ49*(1-Advanced_control!$C$40) -> 0 | AR50: =AR49*(1-Advanced_control!$C$40) -> 0 | AS50: =AS49*(1-Advanced_control!$C$40) -> 0 | AT50: =AT49*(1-Advanced_control!$C$40) -> 0 | AU50: =AU49*(1-Advanced_control!$C$40) -> 0 | AV50: =AV49*(1-Advanced_control!$C$40) -> 0 | AW50: =AW49*(1-Advanced_control!$C$40) -> 0 | AX50: =AX49*(1-Advanced_control!$C$40) -> 0 | AY50: =AY49*(1-Advanced_control!$C$40) -> 0 | AZ50: =AZ49*(1-Advanced_control!$C$40) -> 0 | BA50: =BA49*(1-Advanced_control!$C$40) -> 0 | BB50: =BB49*(1-Advanced_control!$C$40) -> 0 | BC50: =BC49*(1-Advanced_control!$C$40) -> 0 | BD50: =BD49*(1-Advanced_control!$C$40) -> 0 | BE50: =BE49*(1-Advanced_control!$C$40) -> 0 | BF50: =BF49*(1-Advanced_control!$C$40) -> 0 | BG50: =BG49*(1-Advanced_control!$C$40) -> 0 | BH50: =BH49*(1-Advanced_control!$C$40) -> 0 | BI50: =BI49*(1-Advanced_control!$C$40) -> 0 | BJ50: =BJ49*(1-Advanced_control!$C$40) -> 0 | BK50: =BK49*(1-Advanced_control!$C$40) -> 0 | BL50: =BL49*(1-Advanced_control!$C$40) -> 0 | BM50: =BM49*(1-Advanced_control!$C$40) -> 0 | BN50: =BN49*(1-Advanced_control!$C$40) -> 0 | BO50: =BO49*(1-Advanced_control!$C$40) -> 0 | BP50: =BP49*(1-Advanced_control!$C$40) -> 0 | BQ50: =BQ49*(1-Advanced_control!$C$40) -> 0 | BR50: =BR49*(1-Advanced_control!$C$40) -> 0 | BS50: =BS49*(1-Advanced_control!$C$40) -> 0 | BT50: =BT49*(1-Advanced_control!$C$40) -> 0 | BU50: =BU49*(1-Advanced_control!$C$40) -> 0 | BV50: =BV49*(1-Advanced_control!$C$40) -> 0 | BW50: =BW49*(1-Advanced_control!$C$40) -> 0 | BX50: =BX49*(1-Advanced_control!$C$40) -> 0 | BY50: =BY49*(1-Advanced_control!$C$40) -> 0 | BZ50: =BZ49*(1-Advanced_control!$C$40) -> 0 | CA50: =CA49*(1-Advanced_control!$C$40) -> 0 | CB50: =CB49*(1-Advanced_control!$C$40) -> 0 | CC50: =CC49*(1-Advanced_control!$C$40) -> 0 | CD50: =CD49*(1-Advanced_control!$C$40) -> 0 | CE50: =CE49*(1-Advanced_control!$C$40) -> 0 | CF50: =CF49*(1-Advanced_control!$C$40) -> 0 | CG50: =CG49*(1-Advanced_control!$C$40) -> 0 | CH50: =CH49*(1-Advanced_control!$C$40) -> 0 | CI50: =CI49*(1-Advanced_control!$C$40) -> 0 | CJ50: =CJ49*(1-Advanced_control!$C$40) -> 0 | CK50: =CK49*(1-Advanced_control!$C$40) -> 0 | CL50: =CL49*(1-Advanced_control!$C$40) -> 0
B51: Capitalised investment ("slow money") | C51: 229290702.7 | D51: £ (real 2015) | E51: =E49*Advanced_control!$C$40 -> 3791957.459 | F51: =F49*Advanced_control!$C$40 -> 1941732.481 | G51: =G49*Advanced_control!$C$40 -> 3390375.382 | H51: =H49*Advanced_control!$C$40 -> 4839018.283 | I51: =I49*Advanced_control!$C$40 -> 6287661.185 | J51: =J49*Advanced_control!$C$40 -> 7736304.086 | K51: =K49*Advanced_control!$C$40 -> 9184946.987 | L51: =L49*Advanced_control!$C$40 -> 10633589.89 | M51: =M49*Advanced_control!$C$40 -> 12082232.79 | N51: =N49*Advanced_control!$C$40 -> 13530875.69 | O51: =O49*Advanced_control!$C$40 -> 14979518.59 | P51: =P49*Advanced_control!$C$40 -> 16428161.49 | Q51: =Q49*Advanced_control!$C$40 -> 17876804.39 | R51: =R49*Advanced_control!$C$40 -> 31971967.15 | S51: =S49*Advanced_control!$C$40 -> 31971967.15 | T51: =T49*Advanced_control!$C$40 -> 30053649.12 | U51: =U49*Advanced_control!$C$40 -> 27549178.36 | V51: =V49*Advanced_control!$C$40 -> 25044707.6 | W51: =W49*Advanced_control!$C$40 -> 22540236.84 | X51: =X49*Advanced_control!$C$40 -> 20035766.08 | Y51: =Y49*Advanced_control!$C$40 -> 17531295.32 | Z51: =Z49*Advanced_control!$C$40 -> 15026824.56 | AA51: =AA49*Advanced_control!$C$40 -> 12522353.8 | AB51: =AB49*Advanced_control!$C$40 -> 10017883.04 | AC51: =AC49*Advanced_control!$C$40 -> 7513412.281 | AD51: =AD49*Advanced_control!$C$40 -> 5008941.521 | AE51: =AE49*Advanced_control!$C$40 -> 2504470.76 | AF51: =AF49*Advanced_control!$C$40 -> 0 | AG51: =AG49*Advanced_control!$C$40 -> 0 | AH51: =AH49*Advanced_control!$C$40 -> 0 | AI51: =AI49*Advanced_control!$C$40 -> 0 | AJ51: =AJ49*Advanced_control!$C$40 -> 0 | AK51: =AK49*Advanced_control!$C$40 -> 0 | AL51: =AL49*Advanced_control!$C$40 -> 0 | AM51: =AM49*Advanced_control!$C$40 -> 0 | AN51: =AN49*Advanced_control!$C$40 -> 0 | AO51: =AO49*Advanced_control!$C$40 -> 0 | AP51: =AP49*Advanced_control!$C$40 -> 0 | AQ51: =AQ49*Advanced_control!$C$40 -> 0 | AR51: =AR49*Advanced_control!$C$40 -> 0 | AS51: =AS49*Advanced_control!$C$40 -> 0 | AT51: =AT49*Advanced_control!$C$40 -> 0 | AU51: =AU49*Advanced_control!$C$40 -> 0 | AV51: =AV49*Advanced_control!$C$40 -> 0 | AW51: =AW49*Advanced_control!$C$40 -> 0 | AX51: =AX49*Advanced_control!$C$40 -> 0 | AY51: =AY49*Advanced_control!$C$40 -> 0 | AZ51: =AZ49*Advanced_control!$C$40 -> 0 | BA51: =BA49*Advanced_control!$C$40 -> 0 | BB51: =BB49*Advanced_control!$C$40 -> 0 | BC51: =BC49*Advanced_control!$C$40 -> 0 | BD51: =BD49*Advanced_control!$C$40 -> 0 | BE51: =BE49*Advanced_control!$C$40 -> 0 | BF51: =BF49*Advanced_control!$C$40 -> 0 | BG51: =BG49*Advanced_control!$C$40 -> 0 | BH51: =BH49*Advanced_control!$C$40 -> 0 | BI51: =BI49*Advanced_control!$C$40 -> 0 | BJ51: =BJ49*Advanced_control!$C$40 -> 0 | BK51: =BK49*Advanced_control!$C$40 -> 0 | BL51: =BL49*Advanced_control!$C$40 -> 0 | BM51: =BM49*Advanced_control!$C$40 -> 0 | BN51: =BN49*Advanced_control!$C$40 -> 0 | BO51: =BO49*Advanced_control!$C$40 -> 0 | BP51: =BP49*Advanced_control!$C$40 -> 0 | BQ51: =BQ49*Advanced_control!$C$40 -> 0 | BR51: =BR49*Advanced_control!$C$40 -> 0 | BS51: =BS49*Advanced_control!$C$40 -> 0 | BT51: =BT49*Advanced_control!$C$40 -> 0 | BU51: =BU49*Advanced_control!$C$40 -> 0 | BV51: =BV49*Advanced_control!$C$40 -> 0 | BW51: =BW49*Advanced_control!$C$40 -> 0 | BX51: =BX49*Advanced_control!$C$40 -> 0 | BY51: =BY49*Advanced_control!$C$40 -> 0 | BZ51: =BZ49*Advanced_control!$C$40 -> 0 | CA51: =CA49*Advanced_control!$C$40 -> 0 | CB51: =CB49*Advanced_control!$C$40 -> 0 | CC51: =CC49*Advanced_control!$C$40 -> 0 | CD51: =CD49*Advanced_control!$C$40 -> 0 | CE51: =CE49*Advanced_control!$C$40 -> 0 | CF51: =CF49*Advanced_control!$C$40 -> 0 | CG51: =CG49*Advanced_control!$C$40 -> 0 | CH51: =CH49*Advanced_control!$C$40 -> 0 | CI51: =CI49*Advanced_control!$C$40 -> 0 | CJ51: =CJ49*Advanced_control!$C$40 -> 0 | CK51: =CK49*Advanced_control!$C$40 -> 0 | CL51: =CL49*Advanced_control!$C$40 -> 0
A52: 2015 | B52: =A52&" Depreciation" -> 2015 Depreciation | C52: 1895595.343 | D52: £ (real 2015) | E52: =IF(OR($A52>=E$23,$A52+Depreciation_period<E$23),"",OFFSET($E$51,0,$A52-$E$23)/Depreciation_period) ->  | F52: 84265.72132 | G52: 84265.72132 | H52: 84265.72132 | I52: 84265.72132 | J52: 84265.72132 | K52: 84265.72132 | L52: 84265.72132 | M52: 84265.72132 | N52: 84265.72132 | O52: =IF(OR($A52>=O$23,$A52+Depreciation_period<O$23),"",OFFSET($E$51,0,$A52-$E$23)/Depreciation_period) -> 84265.72132 | P52: 84265.72132 | Q52: 84265.72132 | R52: 84265.72132 | S52: 84265.72132 | T52: 84265.72132 | U52: 84265.72132 | V52: 84265.72132 | W52: 84265.72132 | X52: 84265.72132 | Y52: =IF(OR($A52>=Y$23,$A52+Depreciation_period<Y$23),"",OFFSET($E$51,0,$A52-$E$23)/Depreciation_period) -> 84265.72132 | Z52: 84265.72132 | AA52: 84265.72132 | AB52: 84265.72132 | AC52: 84265.72132 | AD52: 84265.72132 | AE52: 84265.72132 | AF52: 84265.72132 | AG52: 84265.72132 | AH52: 84265.72132 | AI52: =IF(OR($A52>=AI$23,$A52+Depreciation_period<AI$23),"",OFFSET($E$51,0,$A52-$E$23)/Depreciation_period) -> 84265.72132 | AJ52: 84265.72132 | AK52: 84265.72132 | AL52: 84265.72132 | AM52: 84265.72132 | AN52: 84265.72132 | AO52: 84265.72132 | AP52: 84265.72132 | AQ52: 84265.72132 | AR52: 84265.72132 | AS52: =IF(OR($A52>=AS$23,$A52+Depreciation_period<AS$23),"",OFFSET($E$51,0,$A52-$E$23)/Depreciation_period) -> 84265.72132 | AT52: 84265.72132 | AU52: 84265.72132 | AV52: 84265.72132 | AW52: 84265.72132 | AX52: 84265.72132 | BC52: =IF(OR($A52>=BC$23,$A52+Depreciation_period<BC$23),"",OFFSET($E$51,0,$A52-$E$23)/Depreciation_period) ->  | BM52: =IF(OR($A52>=BM$23,$A52+Depreciation_period<BM$23),"",OFFSET($E$51,0,$A52-$E$23)/Depreciation_period) ->  | BW52: =IF(OR($A52>=BW$23,$A52+Depreciation_period<BW$23),"",OFFSET($E$51,0,$A52-$E$23)/Depreciation_period) ->  | CG52: =IF(OR($A52>=CG$23,$A52+Depreciation_period<CG$23),"",OFFSET($E$51,0,$A52-$E$23)/Depreciation_period) -> 
A53: 2016 | B53: =A53&" Depreciation" -> 2016 Depreciation | C53: 970669.9209 | D53: £ (real 2015) | G53: 43149.61069 | H53: 43149.61069 | I53: 43149.61069 | J53: 43149.61069 | K53: 43149.61069 | L53: 43149.61069 | M53: 43149.61069 | N53: 43149.61069 | O53: 43149.61069 | P53: 43149.61069 | Q53: 43149.61069 | R53: 43149.61069 | S53: 43149.61069 | T53: 43149.61069 | U53: 43149.61069 | V53: 43149.61069 | W53: 43149.61069 | X53: 43149.61069 | Y53: 43149.61069 | Z53: 43149.61069 | AA53: 43149.61069 | AB53: 43149.61069 | AC53: 43149.61069 | AD53: 43149.61069 | AE53: 43149.61069 | AF53: 43149.61069 | AG53: 43149.61069 | AH53: 43149.61069 | AI53: 43149.61069 | AJ53: 43149.61069 | AK53: 43149.61069 | AL53: 43149.61069 | AM53: 43149.61069 | AN53: 43149.61069 | AO53: 43149.61069 | AP53: 43149.61069 | AQ53: 43149.61069 | AR53: 43149.61069 | AS53: 43149.61069 | AT53: 43149.61069 | AU53: 43149.61069 | AV53: 43149.61069 | AW53: 43149.61069 | AX53: 43149.61069 | AY53: 43149.61069
A54: 2017 | B54: =A54&" Depreciation" -> 2017 Depreciation | C54: 1694844.906 | D54: £ (real 2015) | H54: 75341.67516 | I54: 75341.67516 | J54: 75341.67516 | K54: 75341.67516 | L54: 75341.67516 | M54: 75341.67516 | N54: 75341.67516 | O54: 75341.67516 | P54: 75341.67516 | Q54: 75341.67516 | R54: 75341.67516 | S54: 75341.67516 | T54: 75341.67516 | U54: 75341.67516 | V54: 75341.67516 | W54: 75341.67516 | X54: 75341.67516 | Y54: 75341.67516 | Z54: 75341.67516 | AA54: 75341.67516 | AB54: 75341.67516 | AC54: 75341.67516 | AD54: 75341.67516 | AE54: 75341.67516 | AF54: 75341.67516 | AG54: 75341.67516 | AH54: 75341.67516 | AI54: 75341.67516 | AJ54: 75341.67516 | AK54: 75341.67516 | AL54: 75341.67516 | AM54: 75341.67516 | AN54: 75341.67516 | AO54: 75341.67516 | AP54: 75341.67516 | AQ54: 75341.67516 | AR54: 75341.67516 | AS54: 75341.67516 | AT54: 75341.67516 | AU54: 75341.67516 | AV54: 75341.67516 | AW54: 75341.67516 | AX54: 75341.67516 | AY54: 75341.67516 | AZ54: 75341.67516
A55: 2018 | B55: 2018 Depreciation | C55: 2419019.891 | D55: £ (real 2015) | I55: 107533.7396 | J55: 107533.7396 | K55: 107533.7396 | L55: 107533.7396 | M55: 107533.7396 | N55: 107533.7396 | O55: 107533.7396 | P55: 107533.7396 | Q55: 107533.7396 | R55: 107533.7396 | S55: 107533.7396 | T55: 107533.7396 | U55: 107533.7396 | V55: 107533.7396 | W55: 107533.7396 | X55: 107533.7396 | Y55: 107533.7396 | Z55: 107533.7396 | AA55: 107533.7396 | AB55: 107533.7396 | AC55: 107533.7396 | AD55: 107533.7396 | AE55: 107533.7396 | AF55: 107533.7396 | AG55: 107533.7396 | AH55: 107533.7396 | AI55: 107533.7396 | AJ55: 107533.7396 | AK55: 107533.7396 | AL55: 107533.7396 | AM55: 107533.7396 | AN55: 107533.7396 | AO55: 107533.7396 | AP55: 107533.7396 | AQ55: 107533.7396 | AR55: 107533.7396 | AS55: 107533.7396 | AT55: 107533.7396 | AU55: 107533.7396 | AV55: 107533.7396 | AW55: 107533.7396 | AX55: 107533.7396 | AY55: 107533.7396 | AZ55: 107533.7396 | BA55: 107533.7396
A56: 2019 | B56: 2019 Depreciation | C56: 3143194.876 | D56: £ (real 2015) | J56: 139725.8041 | K56: 139725.8041 | L56: 139725.8041 | M56: 139725.8041 | N56: 139725.8041 | O56: 139725.8041 | P56: 139725.8041 | Q56: 139725.8041 | R56: 139725.8041 | S56: 139725.8041 | T56: 139725.8041 | U56: 139725.8041 | V56: 139725.8041 | W56: 139725.8041 | X56: 139725.8041 | Y56: 139725.8041 | Z56: 139725.8041 | AA56: 139725.8041 | AB56: 139725.8041 | AC56: 139725.8041 | AD56: 139725.8041 | AE56: 139725.8041 | AF56: 139725.8041 | AG56: 139725.8041 | AH56: 139725.8041 | AI56: 139725.8041 | AJ56: 139725.8041 | AK56: 139725.8041 | AL56: 139725.8041 | AM56: 139725.8041 | AN56: 139725.8041 | AO56: 139725.8041 | AP56: 139725.8041 | AQ56: 139725.8041 | AR56: 139725.8041 | AS56: 139725.8041 | AT56: 139725.8041 | AU56: 139725.8041 | AV56: 139725.8041 | AW56: 139725.8041 | AX56: 139725.8041 | AY56: 139725.8041 | AZ56: 139725.8041 | BA56: 139725.8041 | BB56: 139725.8041
A57: 2020 | B57: 2020 Depreciation | C57: 3867369.861 | D57: £ (real 2015) | K57: 171917.8686 | L57: 171917.8686 | M57: 171917.8686 | N57: 171917.8686 | O57: 171917.8686 | P57: 171917.8686 | Q57: 171917.8686 | R57: 171917.8686 | S57: 171917.8686 | T57: 171917.8686 | U57: 171917.8686 | V57: 171917.8686 | W57: 171917.8686 | X57: 171917.8686 | Y57: 171917.8686 | Z57: 171917.8686 | AA57: 171917.8686 | AB57: 171917.8686 | AC57: 171917.8686 | AD57: 171917.8686 | AE57: 171917.8686 | AF57: 171917.8686 | AG57: 171917.8686 | AH57: 171917.8686 | AI57: 171917.8686 | AJ57: 171917.8686 | AK57: 171917.8686 | AL57: 171917.8686 | AM57: 171917.8686 | AN57: 171917.8686 | AO57: 171917.8686 | AP57: 171917.8686 | AQ57: 171917.8686 | AR57: 171917.8686 | AS57: 171917.8686 | AT57: 171917.8686 | AU57: 171917.8686 | AV57: 171917.8686 | AW57: 171917.8686 | AX57: 171917.8686 | AY57: 171917.8686 | AZ57: 171917.8686 | BA57: 171917.8686 | BB57: 171917.8686 | BC57: 171917.8686
A58: 2021 | B58: 2021 Depreciation | C58: 4591544.846 | D58: £ (real 2015) | L58: 204109.933 | M58: 204109.933 | N58: 204109.933 | O58: 204109.933 | P58: 204109.933 | Q58: 204109.933 | R58: 204109.933 | S58: 204109.933 | T58: 204109.933 | U58: 204109.933 | V58: 204109.933 | W58: 204109.933 | X58: 204109.933 | Y58: 204109.933 | Z58: 204109.933 | AA58: 204109.933 | AB58: 204109.933 | AC58: 204109.933 | AD58: 204109.933 | AE58: 204109.933 | AF58: 204109.933 | AG58: 204109.933 | AH58: 204109.933 | AI58: 204109.933 | AJ58: 204109.933 | AK58: 204109.933 | AL58: 204109.933 | AM58: 204109.933 | AN58: 204109.933 | AO58: 204109.933 | AP58: 204109.933 | AQ58: 204109.933 | AR58: 204109.933 | AS58: 204109.933 | AT58: 204109.933 | AU58: 204109.933 | AV58: 204109.933 | AW58: 204109.933 | AX58: 204109.933 | AY58: 204109.933 | AZ58: 204109.933 | BA58: 204109.933 | BB58: 204109.933 | BC58: 204109.933 | BD58: 204109.933
